{"text_format":"1","workbook":"xlsx","n_sheets":14,"sheets":["الرئيسية","اساسية","بيانات أساسية2","بيانات أساسية 3","بيانات أساسية4","بيانات أساسية 5","جدول الصف الرابع والخامس","جدول الصف الثانى والثالث","مناداة","مناداة 4","ارقام الجلوس2","ارقام الجلوس3","ارقام الجلوس4","ارقام الجلوس5"],"not_rendered":{"charts":0,"images":6,"macros":1,"external_links":3,"defined_names":91,"comments":0,"pivot_tables":0},"unopened":[],"bounds":{"document_bytes":16777216,"sheet_cells":100000,"rows_first":2000,"rows_last":500,"rows_between":2000,"halvings":0,"cell_chars":16384,"cell_head_chars":4096},"cells_cut":0,"cells_raw":0,"read":"whole","date_system":"1900"}

{"sheet":"الرئيسية","index":0,"n_rows":0,"n_cols":0,"rows_kept":0,"cut":false,"hidden":false,"merged":[]}

{"sheet":"اساسية","index":1,"n_rows":14,"n_cols":256,"rows_kept":14,"cut":false,"hidden":false,"merged":[]}
[]
[]
[null,"ادخل  البيانات  أولا",null,null,null,null,null,null,null,null,null,null,null,null,null,null,null,null,null,null,null,null,null,null,null,null,null,null,null,null,null,null,null,null,null,null,null,null,null,null,null,null,null,null,null,null,null,null,null,null,null,null,null,null,null,null,null,null,null,null,null,null,null,null,null,null,null,null,null,null,null,null,null,null,null,null,null,null,null,null,null,null,null,null,null,null,null,null,null,null,null,null,null,null,null,null,null,null,null,null,null,null,null,null,null,null,null,null,null,null,null,null,null,null,null,null,null,null,null,null,null,null,null,null,null,null,null,null,null,null,null,null,null,null,null,null,null,null,null,null,null,null,null,null,null,null,null,null,null,null,null,null,null,null,null,null,null,null,null,null,null,null,null,null,null,null,null,null,null,null,null,null,null,null,null,null,null,null,null,null,null,null,null,null,null,null,null,null,null,null,null,null,null,null,null,null,null,null,null,null,null,null,null,null,null,null,null,null,null,null,null,null,null,null,null,null,null,null,null,null,null,null,null,null,null,null,null,null,null,null,null,null,null,null,null,null,null,null,null,null,null,null,null,null,null,null,null,null,null,null,null,null,null,null,null,"جدول إمتحان نصف العام"]
[null,null,null,null,null,null,null,null,null,null,null,null,null,null,null,null,null,null,null,null,null,null,null,null,null,null,null,null,null,null,null,null,null,null,null,null,null,null,null,null,null,null,null,null,null,null,null,null,null,null,null,null,null,null,null,null,null,null,null,null,null,null,null,null,null,null,null,null,null,null,null,null,null,null,null,null,null,null,null,null,null,null,null,null,null,null,null,null,null,null,null,null,null,null,null,null,null,null,null,null,null,null,null,null,null,null,null,null,null,null,null,null,null,null,null,null,null,null,null,null,null,null,null,null,null,null,null,null,null,null,null,null,null,null,null,null,null,null,null,null,null,null,null,null,null,null,null,null,null,null,null,null,null,null,null,null,null,null,null,null,null,null,null,null,null,null,null,null,null,null,null,null,null,null,null,null,null,null,null,null,null,null,null,null,null,null,null,null,null,null,null,null,null,null,null,null,null,null,null,null,null,null,null,null,null,null,null,null,null,null,null,null,null,null,null,null,null,null,null,null,null,null,null,null,null,null,null,null,null,null,null,null,null,null,null,null,null,null,null,null,null,null,null,null,null,null,null,null,null,null,null,null,null,null,null,"جدول إمتحان أخر العام"]
[null,"محافظة  كفر الشيخ",null,null,null,null,"الفصل الدراسى الاول"]
[null,"مديرية التربية والتعليم",null,null,null,null,"الفصل الدراسى الثانى"]
[null,"إدارة الرياض التعليمية"]
[null,"مدرسة الشهيدين الاعدادية"]
[null,"طه رسول"]
[null,"فاتن بسيونى"]
[null,"الفصل الدراسى الثانى"]
[null,"الصف الاول والثانى  الاعدادى"]
[null,"2014/ 2015 م"]
[null,"أخر العام"]

{"sheet":"بيانات أساسية2","index":2,"n_rows":604,"n_cols":19,"rows_kept":604,"cut":false,"hidden":false,"merged":[[2,3,3,3],[0,3,1,7],[2,4,2,5],[0,11,2,12]]}
[null,null,null,"الصف الثانى الابتدائى",null,null,null,null,null,null,null,"اكتب فى الخلايا ذات اللون الابيض فقط"]
[null,null,null,null,null,null,null,null,null,"العدد",{"$f":"SUM(G5:G44)","v":266}]
[null,null,null,"م","اكتب اول رقم جلوس",null,{"$f":"SUM(G5:G44)","v":266},{"$f":"COUNT(H5:H44)","v":10},null,"أعلى رقم",{"$f":"MAX(E5:F44)","v":366},null,null,null,{"$f":"COUNT(K5:K297)","v":266},{"$f":"COUNTA(L5:L297)","v":266}]
[null,null,null,null,"من","إلى","عدد اللجنة","اللجنة",null,"م","رقم الجلوس"," الاسم","النوع",null,"اللجنة","نهاية اللجنة"]
[null,"مقيد",{"$f":"COUNTA(L5:L297)","v":266},{"$f":"IF(E5=\"\",\"\",COUNT($E$5:E5))","v":1},101,{"$f":"IF(G5=\"\",\"\",E5+G5-1)","v":128},28,{"$f":"IF(E5=\"\",\"\",COUNT($E$5:E5))","v":1},null,1,{"$f":"$E$5","v":101},"ابراهيم عادل عبدالعال عبدالمجيد","ذكر","=MATCH($m5,MySortList,0)",{"$f":"IF(K5=\"\",\"\",VLOOKUP(K5,جلوس,4))","v":1},{"$f":"IF(O5=O6,\"\",\"نهاية اللجنة\")","v":""}]
[null,"موزع",{"$f":"SUM(G5:G44)","v":266},{"$f":"IF(E6=\"\",\"\",COUNT($E$5:E6))","v":2},{"$f":"IF(G6=\"\",\"\",F5+1)","v":129},{"$f":"IF(G6=\"\",\"\",E6+G6-1)","v":155},27,{"$f":"IF(E6=\"\",\"\",COUNT($E$5:E6))","v":2},null,{"$f":"IF(J5=\"\",\"\",IF(J5+1>$K$2,\"\",J5+1))","v":2},{"$f":"IF(K5=\"\",\"\",IF(K5+1>$K$3,\"\",K5+1))","v":102},"ابراهيم عرفه ابراهيم حسنين","ذكر","=MATCH($m5,MySortList,0)",1,{"$f":"IF(O6=O7,\"\",\"نهاية اللجنة\")","v":""}]
[null,"متبقى",{"$f":"C5-C6","v":0},{"$f":"IF(E7=\"\",\"\",COUNT($E$5:E7))","v":3},{"$f":"IF(G7=\"\",\"\",F6+1)","v":156},183,28,{"$f":"IF(E7=\"\",\"\",COUNT($E$5:E7))","v":3},null,{"$f":"IF(J6=\"\",\"\",IF(J6+1>$K$2,\"\",J6+1))","v":3},{"$f":"IF(K6=\"\",\"\",IF(K6+1>$K$3,\"\",K6+1))","v":103},"احمد جمعه حسن سعد","ذكر","=MATCH($m5,MySortList,0)",1,""]
[null,null,null,{"$f":"IF(E8=\"\",\"\",COUNT($E$5:E8))","v":4},184,208,25,{"$f":"IF(E8=\"\",\"\",COUNT($E$5:E8))","v":4},null,4,104,"احمد جميل مصطفى محمد","ذكر","=MATCH($m5,MySortList,0)",1,""]
[null,null,"ذكر",{"$f":"IF(E9=\"\",\"\",COUNT($E$5:E9))","v":5},209,235,27,{"$f":"IF(E9=\"\",\"\",COUNT($E$5:E9))","v":5},null,5,105,"احمد حماده محمد عبدالمجيد","ذكر","=MATCH($m5,MySortList,0)",1,"",null,null," "]
[null,null,"انثى",{"$f":"IF(E10=\"\",\"\",COUNT($E$5:E10))","v":6},236,263,28,{"$f":"IF(E10=\"\",\"\",COUNT($E$5:E10))","v":6},null,6,106,"احمد سعيد محمد ابراهيم","ذكر","=MATCH($m5,MySortList,0)",1,""]
[null,null,null,{"$f":"IF(E11=\"\",\"\",COUNT($E$5:E11))","v":7},264,290,27,{"$f":"IF(E11=\"\",\"\",COUNT($E$5:E11))","v":7},null,7,107,"احمد صلاح احمد احمد","ذكر","=MATCH($m5,MySortList,0)",1,""]
[null,null,null,{"$f":"IF(E12=\"\",\"\",COUNT($E$5:E12))","v":8},291,318,28,{"$f":"IF(E12=\"\",\"\",COUNT($E$5:E12))","v":8},null,8,108,"احمد عادل عيسى حسن","ذكر","=MATCH($m5,MySortList,0)",1,""]
[null,null,null,{"$f":"IF(E13=\"\",\"\",COUNT($E$5:E13))","v":9},319,343,25,{"$f":"IF(E13=\"\",\"\",COUNT($E$5:E13))","v":9},null,9,109,"احمد عزت محمد عبدالبديع","ذكر","=MATCH($m5,MySortList,0)",1,""]
[null,null,null,{"$f":"IF(E14=\"\",\"\",COUNT($E$5:E14))","v":10},344,366,23,{"$f":"IF(E14=\"\",\"\",COUNT($E$5:E14))","v":10},null,10,110,"احمد عطيه محمود ابراهيم","ذكر","=MATCH($m5,MySortList,0)",1,""]
[null,null,null,{"$f":"IF(E15=\"\",\"\",COUNT($E$5:E15))","v":""},"","",null,{"$f":"IF(E15=\"\",\"\",COUNT($E$5:E15))","v":""},null,11,111,"احمد على احمد محمد","ذكر","=MATCH($m5,MySortList,0)",1,""]
[null,null,null,{"$f":"IF(E16=\"\",\"\",COUNT($E$5:E16))","v":""},"","",null,{"$f":"IF(E16=\"\",\"\",COUNT($E$5:E16))","v":""},null,12,112,"احمد عمادالدين احمد محمد بيومى","ذكر","=MATCH($m5,MySortList,0)",1,""]
[null,null,null,{"$f":"IF(E17=\"\",\"\",COUNT($E$5:E17))","v":""},"","",null,{"$f":"IF(E17=\"\",\"\",COUNT($E$5:E17))","v":""},null,13,113,"احمد ماهر صبحى طلبه","ذكر","=MATCH($m5,MySortList,0)",1,""]
[null,null,null,{"$f":"IF(E18=\"\",\"\",COUNT($E$5:E18))","v":""},"","",null,{"$f":"IF(E18=\"\",\"\",COUNT($E$5:E18))","v":""},null,14,114,"احمد مجدى محمد هنداوي","ذكر","=MATCH($m5,MySortList,0)",1,""]
[null,null,null,{"$f":"IF(E19=\"\",\"\",COUNT($E$5:E19))","v":""},"","",null,{"$f":"IF(E19=\"\",\"\",COUNT($E$5:E19))","v":""},null,15,115,"احمد محمد ابراهيم يوسف","ذكر","=MATCH($m5,MySortList,0)",1,""]
[null,null,null,{"$f":"IF(E20=\"\",\"\",COUNT($E$5:E20))","v":""},"","",null,{"$f":"IF(E20=\"\",\"\",COUNT($E$5:E20))","v":""},null,16,116,"احمد محمد السيد احمد","ذكر","=MATCH($m5,MySortList,0)",1,""]
[null,null,null,{"$f":"IF(E21=\"\",\"\",COUNT($E$5:E21))","v":""},"","",null,{"$f":"IF(E21=\"\",\"\",COUNT($E$5:E21))","v":""},null,17,117,"احمد مصطفى عاطف ابراهيم","ذكر","=MATCH($m5,MySortList,0)",1,""]
[null,null,null,{"$f":"IF(E22=\"\",\"\",COUNT($E$5:E22))","v":""},"","",null,{"$f":"IF(E22=\"\",\"\",COUNT($E$5:E22))","v":""},null,18,118,"احمد ناصر محمد خميس","ذكر","=MATCH($m5,MySortList,0)",1,""]
[null,null,null,{"$f":"IF(E23=\"\",\"\",COUNT($E$5:E23))","v":""},"","",null,{"$f":"IF(E23=\"\",\"\",COUNT($E$5:E23))","v":""},null,19,119,"احمد هانى محمد السيد","ذكر","=MATCH($m5,MySortList,0)",1,""]
[null,null,null,{"$f":"IF(E24=\"\",\"\",COUNT($E$5:E24))","v":""},"","",null,{"$f":"IF(E24=\"\",\"\",COUNT($E$5:E24))","v":""},null,20,120,"احمد هشام جمعه غازي","ذكر","=MATCH($m5,MySortList,0)",1,""]
[null,null,null,{"$f":"IF(E25=\"\",\"\",COUNT($E$5:E25))","v":""},"","",null,{"$f":"IF(E25=\"\",\"\",COUNT($E$5:E25))","v":""},null,21,121,"اسامه ابراهيم عبدالله سليمان","ذكر","=MATCH($m5,MySortList,0)",1,""]
[null,null,null,{"$f":"IF(E26=\"\",\"\",COUNT($E$5:E26))","v":""},"","",null,{"$f":"IF(E26=\"\",\"\",COUNT($E$5:E26))","v":""},null,22,122,"اسامه حماده احمد المغازي","ذكر","=MATCH($m5,MySortList,0)",1,""]
[null,null,null,{"$f":"IF(E27=\"\",\"\",COUNT($E$5:E27))","v":""},"","",null,{"$f":"IF(E27=\"\",\"\",COUNT($E$5:E27))","v":""},null,23,123,"اسر محمد عيد عبدالقوي","ذكر","=MATCH($m5,MySortList,0)",1,""]
[null,null,null,{"$f":"IF(E28=\"\",\"\",COUNT($E$5:E28))","v":""},"","",null,{"$f":"IF(E28=\"\",\"\",COUNT($E$5:E28))","v":""},null,24,124,"السيد اسماعيل جلال اسماعيل","ذكر","=MATCH($m5,MySortList,0)",1,""]
[null,null,null,{"$f":"IF(E29=\"\",\"\",COUNT($E$5:E29))","v":""},"","",null,{"$f":"IF(E29=\"\",\"\",COUNT($E$5:E29))","v":""},null,25,125,"السيد وائل السيد عبدالفتاح ","ذكر","=MATCH($m5,MySortList,0)",1,""]
[null,null,null,{"$f":"IF(E30=\"\",\"\",COUNT($E$5:E30))","v":""},"","",null,{"$f":"IF(E30=\"\",\"\",COUNT($E$5:E30))","v":""},null,26,126,"انس جمال عبدالعظيم احمد","ذكر","=MATCH($m5,MySortList,0)",1,""]
[null,null,null,{"$f":"IF(E31=\"\",\"\",COUNT($E$5:E31))","v":""},"","",null,{"$f":"IF(E31=\"\",\"\",COUNT($E$5:E31))","v":""},null,27,127,"ايمن خالد عبداللطيف حامد هلهل","ذكر","=MATCH($m5,MySortList,0)",1,""]
[null,null,null,{"$f":"IF(E32=\"\",\"\",COUNT($E$5:E32))","v":""},"","",null,{"$f":"IF(E32=\"\",\"\",COUNT($E$5:E32))","v":""},null,28,128,"حامد ممدوح احمد السيد","ذكر","=MATCH($m5,MySortList,0)",1,"نهاية اللجنة"]
[null,null,null,{"$f":"IF(E33=\"\",\"\",COUNT($E$5:E33))","v":""},"","",null,{"$f":"IF(E33=\"\",\"\",COUNT($E$5:E33))","v":""},null,29,129,"حسام حسن طلبه يوسف","ذكر","=MATCH($m5,MySortList,0)",2,""]
[null,null,null,{"$f":"IF(E34=\"\",\"\",COUNT($E$5:E34))","v":""},"","",null,{"$f":"IF(E34=\"\",\"\",COUNT($E$5:E34))","v":""},null,30,130,"حسن عبدالرحمن محمد احمد","ذكر","=MATCH($m5,MySortList,0)",2,""]
[null,null,null,{"$f":"IF(E35=\"\",\"\",COUNT($E$5:E35))","v":""},"","",null,{"$f":"IF(E35=\"\",\"\",COUNT($E$5:E35))","v":""},null,31,131,"حسن عماد خضر احمد","ذكر","=MATCH($m5,MySortList,0)",2,""]
[null,null,null,{"$f":"IF(E36=\"\",\"\",COUNT($E$5:E36))","v":""},"","",null,{"$f":"IF(E36=\"\",\"\",COUNT($E$5:E36))","v":""},null,32,132,"حسن وليد حسن احمد","ذكر","=MATCH($m5,MySortList,0)",2,""]
[null,null,null,{"$f":"IF(E37=\"\",\"\",COUNT($E$5:E37))","v":""},"","",null,{"$f":"IF(E37=\"\",\"\",COUNT($E$5:E37))","v":""},null,33,133,"خالد رمضان رشدى عبدالحميد","ذكر","=MATCH($m5,MySortList,0)",2,""]
[null,null,null,{"$f":"IF(E38=\"\",\"\",COUNT($E$5:E38))","v":""},"","",null,{"$f":"IF(E38=\"\",\"\",COUNT($E$5:E38))","v":""},null,34,134,"زياد احمد رمضان درباله","ذكر","=MATCH($m5,MySortList,0)",2,""]
[null,null,null,{"$f":"IF(E39=\"\",\"\",COUNT($E$5:E39))","v":""},"","",null,{"$f":"IF(E39=\"\",\"\",COUNT($E$5:E39))","v":""},null,35,135,"زياد احمد محمد ابراهيم","ذكر","=MATCH($m5,MySortList,0)",2,""]
[null,null,null,{"$f":"IF(E40=\"\",\"\",COUNT($E$5:E40))","v":""},"","",null,{"$f":"IF(E40=\"\",\"\",COUNT($E$5:E40))","v":""},null,36,136,"زياد السيد احمد احمد","ذكر","=MATCH($m5,MySortList,0)",2,""]
[null,null,null,{"$f":"IF(E41=\"\",\"\",COUNT($E$5:E41))","v":""},"","",null,{"$f":"IF(E41=\"\",\"\",COUNT($E$5:E41))","v":""},null,37,137,"زياد عصام احمد السيد مجاهد","ذكر","=MATCH($m5,MySortList,0)",2,""]
[null,null,null,{"$f":"IF(E42=\"\",\"\",COUNT($E$5:E42))","v":""},"","",null,{"$f":"IF(E42=\"\",\"\",COUNT($E$5:E42))","v":""},null,38,138,"زياد عصام الدين عبدالمجيد حسن","ذكر","=MATCH($m5,MySortList,0)",2,""]
[null,null,null,{"$f":"IF(E43=\"\",\"\",COUNT($E$5:E43))","v":""},"","",null,{"$f":"IF(E43=\"\",\"\",COUNT($E$5:E43))","v":""},null,39,139,"سيف احمد ماهر محمد","ذكر","=MATCH($m5,MySortList,0)",2,""]
[null,null,null,{"$f":"IF(E44=\"\",\"\",COUNT($E$5:E44))","v":""},"","",null,{"$f":"IF(E44=\"\",\"\",COUNT($E$5:E44))","v":""},null,40,140,"سيف السيد يحى السيد","ذكر","=MATCH($m5,MySortList,0)",2,""]
[null,null,null,null,null,null,null,null,null,41,141,"شادى محمد محمود بهنسي","ذكر","=MATCH($m5,MySortList,0)",2,""]
[null,null,null,null,null,null,null,null,null,42,142,"عبدالرحمن احمد السيد احمد","ذكر","=MATCH($m5,MySortList,0)",2,""]
[null,null,null,null,null,null,null,null,null,43,143,"عبدالرحمن خالد منصور محمد","ذكر","=MATCH($m5,MySortList,0)",2,""]
[null,null,null,null,null,null,null,null,null,44,144,"عبدالرحمن رمضان احمد شراكي","ذكر","=MATCH($m5,MySortList,0)",2,""]
[null,null,null,null,null,null,null,null,null,45,145,"عبدالرحمن عاصم عبدالمحسن حسن ","ذكر","=MATCH($m5,MySortList,0)",2,""]
[null,null,null,null,null,null,null,null,null,46,146,"عبدالرحمن عمرو فوزى توفيق","ذكر","=MATCH($m5,MySortList,0)",2,""]
[null,null,null,null,null,null,null,null,null,47,147,"عبدالرحمن فتحى حسين بسيونى","ذكر","=MATCH($m5,MySortList,0)",2,""]
[null,null,null,null,null,null,null,null,null,48,148,"عبدالرحمن محمد عبدالعزيز محمد","ذكر","=MATCH($m5,MySortList,0)",2,""]
[null,null,null,null,null,null,null,null,null,49,149,"عبدالرحمن نهاد السعيد محمد","ذكر","=MATCH($m5,MySortList,0)",2,""]
[null,null,null,null,null,null,null,null,null,50,150,"عبدالرحمن هانى عيد علي","ذكر","=MATCH($m5,MySortList,0)",2,""]
[null,null,null,null,null,null,null,null,null,51,151,"عبدالفتاح عماد عبدالفتاح ابراهيم","ذكر","=MATCH($m5,MySortList,0)",2,""]
[null,null,null,null,null,null,null,null,null,52,152,"عبدالله كامل عبدالله ابراهيم","ذكر","=MATCH($m5,MySortList,0)",2,""]
[null,null,null,null,null,null,null,null,null,53,153,"عبدالله محمد عبدالمنعم عبدالعال","ذكر","=MATCH($m5,MySortList,0)",2,""]
[null,null,null,null,null,null,null,null,null,54,154,"عبدالله مصطفى السيد سيد احمد","ذكر","=MATCH($m5,MySortList,0)",2,""]
[null,null,null,null,null,null,null,null,null,55,155,"عبدالله يسرى عوض احمد","ذكر","=MATCH($m5,MySortList,0)",2,"نهاية اللجنة"]
[null,null,null,null,null,null,null,null,null,56,156,"علاء صبرى عبدالحميد عبدالحميد","ذكر","=MATCH($m5,MySortList,0)",3,""]
[null,null,null,null,null,null,null,null,null,57,157,"عمار محمد محمود عبدالواحد","ذكر","=MATCH($m5,MySortList,0)",3,""]
[null,null,null,null,null,null,null,null,null,58,158,"عمر اشرف السيد بدير","ذكر","=MATCH($m5,MySortList,0)",3,""]
[null,null,null,null,null,null,null,null,null,59,159,"عمر السيد محمد علي","ذكر","=MATCH($m5,MySortList,0)",3,""]
[null,null,null,null,null,null,null,null,null,60,160,"عمر رفيق السيد ابراهيم","ذكر","=MATCH($m5,MySortList,0)",3,""]
[null,null,null,null,null,null,null,null,null,61,161,"عمر عبدالفتاح جمعه مصطفى","ذكر","=MATCH($m5,MySortList,0)",3,""]
[null,null,null,null,null,null,null,null,null,62,162,"عمر محمد فتح الله دومه","ذكر","=MATCH($m5,MySortList,0)",3,""]
[null,null,null,null,null,null,null,null,null,63,163,"عمر محمد فزاع عبد المجيد ","ذكر","=MATCH($m5,MySortList,0)",3,""]
[null,null,null,null,null,null,null,null,null,64,164,"فارس رافت كمال محمود","ذكر","=MATCH($m5,MySortList,0)",3,""]
[null,null,null,null,null,null,null,null,null,65,165,"فؤاد محمد علاء الدين عبدالمنعم","ذكر","=MATCH($m5,MySortList,0)",{"$f":"IF(K69=\"\",\"\",VLOOKUP(K69,جلوس,4))","v":3},""]
[null,null,null,null,null,null,null,null,null,66,166,"كريم رامى ابراهيم عطيه","ذكر","=MATCH($m5,MySortList,0)",3,{"$f":"IF(O70=O71,\"\",\"نهاية اللجنة\")","v":""}]
[null,null,null,null,null,null,null,null,null,{"$f":"IF(J70=\"\",\"\",IF(J70+1>$K$2,\"\",J70+1))","v":67},{"$f":"IF(K70=\"\",\"\",IF(K70+1>$K$3,\"\",K70+1))","v":167},"كريم محمد رفاعى محمد","ذكر","=MATCH($m5,MySortList,0)",3,""]
[null,null,null,null,null,null,null,null,null,68,168,"مازن محمد السعيد محمد الشامى","ذكر","=MATCH($m5,MySortList,0)",3,""]
[null,null,null,null,null,null,null,null,null,69,169,"محمد ابراهيم سالم عبدالمجيد","ذكر","=MATCH($m5,MySortList,0)",3,""]
[null,null,null,null,null,null,null,null,null,70,170,"محمد ابراهيم محمد سليمان","ذكر","=MATCH($m5,MySortList,0)",3,""]
[null,null,null,null,null,null,null,null,null,71,171,"محمد احمد السيد عبدالوهاب","ذكر","=MATCH($m5,MySortList,0)",3,""]
[null,null,null,null,null,null,null,null,null,72,172,"محمد احمد رشدى عبدالعزيز","ذكر","=MATCH($m5,MySortList,0)",3,""]
[null,null,null,null,null,null,null,null,null,73,173,"محمد احمد محمد عبدالعزيز","ذكر","=MATCH($m5,MySortList,0)",3,""]
[null,null,null,null,null,null,null,null,null,74,174,"محمد انور عبدالعزيز محمد","ذكر","=MATCH($m5,MySortList,0)",3,""]
[null,null,null,null,null,null,null,null,null,75,175,"محمد ايهاب جمال قطب","ذكر","=MATCH($m5,MySortList,0)",3,""]
[null,null,null,null,null,null,null,null,null,76,176,"محمد جمال عيسى علي","ذكر","=MATCH($m5,MySortList,0)",3,""]
[null,null,null,null,null,null,null,null,null,77,177,"محمد حاتم جمال عبدالسلام","ذكر","=MATCH($m5,MySortList,0)",3,""]
[null,null,null,null,null,null,null,null,null,78,178,"محمد رفعت على عبدالسلام","ذكر","=MATCH($m5,MySortList,0)",3,""]
[null,null,null,null,null,null,null,null,null,79,179,"محمد سالم محمد احمد","ذكر","=MATCH($m5,MySortList,0)",3,""]
[null,null,null,null,null,null,null,null,null,80,180,"محمد سامح حامد ابراهيم","ذكر","=MATCH($m5,MySortList,0)",3,""]
[null,null,null,null,null,null,null,null,null,81,181,"محمد سمير جمعه غازي","ذكر","=MATCH($m5,MySortList,0)",3,""]
[null,null,null,null,null,null,null,null,null,82,182,"محمد صلاح محمد ضباب","ذكر","=MATCH($m5,MySortList,0)",3,""]
[null,null,null,null,null,null,null,null,null,83,183,"محمد طارق فتحى محمد","ذكر","=MATCH($m5,MySortList,0)",3,"نهاية اللجنة"]
[null,null,null,null,null,null,null,null,null,84,184,"محمد عادل محمود عبدالله","ذكر","=MATCH($m5,MySortList,0)",4,""]
[null,null,null,null,null,null,null,null,null,85,185,"محمد عزت مصطفى محمد","ذكر","=MATCH($m5,MySortList,0)",4,""]
[null,null,null,null,null,null,null,null,null,86,186,"محمد عصام الدين سميح عبدالرحمن","ذكر","=MATCH($m5,MySortList,0)",4,""]
[null,null,null,null,null,null,null,null,null,87,187,"محمد عطيه عبدالرحمن محمد","ذكر","=MATCH($m5,MySortList,0)",4,""]
[null,null,null,null,null,null,null,null,null,88,188,"محمد فيصل السيد سالم","ذكر","=MATCH($m5,MySortList,0)",4,""]
[null,null,null,null,null,null,null,null,null,89,189,"محمد مجدى صبحى محمد","ذكر","=MATCH($m5,MySortList,0)",4,""]
[null,null,null,null,null,null,null,null,null,90,190,"محمد محمود ثابت علي","ذكر","=MATCH($m5,MySortList,0)",4,""]
[null,null,null,null,null,null,null,null,null,91,191,"محمد مسعد السيد عبدالجواد","ذكر","=MATCH($m5,MySortList,0)",4,""]
[null,null,null,null,null,null,null,null,null,92,192,"محمد مصطفى حسين علي","ذكر","=MATCH($m5,MySortList,0)",4,""]
[null,null,null,null,null,null,null,null,null,93,193,"محمد موهوب عبدالمنعم عبدالرحيم","ذكر","=MATCH($m5,MySortList,0)",4,""]
[null,null,null,null,null,null,null,null,null,94,194,"محمد وائل محمد عبدالفتاح","ذكر","=MATCH($m5,MySortList,0)",4,""]
[null,null,null,null,null,null,null,null,null,95,195,"محمود ابراهيم على عبدالحميد","ذكر","=MATCH($m5,MySortList,0)",4,""]
[null,null,null,null,null,null,null,null,null,96,196,"محمود احمد السيد اسماعيل","ذكر","=MATCH($m5,MySortList,0)",4,""]
[null,null,null,null,null,null,null,null,null,97,197,"محمود حماده احمد محمد","ذكر","=MATCH($m5,MySortList,0)",4,""]
[null,null,null,null,null,null,null,null,null,98,198,"محمود عبدالحميد عبدالله ","ذكر","=MATCH($m5,MySortList,0)",4,""]
[null,null,null,null,null,null,null,null,null,99,199,"محمود فريد محمود موسي","ذكر","=MATCH($m5,MySortList,0)",4,""]
[null,null,null,null,null,null,null,null,null,100,200,"محمود محمد السعيد السعيد موسى ","ذكر","=MATCH($m5,MySortList,0)",4,""]
[null,null,null,null,null,null,null,null,null,101,201,"محمود محمد سعد ابوالمكارم","ذكر","=MATCH($m5,MySortList,0)",4,""]
[null,null,null,null,null,null,null,null,null,102,202,"مصطفى صبحى مصطفى حسن","ذكر","=MATCH($m5,MySortList,0)",4,""]
[null,null,null,null,null,null,null,null,null,103,203,"مصطفى صبرى مصطفى بيومي","ذكر","=MATCH($m5,MySortList,0)",4,""]
[null,null,null,null,null,null,null,null,null,104,204,"مصعب عبدالله عبدالحميد علي","ذكر","=MATCH($m5,MySortList,0)",4,""]
[null,null,null,null,null,null,null,null,null,105,205,"معاذ ماهر السيد محمد","ذكر","=MATCH($m5,MySortList,0)",4,""]
[null,null,null,null,null,null,null,null,null,106,206,"معاذ محمد محمد محمد","ذكر","=MATCH($m5,MySortList,0)",4,""]
[null,null,null,null,null,null,null,null,null,107,207,"مهند محمد صبحى مصطفي","ذكر","=MATCH($m5,MySortList,0)",4,""]
[null,null,null,null,null,null,null,null,null,108,208,"مينا جورج ميخائيل اسعد","ذكر","=MATCH($m5,MySortList,0)",4,"نهاية اللجنة"]
[null,null,null,null,null,null,null,null,null,109,209,"مينا حبيب سعد عوض","ذكر","=MATCH($m5,MySortList,0)",5,""]
[null,null,null,null,null,null,null,null,null,110,210,"هشام السعيد ابراهيم عثمان","ذكر","=MATCH($m5,MySortList,0)",5,""]
[null,null,null,null,null,null,null,null,null,111,211,"وائل وليد عبدالقادر موسي","ذكر","=MATCH($m5,MySortList,0)",5,""]
[null,null,null,null,null,null,null,null,null,112,212,"يحى السعيد يحى طولان","ذكر","=MATCH($m5,MySortList,0)",5,""]
[null,null,null,null,null,null,null,null,null,113,213,"يوسف احمد ابراهيم محمد","ذكر","=MATCH($m5,MySortList,0)",5,""]
[null,null,null,null,null,null,null,null,null,114,214,"يوسف ايهاب فرج مرسي","ذكر","=MATCH($m5,MySortList,0)",5,""]
[null,null,null,null,null,null,null,null,null,115,215,"يوسف طارق محمد عمر","ذكر","=MATCH($m5,MySortList,0)",5,""]
[null,null,null,null,null,null,null,null,null,116,216,"يوسف عبدالخالق عبدالعاطى ","ذكر","=MATCH($m5,MySortList,0)",5,""]
[null,null,null,null,null,null,null,null,null,117,217,"يوسف فتحى الشوادفى حسانين","ذكر","=MATCH($m5,MySortList,0)",5,""]
[null,null,null,null,null,null,null,null,null,118,218,"يوسف محمد حسن حسين","ذكر","=MATCH($m5,MySortList,0)",5,""]
[null,null,null,null,null,null,null,null,null,119,219,"يوسف محمد مصطفى السباعي","ذكر","=MATCH($m5,MySortList,0)",5,""]
[null,null,null,null,null,null,null,null,null,120,220,"يوسف هانى سعد فرج","ذكر","=MATCH($m5,MySortList,0)",5,""]
[null,null,null,null,null,null,null,null,null,121,221,"يوسف هانى فوزى طه","ذكر","=MATCH($m5,MySortList,0)",5,""]
[null,null,null,null,null,null,null,null,null,122,222,"احلام احمد فهمى احمد","انثى","=MATCH($m5,MySortList,0)",5,""]
[null,null,null,null,null,null,null,null,null,123,223,"اسراء ابراهيم عبدالمجيد احمد","انثى","=MATCH($m5,MySortList,0)",5,""]
[null,null,null,null,null,null,null,null,null,124,224,"اسراء احمد مجدى عبدالعزيز","انثى","=MATCH($m5,MySortList,0)",5,""]
[null,null,null,null,null,null,null,null,null,125,225,"اسراء رضا عبدالونيس عبدالله","انثى","=MATCH($m5,MySortList,0)",5,""]
[null,null,null,null,null,null,null,null,null,126,226,"اسراء عبدالحميد عيسى عبدالحميد","انثى","=MATCH($m5,MySortList,0)",5,""]
[null,null,null,null,null,null,null,null,null,127,227,"اسماء ابراهيم محمد ابراهيم","انثى","=MATCH($m5,MySortList,0)",5,""]
[null,null,null,null,null,null,null,null,null,128,228,"اسماء رضا عبدالمعبود عبداللطيف","انثى","=MATCH($m5,MySortList,0)",5,""]
[null,null,null,null,null,null,null,null,null,129,229,"اسماء سامى صابر خطاب","انثى","=MATCH($m5,MySortList,0)",{"$f":"IF(K133=\"\",\"\",VLOOKUP(K133,جلوس,4))","v":5},""]
[null,null,null,null,null,null,null,null,null,130,230,"اسماء سعد السيد محمد","انثى","=MATCH($m5,MySortList,0)",5,{"$f":"IF(O134=O135,\"\",\"نهاية اللجنة\")","v":""}]
[null,null,null,null,null,null,null,null,null,{"$f":"IF(J134=\"\",\"\",IF(J134+1>$K$2,\"\",J134+1))","v":131},{"$f":"IF(K134=\"\",\"\",IF(K134+1>$K$3,\"\",K134+1))","v":231},"اسماء سعد محمد قطب","انثى","=MATCH($m5,MySortList,0)",5,""]
[null,null,null,null,null,null,null,null,null,132,232,"اسماء سماحه احمد ابوالفتوح","انثى","=MATCH($m5,MySortList,0)",5,""]
[null,null,null,null,null,null,null,null,null,133,233,"اسماء محمد على محمد","انثى","=MATCH($m5,MySortList,0)",5,""]
[null,null,null,null,null,null,null,null,null,134,234,"اسماء منصور على احمد","انثى","=MATCH($m5,MySortList,0)",5,""]
[null,null,null,null,null,null,null,null,null,135,235,"الاء احمد يوسف محمد عمار","انثى","=MATCH($m5,MySortList,0)",5,"نهاية اللجنة"]
[null,null,null,null,null,null,null,null,null,136,236,"الاء فتوح زايد حمد","انثى","=MATCH($m5,MySortList,0)",6,""]
[null,null,null,null,null,null,null,null,null,137,237,"الاء مدحت عبدالعليم الشوادفي","انثى","=MATCH($m5,MySortList,0)",6,""]
[null,null,null,null,null,null,null,null,null,138,238,"الاء منير مبروك علي","انثى","=MATCH($m5,MySortList,0)",6,""]
[null,null,null,null,null,null,null,null,null,139,239,"امانى كامل خليل السيد","انثى","=MATCH($m5,MySortList,0)",6,""]
[null,null,null,null,null,null,null,null,null,140,240,"امل حسين عبدالمولى حسين ","انثى","=MATCH($m5,MySortList,0)",6,""]
[null,null,null,null,null,null,null,null,null,141,241,"امل رزق رزق موسي","انثى","=MATCH($m5,MySortList,0)",6,""]
[null,null,null,null,null,null,null,null,null,142,242,"امل رضا عبدالمعبود عبداللطيف","انثى","=MATCH($m5,MySortList,0)",6,""]
[null,null,null,null,null,null,null,null,null,143,243,"امنيه السيد حمدان محمد","انثى","=MATCH($m5,MySortList,0)",6,""]
[null,null,null,null,null,null,null,null,null,144,244,"امنيه موافى احمد الموافي","انثى","=MATCH($m5,MySortList,0)",6,""]
[null,null,null,null,null,null,null,null,null,145,245,"اميره علاء عيد عبدالفتاح","انثى","=MATCH($m5,MySortList,0)",6,""]
[null,null,null,null,null,null,null,null,null,146,246,"امينه محمد عبدالفتاح عبدالرحمن","انثى","=MATCH($m5,MySortList,0)",6,""]
[null,null,null,null,null,null,null,null,null,147,247,"ايمان شحاته احمد شحاته","انثى","=MATCH($m5,MySortList,0)",6,""]
[null,null,null,null,null,null,null,null,null,148,248,"ايمان علاء الدين مرسى محمود","انثى","=MATCH($m5,MySortList,0)",6,""]
[null,null,null,null,null,null,null,null,null,149,249,"ايه ابراهيم عبدالعزيز محمد","انثى","=MATCH($m5,MySortList,0)",6,""]
[null,null,null,null,null,null,null,null,null,150,250,"ايه انور لطفى عبدالفتاح","انثى","=MATCH($m5,MySortList,0)",6,""]
[null,null,null,null,null,null,null,null,null,151,251,"ايه على سيد احمد","انثى","=MATCH($m5,MySortList,0)",6,""]
[null,null,null,null,null,null,null,null,null,152,252,"ايه محمد ابراهيم فرحات","انثى","=MATCH($m5,MySortList,0)",6,""]
[null,null,null,null,null,null,null,null,null,153,253,"ايه محمد راشد مرسي","انثى","=MATCH($m5,MySortList,0)",6,""]
[null,null,null,null,null,null,null,null,null,154,254,"ايه محمد سليمان دشيش","انثى","=MATCH($m5,MySortList,0)",6,""]
[null,null,null,null,null,null,null,null,null,155,255,"بسمله عبدالوهاب محمد عبدالوهاب","انثى","=MATCH($m5,MySortList,0)",6,""]
[null,null,null,null,null,null,null,null,null,156,256,"بسمله عصام المتولى عبدالعظيم ","انثى","=MATCH($m5,MySortList,0)",6,""]
[null,null,null,null,null,null,null,null,null,157,257,"بسمله علاء الدين محمد عبدالغفار","انثى","=MATCH($m5,MySortList,0)",6,""]
[null,null,null,null,null,null,null,null,null,158,258,"بسمله محمد السيد عبدالله","انثى","=MATCH($m5,MySortList,0)",6,""]
[null,null,null,null,null,null,null,null,null,159,259,"ثريا انور محمد سليمان","انثى","=MATCH($m5,MySortList,0)",6,""]
[null,null,null,null,null,null,null,null,null,160,260,"جنان احمد محمد عبدالحميد الشهاوى","انثى","=MATCH($m5,MySortList,0)",6,""]
[null,null,null,null,null,null,null,null,null,161,261,"حبيبه اشرف محمد محمد","انثى","=MATCH($m5,MySortList,0)",6,""]
[null,null,null,null,null,null,null,null,null,162,262,"حبيبه جمعه عبدالقادر محمد شعلان","انثى","=MATCH($m5,MySortList,0)",6,""]
[null,null,null,null,null,null,null,null,null,163,263,"حبيبه خالد عبدالحميد عبدالعزيز","انثى","=MATCH($m5,MySortList,0)",6,"نهاية اللجنة"]
[null,null,null,null,null,null,null,null,null,164,264,"حبيبه سلامه محمد مرسي","انثى","=MATCH($m5,MySortList,0)",7,""]
[null,null,null,null,null,null,null,null,null,165,265,"حبيبه عادل محمد زكريا","انثى","=MATCH($m5,MySortList,0)",7,""]
[null,null,null,null,null,null,null,null,null,166,266,"حبيبه عادل مصطفى بيومى","انثى","=MATCH($m5,MySortList,0)",7,""]
[null,null,null,null,null,null,null,null,null,167,267,"حبيبه فتحى الشوادفى حسانين","انثى","=MATCH($m5,MySortList,0)",7,""]
[null,null,null,null,null,null,null,null,null,168,268,"حبيبه محرم بسطويسى بيلي","انثى","=MATCH($m5,MySortList,0)",7,""]
[null,null,null,null,null,null,null,null,null,169,269,"حبيبه مرزوق فرج احمد","انثى","=MATCH($m5,MySortList,0)",7,""]
[null,null,null,null,null,null,null,null,null,170,270,"حنين ابراهيم صبحى ابراهيم","انثى","=MATCH($m5,MySortList,0)",7,""]
[null,null,null,null,null,null,null,null,null,171,271,"حنين احمد على حسن","انثى","=MATCH($m5,MySortList,0)",7,""]
[null,null,null,null,null,null,null,null,null,172,272,"حنين انس عبدالمنعم عبدالسلام","انثى","=MATCH($m5,MySortList,0)",7,""]
[null,null,null,null,null,null,null,null,null,173,273,"حنين ايمن محمود سليمان","انثى","=MATCH($m5,MySortList,0)",7,""]
[null,null,null,null,null,null,null,null,null,174,274,"حنين خالد شلبى شعبان","انثى","=MATCH($m5,MySortList,0)",7,""]
[null,null,null,null,null,null,null,null,null,175,275,"حنين رمضان فؤاد عبدالعزيز","انثى","=MATCH($m5,MySortList,0)",7,""]
[null,null,null,null,null,null,null,null,null,176,276,"حنين عبدالجواد عوض عبداللطيف","انثى","=MATCH($m5,MySortList,0)",7,""]
[null,null,null,null,null,null,null,null,null,177,277,"حنين على عبدالحليم محمد","انثى","=MATCH($m5,MySortList,0)",7,""]
[null,null,null,null,null,null,null,null,null,178,278,"حنين عماد عبدالسميع حسن","انثى","=MATCH($m5,MySortList,0)",7,""]
[null,null,null,null,null,null,null,null,null,179,279,"حنين ماضى حامد احمد ","انثى","=MATCH($m5,MySortList,0)",7,""]
[null,null,null,null,null,null,null,null,null,180,280,"حنين محمد عبدالحى عبدالموجود","انثى","=MATCH($m5,MySortList,0)",7,""]
[null,null,null,null,null,null,null,null,null,181,281,"دعاء احمد سعد ابراهيم ","انثى","=MATCH($m5,MySortList,0)",7,""]
[null,null,null,null,null,null,null,null,null,182,282,"دعاء زين محمد عبدالحميد","انثى","=MATCH($m5,MySortList,0)",7,""]
[null,null,null,null,null,null,null,null,null,183,283,"دنيا محمد ابوزيد احمد","انثى","=MATCH($m5,MySortList,0)",7,""]
[null,null,null,null,null,null,null,null,null,184,284,"رحمه رجب عبدالهادى علي","انثى","=MATCH($m5,MySortList,0)",7,""]
[null,null,null,null,null,null,null,null,null,185,285,"رحمه فيصل عبدالسلام بسيوني","انثى","=MATCH($m5,MySortList,0)",7,""]
[null,null,null,null,null,null,null,null,null,186,286,"رحمه محمد شعبان سلومه","انثى","=MATCH($m5,MySortList,0)",7,""]
[null,null,null,null,null,null,null,null,null,187,287,"رحمه محمد عبدربه زهران","انثى","=MATCH($m5,MySortList,0)",7,""]
[null,null,null,null,null,null,null,null,null,188,288,"رحمه محمد محمد مصطفي","انثى","=MATCH($m5,MySortList,0)",7,""]
[null,null,null,null,null,null,null,null,null,189,289,"رحمه وليد سليمان رجب","انثى","=MATCH($m5,MySortList,0)",7,""]
[null,null,null,null,null,null,null,null,null,190,290,"رشا ابواليزيد احمد محمد","انثى","=MATCH($m5,MySortList,0)",7,"نهاية اللجنة"]
[null,null,null,null,null,null,null,null,null,191,291,"روان صفوت حسنى محمد","انثى","=MATCH($m5,MySortList,0)",8,""]
[null,null,null,null,null,null,null,null,null,192,292,"روضه احمد ابراهيم حجازي","انثى","=MATCH($m5,MySortList,0)",8,""]
[null,null,null,null,null,null,null,null,null,193,293,"ريم اشرف فهيم عبدالهادي","انثى","=MATCH($m5,MySortList,0)",{"$f":"IF(K197=\"\",\"\",VLOOKUP(K197,جلوس,4))","v":8},""]
[null,null,null,null,null,null,null,null,null,194,294,"ريم عاطف عبدالله عبدالله","انثى","=MATCH($m5,MySortList,0)",8,{"$f":"IF(O198=O199,\"\",\"نهاية اللجنة\")","v":""}]
[null,null,null,null,null,null,null,null,null,{"$f":"IF(J198=\"\",\"\",IF(J198+1>$K$2,\"\",J198+1))","v":195},{"$f":"IF(K198=\"\",\"\",IF(K198+1>$K$3,\"\",K198+1))","v":295},"ريهام على محمد السيد","انثى","=MATCH($m5,MySortList,0)",8,""]
[null,null,null,null,null,null,null,null,null,196,296,"ريهام كمال على خضر","انثى","=MATCH($m5,MySortList,0)",8,""]
[null,null,null,null,null,null,null,null,null,197,297,"زهراء محمد يوسف علي","انثى","=MATCH($m5,MySortList,0)",8,""]
[null,null,null,null,null,null,null,null,null,198,298,"ساره الشوادفى على محمد","انثى","=MATCH($m5,MySortList,0)",8,""]
[null,null,null,null,null,null,null,null,null,199,299,"ساره جمال عبدالدايم محمد","انثى","=MATCH($m5,MySortList,0)",8,""]
[null,null,null,null,null,null,null,null,null,200,300,"ساره على محمد خلف الله","انثى","=MATCH($m5,MySortList,0)",8,""]
[null,null,null,null,null,null,null,null,null,201,301,"ساره كمال هليل محمد","انثى","=MATCH($m5,MySortList,0)",8,""]
[null,null,null,null,null,null,null,null,null,202,302,"سالى ابراهيم عبدالمولى حسين","انثى","=MATCH($m5,MySortList,0)",8,""]
[null,null,null,null,null,null,null,null,null,203,303,"سلمى امام فؤاد محمد عاشور","انثى","=MATCH($m5,MySortList,0)",8,""]
[null,null,null,null,null,null,null,null,null,204,304,"سلمى عصام ابوشعيشع محمد","انثى","=MATCH($m5,MySortList,0)",8,""]
[null,null,null,null,null,null,null,null,null,205,305,"سلمى محمد عبدالله السيد","انثى","=MATCH($m5,MySortList,0)",8,""]
[null,null,null,null,null,null,null,null,null,206,306,"سلوى محمود عبدالمعبود حسين","انثى","=MATCH($m5,MySortList,0)",8,""]
[null,null,null,null,null,null,null,null,null,207,307,"سمر حاتم محمود ابوشعيشع","انثى","=MATCH($m5,MySortList,0)",8,""]
[null,null,null,null,null,null,null,null,null,208,308,"سهام مصطفى الشحات بهجات","انثى","=MATCH($m5,MySortList,0)",8,""]
[null,null,null,null,null,null,null,null,null,209,309,"سوميه زكريا محمد ابراهيم","انثى","=MATCH($m5,MySortList,0)",8,""]
[null,null,null,null,null,null,null,null,null,210,310,"شروق ابراهيم محمد البسيوني","انثى","=MATCH($m5,MySortList,0)",8,""]
[null,null,null,null,null,null,null,null,null,211,311,"شروق رضا رمضان السيد","انثى","=MATCH($m5,MySortList,0)",8,""]
[null,null,null,null,null,null,null,null,null,212,312,"شروق هانى مصطفى عبدالحي","انثى","=MATCH($m5,MySortList,0)",8,""]
[null,null,null,null,null,null,null,null,null,213,313,"شهد الشرنوبى شعبان الشرنوبي","انثى","=MATCH($m5,MySortList,0)",8,""]
[null,null,null,null,null,null,null,null,null,214,314,"شهد حماده سمير عطيه","انثى","=MATCH($m5,MySortList,0)",8,""]
[null,null,null,null,null,null,null,null,null,215,315,"شهد رضا عبداللطيف حسن","انثى","=MATCH($m5,MySortList,0)",8,""]
[null,null,null,null,null,null,null,null,null,216,316,"شهد سميح السعيد عبدالجليل","انثى","=MATCH($m5,MySortList,0)",8,""]
[null,null,null,null,null,null,null,null,null,217,317,"شهد عبدالناصر عبدالرازق سيد","انثى","=MATCH($m5,MySortList,0)",8,""]
[null,null,null,null,null,null,null,null,null,218,318,"شهد عمرو محمد عبدالله","انثى","=MATCH($m5,MySortList,0)",8,"نهاية اللجنة"]
[null,null,null,null,null,null,null,null,null,219,319,"شهد محمد السيد حسين","انثى","=MATCH($m5,MySortList,0)",9,""]
[null,null,null,null,null,null,null,null,null,220,320,"شهد محمد سالم محمد","انثى","=MATCH($m5,MySortList,0)",9,""]
[null,null,null,null,null,null,null,null,null,221,321,"شهد مصطفى حسين علي","انثى","=MATCH($m5,MySortList,0)",9,""]
[null,null,null,null,null,null,null,null,null,222,322,"شيماء شعبان منصور عبدالعزيز","انثى","=MATCH($m5,MySortList,0)",9,""]
[null,null,null,null,null,null,null,null,null,223,323,"صفاء اشرف عطيه ابراهيم","انثى","=MATCH($m5,MySortList,0)",9,""]
[null,null,null,null,null,null,null,null,null,224,324,"صفاء جمعه على خضر","انثى","=MATCH($m5,MySortList,0)",9,""]
[null,null,null,null,null,null,null,null,null,225,325,"ضحى عصمت عبدالمجيد عبدالعزيز","انثى","=MATCH($m5,MySortList,0)",9,""]
[null,null,null,null,null,null,null,null,null,226,326,"عائشه ابراهيم محمد ابراهيم","انثى","=MATCH($m5,MySortList,0)",9,""]
[null,null,null,null,null,null,null,null,null,227,327,"علياء فتوح السيد اسماعيل","انثى","=MATCH($m5,MySortList,0)",9,""]
[null,null,null,null,null,null,null,null,null,228,328,"غيداء محمد عبدربه علي","انثى","=MATCH($m5,MySortList,0)",9,""]
[null,null,null,null,null,null,null,null,null,229,329,"فاطمه جمعه سالم علي","انثى","=MATCH($m5,MySortList,0)",9,""]
[null,null,null,null,null,null,null,null,null,230,330,"فاطمه حماده على عبداللطيف","انثى","=MATCH($m5,MySortList,0)",9,""]
[null,null,null,null,null,null,null,null,null,231,331,"فاطمه صبرى السيد علي","انثى","=MATCH($m5,MySortList,0)",9,""]
[null,null,null,null,null,null,null,null,null,232,332,"فاطمه طارق صادق سواح","انثى","=MATCH($m5,MySortList,0)",9,""]
[null,null,null,null,null,null,null,null,null,233,333,"فاطمه محمد نصر عبدالقوي","انثى","=MATCH($m5,MySortList,0)",9,""]
[null,null,null,null,null,null,null,null,null,234,334,"فرحه السعيد درويش محمد","انثى","=MATCH($m5,MySortList,0)",9,""]
[null,null,null,null,null,null,null,null,null,235,335,"فرحه صبرى السيد علي","انثى","=MATCH($m5,MySortList,0)",9,""]
[null,null,null,null,null,null,null,null,null,236,336,"لوليا عماد سمير جميان شنوده","انثى","=MATCH($m5,MySortList,0)",9,""]
[null,null,null,null,null,null,null,null,null,237,337,"مارتينا وائل نعيم قلاده","انثى","=MATCH($m5,MySortList,0)",9,""]
[null,null,null,null,null,null,null,null,null,238,338,"مروه احمد عبدالعاطى عبدالفتاح","انثى","=MATCH($m5,MySortList,0)",9,""]
[null,null,null,null,null,null,null,null,null,239,339,"مريم احمد محمود عبدالحميد","انثى","=MATCH($m5,MySortList,0)",9,""]
[null,null,null,null,null,null,null,null,null,240,340,"مريم اشرف عطيه ابراهيم","انثى","=MATCH($m5,MySortList,0)",9,""]
[null,null,null,null,null,null,null,null,null,241,341,"مريم عماد مكرم وديع","انثى","=MATCH($m5,MySortList,0)",9,""]
[null,null,null,null,null,null,null,null,null,242,342,"مريم مامون صلاح طولان","انثى","=MATCH($m5,MySortList,0)",9,""]
[null,null,null,null,null,null,null,null,null,243,343,"ملك ايمن محمد مبروك","انثى","=MATCH($m5,MySortList,0)",9,"نهاية اللجنة"]
[null,null,null,null,null,null,null,null,null,244,344,"ملك محمد مسعد عبدالحميد","انثى","=MATCH($m5,MySortList,0)",10,""]
[null,null,null,null,null,null,null,null,null,245,345,"منه الله ابراهيم السيد احمد","انثى","=MATCH($m5,MySortList,0)",10,""]
[null,null,null,null,null,null,null,null,null,246,346,"منه الله رامى احمد شحاته","انثى","=MATCH($m5,MySortList,0)",10,""]
[null,null,null,null,null,null,null,null,null,247,347,"منه الله مصطفى عبدالمنعم السيد","انثى","=MATCH($m5,MySortList,0)",10,""]
[null,null,null,null,null,null,null,null,null,248,348,"منه رافت عبدالعزيز محمد","انثى","=MATCH($m5,MySortList,0)",10,""]
[null,null,null,null,null,null,null,null,null,249,349,"مى احمد سمير عبدالعزيز","انثى","=MATCH($m5,MySortList,0)",10,""]
[null,null,null,null,null,null,null,null,null,250,350,"مى اشرف محمد احمد","انثى","=MATCH($m5,MySortList,0)",10,""]
[null,null,null,null,null,null,null,null,null,251,351,"ميرنا محمود احمد ابراهيم عوض","انثى","=MATCH($m5,MySortList,0)",10,""]
[null,null,null,null,null,null,null,null,null,252,352,"ميس محمد عمار زعرور","انثى","=MATCH($m5,MySortList,0)",10,""]
[null,null,null,null,null,null,null,null,null,253,353,"ندا خليل الشوادفى خليل","انثى","=MATCH($m5,MySortList,0)",10,""]
[null,null,null,null,null,null,null,null,null,254,354,"ندى عبدربه عبدالسلام عبدالمجيد","انثى","=MATCH($m5,MySortList,0)",10,""]
[null,null,null,null,null,null,null,null,null,255,355,"نور محمد السيد بركات","انثى","=MATCH($m5,MySortList,0)",10,""]
[null,null,null,null,null,null,null,null,null,256,356,"نورالهدى رامى كمال حسن","انثى","=MATCH($m5,MySortList,0)",10,""]
[null,null,null,null,null,null,null,null,null,257,357,"نورس وحيد عبدالهادى محمود","انثى","=MATCH($m5,MySortList,0)",{"$f":"IF(K261=\"\",\"\",VLOOKUP(K261,جلوس,4))","v":10},""]
[null,null,null,null,null,null,null,null,null,258,358,"هاله احمد حامد محمد","انثى","=MATCH($m5,MySortList,0)",10,{"$f":"IF(O262=O263,\"\",\"نهاية اللجنة\")","v":""}]
[null,null,null,null,null,null,null,null,null,{"$f":"IF(J262=\"\",\"\",IF(J262+1>$K$2,\"\",J262+1))","v":259},{"$f":"IF(K262=\"\",\"\",IF(K262+1>$K$3,\"\",K262+1))","v":359},"هانم محمد عبدالحفيظ محمود","انثى","=MATCH($m5,MySortList,0)",10,""]
[null,null,null,null,null,null,null,null,null,260,360,"هايدى نبيل زكى مهاود","انثى","=MATCH($m5,MySortList,0)",10,""]
[null,null,null,null,null,null,null,null,null,261,361,"هدير متولى محمود محمد","انثى","=MATCH($m5,MySortList,0)",10,""]
[null,null,null,null,null,null,null,null,null,262,362,"هناء حسن على خليفه","انثى","=MATCH($m5,MySortList,0)",10,""]
[null,null,null,null,null,null,null,null,null,263,363,"ورده ادهم السيد سالم","انثى","=MATCH($m5,MySortList,0)",10,""]
[null,null,null,null,null,null,null,null,null,264,364,"ياسمين سميح عبدالغنى مصطفى","انثى","=MATCH($m5,MySortList,0)",10,""]
[null,null,null,null,null,null,null,null,null,265,365,"يمنى رضا محمد يس","انثى","=MATCH($m5,MySortList,0)",10,""]
[null,null,null,null,null,null,null,null,null,266,366,"يوستينا هانى ابراهيم غطاس","انثى","=MATCH($m5,MySortList,0)",10,"نهاية اللجنة"]
[null,null,null,null,null,null,null,null,null,"","",null,null,"=MATCH($m5,MySortList,0)","",""]
[null,null,null,null,null,null,null,null,null,"","",null,null,"=MATCH($m5,MySortList,0)","",""]
[null,null,null,null,null,null,null,null,null,"","",null,null,"=MATCH($m5,MySortList,0)","",""]
[null,null,null,null,null,null,null,null,null,"","",null,null,"=MATCH($m5,MySortList,0)","",""]
[null,null,null,null,null,null,null,null,null,"","",null,null,"=MATCH($m5,MySortList,0)","",""]
[null,null,null,null,null,null,null,null,null,"","",null,null,"=MATCH($m5,MySortList,0)","",""]
[null,null,null,null,null,null,null,null,null,"","",null,null,"=MATCH($m5,MySortList,0)","",""]
[null,null,null,null,null,null,null,null,null,"","",null,null,"=MATCH($m5,MySortList,0)","",""]
[null,null,null,null,null,null,null,null,null,"","",null,null,"=MATCH($m5,MySortList,0)","",""]
[null,null,null,null,null,null,null,null,null,"","",null,null,"=MATCH($m5,MySortList,0)","",""]
[null,null,null,null,null,null,null,null,null,"","",null,null,"=MATCH($m5,MySortList,0)","",""]
[null,null,null,null,null,null,null,null,null,"","",null,null,"=MATCH($m5,MySortList,0)","",""]
[null,null,null,null,null,null,null,null,null,"","",null,null,"=MATCH($m5,MySortList,0)","",""]
[null,null,null,null,null,null,null,null,null,"","",null,null,"=MATCH($m5,MySortList,0)","",""]
[null,null,null,null,null,null,null,null,null,"","",null,null,"=MATCH($m5,MySortList,0)","",""]
[null,null,null,null,null,null,null,null,null,"","",null,null,"=MATCH($m5,MySortList,0)","",""]
[null,null,null,null,null,null,null,null,null,"","",null,null,"=MATCH($m5,MySortList,0)","",""]
[null,null,null,null,null,null,null,null,null,"","",null,null,"=MATCH($m5,MySortList,0)","",""]
[null,null,null,null,null,null,null,null,null,"","",null,null,"=MATCH($m5,MySortList,0)","",""]
[null,null,null,null,null,null,null,null,null,"","",null,null,"=MATCH($m5,MySortList,0)","",""]
[null,null,null,null,null,null,null,null,null,"","",null,null,"=MATCH($m5,MySortList,0)","",""]
[null,null,null,null,null,null,null,null,null,"","",null,null,"=MATCH($m5,MySortList,0)","",""]
[null,null,null,null,null,null,null,null,null,"","",null,null,"=MATCH($m5,MySortList,0)","",""]
[null,null,null,null,null,null,null,null,null,"","",null,null,"=MATCH($m5,MySortList,0)","",""]
[null,null,null,null,null,null,null,null,null,"","",null,null,"=MATCH($m5,MySortList,0)","",""]
[null,null,null,null,null,null,null,null,null,"","",null,null,"=MATCH($m5,MySortList,0)","",""]
[null,null,null,null,null,null,null,null,null,"","",null,null,"=MATCH($m5,MySortList,0)","",""]
[]
[]
[null,null,null,null,null,null,null,null,null,"","",null,null,null,{"$f":"IF(K300=\"\",\"\",VLOOKUP(K300,جلوس,4))","v":""},""]
[null,null,null,null,null,null,null,null,null,"","",null,null,null,"",""]
[null,null,null,null,null,null,null,null,null,"","",null,null,null,"",""]
[null,null,null,null,null,null,null,null,null,"","",null,null,null,"",""]
[null,null,null,null,null,null,null,null,null,"","",null,null,null,"",""]
[null,null,null,null,null,null,null,null,null,"","",null,null,null,"",""]
[null,null,null,null,null,null,null,null,null,"","",null,null,null,"",""]
[null,null,null,null,null,null,null,null,null,"","",null,null,null,"",""]
[null,null,null,null,null,null,null,null,null,"","",null,null,null,"",""]
[null,null,null,null,null,null,null,null,null,"","",null,null,null,"",""]
[null,null,null,null,null,null,null,null,null,"","",null,null,null,"",""]
[null,null,null,null,null,null,null,null,null,"","",null,null,null,"",""]
[null,null,null,null,null,null,null,null,null,"","",null,null,null,"",""]
[null,null,null,null,null,null,null,null,null,"","",null,null,null,"",""]
[null,null,null,null,null,null,null,null,null,"","",null,null,null,"",""]
[null,null,null,null,null,null,null,null,null,"","",null,null,null,"",""]
[null,null,null,null,null,null,null,null,null,"","",null,null,null,"",""]
[null,null,null,null,null,null,null,null,null,"","",null,null,null,"",""]
[null,null,null,null,null,null,null,null,null,"","",null,null,null,"",""]
[null,null,null,null,null,null,null,null,null,"","",null,null,null,"",""]
[null,null,null,null,null,null,null,null,null,"","",null,null,null,"",""]
[null,null,null,null,null,null,null,null,null,"","",null,null,null,"",""]
[null,null,null,null,null,null,null,null,null,"","",null,null,null,"",""]
[null,null,null,null,null,null,null,null,null,"","",null,null,null,"",""]
[null,null,null,null,null,null,null,null,null,"","",null,null,null,"",""]
[null,null,null,null,null,null,null,null,null,"","",null,null,null,{"$f":"IF(K325=\"\",\"\",VLOOKUP(K325,جلوس,4))","v":""},""]
[null,null,null,null,null,null,null,null,null,"","",null,null,null,"",{"$f":"IF(O326=O327,\"\",\"نهاية اللجنة\")","v":""}]
[null,null,null,null,null,null,null,null,null,{"$f":"IF(J326=\"\",\"\",IF(J326+1>$K$2,\"\",J326+1))","v":""},{"$f":"IF(K326=\"\",\"\",IF(K326+1>$K$3,\"\",K326+1))","v":""},null,null,null,"",""]
[null,null,null,null,null,null,null,null,null,"","",null,null,null,"",""]
[null,null,null,null,null,null,null,null,null,"","",null,null,null,"",""]
[null,null,null,null,null,null,null,null,null,"","",null,null,null,"",""]
[null,null,null,null,null,null,null,null,null,"","",null,null,null,"",""]
[null,null,null,null,null,null,null,null,null,"","",null,null,null,"",""]
[null,null,null,null,null,null,null,null,null,"","",null,null,null,"",""]
[null,null,null,null,null,null,null,null,null,"","",null,null,null,"",""]
[null,null,null,null,null,null,null,null,null,"","",null,null,null,"",""]
[null,null,null,null,null,null,null,null,null,"","",null,null,null,"",""]
[null,null,null,null,null,null,null,null,null,"","",null,null,null,"",""]
[null,null,null,null,null,null,null,null,null,"","",null,null,null,"",""]
[null,null,null,null,null,null,null,null,null,"","",null,null,null,"",""]
[null,null,null,null,null,null,null,null,null,"","",null,null,null,"",""]
[null,null,null,null,null,null,null,null,null,"","",null,null,null,"",""]
[null,null,null,null,null,null,null,null,null,"","",null,null,null,"",""]
[null,null,null,null,null,null,null,null,null,"","",null,null,null,"",""]
[null,null,null,null,null,null,null,null,null,"","",null,null,null,"",""]
[null,null,null,null,null,null,null,null,null,"","",null,null,null,"",""]
[null,null,null,null,null,null,null,null,null,"","",null,null,null,"",""]
[null,null,null,null,null,null,null,null,null,"","",null,null,null,"",""]
[null,null,null,null,null,null,null,null,null,"","",null,null,null,"",""]
[null,null,null,null,null,null,null,null,null,"","",null,null,null,"",""]
[null,null,null,null,null,null,null,null,null,"","",null,null,null,"",""]
[null,null,null,null,null,null,null,null,null,"","",null,null,null,"",""]
[null,null,null,null,null,null,null,null,null,"","",null,null,null,"",""]
[null,null,null,null,null,null,null,null,null,"","",null,null,null,"",""]
[null,null,null,null,null,null,null,null,null,"","",null,null,null,"",""]
[null,null,null,null,null,null,null,null,null,"","",null,null,null,"",""]
[null,null,null,null,null,null,null,null,null,"","",null,null,null,"",""]
[null,null,null,null,null,null,null,null,null,"","",null,null,null,"",""]
[null,null,null,null,null,null,null,null,null,"","",null,null,null,"",""]
[null,null,null,null,null,null,null,null,null,"","",null,null,null,"",""]
[null,null,null,null,null,null,null,null,null,"","",null,null,null,"",""]
[null,null,null,null,null,null,null,null,null,"","",null,null,null,"",""]
[null,null,null,null,null,null,null,null,null,"","",null,null,null,"",""]
[null,null,null,null,null,null,null,null,null,"","",null,null,null,"",""]
[null,null,null,null,null,null,null,null,null,"","",null,null,null,"",""]
[null,null,null,null,null,null,null,null,null,"","",null,null,null,"",""]
[null,null,null,null,null,null,null,null,null,"","",null,null,null,"",""]
[null,null,null,null,null,null,null,null,null,"","",null,null,null,"",""]
[null,null,null,null,null,null,null,null,null,"","",null,null,null,"",""]
[null,null,null,null,null,null,null,null,null,"","",null,null,null,"",""]
[null,null,null,null,null,null,null,null,null,"","",null,null,null,"",""]
[null,null,null,null,null,null,null,null,null,"","",null,null,null,"",""]
[null,null,null,null,null,null,null,null,null,"","",null,null,null,"",""]
[null,null,null,null,null,null,null,null,null,"","",null,null,null,"",""]
[null,null,null,null,null,null,null,null,null,"","",null,null,null,"",""]
[null,null,null,null,null,null,null,null,null,"","",null,null,null,"",""]
[null,null,null,null,null,null,null,null,null,"","",null,null,null,"",""]
[null,null,null,null,null,null,null,null,null,"","",null,null,null,"",""]
[null,null,null,null,null,null,null,null,null,"","",null,null,null,"",""]
[null,null,null,null,null,null,null,null,null,"","",null,null,null,"",""]
[null,null,null,null,null,null,null,null,null,"","",null,null,null,"",""]
[null,null,null,null,null,null,null,null,null,"","",null,null,null,"",""]
[null,null,null,null,null,null,null,null,null,"","",null,null,null,"",""]
[null,null,null,null,null,null,null,null,null,"","",null,null,null,"",""]
[null,null,null,null,null,null,null,null,null,"","",null,null,null,"",""]
[null,null,null,null,null,null,null,null,null,"","",null,null,null,"",""]
[null,null,null,null,null,null,null,null,null,"","",null,null,null,"",""]
[null,null,null,null,null,null,null,null,null,"","",null,null,null,"",""]
[null,null,null,null,null,null,null,null,null,"","",null,null,null,"",""]
[null,null,null,null,null,null,null,null,null,"","",null,null,null,{"$f":"IF(K389=\"\",\"\",VLOOKUP(K389,جلوس,4))","v":""},""]
[null,null,null,null,null,null,null,null,null,"","",null,null,null,"",{"$f":"IF(O390=O391,\"\",\"نهاية اللجنة\")","v":""}]
[null,null,null,null,null,null,null,null,null,{"$f":"IF(J390=\"\",\"\",IF(J390+1>$K$2,\"\",J390+1))","v":""},{"$f":"IF(K390=\"\",\"\",IF(K390+1>$K$3,\"\",K390+1))","v":""},null,null,null,"",""]
[null,null,null,null,null,null,null,null,null,"","",null,null,null,"",""]
[null,null,null,null,null,null,null,null,null,"","",null,null,null,"",""]
[null,null,null,null,null,null,null,null,null,"","",null,null,null,"",""]
[null,null,null,null,null,null,null,null,null,"","",null,null,null,"",""]
[null,null,null,null,null,null,null,null,null,"","",null,null,null,"",""]
[null,null,null,null,null,null,null,null,null,"","",null,null,null,"",""]
[null,null,null,null,null,null,null,null,null,"","",null,null,null,"",""]
[null,null,null,null,null,null,null,null,null,"","",null,null,null,"",""]
[null,null,null,null,null,null,null,null,null,"","",null,null,null,"",""]
[null,null,null,null,null,null,null,null,null,"","",null,null,null,"",""]
[null,null,null,null,null,null,null,null,null,"","",null,null,null,"",""]
[null,null,null,null,null,null,null,null,null,"","",null,null,null,"",""]
[null,null,null,null,null,null,null,null,null,"","",null,null,null,"",""]
[null,null,null,null,null,null,null,null,null,"","",null,null,null,"",""]
[null,null,null,null,null,null,null,null,null,"","",null,null,null,"",""]
[null,null,null,null,null,null,null,null,null,"","",null,null,null,"",""]
[null,null,null,null,null,null,null,null,null,"","",null,null,null,"",""]
[null,null,null,null,null,null,null,null,null,"","",null,null,null,"",""]
[null,null,null,null,null,null,null,null,null,"","",null,null,null,"",""]
[null,null,null,null,null,null,null,null,null,"","",null,null,null,"",""]
[null,null,null,null,null,null,null,null,null,"","",null,null,null,"",""]
[null,null,null,null,null,null,null,null,null,"","",null,null,null,"",""]
[null,null,null,null,null,null,null,null,null,"","",null,null,null,"",""]
[null,null,null,null,null,null,null,null,null,"","",null,null,null,"",""]
[null,null,null,null,null,null,null,null,null,"","",null,null,null,"",""]
[null,null,null,null,null,null,null,null,null,"","",null,null,null,"",""]
[null,null,null,null,null,null,null,null,null,"","",null,null,null,"",""]
[null,null,null,null,null,null,null,null,null,"","",null,null,null,"",""]
[null,null,null,null,null,null,null,null,null,"","",null,null,null,"",""]
[null,null,null,null,null,null,null,null,null,"","",null,null,null,"",""]
[null,null,null,null,null,null,null,null,null,"","",null,null,null,"",""]
[null,null,null,null,null,null,null,null,null,"","",null,null,null,"",""]
[null,null,null,null,null,null,null,null,null,"","",null,null,null,"",""]
[null,null,null,null,null,null,null,null,null,"","",null,null,null,"",""]
[null,null,null,null,null,null,null,null,null,"","",null,null,null,"",""]
[null,null,null,null,null,null,null,null,null,"","",null,null,null,"",""]
[null,null,null,null,null,null,null,null,null,"","",null,null,null,"",""]
[null,null,null,null,null,null,null,null,null,"","",null,null,null,"",""]
[null,null,null,null,null,null,null,null,null,"","",null,null,null,"",""]
[null,null,null,null,null,null,null,null,null,"","",null,null,null,"",""]
[null,null,null,null,null,null,null,null,null,"","",null,null,null,"",""]
[null,null,null,null,null,null,null,null,null,"","",null,null,null,"",""]
[null,null,null,null,null,null,null,null,null,"","",null,null,null,"",""]
[null,null,null,null,null,null,null,null,null,"","",null,null,null,"",""]
[null,null,null,null,null,null,null,null,null,"","",null,null,null,"",""]
[null,null,null,null,null,null,null,null,null,"","",null,null,null,"",""]
[null,null,null,null,null,null,null,null,null,"","",null,null,null,"",""]
[null,null,null,null,null,null,null,null,null,"","",null,null,null,"",""]
[null,null,null,null,null,null,null,null,null,"","",null,null,null,"",""]
[null,null,null,null,null,null,null,null,null,"","",null,null,null,"",""]
[null,null,null,null,null,null,null,null,null,"","",null,null,null,"",""]
[null,null,null,null,null,null,null,null,null,"","",null,null,null,"",""]
[null,null,null,null,null,null,null,null,null,"","",null,null,null,"",""]
[null,null,null,null,null,null,null,null,null,"","",null,null,null,"",""]
[null,null,null,null,null,null,null,null,null,"","",null,null,null,"",""]
[null,null,null,null,null,null,null,null,null,"","",null,null,null,"",""]
[null,null,null,null,null,null,null,null,null,"","",null,null,null,"",""]
[null,null,null,null,null,null,null,null,null,"","",null,null,null,"",""]
[null,null,null,null,null,null,null,null,null,"","",null,null,null,"",""]
[null,null,null,null,null,null,null,null,null,"","",null,null,null,"",""]
[null,null,null,null,null,null,null,null,null,"","",null,null,null,"",""]
[null,null,null,null,null,null,null,null,null,"","",null,null,null,{"$f":"IF(K453=\"\",\"\",VLOOKUP(K453,جلوس,4))","v":""},""]
[null,null,null,null,null,null,null,null,null,"","",null,null,null,"",{"$f":"IF(O454=O455,\"\",\"نهاية اللجنة\")","v":""}]
[null,null,null,null,null,null,null,null,null,{"$f":"IF(J454=\"\",\"\",IF(J454+1>$K$2,\"\",J454+1))","v":""},{"$f":"IF(K454=\"\",\"\",IF(K454+1>$K$3,\"\",K454+1))","v":""},null,null,null,"",""]
[null,null,null,null,null,null,null,null,null,"","",null,null,null,"",""]
[null,null,null,null,null,null,null,null,null,"","",null,null,null,"",""]
[null,null,null,null,null,null,null,null,null,"","",null,null,null,"",""]
[null,null,null,null,null,null,null,null,null,"","",null,null,null,"",""]
[null,null,null,null,null,null,null,null,null,"","",null,null,null,"",""]
[null,null,null,null,null,null,null,null,null,"","",null,null,null,"",""]
[null,null,null,null,null,null,null,null,null,"","",null,null,null,"",""]
[null,null,null,null,null,null,null,null,null,"","",null,null,null,"",""]
[null,null,null,null,null,null,null,null,null,"","",null,null,null,"",""]
[null,null,null,null,null,null,null,null,null,"","",null,null,null,"",""]
[null,null,null,null,null,null,null,null,null,"","",null,null,null,"",""]
[null,null,null,null,null,null,null,null,null,"","",null,null,null,"",""]
[null,null,null,null,null,null,null,null,null,"","",null,null,null,"",""]
[null,null,null,null,null,null,null,null,null,"","",null,null,null,"",""]
[null,null,null,null,null,null,null,null,null,"","",null,null,null,"",""]
[null,null,null,null,null,null,null,null,null,"","",null,null,null,"",""]
[null,null,null,null,null,null,null,null,null,"","",null,null,null,"",""]
[null,null,null,null,null,null,null,null,null,"","",null,null,null,"",""]
[null,null,null,null,null,null,null,null,null,"","",null,null,null,"",""]
[null,null,null,null,null,null,null,null,null,"","",null,null,null,"",""]
[null,null,null,null,null,null,null,null,null,"","",null,null,null,"",""]
[null,null,null,null,null,null,null,null,null,"","",null,null,null,"",""]
[null,null,null,null,null,null,null,null,null,"","",null,null,null,"",""]
[null,null,null,null,null,null,null,null,null,"","",null,null,null,"",""]
[null,null,null,null,null,null,null,null,null,"","",null,null,null,"",""]
[null,null,null,null,null,null,null,null,null,"","",null,null,null,"",""]
[null,null,null,null,null,null,null,null,null,"","",null,null,null,"",""]
[null,null,null,null,null,null,null,null,null,"","",null,null,null,"",""]
[null,null,null,null,null,null,null,null,null,"","",null,null,null,"",""]
[null,null,null,null,null,null,null,null,null,"","",null,null,null,"",""]
[null,null,null,null,null,null,null,null,null,"","",null,null,null,"",""]
[null,null,null,null,null,null,null,null,null,"","",null,null,null,"",""]
[null,null,null,null,null,null,null,null,null,"","",null,null,null,"",""]
[null,null,null,null,null,null,null,null,null,"","",null,null,null,"",""]
[null,null,null,null,null,null,null,null,null,"","",null,null,null,"",""]
[null,null,null,null,null,null,null,null,null,"","",null,null,null,"",""]
[null,null,null,null,null,null,null,null,null,"","",null,null,null,"",""]
[null,null,null,null,null,null,null,null,null,"","",null,null,null,"",""]
[null,null,null,null,null,null,null,null,null,"","",null,null,null,"",""]
[null,null,null,null,null,null,null,null,null,"","",null,null,null,"",""]
[null,null,null,null,null,null,null,null,null,"","",null,null,null,"",""]
[null,null,null,null,null,null,null,null,null,"","",null,null,null,"",""]
[null,null,null,null,null,null,null,null,null,"","",null,null,null,"",""]
[null,null,null,null,null,null,null,null,null,"","",null,null,null,"",""]
[null,null,null,null,null,null,null,null,null,"","",null,null,null,"",""]
[null,null,null,null,null,null,null,null,null,"","",null,null,null,"",""]
[null,null,null,null,null,null,null,null,null,"","",null,null,null,"",""]
[null,null,null,null,null,null,null,null,null,"","",null,null,null,"",""]
[null,null,null,null,null,null,null,null,null,"","",null,null,null,"",""]
[null,null,null,null,null,null,null,null,null,"","",null,null,null,"",""]
[null,null,null,null,null,null,null,null,null,"","",null,null,null,"",""]
[null,null,null,null,null,null,null,null,null,"","",null,null,null,"",""]
[null,null,null,null,null,null,null,null,null,"","",null,null,null,"",""]
[null,null,null,null,null,null,null,null,null,"","",null,null,null,"",""]
[null,null,null,null,null,null,null,null,null,"","",null,null,null,"",""]
[null,null,null,null,null,null,null,null,null,"","",null,null,null,"",""]
[null,null,null,null,null,null,null,null,null,"","",null,null,null,"",""]
[null,null,null,null,null,null,null,null,null,"","",null,null,null,"",""]
[null,null,null,null,null,null,null,null,null,"","",null,null,null,"",""]
[null,null,null,null,null,null,null,null,null,"","",null,null,null,"",""]
[null,null,null,null,null,null,null,null,null,"","",null,null,null,"",""]
[null,null,null,null,null,null,null,null,null,"","",null,null,null,{"$f":"IF(K517=\"\",\"\",VLOOKUP(K517,جلوس,4))","v":""},""]
[null,null,null,null,null,null,null,null,null,"","",null,null,null,"",{"$f":"IF(O518=O519,\"\",\"نهاية اللجنة\")","v":""}]
[null,null,null,null,null,null,null,null,null,{"$f":"IF(J518=\"\",\"\",IF(J518+1>$K$2,\"\",J518+1))","v":""},{"$f":"IF(K518=\"\",\"\",IF(K518+1>$K$3,\"\",K518+1))","v":""},null,null,null,"",""]
[null,null,null,null,null,null,null,null,null,"","",null,null,null,"",""]
[null,null,null,null,null,null,null,null,null,"","",null,null,null,"",""]
[null,null,null,null,null,null,null,null,null,"","",null,null,null,"",""]
[null,null,null,null,null,null,null,null,null,"","",null,null,null,"",""]
[null,null,null,null,null,null,null,null,null,"","",null,null,null,"",""]
[null,null,null,null,null,null,null,null,null,"","",null,null,null,"",""]
[null,null,null,null,null,null,null,null,null,"","",null,null,null,"",""]
[null,null,null,null,null,null,null,null,null,"","",null,null,null,"",""]
[null,null,null,null,null,null,null,null,null,"","",null,null,null,"",""]
[null,null,null,null,null,null,null,null,null,"","",null,null,null,"",""]
[null,null,null,null,null,null,null,null,null,"","",null,null,null,"",""]
[null,null,null,null,null,null,null,null,null,"","",null,null,null,"",""]
[null,null,null,null,null,null,null,null,null,"","",null,null,null,"",""]
[null,null,null,null,null,null,null,null,null,"","",null,null,null,"",""]
[null,null,null,null,null,null,null,null,null,"","",null,null,null,"",""]
[null,null,null,null,null,null,null,null,null,"","",null,null,null,"",""]
[null,null,null,null,null,null,null,null,null,"","",null,null,null,"",""]
[null,null,null,null,null,null,null,null,null,"","",null,null,null,"",""]
[null,null,null,null,null,null,null,null,null,"","",null,null,null,"",""]
[null,null,null,null,null,null,null,null,null,"","",null,null,null,"",""]
[null,null,null,null,null,null,null,null,null,"","",null,null,null,"",""]
[null,null,null,null,null,null,null,null,null,"","",null,null,null,"",""]
[null,null,null,null,null,null,null,null,null,"","",null,null,null,"",""]
[null,null,null,null,null,null,null,null,null,"","",null,null,null,"",""]
[null,null,null,null,null,null,null,null,null,"","",null,null,null,"",""]
[null,null,null,null,null,null,null,null,null,"","",null,null,null,"",""]
[null,null,null,null,null,null,null,null,null,"","",null,null,null,"",""]
[null,null,null,null,null,null,null,null,null,"","",null,null,null,"",""]
[null,null,null,null,null,null,null,null,null,"","",null,null,null,"",""]
[null,null,null,null,null,null,null,null,null,"","",null,null,null,"",""]
[null,null,null,null,null,null,null,null,null,"","",null,null,null,"",""]
[null,null,null,null,null,null,null,null,null,"","",null,null,null,"",""]
[null,null,null,null,null,null,null,null,null,"","",null,null,null,"",""]
[null,null,null,null,null,null,null,null,null,"","",null,null,null,"",""]
[null,null,null,null,null,null,null,null,null,"","",null,null,null,"",""]
[null,null,null,null,null,null,null,null,null,"","",null,null,null,"",""]
[null,null,null,null,null,null,null,null,null,"","",null,null,null,"",""]
[null,null,null,null,null,null,null,null,null,"","",null,null,null,"",""]
[null,null,null,null,null,null,null,null,null,"","",null,null,null,"",""]
[null,null,null,null,null,null,null,null,null,"","",null,null,null,"",""]
[null,null,null,null,null,null,null,null,null,"","",null,null,null,"",""]
[null,null,null,null,null,null,null,null,null,"","",null,null,null,"",""]
[null,null,null,null,null,null,null,null,null,"","",null,null,null,"",""]
[null,null,null,null,null,null,null,null,null,"","",null,null,null,"",""]
[null,null,null,null,null,null,null,null,null,"","",null,null,null,"",""]
[null,null,null,null,null,null,null,null,null,"","",null,null,null,"",""]
[null,null,null,null,null,null,null,null,null,"","",null,null,null,"",""]
[null,null,null,null,null,null,null,null,null,"","",null,null,null,"",""]
[null,null,null,null,null,null,null,null,null,"","",null,null,null,"",""]
[null,null,null,null,null,null,null,null,null,"","",null,null,null,"",""]
[null,null,null,null,null,null,null,null,null,"","",null,null,null,"",""]
[null,null,null,null,null,null,null,null,null,"","",null,null,null,"",""]
[null,null,null,null,null,null,null,null,null,"","",null,null,null,"",""]
[null,null,null,null,null,null,null,null,null,"","",null,null,null,"",""]
[null,null,null,null,null,null,null,null,null,"","",null,null,null,"",""]
[null,null,null,null,null,null,null,null,null,"","",null,null,null,"",""]
[null,null,null,null,null,null,null,null,null,"","",null,null,null,"",""]
[null,null,null,null,null,null,null,null,null,"","",null,null,null,"",""]
[null,null,null,null,null,null,null,null,null,"","",null,null,null,"",""]
[null,null,null,null,null,null,null,null,null,"","",null,null,null,"",""]
[null,null,null,null,null,null,null,null,null,"","",null,null,null,"",""]
[null,null,null,null,null,null,null,null,null,"","",null,null,null,{"$f":"IF(K581=\"\",\"\",VLOOKUP(K581,جلوس,4))","v":""},""]
[null,null,null,null,null,null,null,null,null,"","",null,null,null,"",{"$f":"IF(O582=O583,\"\",\"نهاية اللجنة\")","v":""}]
[null,null,null,null,null,null,null,null,null,{"$f":"IF(J582=\"\",\"\",IF(J582+1>$K$2,\"\",J582+1))","v":""},{"$f":"IF(K582=\"\",\"\",IF(K582+1>$K$3,\"\",K582+1))","v":""},null,null,null,"",""]
[null,null,null,null,null,null,null,null,null,"","",null,null,null,"",""]
[null,null,null,null,null,null,null,null,null,"","",null,null,null,"",""]
[null,null,null,null,null,null,null,null,null,"","",null,null,null,"",""]
[null,null,null,null,null,null,null,null,null,"","",null,null,null,"",""]
[null,null,null,null,null,null,null,null,null,"","",null,null,null,"",""]
[null,null,null,null,null,null,null,null,null,"","",null,null,null,"",""]
[null,null,null,null,null,null,null,null,null,"","",null,null,null,"",""]
[null,null,null,null,null,null,null,null,null,"","",null,null,null,"",""]
[null,null,null,null,null,null,null,null,null,"","",null,null,null,"",""]
[null,null,null,null,null,null,null,null,null,"","",null,null,null,"",""]
[null,null,null,null,null,null,null,null,null,"","",null,null,null,"",""]
[null,null,null,null,null,null,null,null,null,"","",null,null,null,"",""]
[null,null,null,null,null,null,null,null,null,"","",null,null,null,"",""]
[null,null,null,null,null,null,null,null,null,"","",null,null,null,"",""]
[null,null,null,null,null,null,null,null,null,"","",null,null,null,"",""]
[null,null,null,null,null,null,null,null,null,"","",null,null,null,"",""]
[null,null,null,null,null,null,null,null,null,"","",null,null,null,"",""]
[null,null,null,null,null,null,null,null,null,"","",null,null,null,"",""]
[null,null,null,null,null,null,null,null,null,"","",null,null,null,"",""]
[null,null,null,null,null,null,null,null,null,"","",null,null,null,"",""]
[null,null,null,null,null,null,null,null,null,"","",null,null,null,"",""]

{"sheet":"بيانات أساسية 3","index":3,"n_rows":604,"n_cols":21,"rows_kept":604,"cut":false,"hidden":false,"merged":[[2,3,3,3],[2,4,2,5],[0,3,1,7],[0,11,2,14]]}
[null,null,null,"الصف الثالث الابتدائى",null,null,null,null,null,null,null,"اكتب فى الخلايا ذات اللون الابيض فقط"]
[null,null,null,null,null,null,null,null,null,"العدد",{"$f":"SUM(G5:G44)","v":260}]
[null,null,null,"م","اكتب اول رقم جلوس",null,{"$f":"SUM(G5:G44)","v":260},{"$f":"COUNT(H5:H44)","v":10},null,"أعلى رقم",{"$f":"MAX(E5:F44)","v":560},null,null,null,null,{"$f":"COUNTA(L5:L297)","v":260}]
[null,null,null,null,"من","إلى","عدد اللجنة","اللجنة",null,"م","رقم الجلوس","الاسم","النوع",null,"اللجنة","نهاية اللجنة"]
[null,null,null,{"$f":"IF(E5=\"\",\"\",COUNT($E$5:E5))","v":1},301,{"$f":"IF(G5=\"\",\"\",E5+G5-1)","v":325},25,{"$f":"IF(E5=\"\",\"\",COUNT($E$5:E5))","v":1},null,1,{"$f":"$E$5","v":301},"ابراهيم اسماعيل ابراهيم محمد صقر","ذكر","=MATCH($m5,MySortList,0)",{"$f":"IF(K5=\"\",\"\",VLOOKUP(K5,جلوس,4))","v":1},{"$f":"IF(O5=O6,\"\",\"نهاية اللجنة\")","v":""}]
["مقيد",{"$f":"COUNTA(L5:L297)","v":260},null,{"$f":"IF(E6=\"\",\"\",COUNT($E$5:E6))","v":2},{"$f":"IF(G6=\"\",\"\",F5+1)","v":326},{"$f":"IF(G6=\"\",\"\",E6+G6-1)","v":351},26,{"$f":"IF(E6=\"\",\"\",COUNT($E$5:E6))","v":2},null,{"$f":"IF(J5=\"\",\"\",IF(J5+1>$K$2,\"\",J5+1))","v":2},{"$f":"IF(K5=\"\",\"\",IF(K5+1>$K$3,\"\",K5+1))","v":302},"ابراهيم عبداللطيف ابراهيم الصافي","ذكر","=MATCH($m5,MySortList,0)",1,{"$f":"IF(O6=O7,\"\",\"نهاية اللجنة\")","v":""}]
["موزع",{"$f":"SUM(G5:G44)","v":260},null,{"$f":"IF(E7=\"\",\"\",COUNT($E$5:E7))","v":3},{"$f":"IF(G7=\"\",\"\",F6+1)","v":352},377,26,{"$f":"IF(E7=\"\",\"\",COUNT($E$5:E7))","v":3},null,{"$f":"IF(J6=\"\",\"\",IF(J6+1>$K$2,\"\",J6+1))","v":3},{"$f":"IF(K6=\"\",\"\",IF(K6+1>$K$3,\"\",K6+1))","v":303},"ابراهيم عبدالناصر ابراهيم محمد","ذكر","=MATCH($m5,MySortList,0)",1,""]
["متبقى",{"$f":"B6-B7","v":0},null,{"$f":"IF(E8=\"\",\"\",COUNT($E$5:E8))","v":4},378,403,26,{"$f":"IF(E8=\"\",\"\",COUNT($E$5:E8))","v":4},null,4,304,"احمد احمد محمد عبدالحميد","ذكر","=MATCH($m5,MySortList,0)",1,""]
[null,null,null,{"$f":"IF(E9=\"\",\"\",COUNT($E$5:E9))","v":5},404,431,28,{"$f":"IF(E9=\"\",\"\",COUNT($E$5:E9))","v":5},null,5,305,"احمد اشرف محمد سيداحمد","ذكر","=MATCH($m5,MySortList,0)",1,"",null,null,null,null," "]
[null,null,null,{"$f":"IF(E10=\"\",\"\",COUNT($E$5:E10))","v":6},432,458,27,{"$f":"IF(E10=\"\",\"\",COUNT($E$5:E10))","v":6},null,6,306,"احمد السيد يوسف طلبه","ذكر","=MATCH($m5,MySortList,0)",1,""]
[null,null,null,{"$f":"IF(E11=\"\",\"\",COUNT($E$5:E11))","v":7},459,485,27,{"$f":"IF(E11=\"\",\"\",COUNT($E$5:E11))","v":7},null,7,307,"احمد ايهاب فوزي حماد","ذكر","=MATCH($m5,MySortList,0)",1,""]
[null,null,null,{"$f":"IF(E12=\"\",\"\",COUNT($E$5:E12))","v":8},486,511,26,{"$f":"IF(E12=\"\",\"\",COUNT($E$5:E12))","v":8},null,8,308,"احمد جميل بدير صقر","ذكر","=MATCH($m5,MySortList,0)",1,""]
[null,null,null,{"$f":"IF(E13=\"\",\"\",COUNT($E$5:E13))","v":9},512,536,25,{"$f":"IF(E13=\"\",\"\",COUNT($E$5:E13))","v":9},null,9,309,"احمد رمضان سيداحمد محمود","ذكر","=MATCH($m5,MySortList,0)",1,""]
[null,null,null,{"$f":"IF(E14=\"\",\"\",COUNT($E$5:E14))","v":10},537,560,24,{"$f":"IF(E14=\"\",\"\",COUNT($E$5:E14))","v":10},null,10,310,"احمد سالم عبدالمقصود سليمان","ذكر","=MATCH($m5,MySortList,0)",1,""]
[null,null,null,{"$f":"IF(E15=\"\",\"\",COUNT($E$5:E15))","v":""},"","",null,{"$f":"IF(E15=\"\",\"\",COUNT($E$5:E15))","v":""},null,11,311,"احمد شعبان محمد الجداوى","ذكر","=MATCH($m5,MySortList,0)",1,""]
[null,null,null,{"$f":"IF(E16=\"\",\"\",COUNT($E$5:E16))","v":""},"","",null,{"$f":"IF(E16=\"\",\"\",COUNT($E$5:E16))","v":""},null,12,312,"احمد عادل عبدالحميد عبدالعزيز","ذكر","=MATCH($m5,MySortList,0)",1,""]
[null,null,null,{"$f":"IF(E17=\"\",\"\",COUNT($E$5:E17))","v":""},"","",null,{"$f":"IF(E17=\"\",\"\",COUNT($E$5:E17))","v":""},null,13,313,"احمد عباس محمد محمد","ذكر","=MATCH($m5,MySortList,0)",1,""]
[null,null,null,{"$f":"IF(E18=\"\",\"\",COUNT($E$5:E18))","v":""},"","",null,{"$f":"IF(E18=\"\",\"\",COUNT($E$5:E18))","v":""},null,14,314,"احمد عبدالفتاح السيد احمد","ذكر","=MATCH($m5,MySortList,0)",1,""]
[null,null,null,{"$f":"IF(E19=\"\",\"\",COUNT($E$5:E19))","v":""},"","",null,{"$f":"IF(E19=\"\",\"\",COUNT($E$5:E19))","v":""},null,15,315,"احمد عبدالوهاب مصطفى ","ذكر","=MATCH($m5,MySortList,0)",1,""]
[null,null,null,{"$f":"IF(E20=\"\",\"\",COUNT($E$5:E20))","v":""},"","",null,{"$f":"IF(E20=\"\",\"\",COUNT($E$5:E20))","v":""},null,16,316,"احمد عزت ابراهيم محمد عبدالله","ذكر","=MATCH($m5,MySortList,0)",1,""]
[null,null,null,{"$f":"IF(E21=\"\",\"\",COUNT($E$5:E21))","v":""},"","",null,{"$f":"IF(E21=\"\",\"\",COUNT($E$5:E21))","v":""},null,17,317,"احمد علي شاكر عبداللطيف","ذكر","=MATCH($m5,MySortList,0)",1,""]
[null,null,null,{"$f":"IF(E22=\"\",\"\",COUNT($E$5:E22))","v":""},"","",null,{"$f":"IF(E22=\"\",\"\",COUNT($E$5:E22))","v":""},null,18,318,"أحمد عماد عبد المولي قطب","ذكر","=MATCH($m5,MySortList,0)",1,""]
[null,null,null,{"$f":"IF(E23=\"\",\"\",COUNT($E$5:E23))","v":""},"","",null,{"$f":"IF(E23=\"\",\"\",COUNT($E$5:E23))","v":""},null,19,319,"احمد عيد عطيه عبدالمجيد","ذكر","=MATCH($m5,MySortList,0)",1,""]
[null,null,null,{"$f":"IF(E24=\"\",\"\",COUNT($E$5:E24))","v":""},"","",null,{"$f":"IF(E24=\"\",\"\",COUNT($E$5:E24))","v":""},null,20,320,"احمد مجدي فتح الله عبدالواحد","ذكر","=MATCH($m5,MySortList,0)",1,""]
[null,null,null,{"$f":"IF(E25=\"\",\"\",COUNT($E$5:E25))","v":""},"","",null,{"$f":"IF(E25=\"\",\"\",COUNT($E$5:E25))","v":""},null,21,321,"احمد محمد فكري السعيد","ذكر","=MATCH($m5,MySortList,0)",1,""]
[null,null,null,{"$f":"IF(E26=\"\",\"\",COUNT($E$5:E26))","v":""},"","",null,{"$f":"IF(E26=\"\",\"\",COUNT($E$5:E26))","v":""},null,22,322,"احمد نبيه متولي ابراهيم","ذكر","=MATCH($m5,MySortList,0)",1,""]
[null,null,null,{"$f":"IF(E27=\"\",\"\",COUNT($E$5:E27))","v":""},"","",null,{"$f":"IF(E27=\"\",\"\",COUNT($E$5:E27))","v":""},null,23,323,"احمد نشات الشوادفي علي","ذكر","=MATCH($m5,MySortList,0)",1,""]
[null,null,null,{"$f":"IF(E28=\"\",\"\",COUNT($E$5:E28))","v":""},"","",null,{"$f":"IF(E28=\"\",\"\",COUNT($E$5:E28))","v":""},null,24,324,"احمد هانى محمود صالح السباعى","ذكر","=MATCH($m5,MySortList,0)",1,""]
[null,null,null,{"$f":"IF(E29=\"\",\"\",COUNT($E$5:E29))","v":""},"","",null,{"$f":"IF(E29=\"\",\"\",COUNT($E$5:E29))","v":""},null,25,325,"احمد هشام عبدالعليم علي","ذكر","=MATCH($m5,MySortList,0)",1,"نهاية اللجنة"]
[null,null,null,{"$f":"IF(E30=\"\",\"\",COUNT($E$5:E30))","v":""},"","",null,{"$f":"IF(E30=\"\",\"\",COUNT($E$5:E30))","v":""},null,26,326,"اسامه هشام نصر رزق","ذكر","=MATCH($m5,MySortList,0)",2,""]
[null,null,null,{"$f":"IF(E31=\"\",\"\",COUNT($E$5:E31))","v":""},"","",null,{"$f":"IF(E31=\"\",\"\",COUNT($E$5:E31))","v":""},null,27,327,"اسماعيل محمد السيد محمد","ذكر","=MATCH($m5,MySortList,0)",2,""]
[null,null,null,{"$f":"IF(E32=\"\",\"\",COUNT($E$5:E32))","v":""},"","",null,{"$f":"IF(E32=\"\",\"\",COUNT($E$5:E32))","v":""},null,28,328,"السيد ياسر محمود حسن","ذكر","=MATCH($m5,MySortList,0)",2,""]
[null,null,null,{"$f":"IF(E33=\"\",\"\",COUNT($E$5:E33))","v":""},"","",null,{"$f":"IF(E33=\"\",\"\",COUNT($E$5:E33))","v":""},null,29,329,"انس خالد بدير ابراهيم","ذكر","=MATCH($m5,MySortList,0)",2,""]
[null,null,null,{"$f":"IF(E34=\"\",\"\",COUNT($E$5:E34))","v":""},"","",null,{"$f":"IF(E34=\"\",\"\",COUNT($E$5:E34))","v":""},null,30,330,"ايهاب احمد ابراهيم محمود","ذكر","=MATCH($m5,MySortList,0)",2,""]
[null,null,null,{"$f":"IF(E35=\"\",\"\",COUNT($E$5:E35))","v":""},"","",null,{"$f":"IF(E35=\"\",\"\",COUNT($E$5:E35))","v":""},null,31,331,"بسام حسن سعد عويضه","ذكر","=MATCH($m5,MySortList,0)",2,""]
[null,null,null,{"$f":"IF(E36=\"\",\"\",COUNT($E$5:E36))","v":""},"","",null,{"$f":"IF(E36=\"\",\"\",COUNT($E$5:E36))","v":""},null,32,332,"بولا اسامه سمير جرجس","ذكر","=MATCH($m5,MySortList,0)",2,""]
[null,null,null,{"$f":"IF(E37=\"\",\"\",COUNT($E$5:E37))","v":""},"","",null,{"$f":"IF(E37=\"\",\"\",COUNT($E$5:E37))","v":""},null,33,333,"توماس وديع فوزي وهبه اسعد","ذكر","=MATCH($m5,MySortList,0)",{"$f":"IF(K37=\"\",\"\",VLOOKUP(K37,جلوس,4))","v":2},""]
[null,null,null,{"$f":"IF(E38=\"\",\"\",COUNT($E$5:E38))","v":""},"","",null,{"$f":"IF(E38=\"\",\"\",COUNT($E$5:E38))","v":""},null,34,334,"حامد حماده محمد يوسف وهبه","ذكر","=MATCH($m5,MySortList,0)",2,""]
[null,null,null,{"$f":"IF(E39=\"\",\"\",COUNT($E$5:E39))","v":""},"","",null,{"$f":"IF(E39=\"\",\"\",COUNT($E$5:E39))","v":""},null,35,335,"حجازي محمد علي عبدالعزيز","ذكر","=MATCH($m5,MySortList,0)",2,""]
[null,null,null,{"$f":"IF(E40=\"\",\"\",COUNT($E$5:E40))","v":""},"","",null,{"$f":"IF(E40=\"\",\"\",COUNT($E$5:E40))","v":""},null,36,336,"حسام مجدي الشوادفي خليل ياسين","ذكر","=MATCH($m5,MySortList,0)",2,""]
[null,null,null,{"$f":"IF(E41=\"\",\"\",COUNT($E$5:E41))","v":""},"","",null,{"$f":"IF(E41=\"\",\"\",COUNT($E$5:E41))","v":""},null,37,337,"حمزه رمضان اسماعيل الشناوي","ذكر","=MATCH($m5,MySortList,0)",2,""]
[null,null,null,{"$f":"IF(E42=\"\",\"\",COUNT($E$5:E42))","v":""},"","",null,{"$f":"IF(E42=\"\",\"\",COUNT($E$5:E42))","v":""},null,38,338,"خالد سمير عبدالغني مصطفي اسماعيل","ذكر","=MATCH($m5,MySortList,0)",2,""]
[null,null,null,{"$f":"IF(E43=\"\",\"\",COUNT($E$5:E43))","v":""},"","",null,{"$f":"IF(E43=\"\",\"\",COUNT($E$5:E43))","v":""},null,39,339,"رشاد عصام حسين عبدالله","ذكر","=MATCH($m5,MySortList,0)",2,""]
[null,null,null,{"$f":"IF(E44=\"\",\"\",COUNT($E$5:E44))","v":""},"","",null,{"$f":"IF(E44=\"\",\"\",COUNT($E$5:E44))","v":""},null,40,340,"زياد ايمن صلاح سعد عبدالله","ذكر","=MATCH($m5,MySortList,0)",2,""]
[null,null,null,null,null,null,null,null,null,41,341,"زياد خيري منير اسماعيل","ذكر","=MATCH($m5,MySortList,0)",2,""]
[null,null,null,null,null,null,null,null,null,42,342,"زياد رضا وهبه محمد وهبه","ذكر","=MATCH($m5,MySortList,0)",2,""]
[null,null,null,null,null,null,null,null,null,43,343,"سالم السيد سالم عبدالله","ذكر","=MATCH($m5,MySortList,0)",2,""]
[null,null,null,null,null,null,null,null,null,44,344,"سامح محمد طه عبدالسلام","ذكر","=MATCH($m5,MySortList,0)",2,""]
[null,null,null,null,null,null,null,null,null,45,345,"سعد مصطفي سعد مصطفي","ذكر","=MATCH($m5,MySortList,0)",2,""]
[null,null,null,null,null,null,null,null,null,46,346,"سيف بهاء الدين مرسي غازي","ذكر","=MATCH($m5,MySortList,0)",2,""]
[null,null,null,null,null,null,null,null,null,47,347,"سيف عادل محمود محمد عبدالله","ذكر","=MATCH($m5,MySortList,0)",2,""]
[null,null,null,null,null,null,null,null,null,48,348,"صبحي ابراهيم صبحي طلبه","ذكر","=MATCH($m5,MySortList,0)",2,""]
[null,null,null,null,null,null,null,null,null,49,349,"صبحي محمد ابراهيم خليفه","ذكر","=MATCH($m5,MySortList,0)",2,""]
[null,null,null,null,null,null,null,null,null,50,350,"صبري الطبلاوي عبدالواحد جابر","ذكر","=MATCH($m5,MySortList,0)",2,""]
[null,null,null,null,null,null,null,null,null,51,351,"عابد محمد السبع العشري","ذكر","=MATCH($m5,MySortList,0)",2,"نهاية اللجنة"]
[null,null,null,null,null,null,null,null,null,52,352,"عبدالحليم محمد عبدالحليم عبدالمقتدر","ذكر","=MATCH($m5,MySortList,0)",3,""]
[null,null,null,null,null,null,null,null,null,53,353,"عبدالرحمن اسلام ابراهيم حسن","ذكر","=MATCH($m5,MySortList,0)",3,""]
[null,null,null,null,null,null,null,null,null,54,354,"عبدالرحمن السيد عيسي علي","ذكر","=MATCH($m5,MySortList,0)",3,""]
[null,null,null,null,null,null,null,null,null,55,355,"عبدالرحمن محمد محمد مصطفي","ذكر","=MATCH($m5,MySortList,0)",3,""]
[null,null,null,null,null,null,null,null,null,56,356,"عبدالرحمن ممدوح حسين زهران","ذكر","=MATCH($m5,MySortList,0)",3,""]
[null,null,null,null,null,null,null,null,null,57,357,"عبدالعزيز نصر عبدالعزيز حسن","ذكر","=MATCH($m5,MySortList,0)",3,""]
[null,null,null,null,null,null,null,null,null,58,358,"عبدالغني اسماعيل عبدالغني اسماعيل","ذكر","=MATCH($m5,MySortList,0)",3,""]
[null,null,null,null,null,null,null,null,null,59,359,"عبدالونيس مبروك العمده عبدالونيس","ذكر","=MATCH($m5,MySortList,0)",3,""]
[null,null,null,null,null,null,null,null,null,60,360,"عصام السيد عصام الدين ابوطالب","ذكر","=MATCH($m5,MySortList,0)",3,""]
[null,null,null,null,null,null,null,null,null,61,361,"عمر ابراهيم محمد ابوالروس","ذكر","=MATCH($m5,MySortList,0)",3,""]
[null,null,null,null,null,null,null,null,null,62,362,"عمر احمد عمر احمد","ذكر","=MATCH($m5,MySortList,0)",3,""]
[null,null,null,null,null,null,null,null,null,63,363,"عمر صابر سعد بسيوني","ذكر","=MATCH($m5,MySortList,0)",3,""]
[null,null,null,null,null,null,null,null,null,64,364,"عمر عبدالعزيز سالم عبدالله","ذكر","=MATCH($m5,MySortList,0)",3,""]
[null,null,null,null,null,null,null,null,null,65,365,"عمر مدحت حسن يوسف","ذكر","=MATCH($m5,MySortList,0)",{"$f":"IF(K69=\"\",\"\",VLOOKUP(K69,جلوس,4))","v":3},""]
[null,null,null,null,null,null,null,null,null,66,366,"عمر يسري سلامه ابراهيم","ذكر","=MATCH($m5,MySortList,0)",3,{"$f":"IF(O70=O71,\"\",\"نهاية اللجنة\")","v":""}]
[null,null,null,null,null,null,null,null,null,{"$f":"IF(J70=\"\",\"\",IF(J70+1>$K$2,\"\",J70+1))","v":67},{"$f":"IF(K70=\"\",\"\",IF(K70+1>$K$3,\"\",K70+1))","v":367},"عمرو احمد عبدالحفيظ محمود","ذكر","=MATCH($m5,MySortList,0)",3,""]
[null,null,null,null,null,null,null,null,null,68,368,"فارس كرم مصلح عبدالسلام","ذكر","=MATCH($m5,MySortList,0)",3,""]
[null,null,null,null,null,null,null,null,null,69,369,"فارس وليد محمد محمد","ذكر","=MATCH($m5,MySortList,0)",3,""]
[null,null,null,null,null,null,null,null,null,70,370,"فتحي حمدي علي ابراهيم","ذكر","=MATCH($m5,MySortList,0)",3,""]
[null,null,null,null,null,null,null,null,null,71,371,"فتحي عصام الدين فتحي السيد","ذكر","=MATCH($m5,MySortList,0)",3,""]
[null,null,null,null,null,null,null,null,null,72,372,"كريم حسام الدين محمد عيد","ذكر","=MATCH($m5,MySortList,0)",3,""]
[null,null,null,null,null,null,null,null,null,73,373,"كريم صابر حسن ابراهيم يسن","ذكر","=MATCH($m5,MySortList,0)",3,""]
[null,null,null,null,null,null,null,null,null,74,374,"كريم محمد السيد أحمد إسماعيل","ذكر","=MATCH($m5,MySortList,0)",3,""]
[null,null,null,null,null,null,null,null,null,75,375,"كريم مسعود عوض بسيونى متولى","ذكر","=MATCH($m5,MySortList,0)",3,""]
[null,null,null,null,null,null,null,null,null,76,376,"محمد ابراهيم عبدالخالق بدير","ذكر","=MATCH($m5,MySortList,0)",3,""]
[null,null,null,null,null,null,null,null,null,77,377,"محمد ابراهيم مصطفي حسن","ذكر","=MATCH($m5,MySortList,0)",3,"نهاية اللجنة"]
[null,null,null,null,null,null,null,null,null,78,378,"محمد احمد داود احمد","ذكر","=MATCH($m5,MySortList,0)",4,""]
[null,null,null,null,null,null,null,null,null,79,379,"محمد احمد زكي محمد","ذكر","=MATCH($m5,MySortList,0)",4,""]
[null,null,null,null,null,null,null,null,null,80,380,"محمد اسعد عبدالسلام عبدالمجيد","ذكر","=MATCH($m5,MySortList,0)",4,""]
[null,null,null,null,null,null,null,null,null,81,381,"محمد السعيد عزت السعيد","ذكر","=MATCH($m5,MySortList,0)",4,""]
[null,null,null,null,null,null,null,null,null,82,382,"محمد السيد عبدالمنعم السيد","ذكر","=MATCH($m5,MySortList,0)",4,""]
[null,null,null,null,null,null,null,null,null,83,383,"محمد السيد عبدالواحد محمد","ذكر","=MATCH($m5,MySortList,0)",4,""]
[null,null,null,null,null,null,null,null,null,84,384,"محمد جلال احمد محمد","ذكر","=MATCH($m5,MySortList,0)",4,""]
[null,null,null,null,null,null,null,null,null,85,385,"محمد صبحي جابر فرج ادم سليمان","ذكر","=MATCH($m5,MySortList,0)",4,""]
[null,null,null,null,null,null,null,null,null,86,386,"محمد طارق إبراهيم عباس","ذكر","=MATCH($m5,MySortList,0)",4,""]
[null,null,null,null,null,null,null,null,null,87,387,"محمد طارق جلال عبدالجواد","ذكر","=MATCH($m5,MySortList,0)",4,""]
[null,null,null,null,null,null,null,null,null,88,388,"محمد عادل احمد بيومي","ذكر","=MATCH($m5,MySortList,0)",4,""]
[null,null,null,null,null,null,null,null,null,89,389,"محمد عباس محمد عباس سيد احمد","ذكر","=MATCH($m5,MySortList,0)",4,""]
[null,null,null,null,null,null,null,null,null,90,390,"محمد عبدالسلام ضيف الله عبدالونيس","ذكر","=MATCH($m5,MySortList,0)",4,""]
[null,null,null,null,null,null,null,null,null,91,391,"محمد علاء محمد طلبه","ذكر","=MATCH($m5,MySortList,0)",4,""]
[null,null,null,null,null,null,null,null,null,92,392,"محمد فتحي مسعد فتحي","ذكر","=MATCH($m5,MySortList,0)",4,""]
[null,null,null,null,null,null,null,null,null,93,393,"محمد كامل حسن ابراهيم","ذكر","=MATCH($m5,MySortList,0)",4,""]
[null,null,null,null,null,null,null,null,null,94,394,"محمد مجدي عطيه موسي","ذكر","=MATCH($m5,MySortList,0)",4,""]
[null,null,null,null,null,null,null,null,null,95,395,"محمد محمد مرسي عبدالخالق","ذكر","=MATCH($m5,MySortList,0)",4,""]
[null,null,null,null,null,null,null,null,null,96,396,"محمد محمود على خضر خليل","ذكر","=MATCH($m5,MySortList,0)",4,""]
[null,null,null,null,null,null,null,null,null,97,397,"محمد محى الدين محمد ابراهيم سلامه","ذكر","=MATCH($m5,MySortList,0)",4,""]
[null,null,null,null,null,null,null,null,null,98,398,"محمد نبيل احمد ابازيد","ذكر","=MATCH($m5,MySortList,0)",4,""]
[null,null,null,null,null,null,null,null,null,99,399,"محمد نشأت عيسي عبدالحميد","ذكر","=MATCH($m5,MySortList,0)",4,""]
[null,null,null,null,null,null,null,null,null,100,400,"محمد نشأت متولي نصر الدين","ذكر","=MATCH($m5,MySortList,0)",4,""]
[null,null,null,null,null,null,null,null,null,101,401,"محمد هلال محمد عبدالحميد","ذكر","=MATCH($m5,MySortList,0)",4,""]
[null,null,null,null,null,null,null,null,null,102,402,"محمد وائل عيد بسيوني","ذكر","=MATCH($m5,MySortList,0)",4,""]
[null,null,null,null,null,null,null,null,null,103,403,"محمد وجيه عبدالفتاح حسين","ذكر","=MATCH($m5,MySortList,0)",4,"نهاية اللجنة"]
[null,null,null,null,null,null,null,null,null,104,404,"محمد وليد عبدالرؤف عبدالمقصود","ذكر","=MATCH($m5,MySortList,0)",5,""]
[null,null,null,null,null,null,null,null,null,105,405,"محمود السعيد عزت السعيد","ذكر","=MATCH($m5,MySortList,0)",5,""]
[null,null,null,null,null,null,null,null,null,106,406,"محمود انور عبدالحفيظ حسين","ذكر","=MATCH($m5,MySortList,0)",5,""]
[null,null,null,null,null,null,null,null,null,107,407,"محمود عبدالحميد عبدالعزيز اسماعيل","ذكر","=MATCH($m5,MySortList,0)",5,""]
[null,null,null,null,null,null,null,null,null,108,408,"محمود علي محمد السيد عبدربه","ذكر","=MATCH($m5,MySortList,0)",5,""]
[null,null,null,null,null,null,null,null,null,109,409,"محمود قطب عطيه ابراهيم","ذكر","=MATCH($m5,MySortList,0)",5,""]
[null,null,null,null,null,null,null,null,null,110,410,"محمود محمد السيد عبدالحميد","ذكر","=MATCH($m5,MySortList,0)",5,""]
[null,null,null,null,null,null,null,null,null,111,411,"محمود محمد السيد محمود","ذكر","=MATCH($m5,MySortList,0)",5,""]
[null,null,null,null,null,null,null,null,null,112,412,"محمود وجيه حسن عبدالحميد","ذكر","=MATCH($m5,MySortList,0)",5,""]
[null,null,null,null,null,null,null,null,null,113,413,"مروان محمد عبدالعزيز محمد","ذكر","=MATCH($m5,MySortList,0)",5,""]
[null,null,null,null,null,null,null,null,null,114,414,"مسعد اسامه مسعد عبدالحميد","ذكر","=MATCH($m5,MySortList,0)",5,""]
[null,null,null,null,null,null,null,null,null,115,415,"مصطفي احمد يحي محمود","ذكر","=MATCH($m5,MySortList,0)",5,""]
[null,null,null,null,null,null,null,null,null,116,416,"مصطفي يحي مصطفي محمد","ذكر","=MATCH($m5,MySortList,0)",5,""]
[null,null,null,null,null,null,null,null,null,117,417,"مهند وائل عبدالجليل عبدالفتاح","ذكر","=MATCH($m5,MySortList,0)",5,""]
[null,null,null,null,null,null,null,null,null,118,418,"موسي ملاك بشري توفيق","ذكر","=MATCH($m5,MySortList,0)",5,""]
[null,null,null,null,null,null,null,null,null,119,419,"مؤيد محمد علي حسن","ذكر","=MATCH($m5,MySortList,0)",5,""]
[null,null,null,null,null,null,null,null,null,120,420,"هاني محمد ابراهيم محمود","ذكر","=MATCH($m5,MySortList,0)",5,""]
[null,null,null,null,null,null,null,null,null,121,421,"هشام عبدالحميد محمد علي","ذكر","=MATCH($m5,MySortList,0)",5,""]
[null,null,null,null,null,null,null,null,null,122,422,"وليد رافت عبدالسلام حسين","ذكر","=MATCH($m5,MySortList,0)",5,""]
[null,null,null,null,null,null,null,null,null,123,423,"يوسف احمد سلامه ابراهيم","ذكر","=MATCH($m5,MySortList,0)",5,""]
[null,null,null,null,null,null,null,null,null,124,424,"يوسف السيد ابراهيم الليثي","ذكر","=MATCH($m5,MySortList,0)",5,""]
[null,null,null,null,null,null,null,null,null,125,425,"يوسف السيد السيد احمد","ذكر","=MATCH($m5,MySortList,0)",5,""]
[null,null,null,null,null,null,null,null,null,126,426,"يوسف تامر السيد متولي","ذكر","=MATCH($m5,MySortList,0)",5,""]
[null,null,null,null,null,null,null,null,null,127,427,"يوسف عادل السيد محمد","ذكر","=MATCH($m5,MySortList,0)",5,""]
[null,null,null,null,null,null,null,null,null,128,428,"يوسف عبدالرازق فوزي عبدربه","ذكر","=MATCH($m5,MySortList,0)",5,""]
[null,null,null,null,null,null,null,null,null,129,429,"يوسف فتحي يوسف عبدالفتاح بلتاجي ","ذكر","=MATCH($m5,MySortList,0)",{"$f":"IF(K133=\"\",\"\",VLOOKUP(K133,جلوس,4))","v":5},""]
[null,null,null,null,null,null,null,null,null,130,430,"يوسف محمد رجب ابراهيم","ذكر","=MATCH($m5,MySortList,0)",5,{"$f":"IF(O134=O135,\"\",\"نهاية اللجنة\")","v":""}]
[null,null,null,null,null,null,null,null,null,{"$f":"IF(J134=\"\",\"\",IF(J134+1>$K$2,\"\",J134+1))","v":131},{"$f":"IF(K134=\"\",\"\",IF(K134+1>$K$3,\"\",K134+1))","v":431},"يوسف محمد عبدالهادي طلحه","ذكر","=MATCH($m5,MySortList,0)",5,"نهاية اللجنة"]
[null,null,null,null,null,null,null,null,null,132,432,"يوسف نصر احمد بيومي","ذكر","=MATCH($m5,MySortList,0)",6,""]
[null,null,null,null,null,null,null,null,null,133,433,"ابه خير عبدالحميد خير","انثى","=MATCH($m5,MySortList,0)",6,""]
[null,null,null,null,null,null,null,null,null,134,434,"اروى السيد حسن يوسف الخميسى","انثى","=MATCH($m5,MySortList,0)",6,""]
[null,null,null,null,null,null,null,null,null,135,435,"اروي عبدالله عبدالعاطي محمد","انثى","=MATCH($m5,MySortList,0)",6,""]
[null,null,null,null,null,null,null,null,null,136,436,"اسراء عبدالرحمن مصطفي موسي","انثى","=MATCH($m5,MySortList,0)",6,""]
[null,null,null,null,null,null,null,null,null,137,437,"اسراء عمرو عيسوي عبيد","انثى","=MATCH($m5,MySortList,0)",6,""]
[null,null,null,null,null,null,null,null,null,138,438,"اسراء مصطفى محمد محمد البيومي","انثى","=MATCH($m5,MySortList,0)",6,""]
[null,null,null,null,null,null,null,null,null,139,439,"أسماء طحاوى محمد على المغازى","انثى","=MATCH($m5,MySortList,0)",6,""]
[null,null,null,null,null,null,null,null,null,140,440,"اسماء عبدالسيد عبداللطيف حسن","انثى","=MATCH($m5,MySortList,0)",6,""]
[null,null,null,null,null,null,null,null,null,141,441,"اسماء فتحي محمد جوده","انثى","=MATCH($m5,MySortList,0)",6,""]
[null,null,null,null,null,null,null,null,null,142,442,"اسماء محمد عبده مصطفي","انثى","=MATCH($m5,MySortList,0)",6,""]
[null,null,null,null,null,null,null,null,null,143,443,"الاء ابراهيم بسيوني الزهيري","انثى","=MATCH($m5,MySortList,0)",6,""]
[null,null,null,null,null,null,null,null,null,144,444,"الاء تامر عبدالرؤف عبدالمقصود","انثى","=MATCH($m5,MySortList,0)",6,""]
[null,null,null,null,null,null,null,null,null,145,445,"الاء حموده السيد متولي","انثى","=MATCH($m5,MySortList,0)",6,""]
[null,null,null,null,null,null,null,null,null,146,446,"الاء محمد علي عبدالمجيد","انثى","=MATCH($m5,MySortList,0)",6,""]
[null,null,null,null,null,null,null,null,null,147,447,"امنيه صبحي محمد جوده","انثى","=MATCH($m5,MySortList,0)",6,""]
[null,null,null,null,null,null,null,null,null,148,448,"اميره ابراهيم بدير عويس","انثى","=MATCH($m5,MySortList,0)",6,""]
[null,null,null,null,null,null,null,null,null,149,449,"اميره عبداللطيف عبدالمنعم خليل","انثى","=MATCH($m5,MySortList,0)",6,""]
[null,null,null,null,null,null,null,null,null,150,450,"ايمان حماده فوزي توفيق","انثى","=MATCH($m5,MySortList,0)",6,""]
[null,null,null,null,null,null,null,null,null,151,451,"ايمان صابر ابراهيم محمد","انثى","=MATCH($m5,MySortList,0)",6,""]
[null,null,null,null,null,null,null,null,null,152,452,"ايه صفوت عيسوي عبيد","انثى","=MATCH($m5,MySortList,0)",6,""]
[null,null,null,null,null,null,null,null,null,153,453,"ايه عرفه محمد محمد","انثى","=MATCH($m5,MySortList,0)",6,""]
[null,null,null,null,null,null,null,null,null,154,454,"بسمله محمد مختار فتحي","انثى","=MATCH($m5,MySortList,0)",6,""]
[null,null,null,null,null,null,null,null,null,155,455,"بسمه خالد عطيه ابراهيم","انثى","=MATCH($m5,MySortList,0)",6,""]
[null,null,null,null,null,null,null,null,null,156,456,"بسنت خالد محمد طه","انثى","=MATCH($m5,MySortList,0)",6,""]
[null,null,null,null,null,null,null,null,null,157,457,"بسنت صبحى ابراهيم السيد فرج","انثى","=MATCH($m5,MySortList,0)",6,""]
[null,null,null,null,null,null,null,null,null,158,458,"جنا خالد حسني عطاالله","انثى","=MATCH($m5,MySortList,0)",6,"نهاية اللجنة"]
[null,null,null,null,null,null,null,null,null,159,459,"حبيبه احمد السعيد علي","انثى","=MATCH($m5,MySortList,0)",7,""]
[null,null,null,null,null,null,null,null,null,160,460,"حبيبه احمد عزت حامد","انثى","=MATCH($m5,MySortList,0)",7,""]
[null,null,null,null,null,null,null,null,null,161,461,"حبيبه خليل بسيوني الشوادفي","انثى","=MATCH($m5,MySortList,0)",7,""]
[null,null,null,null,null,null,null,null,null,162,462,"حبيبه ماهر صبحي محمد","انثى","=MATCH($m5,MySortList,0)",7,""]
[null,null,null,null,null,null,null,null,null,163,463,"حبيبه محمد عبدالعزيز شعبان","انثى","=MATCH($m5,MySortList,0)",7,""]
[null,null,null,null,null,null,null,null,null,164,464,"حسناء محي الدين عبدالمحسن الدخاخني","انثى","=MATCH($m5,MySortList,0)",7,""]
[null,null,null,null,null,null,null,null,null,165,465,"حنين ابراهيم رجب شعبان","انثى","=MATCH($m5,MySortList,0)",7,""]
[null,null,null,null,null,null,null,null,null,166,466,"حنين ايمن السيد احمد","انثى","=MATCH($m5,MySortList,0)",7,""]
[null,null,null,null,null,null,null,null,null,167,467,"حنين خالد احمد محمد","انثى","=MATCH($m5,MySortList,0)",7,""]
[null,null,null,null,null,null,null,null,null,168,468,"حنين رأفت اسماعيل الشناوي","انثى","=MATCH($m5,MySortList,0)",7,""]
[null,null,null,null,null,null,null,null,null,169,469,"حنين محمد فتحي سعد الدين","انثى","=MATCH($m5,MySortList,0)",7,""]
[null,null,null,null,null,null,null,null,null,170,470,"حنين محمد محمود اسماعيل","انثى","=MATCH($m5,MySortList,0)",7,""]
[null,null,null,null,null,null,null,null,null,171,471,"حنين هايم امين السيد","انثى","=MATCH($m5,MySortList,0)",7,""]
[null,null,null,null,null,null,null,null,null,172,472,"خلود محمد جمال ابراهيم","انثى","=MATCH($m5,MySortList,0)",7,""]
[null,null,null,null,null,null,null,null,null,173,473,"دعاء يوسف ابراهيم علي","انثى","=MATCH($m5,MySortList,0)",7,""]
[null,null,null,null,null,null,null,null,null,174,474,"دنيا سمير احمد محمد","انثى","=MATCH($m5,MySortList,0)",7,""]
[null,null,null,null,null,null,null,null,null,175,475,"دنيا محمد اسماعيل حسين","انثى","=MATCH($m5,MySortList,0)",7,""]
[null,null,null,null,null,null,null,null,null,176,476,"دنيا محمد الدمرداش عبدربه","انثى","=MATCH($m5,MySortList,0)",7,""]
[null,null,null,null,null,null,null,null,null,177,477,"دينا ابراهيم محمد ابراهيم على","انثى","=MATCH($m5,MySortList,0)",7,""]
[null,null,null,null,null,null,null,null,null,178,478,"رازان حسن محمد حسن","انثى","=MATCH($m5,MySortList,0)",7,""]
[null,null,null,null,null,null,null,null,null,179,479,"رحاب فتحي عبدالحميد عبدالله","انثى","=MATCH($m5,MySortList,0)",7,""]
[null,null,null,null,null,null,null,null,null,180,480,"رحمه جمعه عبدالمعطي عبدالرسول","انثى","=MATCH($m5,MySortList,0)",7,""]
[null,null,null,null,null,null,null,null,null,181,481,"رحمه حامد ابرهيم علي","انثى","=MATCH($m5,MySortList,0)",7,""]
[null,null,null,null,null,null,null,null,null,182,482,"رحمه طارق صابر عبدالمجيد","انثى","=MATCH($m5,MySortList,0)",7,""]
[null,null,null,null,null,null,null,null,null,183,483,"رحمه عبدالعزيز عبدالعاطي عبدالفتاح","انثى","=MATCH($m5,MySortList,0)",7,""]
[null,null,null,null,null,null,null,null,null,184,484,"رقيه رشاد منصور محمد","انثى","=MATCH($m5,MySortList,0)",7,""]
[null,null,null,null,null,null,null,null,null,185,485,"روان ابراهيم عبدالفتاح السيد","انثى","=MATCH($m5,MySortList,0)",7,"نهاية اللجنة"]
[null,null,null,null,null,null,null,null,null,186,486,"روان رجب علي خليفه","انثى","=MATCH($m5,MySortList,0)",8,""]
[null,null,null,null,null,null,null,null,null,187,487,"روان كرم مصلح عبدالسلام","انثى","=MATCH($m5,MySortList,0)",8,""]
[null,null,null,null,null,null,null,null,null,188,488,"روان وائل محمد عبدالفتاح","انثى","=MATCH($m5,MySortList,0)",8,""]
[null,null,null,null,null,null,null,null,null,189,489,"ريهام مختار عبدالفتاح محمود","انثى","=MATCH($m5,MySortList,0)",8,""]
[null,null,null,null,null,null,null,null,null,190,490,"سارة ايمن عبدالرحمن عبدالجواد","انثى","=MATCH($m5,MySortList,0)",8,""]
[null,null,null,null,null,null,null,null,null,191,491,"ساره ايمن علي جمعه","انثى","=MATCH($m5,MySortList,0)",8,""]
[null,null,null,null,null,null,null,null,null,192,492,"ساره جمعه سالم علي","انثى","=MATCH($m5,MySortList,0)",8,""]
[null,null,null,null,null,null,null,null,null,193,493,"ساره عبدالمنعم عوض بلتاجي","انثى","=MATCH($m5,MySortList,0)",{"$f":"IF(K197=\"\",\"\",VLOOKUP(K197,جلوس,4))","v":8},""]
[null,null,null,null,null,null,null,null,null,194,494,"ساره عصام احمد محمد","انثى","=MATCH($m5,MySortList,0)",8,{"$f":"IF(O198=O199,\"\",\"نهاية اللجنة\")","v":""}]
[null,null,null,null,null,null,null,null,null,{"$f":"IF(J198=\"\",\"\",IF(J198+1>$K$2,\"\",J198+1))","v":195},{"$f":"IF(K198=\"\",\"\",IF(K198+1>$K$3,\"\",K198+1))","v":495},"ساره محمود سليمان عبدالحميد","انثى","=MATCH($m5,MySortList,0)",8,""]
[null,null,null,null,null,null,null,null,null,196,496,"سلمى محمود نسيم محمود","انثى","=MATCH($m5,MySortList,0)",8,""]
[null,null,null,null,null,null,null,null,null,197,497,"سلمى هشام محمد السعيد عبد الرحيم","انثى","=MATCH($m5,MySortList,0)",8,""]
[null,null,null,null,null,null,null,null,null,198,498,"سلمي زياد عطيه محمد","انثى","=MATCH($m5,MySortList,0)",8,""]
[null,null,null,null,null,null,null,null,null,199,499,"سلمي عبدالله سالم عبدالله","انثى","=MATCH($m5,MySortList,0)",8,""]
[null,null,null,null,null,null,null,null,null,200,500,"سلمي عبدالمنعم حامد عبدالحميد","انثى","=MATCH($m5,MySortList,0)",8,""]
[null,null,null,null,null,null,null,null,null,201,501,"سلمي فريد عطيه ابراهيم","انثى","=MATCH($m5,MySortList,0)",8,""]
[null,null,null,null,null,null,null,null,null,202,502,"سلمي محمد عبدالحميد عبدالغني","انثى","=MATCH($m5,MySortList,0)",8,""]
[null,null,null,null,null,null,null,null,null,203,503,"سهله ربيع ابوالفتوح محمد","انثى","=MATCH($m5,MySortList,0)",8,""]
[null,null,null,null,null,null,null,null,null,204,504,"سومه منصور العمده عبدالونيس","انثى","=MATCH($m5,MySortList,0)",8,""]
[null,null,null,null,null,null,null,null,null,205,505,"شاهنده السعيد درويش محمد","انثى","=MATCH($m5,MySortList,0)",8,""]
[null,null,null,null,null,null,null,null,null,206,506,"شروق اشرف عبدالحليم عبد الفتاح ","انثى","=MATCH($m5,MySortList,0)",8,""]
[null,null,null,null,null,null,null,null,null,207,507,"شروق حمدي محمد مرسي","انثى","=MATCH($m5,MySortList,0)",8,""]
[null,null,null,null,null,null,null,null,null,208,508,"شمس علي محمد علي","انثى","=MATCH($m5,MySortList,0)",8,""]
[null,null,null,null,null,null,null,null,null,209,509,"شهد ابراهيم السبع العشري","انثى","=MATCH($m5,MySortList,0)",8,""]
[null,null,null,null,null,null,null,null,null,210,510,"شهد سمير احمد اسماعيل","انثى","=MATCH($m5,MySortList,0)",8,""]
[null,null,null,null,null,null,null,null,null,211,511,"شهد عماد شلبي شعبان","انثى","=MATCH($m5,MySortList,0)",8,"نهاية اللجنة"]
[null,null,null,null,null,null,null,null,null,212,512,"شهد فرج محمد فرج","انثى","=MATCH($m5,MySortList,0)",9,""]
[null,null,null,null,null,null,null,null,null,213,513,"شهد مصطفي عبدالمنصف عطيه","انثى","=MATCH($m5,MySortList,0)",9,""]
[null,null,null,null,null,null,null,null,null,214,514,"شيماء اسماعيل ابراهيم محمد صقر","انثى","=MATCH($m5,MySortList,0)",9,""]
[null,null,null,null,null,null,null,null,null,215,515,"شيماء صبري محمد محمود","انثى","=MATCH($m5,MySortList,0)",9,""]
[null,null,null,null,null,null,null,null,null,216,516,"شيماء محمود رزق عبدالحميد","انثى","=MATCH($m5,MySortList,0)",9,""]
[null,null,null,null,null,null,null,null,null,217,517,"صبا هشام مدح محمد عبدالقادر","انثى","=MATCH($m5,MySortList,0)",9,""]
[null,null,null,null,null,null,null,null,null,218,518,"صفاء عباده بسيوني الشوادفي","انثى","=MATCH($m5,MySortList,0)",9,""]
[null,null,null,null,null,null,null,null,null,219,519,"عفاف فهمي ربيعي فهمي","انثى","=MATCH($m5,MySortList,0)",9,""]
[null,null,null,null,null,null,null,null,null,220,520,"فاطمه السيد محمد ابوالنجا","انثى","=MATCH($m5,MySortList,0)",9,""]
[null,null,null,null,null,null,null,null,null,221,521,"فاطمه رضا غريب شعبان","انثى","=MATCH($m5,MySortList,0)",9,""]
[null,null,null,null,null,null,null,null,null,222,522,"فاطمه محمد علي محمد","انثى","=MATCH($m5,MySortList,0)",9,""]
[null,null,null,null,null,null,null,null,null,223,523,"كوكب فؤاد عبدالمعطي عبدالخالق","انثى","=MATCH($m5,MySortList,0)",9,""]
[null,null,null,null,null,null,null,null,null,224,524,"مريم احمد يوسف محمد","انثى","=MATCH($m5,MySortList,0)",9,""]
[null,null,null,null,null,null,null,null,null,225,525,"مريم عبد المسيح مجدى وديع غبريال","انثى","=MATCH($m5,MySortList,0)",9,""]
[null,null,null,null,null,null,null,null,null,226,526,"مريم وديع فوزى وهبة اسعد","انثى","=MATCH($m5,MySortList,0)",9,""]
[null,null,null,null,null,null,null,null,null,227,527,"ملك محي الدين عبده شراكي","انثى","=MATCH($m5,MySortList,0)",9,""]
[null,null,null,null,null,null,null,null,null,228,528,"منار عبدالباسط احمد محمد","انثى","=MATCH($m5,MySortList,0)",9,""]
[null,null,null,null,null,null,null,null,null,229,529,"منة محمد أحمد محمد بيومي","انثى","=MATCH($m5,MySortList,0)",9,""]
[null,null,null,null,null,null,null,null,null,230,530,"منه احمد شعبان عبدالعزيز","انثى","=MATCH($m5,MySortList,0)",9,""]
[null,null,null,null,null,null,null,null,null,231,531,"منه الله احمد محمود محمد","انثى","=MATCH($m5,MySortList,0)",9,""]
[null,null,null,null,null,null,null,null,null,232,532,"منه الله شفيق حسين عبدالله","انثى","=MATCH($m5,MySortList,0)",9,""]
[null,null,null,null,null,null,null,null,null,233,533,"منه شعبان عبدالعزيز محمود","انثى","=MATCH($m5,MySortList,0)",9,""]
[null,null,null,null,null,null,null,null,null,234,534,"منه عاطف محمد الشراكي","انثى","=MATCH($m5,MySortList,0)",9,""]
[null,null,null,null,null,null,null,null,null,235,535,"مى شعبان محمد الجداوى","انثى","=MATCH($m5,MySortList,0)",9,""]
[null,null,null,null,null,null,null,null,null,236,536,"نادين محمد السيد عبدالفتاح","انثى","=MATCH($m5,MySortList,0)",9,"نهاية اللجنة"]
[null,null,null,null,null,null,null,null,null,237,537,"نجلاء فتحي عبدالحميد عبدالمجيد","انثى","=MATCH($m5,MySortList,0)",10,""]
[null,null,null,null,null,null,null,null,null,238,538,"ندا رضا معوض كيلاني","انثى","=MATCH($m5,MySortList,0)",10,""]
[null,null,null,null,null,null,null,null,null,239,539,"ندا وائل محمد محمد","انثى","=MATCH($m5,MySortList,0)",10,""]
[null,null,null,null,null,null,null,null,null,240,540,"ندى وائل حسين رمضان جاد","انثى","=MATCH($m5,MySortList,0)",10,""]
[null,null,null,null,null,null,null,null,null,241,541,"ندي صابر حمدي عبدالهادي","انثى","=MATCH($m5,MySortList,0)",10,""]
[null,null,null,null,null,null,null,null,null,242,542,"ندي محمد الشحات توفيق","انثى","=MATCH($m5,MySortList,0)",10,""]
[null,null,null,null,null,null,null,null,null,243,543,"نهي هاني ابراهيم هلال","انثى","=MATCH($m5,MySortList,0)",10,""]
[null,null,null,null,null,null,null,null,null,244,544,"نور ابراهيم فتح الله عبدالله","انثى","=MATCH($m5,MySortList,0)",10,""]
[null,null,null,null,null,null,null,null,null,245,545,"نور الهدي احمد لطفي عبدالله","انثى","=MATCH($m5,MySortList,0)",10,""]
[null,null,null,null,null,null,null,null,null,246,546,"نور خالد احمد ابوزيد","انثى","=MATCH($m5,MySortList,0)",10,""]
[null,null,null,null,null,null,null,null,null,247,547,"نور ماهر محمد هليل","انثى","=MATCH($m5,MySortList,0)",10,""]
[null,null,null,null,null,null,null,null,null,248,548,"نورهان السيد سمير عبد الوهاب محمد","انثى","=MATCH($m5,MySortList,0)",10,""]
[null,null,null,null,null,null,null,null,null,249,549,"نورهان ياسر حسن حسين","انثى","=MATCH($m5,MySortList,0)",10,""]
[null,null,null,null,null,null,null,null,null,250,550,"هاجر ايمن عبدالرحمن عبدالجواد","انثى","=MATCH($m5,MySortList,0)",10,""]
[null,null,null,null,null,null,null,null,null,251,551,"هاجر محمد شعبان عبدالهادي","انثى","=MATCH($m5,MySortList,0)",10,""]
[null,null,null,null,null,null,null,null,null,252,552,"هاجر محمد عبدالفتاح السيد","انثى","=MATCH($m5,MySortList,0)",10,""]
[null,null,null,null,null,null,null,null,null,253,553,"هاجر نادر مصطفى هلهل","انثى","=MATCH($m5,MySortList,0)",10,""]
[null,null,null,null,null,null,null,null,null,254,554,"هاجر نشأت السيد ابراهيم","انثى","=MATCH($m5,MySortList,0)",10,""]
[null,null,null,null,null,null,null,null,null,255,555,"هايدى محمد محمد محمد مغنم","انثى","=MATCH($m5,MySortList,0)",10,""]
[null,null,null,null,null,null,null,null,null,256,556,"وداد سامى على احمد يدك","انثى","=MATCH($m5,MySortList,0)",10,""]
[null,null,null,null,null,null,null,null,null,257,557,"وفاء درباله رمضان درباله","انثى","=MATCH($m5,MySortList,0)",{"$f":"IF(K261=\"\",\"\",VLOOKUP(K261,جلوس,4))","v":10},""]
[null,null,null,null,null,null,null,null,null,258,558,"ولاء طاهر علي ابوطالب","انثى","=MATCH($m5,MySortList,0)",10,{"$f":"IF(O262=O263,\"\",\"نهاية اللجنة\")","v":""}]
[null,null,null,null,null,null,null,null,null,{"$f":"IF(J262=\"\",\"\",IF(J262+1>$K$2,\"\",J262+1))","v":259},{"$f":"IF(K262=\"\",\"\",IF(K262+1>$K$3,\"\",K262+1))","v":559},"ياسمين هشام محمد عبدالحميد","انثى","=MATCH($m5,MySortList,0)",10,""]
[null,null,null,null,null,null,null,null,null,260,560,"يمني عبدالحكيم عباس بسيوني","انثى","=MATCH($m5,MySortList,0)",10,"نهاية اللجنة"]
[null,null,null,null,null,null,null,null,null,"","",null,null,"=MATCH($m5,MySortList,0)","",""]
[null,null,null,null,null,null,null,null,null,"","",null,null,"=MATCH($m5,MySortList,0)","",""]
[null,null,null,null,null,null,null,null,null,"","",null,null,"=MATCH($m5,MySortList,0)","",""]
[null,null,null,null,null,null,null,null,null,"","",null,null,"=MATCH($m5,MySortList,0)","",""]
[null,null,null,null,null,null,null,null,null,"","",null,null,"=MATCH($m5,MySortList,0)","",""]
[null,null,null,null,null,null,null,null,null,"","",null,null,"=MATCH($m5,MySortList,0)","",""]
[null,null,null,null,null,null,null,null,null,"","",null,null,"=MATCH($m5,MySortList,0)","",""]
[null,null,null,null,null,null,null,null,null,"","",null,null,"=MATCH($m5,MySortList,0)","",""]
[null,null,null,null,null,null,null,null,null,"","",null,null,"=MATCH($m5,MySortList,0)","",""]
[null,null,null,null,null,null,null,null,null,"","",null,null,"=MATCH($m5,MySortList,0)","",""]
[null,null,null,null,null,null,null,null,null,"","",null,null,"=MATCH($m5,MySortList,0)","",""]
[null,null,null,null,null,null,null,null,null,"","",null,null,"=MATCH($m5,MySortList,0)","",""]
[null,null,null,null,null,null,null,null,null,"","",null,null,"=MATCH($m5,MySortList,0)","",""]
[null,null,null,null,null,null,null,null,null,"","",null,null,"=MATCH($m5,MySortList,0)","",""]
[null,null,null,null,null,null,null,null,null,"","",null,null,"=MATCH($m5,MySortList,0)","",""]
[null,null,null,null,null,null,null,null,null,"","",null,null,"=MATCH($m5,MySortList,0)","",""]
[null,null,null,null,null,null,null,null,null,"","",null,null,"=MATCH($m5,MySortList,0)","",""]
[null,null,null,null,null,null,null,null,null,"","",null,null,"=MATCH($m5,MySortList,0)","",""]
[null,null,null,null,null,null,null,null,null,"","",null,null,"=MATCH($m5,MySortList,0)","",""]
[null,null,null,null,null,null,null,null,null,"","",null,null,"=MATCH($m5,MySortList,0)","",""]
[null,null,null,null,null,null,null,null,null,"","",null,null,"=MATCH($m5,MySortList,0)","",""]
[null,null,null,null,null,null,null,null,null,"","",null,null,"=MATCH($m5,MySortList,0)","",""]
[null,null,null,null,null,null,null,null,null,"","",null,null,"=MATCH($m5,MySortList,0)","",""]
[null,null,null,null,null,null,null,null,null,"","",null,null,"=MATCH($m5,MySortList,0)","",""]
[null,null,null,null,null,null,null,null,null,"","",null,null,"=MATCH($m5,MySortList,0)","",""]
[null,null,null,null,null,null,null,null,null,"","",null,null,"=MATCH($m5,MySortList,0)","",""]
[null,null,null,null,null,null,null,null,null,"","",null,null,"=MATCH($m5,MySortList,0)","",""]
[null,null,null,null,null,null,null,null,null,"","",null,null,"=MATCH($m5,MySortList,0)","",""]
[null,null,null,null,null,null,null,null,null,"","",null,null,"=MATCH($m5,MySortList,0)","",""]
[null,null,null,null,null,null,null,null,null,"","",null,null,"=MATCH($m5,MySortList,0)","",""]
[null,null,null,null,null,null,null,null,null,"","",null,null,"=MATCH($m5,MySortList,0)","",""]
[null,null,null,null,null,null,null,null,null,"","",null,null,"=MATCH($m5,MySortList,0)","",""]
[null,null,null,null,null,null,null,null,null,"","",null,null,"=MATCH($m5,MySortList,0)","",""]
[]
[]
[null,null,null,null,null,null,null,null,null,"","",null,null,null,"",""]
[null,null,null,null,null,null,null,null,null,"","",null,null,null,"",""]
[null,null,null,null,null,null,null,null,null,"","",null,null,null,"",""]
[null,null,null,null,null,null,null,null,null,"","",null,null,null,"",""]
[null,null,null,null,null,null,null,null,null,"","",null,null,null,"",""]
[null,null,null,null,null,null,null,null,null,"","",null,null,null,"",""]
[null,null,null,null,null,null,null,null,null,"","",null,null,null,"",""]
[null,null,null,null,null,null,null,null,null,"","",null,null,null,"",""]
[null,null,null,null,null,null,null,null,null,"","",null,null,null,"",""]
[null,null,null,null,null,null,null,null,null,"","",null,null,null,"",""]
[null,null,null,null,null,null,null,null,null,"","",null,null,null,"",""]
[null,null,null,null,null,null,null,null,null,"","",null,null,null,"",""]
[null,null,null,null,null,null,null,null,null,"","",null,null,null,"",""]
[null,null,null,null,null,null,null,null,null,"","",null,null,null,"",""]
[null,null,null,null,null,null,null,null,null,"","",null,null,null,"",""]
[null,null,null,null,null,null,null,null,null,"","",null,null,null,"",""]
[null,null,null,null,null,null,null,null,null,"","",null,null,null,"",""]
[null,null,null,null,null,null,null,null,null,"","",null,null,null,"",""]
[null,null,null,null,null,null,null,null,null,"","",null,null,null,"",""]
[null,null,null,null,null,null,null,null,null,"","",null,null,null,"",""]
[null,null,null,null,null,null,null,null,null,"","",null,null,null,"",""]
[null,null,null,null,null,null,null,null,null,"","",null,null,null,"",""]
[null,null,null,null,null,null,null,null,null,"","",null,null,null,"",""]
[null,null,null,null,null,null,null,null,null,"","",null,null,null,"",""]
[null,null,null,null,null,null,null,null,null,"","",null,null,null,"",""]
[null,null,null,null,null,null,null,null,null,"","",null,null,null,{"$f":"IF(K325=\"\",\"\",VLOOKUP(K325,جلوس,4))","v":""},""]
[null,null,null,null,null,null,null,null,null,"","",null,null,null,"",{"$f":"IF(O326=O327,\"\",\"نهاية اللجنة\")","v":""}]
[null,null,null,null,null,null,null,null,null,{"$f":"IF(J326=\"\",\"\",IF(J326+1>$K$2,\"\",J326+1))","v":""},{"$f":"IF(K326=\"\",\"\",IF(K326+1>$K$3,\"\",K326+1))","v":""},null,null,null,"",""]
[null,null,null,null,null,null,null,null,null,"","",null,null,null,"",""]
[null,null,null,null,null,null,null,null,null,"","",null,null,null,"",""]
[null,null,null,null,null,null,null,null,null,"","",null,null,null,"",""]
[null,null,null,null,null,null,null,null,null,"","",null,null,null,"",""]
[null,null,null,null,null,null,null,null,null,"","",null,null,null,"",""]
[null,null,null,null,null,null,null,null,null,"","",null,null,null,"",""]
[null,null,null,null,null,null,null,null,null,"","",null,null,null,"",""]
[null,null,null,null,null,null,null,null,null,"","",null,null,null,"",""]
[null,null,null,null,null,null,null,null,null,"","",null,null,null,"",""]
[null,null,null,null,null,null,null,null,null,"","",null,null,null,"",""]
[null,null,null,null,null,null,null,null,null,"","",null,null,null,"",""]
[null,null,null,null,null,null,null,null,null,"","",null,null,null,"",""]
[null,null,null,null,null,null,null,null,null,"","",null,null,null,"",""]
[null,null,null,null,null,null,null,null,null,"","",null,null,null,"",""]
[null,null,null,null,null,null,null,null,null,"","",null,null,null,"",""]
[null,null,null,null,null,null,null,null,null,"","",null,null,null,"",""]
[null,null,null,null,null,null,null,null,null,"","",null,null,null,"",""]
[null,null,null,null,null,null,null,null,null,"","",null,null,null,"",""]
[null,null,null,null,null,null,null,null,null,"","",null,null,null,"",""]
[null,null,null,null,null,null,null,null,null,"","",null,null,null,"",""]
[null,null,null,null,null,null,null,null,null,"","",null,null,null,"",""]
[null,null,null,null,null,null,null,null,null,"","",null,null,null,"",""]
[null,null,null,null,null,null,null,null,null,"","",null,null,null,"",""]
[null,null,null,null,null,null,null,null,null,"","",null,null,null,"",""]
[null,null,null,null,null,null,null,null,null,"","",null,null,null,"",""]
[null,null,null,null,null,null,null,null,null,"","",null,null,null,"",""]
[null,null,null,null,null,null,null,null,null,"","",null,null,null,"",""]
[null,null,null,null,null,null,null,null,null,"","",null,null,null,"",""]
[null,null,null,null,null,null,null,null,null,"","",null,null,null,"",""]
[null,null,null,null,null,null,null,null,null,"","",null,null,null,"",""]
[null,null,null,null,null,null,null,null,null,"","",null,null,null,"",""]
[null,null,null,null,null,null,null,null,null,"","",null,null,null,"",""]
[null,null,null,null,null,null,null,null,null,"","",null,null,null,"",""]
[null,null,null,null,null,null,null,null,null,"","",null,null,null,"",""]
[null,null,null,null,null,null,null,null,null,"","",null,null,null,"",""]
[null,null,null,null,null,null,null,null,null,"","",null,null,null,"",""]
[null,null,null,null,null,null,null,null,null,"","",null,null,null,"",""]
[null,null,null,null,null,null,null,null,null,"","",null,null,null,"",""]
[null,null,null,null,null,null,null,null,null,"","",null,null,null,"",""]
[null,null,null,null,null,null,null,null,null,"","",null,null,null,"",""]
[null,null,null,null,null,null,null,null,null,"","",null,null,null,"",""]
[null,null,null,null,null,null,null,null,null,"","",null,null,null,"",""]
[null,null,null,null,null,null,null,null,null,"","",null,null,null,"",""]
[null,null,null,null,null,null,null,null,null,"","",null,null,null,"",""]
[null,null,null,null,null,null,null,null,null,"","",null,null,null,"",""]
[null,null,null,null,null,null,null,null,null,"","",null,null,null,"",""]
[null,null,null,null,null,null,null,null,null,"","",null,null,null,"",""]
[null,null,null,null,null,null,null,null,null,"","",null,null,null,"",""]
[null,null,null,null,null,null,null,null,null,"","",null,null,null,"",""]
[null,null,null,null,null,null,null,null,null,"","",null,null,null,"",""]
[null,null,null,null,null,null,null,null,null,"","",null,null,null,"",""]
[null,null,null,null,null,null,null,null,null,"","",null,null,null,"",""]
[null,null,null,null,null,null,null,null,null,"","",null,null,null,"",""]
[null,null,null,null,null,null,null,null,null,"","",null,null,null,"",""]
[null,null,null,null,null,null,null,null,null,"","",null,null,null,"",""]
[null,null,null,null,null,null,null,null,null,"","",null,null,null,"",""]
[null,null,null,null,null,null,null,null,null,"","",null,null,null,"",""]
[null,null,null,null,null,null,null,null,null,"","",null,null,null,"",""]
[null,null,null,null,null,null,null,null,null,"","",null,null,null,"",""]
[null,null,null,null,null,null,null,null,null,"","",null,null,null,"",""]
[null,null,null,null,null,null,null,null,null,"","",null,null,null,"",""]
[null,null,null,null,null,null,null,null,null,"","",null,null,null,{"$f":"IF(K389=\"\",\"\",VLOOKUP(K389,جلوس,4))","v":""},""]
[null,null,null,null,null,null,null,null,null,"","",null,null,null,"",{"$f":"IF(O390=O391,\"\",\"نهاية اللجنة\")","v":""}]
[null,null,null,null,null,null,null,null,null,{"$f":"IF(J390=\"\",\"\",IF(J390+1>$K$2,\"\",J390+1))","v":""},{"$f":"IF(K390=\"\",\"\",IF(K390+1>$K$3,\"\",K390+1))","v":""},null,null,null,"",""]
[null,null,null,null,null,null,null,null,null,"","",null,null,null,"",""]
[null,null,null,null,null,null,null,null,null,"","",null,null,null,"",""]
[null,null,null,null,null,null,null,null,null,"","",null,null,null,"",""]
[null,null,null,null,null,null,null,null,null,"","",null,null,null,"",""]
[null,null,null,null,null,null,null,null,null,"","",null,null,null,"",""]
[null,null,null,null,null,null,null,null,null,"","",null,null,null,"",""]
[null,null,null,null,null,null,null,null,null,"","",null,null,null,"",""]
[null,null,null,null,null,null,null,null,null,"","",null,null,null,"",""]
[null,null,null,null,null,null,null,null,null,"","",null,null,null,"",""]
[null,null,null,null,null,null,null,null,null,"","",null,null,null,"",""]
[null,null,null,null,null,null,null,null,null,"","",null,null,null,"",""]
[null,null,null,null,null,null,null,null,null,"","",null,null,null,"",""]
[null,null,null,null,null,null,null,null,null,"","",null,null,null,"",""]
[null,null,null,null,null,null,null,null,null,"","",null,null,null,"",""]
[null,null,null,null,null,null,null,null,null,"","",null,null,null,"",""]
[null,null,null,null,null,null,null,null,null,"","",null,null,null,"",""]
[null,null,null,null,null,null,null,null,null,"","",null,null,null,"",""]
[null,null,null,null,null,null,null,null,null,"","",null,null,null,"",""]
[null,null,null,null,null,null,null,null,null,"","",null,null,null,"",""]
[null,null,null,null,null,null,null,null,null,"","",null,null,null,"",""]
[null,null,null,null,null,null,null,null,null,"","",null,null,null,"",""]
[null,null,null,null,null,null,null,null,null,"","",null,null,null,"",""]
[null,null,null,null,null,null,null,null,null,"","",null,null,null,"",""]
[null,null,null,null,null,null,null,null,null,"","",null,null,null,"",""]
[null,null,null,null,null,null,null,null,null,"","",null,null,null,"",""]
[null,null,null,null,null,null,null,null,null,"","",null,null,null,"",""]
[null,null,null,null,null,null,null,null,null,"","",null,null,null,"",""]
[null,null,null,null,null,null,null,null,null,"","",null,null,null,"",""]
[null,null,null,null,null,null,null,null,null,"","",null,null,null,"",""]
[null,null,null,null,null,null,null,null,null,"","",null,null,null,"",""]
[null,null,null,null,null,null,null,null,null,"","",null,null,null,"",""]
[null,null,null,null,null,null,null,null,null,"","",null,null,null,"",""]
[null,null,null,null,null,null,null,null,null,"","",null,null,null,"",""]
[null,null,null,null,null,null,null,null,null,"","",null,null,null,"",""]
[null,null,null,null,null,null,null,null,null,"","",null,null,null,"",""]
[null,null,null,null,null,null,null,null,null,"","",null,null,null,"",""]
[null,null,null,null,null,null,null,null,null,"","",null,null,null,"",""]
[null,null,null,null,null,null,null,null,null,"","",null,null,null,"",""]
[null,null,null,null,null,null,null,null,null,"","",null,null,null,"",""]
[null,null,null,null,null,null,null,null,null,"","",null,null,null,"",""]
[null,null,null,null,null,null,null,null,null,"","",null,null,null,"",""]
[null,null,null,null,null,null,null,null,null,"","",null,null,null,"",""]
[null,null,null,null,null,null,null,null,null,"","",null,null,null,"",""]
[null,null,null,null,null,null,null,null,null,"","",null,null,null,"",""]
[null,null,null,null,null,null,null,null,null,"","",null,null,null,"",""]
[null,null,null,null,null,null,null,null,null,"","",null,null,null,"",""]
[null,null,null,null,null,null,null,null,null,"","",null,null,null,"",""]
[null,null,null,null,null,null,null,null,null,"","",null,null,null,"",""]
[null,null,null,null,null,null,null,null,null,"","",null,null,null,"",""]
[null,null,null,null,null,null,null,null,null,"","",null,null,null,"",""]
[null,null,null,null,null,null,null,null,null,"","",null,null,null,"",""]
[null,null,null,null,null,null,null,null,null,"","",null,null,null,"",""]
[null,null,null,null,null,null,null,null,null,"","",null,null,null,"",""]
[null,null,null,null,null,null,null,null,null,"","",null,null,null,"",""]
[null,null,null,null,null,null,null,null,null,"","",null,null,null,"",""]
[null,null,null,null,null,null,null,null,null,"","",null,null,null,"",""]
[null,null,null,null,null,null,null,null,null,"","",null,null,null,"",""]
[null,null,null,null,null,null,null,null,null,"","",null,null,null,"",""]
[null,null,null,null,null,null,null,null,null,"","",null,null,null,"",""]
[null,null,null,null,null,null,null,null,null,"","",null,null,null,"",""]
[null,null,null,null,null,null,null,null,null,"","",null,null,null,"",""]
[null,null,null,null,null,null,null,null,null,"","",null,null,null,{"$f":"IF(K453=\"\",\"\",VLOOKUP(K453,جلوس,4))","v":""},""]
[null,null,null,null,null,null,null,null,null,"","",null,null,null,"",{"$f":"IF(O454=O455,\"\",\"نهاية اللجنة\")","v":""}]
[null,null,null,null,null,null,null,null,null,{"$f":"IF(J454=\"\",\"\",IF(J454+1>$K$2,\"\",J454+1))","v":""},{"$f":"IF(K454=\"\",\"\",IF(K454+1>$K$3,\"\",K454+1))","v":""},null,null,null,"",""]
[null,null,null,null,null,null,null,null,null,"","",null,null,null,"",""]
[null,null,null,null,null,null,null,null,null,"","",null,null,null,"",""]
[null,null,null,null,null,null,null,null,null,"","",null,null,null,"",""]
[null,null,null,null,null,null,null,null,null,"","",null,null,null,"",""]
[null,null,null,null,null,null,null,null,null,"","",null,null,null,"",""]
[null,null,null,null,null,null,null,null,null,"","",null,null,null,"",""]
[null,null,null,null,null,null,null,null,null,"","",null,null,null,"",""]
[null,null,null,null,null,null,null,null,null,"","",null,null,null,"",""]
[null,null,null,null,null,null,null,null,null,"","",null,null,null,"",""]
[null,null,null,null,null,null,null,null,null,"","",null,null,null,"",""]
[null,null,null,null,null,null,null,null,null,"","",null,null,null,"",""]
[null,null,null,null,null,null,null,null,null,"","",null,null,null,"",""]
[null,null,null,null,null,null,null,null,null,"","",null,null,null,"",""]
[null,null,null,null,null,null,null,null,null,"","",null,null,null,"",""]
[null,null,null,null,null,null,null,null,null,"","",null,null,null,"",""]
[null,null,null,null,null,null,null,null,null,"","",null,null,null,"",""]
[null,null,null,null,null,null,null,null,null,"","",null,null,null,"",""]
[null,null,null,null,null,null,null,null,null,"","",null,null,null,"",""]
[null,null,null,null,null,null,null,null,null,"","",null,null,null,"",""]
[null,null,null,null,null,null,null,null,null,"","",null,null,null,"",""]
[null,null,null,null,null,null,null,null,null,"","",null,null,null,"",""]
[null,null,null,null,null,null,null,null,null,"","",null,null,null,"",""]
[null,null,null,null,null,null,null,null,null,"","",null,null,null,"",""]
[null,null,null,null,null,null,null,null,null,"","",null,null,null,"",""]
[null,null,null,null,null,null,null,null,null,"","",null,null,null,"",""]
[null,null,null,null,null,null,null,null,null,"","",null,null,null,"",""]
[null,null,null,null,null,null,null,null,null,"","",null,null,null,"",""]
[null,null,null,null,null,null,null,null,null,"","",null,null,null,"",""]
[null,null,null,null,null,null,null,null,null,"","",null,null,null,"",""]
[null,null,null,null,null,null,null,null,null,"","",null,null,null,"",""]
[null,null,null,null,null,null,null,null,null,"","",null,null,null,"",""]
[null,null,null,null,null,null,null,null,null,"","",null,null,null,"",""]
[null,null,null,null,null,null,null,null,null,"","",null,null,null,"",""]
[null,null,null,null,null,null,null,null,null,"","",null,null,null,"",""]
[null,null,null,null,null,null,null,null,null,"","",null,null,null,"",""]
[null,null,null,null,null,null,null,null,null,"","",null,null,null,"",""]
[null,null,null,null,null,null,null,null,null,"","",null,null,null,"",""]
[null,null,null,null,null,null,null,null,null,"","",null,null,null,"",""]
[null,null,null,null,null,null,null,null,null,"","",null,null,null,"",""]
[null,null,null,null,null,null,null,null,null,"","",null,null,null,"",""]
[null,null,null,null,null,null,null,null,null,"","",null,null,null,"",""]
[null,null,null,null,null,null,null,null,null,"","",null,null,null,"",""]
[null,null,null,null,null,null,null,null,null,"","",null,null,null,"",""]
[null,null,null,null,null,null,null,null,null,"","",null,null,null,"",""]
[null,null,null,null,null,null,null,null,null,"","",null,null,null,"",""]
[null,null,null,null,null,null,null,null,null,"","",null,null,null,"",""]
[null,null,null,null,null,null,null,null,null,"","",null,null,null,"",""]
[null,null,null,null,null,null,null,null,null,"","",null,null,null,"",""]
[null,null,null,null,null,null,null,null,null,"","",null,null,null,"",""]
[null,null,null,null,null,null,null,null,null,"","",null,null,null,"",""]
[null,null,null,null,null,null,null,null,null,"","",null,null,null,"",""]
[null,null,null,null,null,null,null,null,null,"","",null,null,null,"",""]
[null,null,null,null,null,null,null,null,null,"","",null,null,null,"",""]
[null,null,null,null,null,null,null,null,null,"","",null,null,null,"",""]
[null,null,null,null,null,null,null,null,null,"","",null,null,null,"",""]
[null,null,null,null,null,null,null,null,null,"","",null,null,null,"",""]
[null,null,null,null,null,null,null,null,null,"","",null,null,null,"",""]
[null,null,null,null,null,null,null,null,null,"","",null,null,null,"",""]
[null,null,null,null,null,null,null,null,null,"","",null,null,null,"",""]
[null,null,null,null,null,null,null,null,null,"","",null,null,null,"",""]
[null,null,null,null,null,null,null,null,null,"","",null,null,null,"",""]
[null,null,null,null,null,null,null,null,null,"","",null,null,null,{"$f":"IF(K517=\"\",\"\",VLOOKUP(K517,جلوس,4))","v":""},""]
[null,null,null,null,null,null,null,null,null,"","",null,null,null,"",{"$f":"IF(O518=O519,\"\",\"نهاية اللجنة\")","v":""}]
[null,null,null,null,null,null,null,null,null,{"$f":"IF(J518=\"\",\"\",IF(J518+1>$K$2,\"\",J518+1))","v":""},{"$f":"IF(K518=\"\",\"\",IF(K518+1>$K$3,\"\",K518+1))","v":""},null,null,null,"",""]
[null,null,null,null,null,null,null,null,null,"","",null,null,null,"",""]
[null,null,null,null,null,null,null,null,null,"","",null,null,null,"",""]
[null,null,null,null,null,null,null,null,null,"","",null,null,null,"",""]
[null,null,null,null,null,null,null,null,null,"","",null,null,null,"",""]
[null,null,null,null,null,null,null,null,null,"","",null,null,null,"",""]
[null,null,null,null,null,null,null,null,null,"","",null,null,null,"",""]
[null,null,null,null,null,null,null,null,null,"","",null,null,null,"",""]
[null,null,null,null,null,null,null,null,null,"","",null,null,null,"",""]
[null,null,null,null,null,null,null,null,null,"","",null,null,null,"",""]
[null,null,null,null,null,null,null,null,null,"","",null,null,null,"",""]
[null,null,null,null,null,null,null,null,null,"","",null,null,null,"",""]
[null,null,null,null,null,null,null,null,null,"","",null,null,null,"",""]
[null,null,null,null,null,null,null,null,null,"","",null,null,null,"",""]
[null,null,null,null,null,null,null,null,null,"","",null,null,null,"",""]
[null,null,null,null,null,null,null,null,null,"","",null,null,null,"",""]
[null,null,null,null,null,null,null,null,null,"","",null,null,null,"",""]
[null,null,null,null,null,null,null,null,null,"","",null,null,null,"",""]
[null,null,null,null,null,null,null,null,null,"","",null,null,null,"",""]
[null,null,null,null,null,null,null,null,null,"","",null,null,null,"",""]
[null,null,null,null,null,null,null,null,null,"","",null,null,null,"",""]
[null,null,null,null,null,null,null,null,null,"","",null,null,null,"",""]
[null,null,null,null,null,null,null,null,null,"","",null,null,null,"",""]
[null,null,null,null,null,null,null,null,null,"","",null,null,null,"",""]
[null,null,null,null,null,null,null,null,null,"","",null,null,null,"",""]
[null,null,null,null,null,null,null,null,null,"","",null,null,null,"",""]
[null,null,null,null,null,null,null,null,null,"","",null,null,null,"",""]
[null,null,null,null,null,null,null,null,null,"","",null,null,null,"",""]
[null,null,null,null,null,null,null,null,null,"","",null,null,null,"",""]
[null,null,null,null,null,null,null,null,null,"","",null,null,null,"",""]
[null,null,null,null,null,null,null,null,null,"","",null,null,null,"",""]
[null,null,null,null,null,null,null,null,null,"","",null,null,null,"",""]
[null,null,null,null,null,null,null,null,null,"","",null,null,null,"",""]
[null,null,null,null,null,null,null,null,null,"","",null,null,null,"",""]
[null,null,null,null,null,null,null,null,null,"","",null,null,null,"",""]
[null,null,null,null,null,null,null,null,null,"","",null,null,null,"",""]
[null,null,null,null,null,null,null,null,null,"","",null,null,null,"",""]
[null,null,null,null,null,null,null,null,null,"","",null,null,null,"",""]
[null,null,null,null,null,null,null,null,null,"","",null,null,null,"",""]
[null,null,null,null,null,null,null,null,null,"","",null,null,null,"",""]
[null,null,null,null,null,null,null,null,null,"","",null,null,null,"",""]
[null,null,null,null,null,null,null,null,null,"","",null,null,null,"",""]
[null,null,null,null,null,null,null,null,null,"","",null,null,null,"",""]
[null,null,null,null,null,null,null,null,null,"","",null,null,null,"",""]
[null,null,null,null,null,null,null,null,null,"","",null,null,null,"",""]
[null,null,null,null,null,null,null,null,null,"","",null,null,null,"",""]
[null,null,null,null,null,null,null,null,null,"","",null,null,null,"",""]
[null,null,null,null,null,null,null,null,null,"","",null,null,null,"",""]
[null,null,null,null,null,null,null,null,null,"","",null,null,null,"",""]
[null,null,null,null,null,null,null,null,null,"","",null,null,null,"",""]
[null,null,null,null,null,null,null,null,null,"","",null,null,null,"",""]
[null,null,null,null,null,null,null,null,null,"","",null,null,null,"",""]
[null,null,null,null,null,null,null,null,null,"","",null,null,null,"",""]
[null,null,null,null,null,null,null,null,null,"","",null,null,null,"",""]
[null,null,null,null,null,null,null,null,null,"","",null,null,null,"",""]
[null,null,null,null,null,null,null,null,null,"","",null,null,null,"",""]
[null,null,null,null,null,null,null,null,null,"","",null,null,null,"",""]
[null,null,null,null,null,null,null,null,null,"","",null,null,null,"",""]
[null,null,null,null,null,null,null,null,null,"","",null,null,null,"",""]
[null,null,null,null,null,null,null,null,null,"","",null,null,null,"",""]
[null,null,null,null,null,null,null,null,null,"","",null,null,null,"",""]
[null,null,null,null,null,null,null,null,null,"","",null,null,null,"",""]
[null,null,null,null,null,null,null,null,null,"","",null,null,null,{"$f":"IF(K581=\"\",\"\",VLOOKUP(K581,جلوس,4))","v":""},""]
[null,null,null,null,null,null,null,null,null,"","",null,null,null,"",{"$f":"IF(O582=O583,\"\",\"نهاية اللجنة\")","v":""}]
[null,null,null,null,null,null,null,null,null,{"$f":"IF(J582=\"\",\"\",IF(J582+1>$K$2,\"\",J582+1))","v":""},{"$f":"IF(K582=\"\",\"\",IF(K582+1>$K$3,\"\",K582+1))","v":""},null,null,null,"",""]
[null,null,null,null,null,null,null,null,null,"","",null,null,null,"",""]
[null,null,null,null,null,null,null,null,null,"","",null,null,null,"",""]
[null,null,null,null,null,null,null,null,null,"","",null,null,null,"",""]
[null,null,null,null,null,null,null,null,null,"","",null,null,null,"",""]
[null,null,null,null,null,null,null,null,null,"","",null,null,null,"",""]
[null,null,null,null,null,null,null,null,null,"","",null,null,null,"",""]
[null,null,null,null,null,null,null,null,null,"","",null,null,null,"",""]
[null,null,null,null,null,null,null,null,null,"","",null,null,null,"",""]
[null,null,null,null,null,null,null,null,null,"","",null,null,null,"",""]
[null,null,null,null,null,null,null,null,null,"","",null,null,null,"",""]
[null,null,null,null,null,null,null,null,null,"","",null,null,null,"",""]
[null,null,null,null,null,null,null,null,null,"","",null,null,null,"",""]
[null,null,null,null,null,null,null,null,null,"","",null,null,null,"",""]
[null,null,null,null,null,null,null,null,null,"","",null,null,null,"",""]
[null,null,null,null,null,null,null,null,null,"","",null,null,null,"",""]
[null,null,null,null,null,null,null,null,null,"","",null,null,null,"",""]
[null,null,null,null,null,null,null,null,null,"","",null,null,null,"",""]
[null,null,null,null,null,null,null,null,null,"","",null,null,null,"",""]
[null,null,null,null,null,null,null,null,null,"","",null,null,null,"",""]
[null,null,null,null,null,null,null,null,null,"","",null,null,null,"",""]
[null,null,null,null,null,null,null,null,null,"","",null,null,null,"",""]

{"sheet":"بيانات أساسية4","index":4,"n_rows":604,"n_cols":21,"rows_kept":604,"cut":false,"hidden":false,"merged":[[2,3,3,3],[2,4,2,5],[0,11,2,14],[0,3,1,7]]}
[null,null,null," الصف الرابع الابتدائى",null,null,null,null,null,null,null,"اكتب فى الخلايا ذات اللون الابيض فقط"]
[null,null,null,null,null,null,null,null,null,"العدد",{"$f":"SUM(G5:G44)","v":48}]
[null,null,null,"م","اكتب اول رقم جلوس",null,{"$f":"SUM(G5:G44)","v":48},{"$f":"COUNT(H5:H44)","v":2},null,"أعلى رقم",{"$f":"MAX(E5:F44)","v":58},null,null,null,null,{"$f":"COUNTA(L5:L297)","v":48}]
[null,null,null,null,"من","إلى","عدد اللجنة","اللجنة",null,"م","رقم الجلوس","الاسم","النوع",null,"اللجنة","نهاية اللجنة"]
[null,null,1,{"$f":"IF(E5=\"\",\"\",COUNT($E$5:E5))","v":1},11,{"$f":"IF(G5=\"\",\"\",E5+G5-1)","v":33},23,{"$f":"IF(E5=\"\",\"\",COUNT($E$5:E5))","v":1},null,1,{"$f":"$E$5","v":11},"ابراهيم السيد محمود السيد","ذكر",null,{"$f":"IF(K5=\"\",\"\",VLOOKUP(K5,جلوس,4))","v":1},{"$f":"IF(O5=O6,\"\",\"نهاية اللجنة\")","v":""}]
["مقيد",{"$f":"COUNTA(L5:L297)","v":48},2,{"$f":"IF(E6=\"\",\"\",COUNT($E$5:E6))","v":2},{"$f":"IF(G6=\"\",\"\",F5+1)","v":34},{"$f":"IF(G6=\"\",\"\",E6+G6-1)","v":58},25,{"$f":"IF(E6=\"\",\"\",COUNT($E$5:E6))","v":2},null,{"$f":"IF(J5=\"\",\"\",IF(J5+1>$K$2,\"\",J5+1))","v":2},{"$f":"IF(K5=\"\",\"\",IF(K5+1>$K$3,\"\",K5+1))","v":12},"ابراهيم ايمن عبدالرحمن عبدالجواد","ذكر",null,1,{"$f":"IF(O6=O7,\"\",\"نهاية اللجنة\")","v":""}]
["موزع",{"$f":"SUM(G5:G44)","v":48},3,{"$f":"IF(E7=\"\",\"\",COUNT($E$5:E7))","v":""},{"$f":"IF(G7=\"\",\"\",F6+1)","v":""},"",null,{"$f":"IF(E7=\"\",\"\",COUNT($E$5:E7))","v":""},null,{"$f":"IF(J6=\"\",\"\",IF(J6+1>$K$2,\"\",J6+1))","v":3},{"$f":"IF(K6=\"\",\"\",IF(K6+1>$K$3,\"\",K6+1))","v":13},"ابراهيم جمال عبدالغفار مصباح","ذكر",null,1,""]
["متبقى",{"$f":"B6-B7","v":0},4,{"$f":"IF(E8=\"\",\"\",COUNT($E$5:E8))","v":""},"","",null,{"$f":"IF(E8=\"\",\"\",COUNT($E$5:E8))","v":""},null,4,14,"ابراهيم محمد محمد عبدالله","ذكر",null,1,""]
[null,null,5,{"$f":"IF(E9=\"\",\"\",COUNT($E$5:E9))","v":""},"","",null,{"$f":"IF(E9=\"\",\"\",COUNT($E$5:E9))","v":""},null,5,15,"ابراهيم محمد محمود ابراهيم","ذكر",null,1,"",null,null,null,null," "]
[null,null,6,{"$f":"IF(E10=\"\",\"\",COUNT($E$5:E10))","v":""},"","",null,{"$f":"IF(E10=\"\",\"\",COUNT($E$5:E10))","v":""},null,6,16,"ابراهيم محمود عيد ابراهيم","ذكر",null,1,""]
[null,null,7,{"$f":"IF(E11=\"\",\"\",COUNT($E$5:E11))","v":""},"","",null,{"$f":"IF(E11=\"\",\"\",COUNT($E$5:E11))","v":""},null,7,17,"احمد ابراهيم عبدالمنعم علي","ذكر",null,1,""]
[null,null,8,{"$f":"IF(E12=\"\",\"\",COUNT($E$5:E12))","v":""},"","",null,{"$f":"IF(E12=\"\",\"\",COUNT($E$5:E12))","v":""},null,8,18,"احمد اسامه ادريس مرسي","ذكر",null,1,""]
[null,null,9,{"$f":"IF(E13=\"\",\"\",COUNT($E$5:E13))","v":""},"","",null,{"$f":"IF(E13=\"\",\"\",COUNT($E$5:E13))","v":""},null,9,19,"احمد اشرف السيد احمد","ذكر",null,1,""]
[null,null,10,{"$f":"IF(E14=\"\",\"\",COUNT($E$5:E14))","v":""},"","",null,{"$f":"IF(E14=\"\",\"\",COUNT($E$5:E14))","v":""},null,10,20,"احمد السيد عبدالحميد سليمان","ذكر",null,1,""]
[null,null,11,{"$f":"IF(E15=\"\",\"\",COUNT($E$5:E15))","v":""},"","",null,{"$f":"IF(E15=\"\",\"\",COUNT($E$5:E15))","v":""},null,{"$f":"IF(J14=\"\",\"\",IF(J14+1>$K$2,\"\",J14+1))","v":11},21,"احمد السيد عبدالهادي خطاب","ذكر",null,1,""]
[null,null,12,{"$f":"IF(E16=\"\",\"\",COUNT($E$5:E16))","v":""},"","",null,{"$f":"IF(E16=\"\",\"\",COUNT($E$5:E16))","v":""},null,12,22,"احمد انور محمد محمد","ذكر",null,1,""]
[null,null,13,{"$f":"IF(E17=\"\",\"\",COUNT($E$5:E17))","v":""},"","",null,{"$f":"IF(E17=\"\",\"\",COUNT($E$5:E17))","v":""},null,13,23,"احمد ايهاب عبدالله احمد","ذكر",null,1,""]
[null,null,14,{"$f":"IF(E18=\"\",\"\",COUNT($E$5:E18))","v":""},"","",null,{"$f":"IF(E18=\"\",\"\",COUNT($E$5:E18))","v":""},null,14,24,"احمد بسيوني احمد محمد","ذكر",null,1,""]
[null,null,15,{"$f":"IF(E19=\"\",\"\",COUNT($E$5:E19))","v":""},"","",null,{"$f":"IF(E19=\"\",\"\",COUNT($E$5:E19))","v":""},null,15,25,"احمد حسن علي عبدالجواد","ذكر",null,1,""]
[null,null,16,{"$f":"IF(E20=\"\",\"\",COUNT($E$5:E20))","v":""},"","",null,{"$f":"IF(E20=\"\",\"\",COUNT($E$5:E20))","v":""},null,16,26,"احمد حسين عبدالستار عويس","ذكر",null,1,""]
[null,"امتحان الفصل الدراسى الأول",17,{"$f":"IF(E21=\"\",\"\",COUNT($E$5:E21))","v":""},"","",null,{"$f":"IF(E21=\"\",\"\",COUNT($E$5:E21))","v":""},null,17,27,"احمد حماده احمد محمد","ذكر",null,1,""]
[null,"امتحان الفصل الدراسى الثانى",18,{"$f":"IF(E22=\"\",\"\",COUNT($E$5:E22))","v":""},"","",null,{"$f":"IF(E22=\"\",\"\",COUNT($E$5:E22))","v":""},null,18,28,"احمد حماده احمد محمد حسن","ذكر",null,1,""]
[null,null,19,{"$f":"IF(E23=\"\",\"\",COUNT($E$5:E23))","v":""},"","",null,{"$f":"IF(E23=\"\",\"\",COUNT($E$5:E23))","v":""},null,19,29,"احمد خالد زكريا عوض","ذكر",null,1,""]
[null,null,20,{"$f":"IF(E24=\"\",\"\",COUNT($E$5:E24))","v":""},"","",null,{"$f":"IF(E24=\"\",\"\",COUNT($E$5:E24))","v":""},null,20,30,"احمد رمضان محمود عبدالواحد","ذكر",null,1,""]
[null,null,21,{"$f":"IF(E25=\"\",\"\",COUNT($E$5:E25))","v":""},"","",null,{"$f":"IF(E25=\"\",\"\",COUNT($E$5:E25))","v":""},null,21,31,"احمد صبحي قنديل محمد","ذكر",null,1,""]
[null,null,22,{"$f":"IF(E26=\"\",\"\",COUNT($E$5:E26))","v":""},"","",null,{"$f":"IF(E26=\"\",\"\",COUNT($E$5:E26))","v":""},null,22,32,"احمد صلاح على عبده","ذكر",null,1,""]
[null,null,23,{"$f":"IF(E27=\"\",\"\",COUNT($E$5:E27))","v":""},"","",null,{"$f":"IF(E27=\"\",\"\",COUNT($E$5:E27))","v":""},null,23,33,"احمد عبد الله حسين عبيد حجازى","ذكر",null,1,"نهاية اللجنة"]
[null,null,24,{"$f":"IF(E28=\"\",\"\",COUNT($E$5:E28))","v":""},"","",null,{"$f":"IF(E28=\"\",\"\",COUNT($E$5:E28))","v":""},null,24,34,"احمد عبدالصمد زكي ابراهيم","ذكر",null,2,""]
[null,null,25,{"$f":"IF(E29=\"\",\"\",COUNT($E$5:E29))","v":""},"","",null,{"$f":"IF(E29=\"\",\"\",COUNT($E$5:E29))","v":""},null,25,35,"احمد عبدالعال عبدالمجيد ندا","ذكر",null,2,""]
[null,null,26,{"$f":"IF(E30=\"\",\"\",COUNT($E$5:E30))","v":""},"","",null,{"$f":"IF(E30=\"\",\"\",COUNT($E$5:E30))","v":""},null,26,36,"احمد عبدالكريم السيد عبدالنبي","ذكر",null,2,""]
[null,null,27,{"$f":"IF(E31=\"\",\"\",COUNT($E$5:E31))","v":""},"","",null,{"$f":"IF(E31=\"\",\"\",COUNT($E$5:E31))","v":""},null,27,37,"احمد عصام احمد عبد الله","ذكر",null,2,""]
[null,null,28,{"$f":"IF(E32=\"\",\"\",COUNT($E$5:E32))","v":""},"","",null,{"$f":"IF(E32=\"\",\"\",COUNT($E$5:E32))","v":""},null,28,38,"احمد عماد عبدالفتاح ابراهيم","ذكر",null,2,""]
[null,null,29,{"$f":"IF(E33=\"\",\"\",COUNT($E$5:E33))","v":""},"","",null,{"$f":"IF(E33=\"\",\"\",COUNT($E$5:E33))","v":""},null,29,39,"احمد فؤاد احمد محمد","ذكر",null,2,""]
[null,null,30,{"$f":"IF(E34=\"\",\"\",COUNT($E$5:E34))","v":""},"","",null,{"$f":"IF(E34=\"\",\"\",COUNT($E$5:E34))","v":""},null,30,40,"احمد محمد ابراهيم حسين","ذكر",null,2,""]
[null,null,31,{"$f":"IF(E35=\"\",\"\",COUNT($E$5:E35))","v":""},"","",null,{"$f":"IF(E35=\"\",\"\",COUNT($E$5:E35))","v":""},null,31,41,"عمار محمد محمود عبدالواحد",null,null,2,""]
[null,null,32,{"$f":"IF(E36=\"\",\"\",COUNT($E$5:E36))","v":""},"","",null,{"$f":"IF(E36=\"\",\"\",COUNT($E$5:E36))","v":""},null,32,42,"عمر اشرف السيد بدير",null,null,2,""]
[null,null,33,{"$f":"IF(E37=\"\",\"\",COUNT($E$5:E37))","v":""},"","",null,{"$f":"IF(E37=\"\",\"\",COUNT($E$5:E37))","v":""},null,33,43,"عمر السيد محمد علي",null,null,{"$f":"IF(K37=\"\",\"\",VLOOKUP(K37,جلوس,4))","v":2},""]
[null,null,34,{"$f":"IF(E38=\"\",\"\",COUNT($E$5:E38))","v":""},"","",null,{"$f":"IF(E38=\"\",\"\",COUNT($E$5:E38))","v":""},null,34,44,"عمر رفيق السيد ابراهيم",null,null,2,""]
[null,null,35,{"$f":"IF(E39=\"\",\"\",COUNT($E$5:E39))","v":""},"","",null,{"$f":"IF(E39=\"\",\"\",COUNT($E$5:E39))","v":""},null,35,45,"عمر عبدالفتاح جمعه مصطفى",null,null,2,""]
[null,null,36,{"$f":"IF(E40=\"\",\"\",COUNT($E$5:E40))","v":""},"","",null,{"$f":"IF(E40=\"\",\"\",COUNT($E$5:E40))","v":""},null,36,46,"عمر محمد فتح الله دومه",null,null,2,""]
[null,null,37,{"$f":"IF(E41=\"\",\"\",COUNT($E$5:E41))","v":""},"","",null,{"$f":"IF(E41=\"\",\"\",COUNT($E$5:E41))","v":""},null,37,47,"عمر محمد فزاع عبد المجيد ",null,null,2,""]
[null,null,38,{"$f":"IF(E42=\"\",\"\",COUNT($E$5:E42))","v":""},"","",null,{"$f":"IF(E42=\"\",\"\",COUNT($E$5:E42))","v":""},null,38,48,"فارس رافت كمال محمود",null,null,2,""]
[null,null,39,{"$f":"IF(E43=\"\",\"\",COUNT($E$5:E43))","v":""},"","",null,{"$f":"IF(E43=\"\",\"\",COUNT($E$5:E43))","v":""},null,39,49,"فؤاد محمد علاء الدين عبدالمنعم",null,null,2,""]
[null,null,40,{"$f":"IF(E44=\"\",\"\",COUNT($E$5:E44))","v":""},"","",null,{"$f":"IF(E44=\"\",\"\",COUNT($E$5:E44))","v":""},null,40,50,"كريم رامى ابراهيم عطيه",null,null,2,""]
[null,null,null,null,null,null,null,null,null,41,51,"كريم محمد رفاعى محمد",null,null,2,""]
[null,null,null,null,null,null,null,null,null,42,52,"مازن محمد السعيد محمد الشامى",null,null,2,""]
[null,null,null,null,null,null,null,null,null,43,53,"محمد ابراهيم سالم عبدالمجيد",null,null,2,""]
[null,null,null,null,null,null,null,null,null,44,54,"محمد ابراهيم محمد سليمان",null,null,2,""]
[null,null,null,null,null,null,null,null,null,45,55,"محمد احمد السيد عبدالوهاب",null,null,2,""]
[null,null,null,null,null,null,null,null,null,46,56,"محمد احمد رشدى عبدالعزيز",null,null,2,""]
[null,null,null,null,null,null,null,null,null,47,57,"محمد احمد محمد عبدالعزيز",null,null,2,""]
[null,null,null,null,null,null,null,null,null,48,58,"محمد انور عبدالعزيز محمد",null,null,2,"نهاية اللجنة"]
[null,null,null,null,null,null,null,null,null,"","",null,null,null,"",""]
[null,null,null,null,null,null,null,null,null,"","",null,null,null,"",""]
[null,null,null,null,null,null,null,null,null,"","",null,null,null,"",""]
[null,null,null,null,null,null,null,null,null,"","",null,null,null,"",""]
[null,null,null,null,null,null,null,null,null,"","",null,null,null,"",""]
[null,null,null,null,null,null,null,null,null,"","",null,null,null,"",""]
[null,null,null,null,null,null,null,null,null,"","",null,null,null,"",""]
[null,null,null,null,null,null,null,null,null,"","",null,null,null,"",""]
[null,null,null,null,null,null,null,null,null,"","",null,null,null,"",""]
[null,null,null,null,null,null,null,null,null,"","",null,null,null,"",""]
[null,null,null,null,null,null,null,null,null,"","",null,null,null,"",""]
[null,null,null,null,null,null,null,null,null,"","",null,null,null,"",""]
[null,null,null,null,null,null,null,null,null,"","",null,null,null,"",""]
[null,null,null,null,null,null,null,null,null,"","",null,null,null,"",""]
[null,null,null,null,null,null,null,null,null,"","",null,null,null,"",""]
[null,null,null,null,null,null,null,null,null,"","",null,null,null,"",""]
[null,null,null,null,null,null,null,null,null,"","",null,null,null,{"$f":"IF(K69=\"\",\"\",VLOOKUP(K69,جلوس,4))","v":""},""]
[null,null,null,null,null,null,null,null,null,"","",null,null,null,"",{"$f":"IF(O70=O71,\"\",\"نهاية اللجنة\")","v":""}]
[null,null,null,null,null,null,null,null,null,{"$f":"IF(J70=\"\",\"\",IF(J70+1>$K$2,\"\",J70+1))","v":""},{"$f":"IF(K70=\"\",\"\",IF(K70+1>$K$3,\"\",K70+1))","v":""},null,null,null,"",""]
[null,null,null,null,null,null,null,null,null,"","",null,null,null,"",""]
[null,null,null,null,null,null,null,null,null,"","",null,null,null,"",""]
[null,null,null,null,null,null,null,null,null,"","",null,null,null,"",""]
[null,null,null,null,null,null,null,null,null,"","",null,null,null,"",""]
[null,null,null,null,null,null,null,null,null,"","",null,null,null,"",""]
[null,null,null,null,null,null,null,null,null,"","",null,null,null,"",""]
[null,null,null,null,null,null,null,null,null,"","",null,null,null,"",""]
[null,null,null,null,null,null,null,null,null,"","",null,null,null,"",""]
[null,null,null,null,null,null,null,null,null,"","",null,null,null,"",""]
[null,null,null,null,null,null,null,null,null,"","",null,null,null,"",""]
[null,null,null,null,null,null,null,null,null,"","",null,null,null,"",""]
[null,null,null,null,null,null,null,null,null,"","",null,null,null,"",""]
[null,null,null,null,null,null,null,null,null,"","",null,null,null,"",""]
[null,null,null,null,null,null,null,null,null,"","",null,null,null,"",""]
[null,null,null,null,null,null,null,null,null,"","",null,null,null,"",""]
[null,null,null,null,null,null,null,null,null,"","",null,null,null,"",""]
[null,null,null,null,null,null,null,null,null,"","",null,null,null,"",""]
[null,null,null,null,null,null,null,null,null,"","",null,null,null,"",""]
[null,null,null,null,null,null,null,null,null,"","",null,null,null,"",""]
[null,null,null,null,null,null,null,null,null,"","",null,null,null,"",""]
[null,null,null,null,null,null,null,null,null,"","",null,null,null,"",""]
[null,null,null,null,null,null,null,null,null,"","",null,null,null,"",""]
[null,null,null,null,null,null,null,null,null,"","",null,null,null,"",""]
[null,null,null,null,null,null,null,null,null,"","",null,null,null,"",""]
[null,null,null,null,null,null,null,null,null,"","",null,null,null,"",""]
[null,null,null,null,null,null,null,null,null,"","",null,null,null,"",""]
[null,null,null,null,null,null,null,null,null,"","",null,null,null,"",""]
[null,null,null,null,null,null,null,null,null,"","",null,null,null,"",""]
[null,null,null,null,null,null,null,null,null,"","",null,null,null,"",""]
[null,null,null,null,null,null,null,null,null,"","",null,null,null,"",""]
[null,null,null,null,null,null,null,null,null,"","",null,null,null,"",""]
[null,null,null,null,null,null,null,null,null,"","",null,null,null,"",""]
[null,null,null,null,null,null,null,null,null,"","",null,null,null,"",""]
[null,null,null,null,null,null,null,null,null,"","",null,null,null,"",""]
[null,null,null,null,null,null,null,null,null,"","",null,null,null,"",""]
[null,null,null,null,null,null,null,null,null,"","",null,null,null,"",""]
[null,null,null,null,null,null,null,null,null,"","",null,null,null,"",""]
[null,null,null,null,null,null,null,null,null,"","",null,null,null,"",""]
[null,null,null,null,null,null,null,null,null,"","",null,null,null,"",""]
[null,null,null,null,null,null,null,null,null,"","",null,null,null,"",""]
[null,null,null,null,null,null,null,null,null,"","",null,null,null,"",""]
[null,null,null,null,null,null,null,null,null,"","",null,null,null,"",""]
[null,null,null,null,null,null,null,null,null,"","",null,null,null,"",""]
[null,null,null,null,null,null,null,null,null,"","",null,null,null,"",""]
[null,null,null,null,null,null,null,null,null,"","",null,null,null,"",""]
[null,null,null,null,null,null,null,null,null,"","",null,null,null,"",""]
[null,null,null,null,null,null,null,null,null,"","",null,null,null,"",""]
[null,null,null,null,null,null,null,null,null,"","",null,null,null,"",""]
[null,null,null,null,null,null,null,null,null,"","",null,null,null,"",""]
[null,null,null,null,null,null,null,null,null,"","",null,null,null,"",""]
[null,null,null,null,null,null,null,null,null,"","",null,null,null,"",""]
[null,null,null,null,null,null,null,null,null,"","",null,null,null,"",""]
[null,null,null,null,null,null,null,null,null,"","",null,null,null,"",""]
[null,null,null,null,null,null,null,null,null,"","",null,null,null,"",""]
[null,null,null,null,null,null,null,null,null,"","",null,null,null,"",""]
[null,null,null,null,null,null,null,null,null,"","",null,null,null,"",""]
[null,null,null,null,null,null,null,null,null,"","",null,null,null,"",""]
[null,null,null,null,null,null,null,null,null,"","",null,null,null,"",""]
[null,null,null,null,null,null,null,null,null,"","",null,null,null,"",""]
[null,null,null,null,null,null,null,null,null,"","",null,null,null,"",""]
[null,null,null,null,null,null,null,null,null,"","",null,null,null,"",""]
[null,null,null,null,null,null,null,null,null,"","",null,null,null,{"$f":"IF(K133=\"\",\"\",VLOOKUP(K133,جلوس,4))","v":""},""]
[null,null,null,null,null,null,null,null,null,"","",null,null,null,"",{"$f":"IF(O134=O135,\"\",\"نهاية اللجنة\")","v":""}]
[null,null,null,null,null,null,null,null,null,{"$f":"IF(J134=\"\",\"\",IF(J134+1>$K$2,\"\",J134+1))","v":""},{"$f":"IF(K134=\"\",\"\",IF(K134+1>$K$3,\"\",K134+1))","v":""},null,null,null,"",""]
[null,null,null,null,null,null,null,null,null,"","",null,null,null,"",""]
[null,null,null,null,null,null,null,null,null,"","",null,null,null,"",""]
[null,null,null,null,null,null,null,null,null,"","",null,null,null,"",""]
[null,null,null,null,null,null,null,null,null,"","",null,null,null,"",""]
[null,null,null,null,null,null,null,null,null,"","",null,null,null,"",""]
[null,null,null,null,null,null,null,null,null,"","",null,null,null,"",""]
[null,null,null,null,null,null,null,null,null,"","",null,null,null,"",""]
[null,null,null,null,null,null,null,null,null,"","",null,null,null,"",""]
[null,null,null,null,null,null,null,null,null,"","",null,null,null,"",""]
[null,null,null,null,null,null,null,null,null,"","",null,null,null,"",""]
[null,null,null,null,null,null,null,null,null,"","",null,null,null,"",""]
[null,null,null,null,null,null,null,null,null,"","",null,null,null,"",""]
[null,null,null,null,null,null,null,null,null,"","",null,null,null,"",""]
[null,null,null,null,null,null,null,null,null,"","",null,null,null,"",""]
[null,null,null,null,null,null,null,null,null,"","",null,null,null,"",""]
[null,null,null,null,null,null,null,null,null,"","",null,null,null,"",""]
[null,null,null,null,null,null,null,null,null,"","",null,null,null,"",""]
[null,null,null,null,null,null,null,null,null,"","",null,null,null,"",""]
[null,null,null,null,null,null,null,null,null,"","",null,null,null,"",""]
[null,null,null,null,null,null,null,null,null,"","",null,null,null,"",""]
[null,null,null,null,null,null,null,null,null,"","",null,null,null,"",""]
[null,null,null,null,null,null,null,null,null,"","",null,null,null,"",""]
[null,null,null,null,null,null,null,null,null,"","",null,null,null,"",""]
[null,null,null,null,null,null,null,null,null,"","",null,null,null,"",""]
[null,null,null,null,null,null,null,null,null,"","",null,null,null,"",""]
[null,null,null,null,null,null,null,null,null,"","",null,null,null,"",""]
[null,null,null,null,null,null,null,null,null,"","",null,null,null,"",""]
[null,null,null,null,null,null,null,null,null,"","",null,null,null,"",""]
[null,null,null,null,null,null,null,null,null,"","",null,null,null,"",""]
[null,null,null,null,null,null,null,null,null,"","",null,null,null,"",""]
[null,null,null,null,null,null,null,null,null,"","",null,null,null,"",""]
[null,null,null,null,null,null,null,null,null,"","",null,null,null,"",""]
[null,null,null,null,null,null,null,null,null,"","",null,null,null,"",""]
[null,null,null,null,null,null,null,null,null,"","",null,null,null,"",""]
[null,null,null,null,null,null,null,null,null,"","",null,null,null,"",""]
[null,null,null,null,null,null,null,null,null,"","",null,null,null,"",""]
[null,null,null,null,null,null,null,null,null,"","",null,null,null,"",""]
[null,null,null,null,null,null,null,null,null,"","",null,null,null,"",""]
[null,null,null,null,null,null,null,null,null,"","",null,null,null,"",""]
[null,null,null,null,null,null,null,null,null,"","",null,null,null,"",""]
[null,null,null,null,null,null,null,null,null,"","",null,null,null,"",""]
[null,null,null,null,null,null,null,null,null,"","",null,null,null,"",""]
[null,null,null,null,null,null,null,null,null,"","",null,null,null,"",""]
[null,null,null,null,null,null,null,null,null,"","",null,null,null,"",""]
[null,null,null,null,null,null,null,null,null,"","",null,null,null,"",""]
[null,null,null,null,null,null,null,null,null,"","",null,null,null,"",""]
[null,null,null,null,null,null,null,null,null,"","",null,null,null,"",""]
[null,null,null,null,null,null,null,null,null,"","",null,null,null,"",""]
[null,null,null,null,null,null,null,null,null,"","",null,null,null,"",""]
[null,null,null,null,null,null,null,null,null,"","",null,null,null,"",""]
[null,null,null,null,null,null,null,null,null,"","",null,null,null,"",""]
[null,null,null,null,null,null,null,null,null,"","",null,null,null,"",""]
[null,null,null,null,null,null,null,null,null,"","",null,null,null,"",""]
[null,null,null,null,null,null,null,null,null,"","",null,null,null,"",""]
[null,null,null,null,null,null,null,null,null,"","",null,null,null,"",""]
[null,null,null,null,null,null,null,null,null,"","",null,null,null,"",""]
[null,null,null,null,null,null,null,null,null,"","",null,null,null,"",""]
[null,null,null,null,null,null,null,null,null,"","",null,null,null,"",""]
[null,null,null,null,null,null,null,null,null,"","",null,null,null,"",""]
[null,null,null,null,null,null,null,null,null,"","",null,null,null,"",""]
[null,null,null,null,null,null,null,null,null,"","",null,null,null,"",""]
[null,null,null,null,null,null,null,null,null,"","",null,null,null,{"$f":"IF(K197=\"\",\"\",VLOOKUP(K197,جلوس,4))","v":""},""]
[null,null,null,null,null,null,null,null,null,"","",null,null,null,"",{"$f":"IF(O198=O199,\"\",\"نهاية اللجنة\")","v":""}]
[null,null,null,null,null,null,null,null,null,{"$f":"IF(J198=\"\",\"\",IF(J198+1>$K$2,\"\",J198+1))","v":""},{"$f":"IF(K198=\"\",\"\",IF(K198+1>$K$3,\"\",K198+1))","v":""},null,null,null,"",""]
[null,null,null,null,null,null,null,null,null,"","",null,null,null,"",""]
[null,null,null,null,null,null,null,null,null,"","",null,null,null,"",""]
[null,null,null,null,null,null,null,null,null,"","",null,null,null,"",""]
[null,null,null,null,null,null,null,null,null,"","",null,null,null,"",""]
[null,null,null,null,null,null,null,null,null,"","",null,null,null,"",""]
[null,null,null,null,null,null,null,null,null,"","",null,null,null,"",""]
[null,null,null,null,null,null,null,null,null,"","",null,null,null,"",""]
[null,null,null,null,null,null,null,null,null,"","",null,null,null,"",""]
[null,null,null,null,null,null,null,null,null,"","",null,null,null,"",""]
[null,null,null,null,null,null,null,null,null,"","",null,null,null,"",""]
[null,null,null,null,null,null,null,null,null,"","",null,null,null,"",""]
[null,null,null,null,null,null,null,null,null,"","",null,null,null,"",""]
[null,null,null,null,null,null,null,null,null,"","",null,null,null,"",""]
[null,null,null,null,null,null,null,null,null,"","",null,null,null,"",""]
[null,null,null,null,null,null,null,null,null,"","",null,null,null,"",""]
[null,null,null,null,null,null,null,null,null,"","",null,null,null,"",""]
[null,null,null,null,null,null,null,null,null,"","",null,null,null,"",""]
[null,null,null,null,null,null,null,null,null,"","",null,null,null,"",""]
[null,null,null,null,null,null,null,null,null,"","",null,null,null,"",""]
[null,null,null,null,null,null,null,null,null,"","",null,null,null,"",""]
[null,null,null,null,null,null,null,null,null,"","",null,null,null,"",""]
[null,null,null,null,null,null,null,null,null,"","",null,null,null,"",""]
[null,null,null,null,null,null,null,null,null,"","",null,null,null,"",""]
[null,null,null,null,null,null,null,null,null,"","",null,null,null,"",""]
[null,null,null,null,null,null,null,null,null,"","",null,null,null,"",""]
[null,null,null,null,null,null,null,null,null,"","",null,null,null,"",""]
[null,null,null,null,null,null,null,null,null,"","",null,null,null,"",""]
[null,null,null,null,null,null,null,null,null,"","",null,null,null,"",""]
[null,null,null,null,null,null,null,null,null,"","",null,null,null,"",""]
[null,null,null,null,null,null,null,null,null,"","",null,null,null,"",""]
[null,null,null,null,null,null,null,null,null,"","",null,null,null,"",""]
[null,null,null,null,null,null,null,null,null,"","",null,null,null,"",""]
[null,null,null,null,null,null,null,null,null,"","",null,null,null,"",""]
[null,null,null,null,null,null,null,null,null,"","",null,null,null,"",""]
[null,null,null,null,null,null,null,null,null,"","",null,null,null,"",""]
[null,null,null,null,null,null,null,null,null,"","",null,null,null,"",""]
[null,null,null,null,null,null,null,null,null,"","",null,null,null,"",""]
[null,null,null,null,null,null,null,null,null,"","",null,null,null,"",""]
[null,null,null,null,null,null,null,null,null,"","",null,null,null,"",""]
[null,null,null,null,null,null,null,null,null,"","",null,null,null,"",""]
[null,null,null,null,null,null,null,null,null,"","",null,null,null,"",""]
[null,null,null,null,null,null,null,null,null,"","",null,null,null,"",""]
[null,null,null,null,null,null,null,null,null,"","",null,null,null,"",""]
[null,null,null,null,null,null,null,null,null,"","",null,null,null,"",""]
[null,null,null,null,null,null,null,null,null,"","",null,null,null,"",""]
[null,null,null,null,null,null,null,null,null,"","",null,null,null,"",""]
[null,null,null,null,null,null,null,null,null,"","",null,null,null,"",""]
[null,null,null,null,null,null,null,null,null,"","",null,null,null,"",""]
[null,null,null,null,null,null,null,null,null,"","",null,null,null,"",""]
[null,null,null,null,null,null,null,null,null,"","",null,null,null,"",""]
[null,null,null,null,null,null,null,null,null,"","",null,null,null,"",""]
[null,null,null,null,null,null,null,null,null,"","",null,null,null,"",""]
[null,null,null,null,null,null,null,null,null,"","",null,null,null,"",""]
[null,null,null,null,null,null,null,null,null,"","",null,null,null,"",""]
[null,null,null,null,null,null,null,null,null,"","",null,null,null,"",""]
[null,null,null,null,null,null,null,null,null,"","",null,null,null,"",""]
[null,null,null,null,null,null,null,null,null,"","",null,null,null,"",""]
[null,null,null,null,null,null,null,null,null,"","",null,null,null,"",""]
[null,null,null,null,null,null,null,null,null,"","",null,null,null,"",""]
[null,null,null,null,null,null,null,null,null,"","",null,null,null,"",""]
[null,null,null,null,null,null,null,null,null,"","",null,null,null,"",""]
[null,null,null,null,null,null,null,null,null,"","",null,null,null,{"$f":"IF(K261=\"\",\"\",VLOOKUP(K261,جلوس,4))","v":""},""]
[null,null,null,null,null,null,null,null,null,"","",null,null,null,"",{"$f":"IF(O262=O263,\"\",\"نهاية اللجنة\")","v":""}]
[null,null,null,null,null,null,null,null,null,{"$f":"IF(J262=\"\",\"\",IF(J262+1>$K$2,\"\",J262+1))","v":""},{"$f":"IF(K262=\"\",\"\",IF(K262+1>$K$3,\"\",K262+1))","v":""},null,null,null,"",""]
[null,null,null,null,null,null,null,null,null,"","",null,null,null,"",""]
[null,null,null,null,null,null,null,null,null,"","",null,null,null,"",""]
[null,null,null,null,null,null,null,null,null,"","",null,null,null,"",""]
[null,null,null,null,null,null,null,null,null,"","",null,null,null,"",""]
[null,null,null,null,null,null,null,null,null,"","",null,null,null,"",""]
[null,null,null,null,null,null,null,null,null,"","",null,null,null,"",""]
[null,null,null,null,null,null,null,null,null,"","",null,null,null,"",""]
[null,null,null,null,null,null,null,null,null,"","",null,null,null,"",""]
[null,null,null,null,null,null,null,null,null,"","",null,null,null,"",""]
[null,null,null,null,null,null,null,null,null,"","",null,null,null,"",""]
[null,null,null,null,null,null,null,null,null,"","",null,null,null,"",""]
[null,null,null,null,null,null,null,null,null,"","",null,null,null,"",""]
[null,null,null,null,null,null,null,null,null,"","",null,null,null,"",""]
[null,null,null,null,null,null,null,null,null,"","",null,null,null,"",""]
[null,null,null,null,null,null,null,null,null,"","",null,null,null,"",""]
[null,null,null,null,null,null,null,null,null,"","",null,null,null,"",""]
[null,null,null,null,null,null,null,null,null,"","",null,null,null,"",""]
[null,null,null,null,null,null,null,null,null,"","",null,null,null,"",""]
[null,null,null,null,null,null,null,null,null,"","",null,null,null,"",""]
[null,null,null,null,null,null,null,null,null,"","",null,null,null,"",""]
[null,null,null,null,null,null,null,null,null,"","",null,null,null,"",""]
[null,null,null,null,null,null,null,null,null,"","",null,null,null,"",""]
[null,null,null,null,null,null,null,null,null,"","",null,null,null,"",""]
[null,null,null,null,null,null,null,null,null,"","",null,null,null,"",""]
[null,null,null,null,null,null,null,null,null,"","",null,null,null,"",""]
[null,null,null,null,null,null,null,null,null,"","",null,null,null,"",""]
[null,null,null,null,null,null,null,null,null,"","",null,null,null,"",""]
[null,null,null,null,null,null,null,null,null,"","",null,null,null,"",""]
[null,null,null,null,null,null,null,null,null,"","",null,null,null,"",""]
[null,null,null,null,null,null,null,null,null,"","",null,null,null,"",""]
[null,null,null,null,null,null,null,null,null,"","",null,null,null,"",""]
[null,null,null,null,null,null,null,null,null,"","",null,null,null,"",""]
[null,null,null,null,null,null,null,null,null,"","",null,null,null,"",""]
[null,null,null,null,null,null,null,null,null,"","",null,null,null,"",""]
[]
[]
[null,null,null,null,null,null,null,null,null,"","",null,null,null,"",""]
[null,null,null,null,null,null,null,null,null,"","",null,null,null,"",""]
[null,null,null,null,null,null,null,null,null,"","",null,null,null,"",""]
[null,null,null,null,null,null,null,null,null,"","",null,null,null,"",""]
[null,null,null,null,null,null,null,null,null,"","",null,null,null,"",""]
[null,null,null,null,null,null,null,null,null,"","",null,null,null,"",""]
[null,null,null,null,null,null,null,null,null,"","",null,null,null,"",""]
[null,null,null,null,null,null,null,null,null,"","",null,null,null,"",""]
[null,null,null,null,null,null,null,null,null,"","",null,null,null,"",""]
[null,null,null,null,null,null,null,null,null,"","",null,null,null,"",""]
[null,null,null,null,null,null,null,null,null,"","",null,null,null,"",""]
[null,null,null,null,null,null,null,null,null,"","",null,null,null,"",""]
[null,null,null,null,null,null,null,null,null,"","",null,null,null,"",""]
[null,null,null,null,null,null,null,null,null,"","",null,null,null,"",""]
[null,null,null,null,null,null,null,null,null,"","",null,null,null,"",""]
[null,null,null,null,null,null,null,null,null,"","",null,null,null,"",""]
[null,null,null,null,null,null,null,null,null,"","",null,null,null,"",""]
[null,null,null,null,null,null,null,null,null,"","",null,null,null,"",""]
[null,null,null,null,null,null,null,null,null,"","",null,null,null,"",""]
[null,null,null,null,null,null,null,null,null,"","",null,null,null,"",""]
[null,null,null,null,null,null,null,null,null,"","",null,null,null,"",""]
[null,null,null,null,null,null,null,null,null,"","",null,null,null,"",""]
[null,null,null,null,null,null,null,null,null,"","",null,null,null,"",""]
[null,null,null,null,null,null,null,null,null,"","",null,null,null,"",""]
[null,null,null,null,null,null,null,null,null,"","",null,null,null,"",""]
[null,null,null,null,null,null,null,null,null,"","",null,null,null,{"$f":"IF(K325=\"\",\"\",VLOOKUP(K325,جلوس,4))","v":""},""]
[null,null,null,null,null,null,null,null,null,"","",null,null,null,"",{"$f":"IF(O326=O327,\"\",\"نهاية اللجنة\")","v":""}]
[null,null,null,null,null,null,null,null,null,{"$f":"IF(J326=\"\",\"\",IF(J326+1>$K$2,\"\",J326+1))","v":""},{"$f":"IF(K326=\"\",\"\",IF(K326+1>$K$3,\"\",K326+1))","v":""},null,null,null,"",""]
[null,null,null,null,null,null,null,null,null,"","",null,null,null,"",""]
[null,null,null,null,null,null,null,null,null,"","",null,null,null,"",""]
[null,null,null,null,null,null,null,null,null,"","",null,null,null,"",""]
[null,null,null,null,null,null,null,null,null,"","",null,null,null,"",""]
[null,null,null,null,null,null,null,null,null,"","",null,null,null,"",""]
[null,null,null,null,null,null,null,null,null,"","",null,null,null,"",""]
[null,null,null,null,null,null,null,null,null,"","",null,null,null,"",""]
[null,null,null,null,null,null,null,null,null,"","",null,null,null,"",""]
[null,null,null,null,null,null,null,null,null,"","",null,null,null,"",""]
[null,null,null,null,null,null,null,null,null,"","",null,null,null,"",""]
[null,null,null,null,null,null,null,null,null,"","",null,null,null,"",""]
[null,null,null,null,null,null,null,null,null,"","",null,null,null,"",""]
[null,null,null,null,null,null,null,null,null,"","",null,null,null,"",""]
[null,null,null,null,null,null,null,null,null,"","",null,null,null,"",""]
[null,null,null,null,null,null,null,null,null,"","",null,null,null,"",""]
[null,null,null,null,null,null,null,null,null,"","",null,null,null,"",""]
[null,null,null,null,null,null,null,null,null,"","",null,null,null,"",""]
[null,null,null,null,null,null,null,null,null,"","",null,null,null,"",""]
[null,null,null,null,null,null,null,null,null,"","",null,null,null,"",""]
[null,null,null,null,null,null,null,null,null,"","",null,null,null,"",""]
[null,null,null,null,null,null,null,null,null,"","",null,null,null,"",""]
[null,null,null,null,null,null,null,null,null,"","",null,null,null,"",""]
[null,null,null,null,null,null,null,null,null,"","",null,null,null,"",""]
[null,null,null,null,null,null,null,null,null,"","",null,null,null,"",""]
[null,null,null,null,null,null,null,null,null,"","",null,null,null,"",""]
[null,null,null,null,null,null,null,null,null,"","",null,null,null,"",""]
[null,null,null,null,null,null,null,null,null,"","",null,null,null,"",""]
[null,null,null,null,null,null,null,null,null,"","",null,null,null,"",""]
[null,null,null,null,null,null,null,null,null,"","",null,null,null,"",""]
[null,null,null,null,null,null,null,null,null,"","",null,null,null,"",""]
[null,null,null,null,null,null,null,null,null,"","",null,null,null,"",""]
[null,null,null,null,null,null,null,null,null,"","",null,null,null,"",""]
[null,null,null,null,null,null,null,null,null,"","",null,null,null,"",""]
[null,null,null,null,null,null,null,null,null,"","",null,null,null,"",""]
[null,null,null,null,null,null,null,null,null,"","",null,null,null,"",""]
[null,null,null,null,null,null,null,null,null,"","",null,null,null,"",""]
[null,null,null,null,null,null,null,null,null,"","",null,null,null,"",""]
[null,null,null,null,null,null,null,null,null,"","",null,null,null,"",""]
[null,null,null,null,null,null,null,null,null,"","",null,null,null,"",""]
[null,null,null,null,null,null,null,null,null,"","",null,null,null,"",""]
[null,null,null,null,null,null,null,null,null,"","",null,null,null,"",""]
[null,null,null,null,null,null,null,null,null,"","",null,null,null,"",""]
[null,null,null,null,null,null,null,null,null,"","",null,null,null,"",""]
[null,null,null,null,null,null,null,null,null,"","",null,null,null,"",""]
[null,null,null,null,null,null,null,null,null,"","",null,null,null,"",""]
[null,null,null,null,null,null,null,null,null,"","",null,null,null,"",""]
[null,null,null,null,null,null,null,null,null,"","",null,null,null,"",""]
[null,null,null,null,null,null,null,null,null,"","",null,null,null,"",""]
[null,null,null,null,null,null,null,null,null,"","",null,null,null,"",""]
[null,null,null,null,null,null,null,null,null,"","",null,null,null,"",""]
[null,null,null,null,null,null,null,null,null,"","",null,null,null,"",""]
[null,null,null,null,null,null,null,null,null,"","",null,null,null,"",""]
[null,null,null,null,null,null,null,null,null,"","",null,null,null,"",""]
[null,null,null,null,null,null,null,null,null,"","",null,null,null,"",""]
[null,null,null,null,null,null,null,null,null,"","",null,null,null,"",""]
[null,null,null,null,null,null,null,null,null,"","",null,null,null,"",""]
[null,null,null,null,null,null,null,null,null,"","",null,null,null,"",""]
[null,null,null,null,null,null,null,null,null,"","",null,null,null,"",""]
[null,null,null,null,null,null,null,null,null,"","",null,null,null,"",""]
[null,null,null,null,null,null,null,null,null,"","",null,null,null,"",""]
[null,null,null,null,null,null,null,null,null,"","",null,null,null,"",""]
[null,null,null,null,null,null,null,null,null,"","",null,null,null,{"$f":"IF(K389=\"\",\"\",VLOOKUP(K389,جلوس,4))","v":""},""]
[null,null,null,null,null,null,null,null,null,"","",null,null,null,"",{"$f":"IF(O390=O391,\"\",\"نهاية اللجنة\")","v":""}]
[null,null,null,null,null,null,null,null,null,{"$f":"IF(J390=\"\",\"\",IF(J390+1>$K$2,\"\",J390+1))","v":""},{"$f":"IF(K390=\"\",\"\",IF(K390+1>$K$3,\"\",K390+1))","v":""},null,null,null,"",""]
[null,null,null,null,null,null,null,null,null,"","",null,null,null,"",""]
[null,null,null,null,null,null,null,null,null,"","",null,null,null,"",""]
[null,null,null,null,null,null,null,null,null,"","",null,null,null,"",""]
[null,null,null,null,null,null,null,null,null,"","",null,null,null,"",""]
[null,null,null,null,null,null,null,null,null,"","",null,null,null,"",""]
[null,null,null,null,null,null,null,null,null,"","",null,null,null,"",""]
[null,null,null,null,null,null,null,null,null,"","",null,null,null,"",""]
[null,null,null,null,null,null,null,null,null,"","",null,null,null,"",""]
[null,null,null,null,null,null,null,null,null,"","",null,null,null,"",""]
[null,null,null,null,null,null,null,null,null,"","",null,null,null,"",""]
[null,null,null,null,null,null,null,null,null,"","",null,null,null,"",""]
[null,null,null,null,null,null,null,null,null,"","",null,null,null,"",""]
[null,null,null,null,null,null,null,null,null,"","",null,null,null,"",""]
[null,null,null,null,null,null,null,null,null,"","",null,null,null,"",""]
[null,null,null,null,null,null,null,null,null,"","",null,null,null,"",""]
[null,null,null,null,null,null,null,null,null,"","",null,null,null,"",""]
[null,null,null,null,null,null,null,null,null,"","",null,null,null,"",""]
[null,null,null,null,null,null,null,null,null,"","",null,null,null,"",""]
[null,null,null,null,null,null,null,null,null,"","",null,null,null,"",""]
[null,null,null,null,null,null,null,null,null,"","",null,null,null,"",""]
[null,null,null,null,null,null,null,null,null,"","",null,null,null,"",""]
[null,null,null,null,null,null,null,null,null,"","",null,null,null,"",""]
[null,null,null,null,null,null,null,null,null,"","",null,null,null,"",""]
[null,null,null,null,null,null,null,null,null,"","",null,null,null,"",""]
[null,null,null,null,null,null,null,null,null,"","",null,null,null,"",""]
[null,null,null,null,null,null,null,null,null,"","",null,null,null,"",""]
[null,null,null,null,null,null,null,null,null,"","",null,null,null,"",""]
[null,null,null,null,null,null,null,null,null,"","",null,null,null,"",""]
[null,null,null,null,null,null,null,null,null,"","",null,null,null,"",""]
[null,null,null,null,null,null,null,null,null,"","",null,null,null,"",""]
[null,null,null,null,null,null,null,null,null,"","",null,null,null,"",""]
[null,null,null,null,null,null,null,null,null,"","",null,null,null,"",""]
[null,null,null,null,null,null,null,null,null,"","",null,null,null,"",""]
[null,null,null,null,null,null,null,null,null,"","",null,null,null,"",""]
[null,null,null,null,null,null,null,null,null,"","",null,null,null,"",""]
[null,null,null,null,null,null,null,null,null,"","",null,null,null,"",""]
[null,null,null,null,null,null,null,null,null,"","",null,null,null,"",""]
[null,null,null,null,null,null,null,null,null,"","",null,null,null,"",""]
[null,null,null,null,null,null,null,null,null,"","",null,null,null,"",""]
[null,null,null,null,null,null,null,null,null,"","",null,null,null,"",""]
[null,null,null,null,null,null,null,null,null,"","",null,null,null,"",""]
[null,null,null,null,null,null,null,null,null,"","",null,null,null,"",""]
[null,null,null,null,null,null,null,null,null,"","",null,null,null,"",""]
[null,null,null,null,null,null,null,null,null,"","",null,null,null,"",""]
[null,null,null,null,null,null,null,null,null,"","",null,null,null,"",""]
[null,null,null,null,null,null,null,null,null,"","",null,null,null,"",""]
[null,null,null,null,null,null,null,null,null,"","",null,null,null,"",""]
[null,null,null,null,null,null,null,null,null,"","",null,null,null,"",""]
[null,null,null,null,null,null,null,null,null,"","",null,null,null,"",""]
[null,null,null,null,null,null,null,null,null,"","",null,null,null,"",""]
[null,null,null,null,null,null,null,null,null,"","",null,null,null,"",""]
[null,null,null,null,null,null,null,null,null,"","",null,null,null,"",""]
[null,null,null,null,null,null,null,null,null,"","",null,null,null,"",""]
[null,null,null,null,null,null,null,null,null,"","",null,null,null,"",""]
[null,null,null,null,null,null,null,null,null,"","",null,null,null,"",""]
[null,null,null,null,null,null,null,null,null,"","",null,null,null,"",""]
[null,null,null,null,null,null,null,null,null,"","",null,null,null,"",""]
[null,null,null,null,null,null,null,null,null,"","",null,null,null,"",""]
[null,null,null,null,null,null,null,null,null,"","",null,null,null,"",""]
[null,null,null,null,null,null,null,null,null,"","",null,null,null,"",""]
[null,null,null,null,null,null,null,null,null,"","",null,null,null,"",""]
[null,null,null,null,null,null,null,null,null,"","",null,null,null,{"$f":"IF(K453=\"\",\"\",VLOOKUP(K453,جلوس,4))","v":""},""]
[null,null,null,null,null,null,null,null,null,"","",null,null,null,"",{"$f":"IF(O454=O455,\"\",\"نهاية اللجنة\")","v":""}]
[null,null,null,null,null,null,null,null,null,{"$f":"IF(J454=\"\",\"\",IF(J454+1>$K$2,\"\",J454+1))","v":""},{"$f":"IF(K454=\"\",\"\",IF(K454+1>$K$3,\"\",K454+1))","v":""},null,null,null,"",""]
[null,null,null,null,null,null,null,null,null,"","",null,null,null,"",""]
[null,null,null,null,null,null,null,null,null,"","",null,null,null,"",""]
[null,null,null,null,null,null,null,null,null,"","",null,null,null,"",""]
[null,null,null,null,null,null,null,null,null,"","",null,null,null,"",""]
[null,null,null,null,null,null,null,null,null,"","",null,null,null,"",""]
[null,null,null,null,null,null,null,null,null,"","",null,null,null,"",""]
[null,null,null,null,null,null,null,null,null,"","",null,null,null,"",""]
[null,null,null,null,null,null,null,null,null,"","",null,null,null,"",""]
[null,null,null,null,null,null,null,null,null,"","",null,null,null,"",""]
[null,null,null,null,null,null,null,null,null,"","",null,null,null,"",""]
[null,null,null,null,null,null,null,null,null,"","",null,null,null,"",""]
[null,null,null,null,null,null,null,null,null,"","",null,null,null,"",""]
[null,null,null,null,null,null,null,null,null,"","",null,null,null,"",""]
[null,null,null,null,null,null,null,null,null,"","",null,null,null,"",""]
[null,null,null,null,null,null,null,null,null,"","",null,null,null,"",""]
[null,null,null,null,null,null,null,null,null,"","",null,null,null,"",""]
[null,null,null,null,null,null,null,null,null,"","",null,null,null,"",""]
[null,null,null,null,null,null,null,null,null,"","",null,null,null,"",""]
[null,null,null,null,null,null,null,null,null,"","",null,null,null,"",""]
[null,null,null,null,null,null,null,null,null,"","",null,null,null,"",""]
[null,null,null,null,null,null,null,null,null,"","",null,null,null,"",""]
[null,null,null,null,null,null,null,null,null,"","",null,null,null,"",""]
[null,null,null,null,null,null,null,null,null,"","",null,null,null,"",""]
[null,null,null,null,null,null,null,null,null,"","",null,null,null,"",""]
[null,null,null,null,null,null,null,null,null,"","",null,null,null,"",""]
[null,null,null,null,null,null,null,null,null,"","",null,null,null,"",""]
[null,null,null,null,null,null,null,null,null,"","",null,null,null,"",""]
[null,null,null,null,null,null,null,null,null,"","",null,null,null,"",""]
[null,null,null,null,null,null,null,null,null,"","",null,null,null,"",""]
[null,null,null,null,null,null,null,null,null,"","",null,null,null,"",""]
[null,null,null,null,null,null,null,null,null,"","",null,null,null,"",""]
[null,null,null,null,null,null,null,null,null,"","",null,null,null,"",""]
[null,null,null,null,null,null,null,null,null,"","",null,null,null,"",""]
[null,null,null,null,null,null,null,null,null,"","",null,null,null,"",""]
[null,null,null,null,null,null,null,null,null,"","",null,null,null,"",""]
[null,null,null,null,null,null,null,null,null,"","",null,null,null,"",""]
[null,null,null,null,null,null,null,null,null,"","",null,null,null,"",""]
[null,null,null,null,null,null,null,null,null,"","",null,null,null,"",""]
[null,null,null,null,null,null,null,null,null,"","",null,null,null,"",""]
[null,null,null,null,null,null,null,null,null,"","",null,null,null,"",""]
[null,null,null,null,null,null,null,null,null,"","",null,null,null,"",""]
[null,null,null,null,null,null,null,null,null,"","",null,null,null,"",""]
[null,null,null,null,null,null,null,null,null,"","",null,null,null,"",""]
[null,null,null,null,null,null,null,null,null,"","",null,null,null,"",""]
[null,null,null,null,null,null,null,null,null,"","",null,null,null,"",""]
[null,null,null,null,null,null,null,null,null,"","",null,null,null,"",""]
[null,null,null,null,null,null,null,null,null,"","",null,null,null,"",""]
[null,null,null,null,null,null,null,null,null,"","",null,null,null,"",""]
[null,null,null,null,null,null,null,null,null,"","",null,null,null,"",""]
[null,null,null,null,null,null,null,null,null,"","",null,null,null,"",""]
[null,null,null,null,null,null,null,null,null,"","",null,null,null,"",""]
[null,null,null,null,null,null,null,null,null,"","",null,null,null,"",""]
[null,null,null,null,null,null,null,null,null,"","",null,null,null,"",""]
[null,null,null,null,null,null,null,null,null,"","",null,null,null,"",""]
[null,null,null,null,null,null,null,null,null,"","",null,null,null,"",""]
[null,null,null,null,null,null,null,null,null,"","",null,null,null,"",""]
[null,null,null,null,null,null,null,null,null,"","",null,null,null,"",""]
[null,null,null,null,null,null,null,null,null,"","",null,null,null,"",""]
[null,null,null,null,null,null,null,null,null,"","",null,null,null,"",""]
[null,null,null,null,null,null,null,null,null,"","",null,null,null,"",""]
[null,null,null,null,null,null,null,null,null,"","",null,null,null,"",""]
[null,null,null,null,null,null,null,null,null,"","",null,null,null,{"$f":"IF(K517=\"\",\"\",VLOOKUP(K517,جلوس,4))","v":""},""]
[null,null,null,null,null,null,null,null,null,"","",null,null,null,"",{"$f":"IF(O518=O519,\"\",\"نهاية اللجنة\")","v":""}]
[null,null,null,null,null,null,null,null,null,{"$f":"IF(J518=\"\",\"\",IF(J518+1>$K$2,\"\",J518+1))","v":""},{"$f":"IF(K518=\"\",\"\",IF(K518+1>$K$3,\"\",K518+1))","v":""},null,null,null,"",""]
[null,null,null,null,null,null,null,null,null,"","",null,null,null,"",""]
[null,null,null,null,null,null,null,null,null,"","",null,null,null,"",""]
[null,null,null,null,null,null,null,null,null,"","",null,null,null,"",""]
[null,null,null,null,null,null,null,null,null,"","",null,null,null,"",""]
[null,null,null,null,null,null,null,null,null,"","",null,null,null,"",""]
[null,null,null,null,null,null,null,null,null,"","",null,null,null,"",""]
[null,null,null,null,null,null,null,null,null,"","",null,null,null,"",""]
[null,null,null,null,null,null,null,null,null,"","",null,null,null,"",""]
[null,null,null,null,null,null,null,null,null,"","",null,null,null,"",""]
[null,null,null,null,null,null,null,null,null,"","",null,null,null,"",""]
[null,null,null,null,null,null,null,null,null,"","",null,null,null,"",""]
[null,null,null,null,null,null,null,null,null,"","",null,null,null,"",""]
[null,null,null,null,null,null,null,null,null,"","",null,null,null,"",""]
[null,null,null,null,null,null,null,null,null,"","",null,null,null,"",""]
[null,null,null,null,null,null,null,null,null,"","",null,null,null,"",""]
[null,null,null,null,null,null,null,null,null,"","",null,null,null,"",""]
[null,null,null,null,null,null,null,null,null,"","",null,null,null,"",""]
[null,null,null,null,null,null,null,null,null,"","",null,null,null,"",""]
[null,null,null,null,null,null,null,null,null,"","",null,null,null,"",""]
[null,null,null,null,null,null,null,null,null,"","",null,null,null,"",""]
[null,null,null,null,null,null,null,null,null,"","",null,null,null,"",""]
[null,null,null,null,null,null,null,null,null,"","",null,null,null,"",""]
[null,null,null,null,null,null,null,null,null,"","",null,null,null,"",""]
[null,null,null,null,null,null,null,null,null,"","",null,null,null,"",""]
[null,null,null,null,null,null,null,null,null,"","",null,null,null,"",""]
[null,null,null,null,null,null,null,null,null,"","",null,null,null,"",""]
[null,null,null,null,null,null,null,null,null,"","",null,null,null,"",""]
[null,null,null,null,null,null,null,null,null,"","",null,null,null,"",""]
[null,null,null,null,null,null,null,null,null,"","",null,null,null,"",""]
[null,null,null,null,null,null,null,null,null,"","",null,null,null,"",""]
[null,null,null,null,null,null,null,null,null,"","",null,null,null,"",""]
[null,null,null,null,null,null,null,null,null,"","",null,null,null,"",""]
[null,null,null,null,null,null,null,null,null,"","",null,null,null,"",""]
[null,null,null,null,null,null,null,null,null,"","",null,null,null,"",""]
[null,null,null,null,null,null,null,null,null,"","",null,null,null,"",""]
[null,null,null,null,null,null,null,null,null,"","",null,null,null,"",""]
[null,null,null,null,null,null,null,null,null,"","",null,null,null,"",""]
[null,null,null,null,null,null,null,null,null,"","",null,null,null,"",""]
[null,null,null,null,null,null,null,null,null,"","",null,null,null,"",""]
[null,null,null,null,null,null,null,null,null,"","",null,null,null,"",""]
[null,null,null,null,null,null,null,null,null,"","",null,null,null,"",""]
[null,null,null,null,null,null,null,null,null,"","",null,null,null,"",""]
[null,null,null,null,null,null,null,null,null,"","",null,null,null,"",""]
[null,null,null,null,null,null,null,null,null,"","",null,null,null,"",""]
[null,null,null,null,null,null,null,null,null,"","",null,null,null,"",""]
[null,null,null,null,null,null,null,null,null,"","",null,null,null,"",""]
[null,null,null,null,null,null,null,null,null,"","",null,null,null,"",""]
[null,null,null,null,null,null,null,null,null,"","",null,null,null,"",""]
[null,null,null,null,null,null,null,null,null,"","",null,null,null,"",""]
[null,null,null,null,null,null,null,null,null,"","",null,null,null,"",""]
[null,null,null,null,null,null,null,null,null,"","",null,null,null,"",""]
[null,null,null,null,null,null,null,null,null,"","",null,null,null,"",""]
[null,null,null,null,null,null,null,null,null,"","",null,null,null,"",""]
[null,null,null,null,null,null,null,null,null,"","",null,null,null,"",""]
[null,null,null,null,null,null,null,null,null,"","",null,null,null,"",""]
[null,null,null,null,null,null,null,null,null,"","",null,null,null,"",""]
[null,null,null,null,null,null,null,null,null,"","",null,null,null,"",""]
[null,null,null,null,null,null,null,null,null,"","",null,null,null,"",""]
[null,null,null,null,null,null,null,null,null,"","",null,null,null,"",""]
[null,null,null,null,null,null,null,null,null,"","",null,null,null,"",""]
[null,null,null,null,null,null,null,null,null,"","",null,null,null,"",""]
[null,null,null,null,null,null,null,null,null,"","",null,null,null,{"$f":"IF(K581=\"\",\"\",VLOOKUP(K581,جلوس,4))","v":""},""]
[null,null,null,null,null,null,null,null,null,"","",null,null,null,"",{"$f":"IF(O582=O583,\"\",\"نهاية اللجنة\")","v":""}]
[null,null,null,null,null,null,null,null,null,{"$f":"IF(J582=\"\",\"\",IF(J582+1>$K$2,\"\",J582+1))","v":""},{"$f":"IF(K582=\"\",\"\",IF(K582+1>$K$3,\"\",K582+1))","v":""},null,null,null,"",""]
[null,null,null,null,null,null,null,null,null,"","",null,null,null,"",""]
[null,null,null,null,null,null,null,null,null,"","",null,null,null,"",""]
[null,null,null,null,null,null,null,null,null,"","",null,null,null,"",""]
[null,null,null,null,null,null,null,null,null,"","",null,null,null,"",""]
[null,null,null,null,null,null,null,null,null,"","",null,null,null,"",""]
[null,null,null,null,null,null,null,null,null,"","",null,null,null,"",""]
[null,null,null,null,null,null,null,null,null,"","",null,null,null,"",""]
[null,null,null,null,null,null,null,null,null,"","",null,null,null,"",""]
[null,null,null,null,null,null,null,null,null,"","",null,null,null,"",""]
[null,null,null,null,null,null,null,null,null,"","",null,null,null,"",""]
[null,null,null,null,null,null,null,null,null,"","",null,null,null,"",""]
[null,null,null,null,null,null,null,null,null,"","",null,null,null,"",""]
[null,null,null,null,null,null,null,null,null,"","",null,null,null,"",""]
[null,null,null,null,null,null,null,null,null,"","",null,null,null,"",""]
[null,null,null,null,null,null,null,null,null,"","",null,null,null,"",""]
[null,null,null,null,null,null,null,null,null,"","",null,null,null,"",""]
[null,null,null,null,null,null,null,null,null,"","",null,null,null,"",""]
[null,null,null,null,null,null,null,null,null,"","",null,null,null,"",""]
[null,null,null,null,null,null,null,null,null,"","",null,null,null,"",""]
[null,null,null,null,null,null,null,null,null,"","",null,null,null,"",""]
[null,null,null,null,null,null,null,null,null,"","",null,null,null,"",""]

{"sheet":"بيانات أساسية 5","index":5,"n_rows":297,"n_cols":21,"rows_kept":297,"cut":false,"hidden":false,"merged":[[2,3,3,3],[2,4,2,5],[0,11,2,14],[0,3,1,7]]}
[null,null,null,"الصف الخامس الابتدائى",null,null,null,null,null,null,null,"اكتب فى الخلايا ذات اللون الابيض فقط"]
[null,null,null,null,null,null,null,null,null,"العدد",{"$f":"COUNTA(L5:L297)","v":55}]
[null,null,null,"م","اكتب اول رقم جلوس",null,{"$f":"SUM(G5:G44)","v":55},{"$f":"COUNT(H5:H44)","v":2},null,"أعلى رقم",{"$f":"MAX(E5:F44)","v":360},null,null,null,null,{"$f":"COUNTA(L5:L297)","v":55}]
[null,null,null,null,"من","إلى","العدد","اللجنة",null,"م","رقم الجلوس","الاسم","النوع",null,"اللجنة","نهاية اللجنة"]
[null,null,null,{"$f":"IF(E5=\"\",\"\",COUNT($E$5:E5))","v":1},306,{"$f":"IF(G5=\"\",\"\",E5+G5-1)","v":333},28,{"$f":"IF(E5=\"\",\"\",COUNT($E$5:E5))","v":1},null,1,{"$f":"$E$5","v":306},"ابراهيم عبدالله محمد محمد","ذكر",null,{"$f":"IF(K5=\"\",\"\",VLOOKUP(K5,جلوس,4))","v":1},{"$f":"IF(O5=O6,\"\",\"نهاية اللجنة\")","v":""}]
["مقيد",{"$f":"COUNTA(L5:L297)","v":55},null,{"$f":"IF(E6=\"\",\"\",COUNT($E$5:E6))","v":2},{"$f":"IF(G6=\"\",\"\",F5+1)","v":334},{"$f":"IF(G6=\"\",\"\",E6+G6-1)","v":360},27,{"$f":"IF(E6=\"\",\"\",COUNT($E$5:E6))","v":2},null,{"$f":"IF(J5=\"\",\"\",IF(J5+1>$K$2,\"\",J5+1))","v":2},{"$f":"IF(K5=\"\",\"\",IF(K5+1>$K$3,\"\",K5+1))","v":307},"ابراهيم فتحي ابراهيم عطيه","ذكر",null,1,{"$f":"IF(O6=O7,\"\",\"نهاية اللجنة\")","v":""}]
["موزع",{"$f":"SUM(G5:G44)","v":55},null,{"$f":"IF(E7=\"\",\"\",COUNT($E$5:E7))","v":""},{"$f":"IF(G7=\"\",\"\",F6+1)","v":""},"",null,{"$f":"IF(E7=\"\",\"\",COUNT($E$5:E7))","v":""},null,{"$f":"IF(J6=\"\",\"\",IF(J6+1>$K$2,\"\",J6+1))","v":3},{"$f":"IF(K6=\"\",\"\",IF(K6+1>$K$3,\"\",K6+1))","v":308},"ابراهيم محمد ابراهيم عبده","ذكر",null,1,""]
["متبقى",{"$f":"B6-B7","v":0},null,{"$f":"IF(E8=\"\",\"\",COUNT($E$5:E8))","v":""},"","",null,{"$f":"IF(E8=\"\",\"\",COUNT($E$5:E8))","v":""},null,4,309,"ابراهيم محمد احمد فرج","ذكر",null,1,""]
[null,null,null,{"$f":"IF(E9=\"\",\"\",COUNT($E$5:E9))","v":""},"","",null,{"$f":"IF(E9=\"\",\"\",COUNT($E$5:E9))","v":""},null,5,310,"ابراهيم محمد محمد خليفه","ذكر",null,1,"",null,null,null,null," "]
[null,null,null,{"$f":"IF(E10=\"\",\"\",COUNT($E$5:E10))","v":""},"","",null,{"$f":"IF(E10=\"\",\"\",COUNT($E$5:E10))","v":""},null,6,311,"ابراهيم وائل محمد محمد","ذكر",null,1,""]
[null,null,null,{"$f":"IF(E11=\"\",\"\",COUNT($E$5:E11))","v":""},"","",null,{"$f":"IF(E11=\"\",\"\",COUNT($E$5:E11))","v":""},null,7,312,"ابرهيم شريف ابراهيم محمد","ذكر",null,1,""]
[null,null,null,{"$f":"IF(E12=\"\",\"\",COUNT($E$5:E12))","v":""},"","",null,{"$f":"IF(E12=\"\",\"\",COUNT($E$5:E12))","v":""},null,8,313,"احمد ابراهيم ابراهيم عباس","ذكر",null,1,""]
[null,null,null,{"$f":"IF(E13=\"\",\"\",COUNT($E$5:E13))","v":""},"","",null,{"$f":"IF(E13=\"\",\"\",COUNT($E$5:E13))","v":""},null,9,314,"احمد احمد عبدالواحد محمد","ذكر",null,1,""]
[null,null,null,{"$f":"IF(E14=\"\",\"\",COUNT($E$5:E14))","v":""},"","",null,{"$f":"IF(E14=\"\",\"\",COUNT($E$5:E14))","v":""},null,10,315,"احمد الدسوقي عبدربه ابراهيم","ذكر",null,1,""]
[null,null,null,{"$f":"IF(E15=\"\",\"\",COUNT($E$5:E15))","v":""},"","",null,{"$f":"IF(E15=\"\",\"\",COUNT($E$5:E15))","v":""},null,11,316,"احمد السيد رضوان علي","ذكر",null,1,""]
[null,null,null,{"$f":"IF(E16=\"\",\"\",COUNT($E$5:E16))","v":""},"","",null,{"$f":"IF(E16=\"\",\"\",COUNT($E$5:E16))","v":""},null,12,317,"احمد رفاعي شحاتة السيد","ذكر",null,1,""]
[null,null,null,{"$f":"IF(E17=\"\",\"\",COUNT($E$5:E17))","v":""},"","",null,{"$f":"IF(E17=\"\",\"\",COUNT($E$5:E17))","v":""},null,13,318,"احمد رفعت علي عبدالسلام","ذكر",null,1,""]
[null,null,null,{"$f":"IF(E18=\"\",\"\",COUNT($E$5:E18))","v":""},"","",null,{"$f":"IF(E18=\"\",\"\",COUNT($E$5:E18))","v":""},null,14,319,"احمد سامي عبدالهادي علي","ذكر",null,1,""]
[null,null,null,{"$f":"IF(E19=\"\",\"\",COUNT($E$5:E19))","v":""},"","",null,{"$f":"IF(E19=\"\",\"\",COUNT($E$5:E19))","v":""},null,15,320,"احمد سعد محمد سعد","ذكر",null,1,""]
[null,null,null,{"$f":"IF(E20=\"\",\"\",COUNT($E$5:E20))","v":""},"","",null,{"$f":"IF(E20=\"\",\"\",COUNT($E$5:E20))","v":""},null,16,321,"احمد سعد محمد عبدالخالق","ذكر",null,1,""]
[null,null,null,{"$f":"IF(E21=\"\",\"\",COUNT($E$5:E21))","v":""},"","",null,{"$f":"IF(E21=\"\",\"\",COUNT($E$5:E21))","v":""},null,17,322,"احمد شوقى محمد عبدالقادر","ذكر",null,1,""]
[null,null,null,{"$f":"IF(E22=\"\",\"\",COUNT($E$5:E22))","v":""},"","",null,{"$f":"IF(E22=\"\",\"\",COUNT($E$5:E22))","v":""},null,18,323,"احمد صابر حسن ابراهيم يسن","ذكر",null,1,""]
[null,null,null,{"$f":"IF(E23=\"\",\"\",COUNT($E$5:E23))","v":""},"","",null,{"$f":"IF(E23=\"\",\"\",COUNT($E$5:E23))","v":""},null,19,324,"احمد عبدالباسط محمد علي","ذكر",null,1,""]
[null,null,null,{"$f":"IF(E24=\"\",\"\",COUNT($E$5:E24))","v":""},"","",null,{"$f":"IF(E24=\"\",\"\",COUNT($E$5:E24))","v":""},null,20,325,"احمد عبدالله صالح احمد","ذكر",null,1,""]
[null,null,null,{"$f":"IF(E25=\"\",\"\",COUNT($E$5:E25))","v":""},"","",null,{"$f":"IF(E25=\"\",\"\",COUNT($E$5:E25))","v":""},null,21,326,"احمد فتحي شعبان عبدالعزيز","ذكر",null,1,""]
[null,null,null,{"$f":"IF(E26=\"\",\"\",COUNT($E$5:E26))","v":""},"","",null,{"$f":"IF(E26=\"\",\"\",COUNT($E$5:E26))","v":""},null,22,327,"احمد ماهر ابراهيم احمد ابراهيم","ذكر",null,1,""]
[null,null,null,{"$f":"IF(E27=\"\",\"\",COUNT($E$5:E27))","v":""},"","",null,{"$f":"IF(E27=\"\",\"\",COUNT($E$5:E27))","v":""},null,23,328,"احمد ماهر السيد عبدالمنعم","ذكر",null,1,""]
[null,null,null,{"$f":"IF(E28=\"\",\"\",COUNT($E$5:E28))","v":""},"","",null,{"$f":"IF(E28=\"\",\"\",COUNT($E$5:E28))","v":""},null,24,329,"احمد ماهر رشدي عبدالحميد","ذكر",null,1,""]
[null,null,null,{"$f":"IF(E29=\"\",\"\",COUNT($E$5:E29))","v":""},"","",null,{"$f":"IF(E29=\"\",\"\",COUNT($E$5:E29))","v":""},null,25,330,"احمد محمد السيد محمد","ذكر",null,1,""]
[null,null,null,{"$f":"IF(E30=\"\",\"\",COUNT($E$5:E30))","v":""},"","",null,{"$f":"IF(E30=\"\",\"\",COUNT($E$5:E30))","v":""},null,26,331,"خالد سمير عبدالغني مصطفي اسماعيل",null,null,1,""]
[null,null,null,{"$f":"IF(E31=\"\",\"\",COUNT($E$5:E31))","v":""},"","",null,{"$f":"IF(E31=\"\",\"\",COUNT($E$5:E31))","v":""},null,27,332,"رشاد عصام حسين عبدالله",null,null,1,""]
[null,null,null,{"$f":"IF(E32=\"\",\"\",COUNT($E$5:E32))","v":""},"","",null,{"$f":"IF(E32=\"\",\"\",COUNT($E$5:E32))","v":""},null,28,333,"زياد ايمن صلاح سعد عبدالله",null,null,1,"نهاية اللجنة"]
[null,null,null,{"$f":"IF(E33=\"\",\"\",COUNT($E$5:E33))","v":""},"","",null,{"$f":"IF(E33=\"\",\"\",COUNT($E$5:E33))","v":""},null,29,334,"زياد خيري منير اسماعيل",null,null,2,""]
[null,null,null,{"$f":"IF(E34=\"\",\"\",COUNT($E$5:E34))","v":""},"","",null,{"$f":"IF(E34=\"\",\"\",COUNT($E$5:E34))","v":""},null,30,335,"زياد رضا وهبه محمد وهبه",null,null,2,""]
[null,null,null,{"$f":"IF(E35=\"\",\"\",COUNT($E$5:E35))","v":""},"","",null,{"$f":"IF(E35=\"\",\"\",COUNT($E$5:E35))","v":""},null,31,336,"سالم السيد سالم عبدالله",null,null,2,""]
[null,null,null,{"$f":"IF(E36=\"\",\"\",COUNT($E$5:E36))","v":""},"","",null,{"$f":"IF(E36=\"\",\"\",COUNT($E$5:E36))","v":""},null,32,337,"سامح محمد طه عبدالسلام",null,null,2,""]
[null,null,null,{"$f":"IF(E37=\"\",\"\",COUNT($E$5:E37))","v":""},"","",null,{"$f":"IF(E37=\"\",\"\",COUNT($E$5:E37))","v":""},null,33,338,"سعد مصطفي سعد مصطفي",null,null,{"$f":"IF(K37=\"\",\"\",VLOOKUP(K37,جلوس,4))","v":2},""]
[null,null,null,{"$f":"IF(E38=\"\",\"\",COUNT($E$5:E38))","v":""},"","",null,{"$f":"IF(E38=\"\",\"\",COUNT($E$5:E38))","v":""},null,34,339,"سيف بهاء الدين مرسي غازي",null,null,2,""]
[null,null,null,{"$f":"IF(E39=\"\",\"\",COUNT($E$5:E39))","v":""},"","",null,{"$f":"IF(E39=\"\",\"\",COUNT($E$5:E39))","v":""},null,35,340,"سيف عادل محمود محمد عبدالله",null,null,2,""]
[null,null,null,{"$f":"IF(E40=\"\",\"\",COUNT($E$5:E40))","v":""},"","",null,{"$f":"IF(E40=\"\",\"\",COUNT($E$5:E40))","v":""},null,36,341,"صبحي ابراهيم صبحي طلبه",null,null,2,""]
[null,null,null,{"$f":"IF(E41=\"\",\"\",COUNT($E$5:E41))","v":""},"","",null,{"$f":"IF(E41=\"\",\"\",COUNT($E$5:E41))","v":""},null,37,342,"صبحي محمد ابراهيم خليفه",null,null,2,""]
[null,null,null,{"$f":"IF(E42=\"\",\"\",COUNT($E$5:E42))","v":""},"","",null,{"$f":"IF(E42=\"\",\"\",COUNT($E$5:E42))","v":""},null,38,343,"صبري الطبلاوي عبدالواحد جابر",null,null,2,""]
[null,null,null,{"$f":"IF(E43=\"\",\"\",COUNT($E$5:E43))","v":""},"","",null,{"$f":"IF(E43=\"\",\"\",COUNT($E$5:E43))","v":""},null,39,344,"عابد محمد السبع العشري",null,null,2,""]
[null,null,null,{"$f":"IF(E44=\"\",\"\",COUNT($E$5:E44))","v":""},"","",null,{"$f":"IF(E44=\"\",\"\",COUNT($E$5:E44))","v":""},null,40,345,"عبدالحليم محمد عبدالحليم عبدالمقتدر",null,null,2,""]
[null,null,null,null,null,null,null,null,null,41,346,"عبدالرحمن اسلام ابراهيم حسن",null,null,2,""]
[null,null,null,null,null,null,null,null,null,42,347,"عبدالرحمن السيد عيسي علي",null,null,2,""]
[null,null,null,null,null,null,null,null,null,43,348,"عبدالرحمن محمد محمد مصطفي",null,null,2,""]
[null,null,null,null,null,null,null,null,null,44,349,"عبدالرحمن ممدوح حسين زهران",null,null,2,""]
[null,null,null,null,null,null,null,null,null,45,350,"عبدالعزيز نصر عبدالعزيز حسن",null,null,2,""]
[null,null,null,null,null,null,null,null,null,46,351,"عبدالغني اسماعيل عبدالغني اسماعيل",null,null,2,""]
[null,null,null,null,null,null,null,null,null,47,352,"عبدالونيس مبروك العمده عبدالونيس",null,null,2,""]
[null,null,null,null,null,null,null,null,null,48,353,"عصام السيد عصام الدين ابوطالب",null,null,2,""]
[null,null,null,null,null,null,null,null,null,49,354,"عمر ابراهيم محمد ابوالروس",null,null,2,""]
[null,null,null,null,null,null,null,null,null,50,355,"عمر احمد عمر احمد",null,null,2,""]
[null,null,null,null,null,null,null,null,null,51,356,"عمر صابر سعد بسيوني",null,null,2,""]
[null,null,null,null,null,null,null,null,null,52,357,"عمر عبدالعزيز سالم عبدالله",null,null,2,""]
[null,null,null,null,null,null,null,null,null,53,358,"عمر مدحت حسن يوسف",null,null,2,""]
[null,null,null,null,null,null,null,null,null,54,359,"عمر يسري سلامه ابراهيم",null,null,2,""]
[null,null,null,null,null,null,null,null,null,55,360,"عمرو احمد عبدالحفيظ محمود",null,null,2,"نهاية اللجنة"]
[null,null,null,null,null,null,null,null,null,"","",null,null,null,"",""]
[null,null,null,null,null,null,null,null,null,"","",null,null,null,"",""]
[null,null,null,null,null,null,null,null,null,"","",null,null,null,"",""]
[null,null,null,null,null,null,null,null,null,"","",null,null,null,"",""]
[null,null,null,null,null,null,null,null,null,"","",null,null,null,"",""]
[null,null,null,null,null,null,null,null,null,"","",null,null,null,"",""]
[null,null,null,null,null,null,null,null,null,"","",null,null,null,"",""]
[null,null,null,null,null,null,null,null,null,"","",null,null,null,"",""]
[null,null,null,null,null,null,null,null,null,"","",null,null,null,"",""]
[null,null,null,null,null,null,null,null,null,"","",null,null,null,{"$f":"IF(K69=\"\",\"\",VLOOKUP(K69,جلوس,4))","v":""},""]
[null,null,null,null,null,null,null,null,null,"","",null,null,null,"",{"$f":"IF(O70=O71,\"\",\"نهاية اللجنة\")","v":""}]
[null,null,null,null,null,null,null,null,null,{"$f":"IF(J70=\"\",\"\",IF(J70+1>$K$2,\"\",J70+1))","v":""},{"$f":"IF(K70=\"\",\"\",IF(K70+1>$K$3,\"\",K70+1))","v":""},null,null,null,"",""]
[null,null,null,null,null,null,null,null,null,"","",null,null,null,"",""]
[null,null,null,null,null,null,null,null,null,"","",null,null,null,"",""]
[null,null,null,null,null,null,null,null,null,"","",null,null,null,"",""]
[null,null,null,null,null,null,null,null,null,"","",null,null,null,"",""]
[null,null,null,null,null,null,null,null,null,"","",null,null,null,"",""]
[null,null,null,null,null,null,null,null,null,"","",null,null,null,"",""]
[null,null,null,null,null,null,null,null,null,"","",null,null,null,"",""]
[null,null,null,null,null,null,null,null,null,"","",null,null,null,"",""]
[null,null,null,null,null,null,null,null,null,"","",null,null,null,"",""]
[null,null,null,null,null,null,null,null,null,"","",null,null,null,"",""]
[null,null,null,null,null,null,null,null,null,"","",null,null,null,"",""]
[null,null,null,null,null,null,null,null,null,"","",null,null,null,"",""]
[null,null,null,null,null,null,null,null,null,"","",null,null,null,"",""]
[null,null,null,null,null,null,null,null,null,"","",null,null,null,"",""]
[null,null,null,null,null,null,null,null,null,"","",null,null,null,"",""]
[null,null,null,null,null,null,null,null,null,"","",null,null,null,"",""]
[null,null,null,null,null,null,null,null,null,"","",null,null,null,"",""]
[null,null,null,null,null,null,null,null,null,"","",null,null,null,"",""]
[null,null,null,null,null,null,null,null,null,"","",null,null,null,"",""]
[null,null,null,null,null,null,null,null,null,"","",null,null,null,"",""]
[null,null,null,null,null,null,null,null,null,"","",null,null,null,"",""]
[null,null,null,null,null,null,null,null,null,"","",null,null,null,"",""]
[null,null,null,null,null,null,null,null,null,"","",null,null,null,"",""]
[null,null,null,null,null,null,null,null,null,"","",null,null,null,"",""]
[null,null,null,null,null,null,null,null,null,"","",null,null,null,"",""]
[null,null,null,null,null,null,null,null,null,"","",null,null,null,"",""]
[null,null,null,null,null,null,null,null,null,"","",null,null,null,"",""]
[null,null,null,null,null,null,null,null,null,"","",null,null,null,"",""]
[null,null,null,null,null,null,null,null,null,"","",null,null,null,"",""]
[null,null,null,null,null,null,null,null,null,"","",null,null,null,"",""]
[null,null,null,null,null,null,null,null,null,"","",null,null,null,"",""]
[null,null,null,null,null,null,null,null,null,"","",null,null,null,"",""]
[null,null,null,null,null,null,null,null,null,"","",null,null,null,"",""]
[null,null,null,null,null,null,null,null,null,"","",null,null,null,"",""]
[null,null,null,null,null,null,null,null,null,"","",null,null,null,"",""]
[null,null,null,null,null,null,null,null,null,"","",null,null,null,"",""]
[null,null,null,null,null,null,null,null,null,"","",null,null,null,"",""]
[null,null,null,null,null,null,null,null,null,"","",null,null,null,"",""]
[null,null,null,null,null,null,null,null,null,"","",null,null,null,"",""]
[null,null,null,null,null,null,null,null,null,"","",null,null,null,"",""]
[null,null,null,null,null,null,null,null,null,"","",null,null,null,"",""]
[null,null,null,null,null,null,null,null,null,"","",null,null,null,"",""]
[null,null,null,null,null,null,null,null,null,"","",null,null,null,"",""]
[null,null,null,null,null,null,null,null,null,"","",null,null,null,"",""]
[null,null,null,null,null,null,null,null,null,"","",null,null,null,"",""]
[null,null,null,null,null,null,null,null,null,"","",null,null,null,"",""]
[null,null,null,null,null,null,null,null,null,"","",null,null,null,"",""]
[null,null,null,null,null,null,null,null,null,"","",null,null,null,"",""]
[null,null,null,null,null,null,null,null,null,"","",null,null,null,"",""]
[null,null,null,null,null,null,null,null,null,"","",null,null,null,"",""]
[null,null,null,null,null,null,null,null,null,"","",null,null,null,"",""]
[null,null,null,null,null,null,null,null,null,"","",null,null,null,"",""]
[null,null,null,null,null,null,null,null,null,"","",null,null,null,"",""]
[null,null,null,null,null,null,null,null,null,"","",null,null,null,"",""]
[null,null,null,null,null,null,null,null,null,"","",null,null,null,"",""]
[null,null,null,null,null,null,null,null,null,"","",null,null,null,"",""]
[null,null,null,null,null,null,null,null,null,"","",null,null,null,"",""]
[null,null,null,null,null,null,null,null,null,"","",null,null,null,"",""]
[null,null,null,null,null,null,null,null,null,"","",null,null,null,"",""]
[null,null,null,null,null,null,null,null,null,"","",null,null,null,"",""]
[null,null,null,null,null,null,null,null,null,"","",null,null,null,"",""]
[null,null,null,null,null,null,null,null,null,"","",null,null,null,{"$f":"IF(K133=\"\",\"\",VLOOKUP(K133,جلوس,4))","v":""},""]
[null,null,null,null,null,null,null,null,null,"","",null,null,null,"",{"$f":"IF(O134=O135,\"\",\"نهاية اللجنة\")","v":""}]
[null,null,null,null,null,null,null,null,null,{"$f":"IF(J134=\"\",\"\",IF(J134+1>$K$2,\"\",J134+1))","v":""},{"$f":"IF(K134=\"\",\"\",IF(K134+1>$K$3,\"\",K134+1))","v":""},null,null,null,"",""]
[null,null,null,null,null,null,null,null,null,"","",null,null,null,"",""]
[null,null,null,null,null,null,null,null,null,"","",null,null,null,"",""]
[null,null,null,null,null,null,null,null,null,"","",null,null,null,"",""]
[null,null,null,null,null,null,null,null,null,"","",null,null,null,"",""]
[null,null,null,null,null,null,null,null,null,"","",null,null,null,"",""]
[null,null,null,null,null,null,null,null,null,"","",null,null,null,"",""]
[null,null,null,null,null,null,null,null,null,"","",null,null,null,"",""]
[null,null,null,null,null,null,null,null,null,"","",null,null,null,"",""]
[null,null,null,null,null,null,null,null,null,"","",null,null,null,"",""]
[null,null,null,null,null,null,null,null,null,"","",null,null,null,"",""]
[null,null,null,null,null,null,null,null,null,"","",null,null,null,"",""]
[null,null,null,null,null,null,null,null,null,"","",null,null,null,"",""]
[null,null,null,null,null,null,null,null,null,"","",null,null,null,"",""]
[null,null,null,null,null,null,null,null,null,"","",null,null,null,"",""]
[null,null,null,null,null,null,null,null,null,"","",null,null,null,"",""]
[null,null,null,null,null,null,null,null,null,"","",null,null,null,"",""]
[null,null,null,null,null,null,null,null,null,"","",null,null,null,"",""]
[null,null,null,null,null,null,null,null,null,"","",null,null,null,"",""]
[null,null,null,null,null,null,null,null,null,"","",null,null,null,"",""]
[null,null,null,null,null,null,null,null,null,"","",null,null,null,"",""]
[null,null,null,null,null,null,null,null,null,"","",null,null,null,"",""]
[null,null,null,null,null,null,null,null,null,"","",null,null,null,"",""]
[null,null,null,null,null,null,null,null,null,"","",null,null,null,"",""]
[null,null,null,null,null,null,null,null,null,"","",null,null,null,"",""]
[null,null,null,null,null,null,null,null,null,"","",null,null,null,"",""]
[null,null,null,null,null,null,null,null,null,"","",null,null,null,"",""]
[null,null,null,null,null,null,null,null,null,"","",null,null,null,"",""]
[null,null,null,null,null,null,null,null,null,"","",null,null,null,"",""]
[null,null,null,null,null,null,null,null,null,"","",null,null,null,"",""]
[null,null,null,null,null,null,null,null,null,"","",null,null,null,"",""]
[null,null,null,null,null,null,null,null,null,"","",null,null,null,"",""]
[null,null,null,null,null,null,null,null,null,"","",null,null,null,"",""]
[null,null,null,null,null,null,null,null,null,"","",null,null,null,"",""]
[null,null,null,null,null,null,null,null,null,"","",null,null,null,"",""]
[null,null,null,null,null,null,null,null,null,"","",null,null,null,"",""]
[null,null,null,null,null,null,null,null,null,"","",null,null,null,"",""]
[null,null,null,null,null,null,null,null,null,"","",null,null,null,"",""]
[null,null,null,null,null,null,null,null,null,"","",null,null,null,"",""]
[null,null,null,null,null,null,null,null,null,"","",null,null,null,"",""]
[null,null,null,null,null,null,null,null,null,"","",null,null,null,"",""]
[null,null,null,null,null,null,null,null,null,"","",null,null,null,"",""]
[null,null,null,null,null,null,null,null,null,"","",null,null,null,"",""]
[null,null,null,null,null,null,null,null,null,"","",null,null,null,"",""]
[null,null,null,null,null,null,null,null,null,"","",null,null,null,"",""]
[null,null,null,null,null,null,null,null,null,"","",null,null,null,"",""]
[null,null,null,null,null,null,null,null,null,"","",null,null,null,"",""]
[null,null,null,null,null,null,null,null,null,"","",null,null,null,"",""]
[null,null,null,null,null,null,null,null,null,"","",null,null,null,"",""]
[null,null,null,null,null,null,null,null,null,"","",null,null,null,"",""]
[null,null,null,null,null,null,null,null,null,"","",null,null,null,"",""]
[null,null,null,null,null,null,null,null,null,"","",null,null,null,"",""]
[null,null,null,null,null,null,null,null,null,"","",null,null,null,"",""]
[null,null,null,null,null,null,null,null,null,"","",null,null,null,"",""]
[null,null,null,null,null,null,null,null,null,"","",null,null,null,"",""]
[null,null,null,null,null,null,null,null,null,"","",null,null,null,"",""]
[null,null,null,null,null,null,null,null,null,"","",null,null,null,"",""]
[null,null,null,null,null,null,null,null,null,"","",null,null,null,"",""]
[null,null,null,null,null,null,null,null,null,"","",null,null,null,"",""]
[null,null,null,null,null,null,null,null,null,"","",null,null,null,"",""]
[null,null,null,null,null,null,null,null,null,"","",null,null,null,"",""]
[null,null,null,null,null,null,null,null,null,"","",null,null,null,"",""]
[null,null,null,null,null,null,null,null,null,"","",null,null,null,{"$f":"IF(K197=\"\",\"\",VLOOKUP(K197,جلوس,4))","v":""},""]
[null,null,null,null,null,null,null,null,null,"","",null,null,null,"",{"$f":"IF(O198=O199,\"\",\"نهاية اللجنة\")","v":""}]
[null,null,null,null,null,null,null,null,null,{"$f":"IF(J198=\"\",\"\",IF(J198+1>$K$2,\"\",J198+1))","v":""},{"$f":"IF(K198=\"\",\"\",IF(K198+1>$K$3,\"\",K198+1))","v":""},null,null,null,"",""]
[null,null,null,null,null,null,null,null,null,"","",null,null,null,"",""]
[null,null,null,null,null,null,null,null,null,"","",null,null,null,"",""]
[null,null,null,null,null,null,null,null,null,"","",null,null,null,"",""]
[null,null,null,null,null,null,null,null,null,"","",null,null,null,"",""]
[null,null,null,null,null,null,null,null,null,"","",null,null,null,"",""]
[null,null,null,null,null,null,null,null,null,"","",null,null,null,"",""]
[null,null,null,null,null,null,null,null,null,"","",null,null,null,"",""]
[null,null,null,null,null,null,null,null,null,"","",null,null,null,"",""]
[null,null,null,null,null,null,null,null,null,"","",null,null,null,"",""]
[null,null,null,null,null,null,null,null,null,"","",null,null,null,"",""]
[null,null,null,null,null,null,null,null,null,"","",null,null,null,"",""]
[null,null,null,null,null,null,null,null,null,"","",null,null,null,"",""]
[null,null,null,null,null,null,null,null,null,"","",null,null,null,"",""]
[null,null,null,null,null,null,null,null,null,"","",null,null,null,"",""]
[null,null,null,null,null,null,null,null,null,"","",null,null,null,"",""]
[null,null,null,null,null,null,null,null,null,"","",null,null,null,"",""]
[null,null,null,null,null,null,null,null,null,"","",null,null,null,"",""]
[null,null,null,null,null,null,null,null,null,"","",null,null,null,"",""]
[null,null,null,null,null,null,null,null,null,"","",null,null,null,"",""]
[null,null,null,null,null,null,null,null,null,"","",null,null,null,"",""]
[null,null,null,null,null,null,null,null,null,"","",null,null,null,"",""]
[null,null,null,null,null,null,null,null,null,"","",null,null,null,"",""]
[null,null,null,null,null,null,null,null,null,"","",null,null,null,"",""]
[null,null,null,null,null,null,null,null,null,"","",null,null,null,"",""]
[null,null,null,null,null,null,null,null,null,"","",null,null,null,"",""]
[null,null,null,null,null,null,null,null,null,"","",null,null,null,"",""]
[null,null,null,null,null,null,null,null,null,"","",null,null,null,"",""]
[null,null,null,null,null,null,null,null,null,"","",null,null,null,"",""]
[null,null,null,null,null,null,null,null,null,"","",null,null,null,"",""]
[null,null,null,null,null,null,null,null,null,"","",null,null,null,"",""]
[null,null,null,null,null,null,null,null,null,"","",null,null,null,"",""]
[null,null,null,null,null,null,null,null,null,"","",null,null,null,"",""]
[null,null,null,null,null,null,null,null,null,"","",null,null,null,"",""]
[null,null,null,null,null,null,null,null,null,"","",null,null,null,"",""]
[null,null,null,null,null,null,null,null,null,"","",null,null,null,"",""]
[null,null,null,null,null,null,null,null,null,"","",null,null,null,"",""]
[null,null,null,null,null,null,null,null,null,"","",null,null,null,"",""]
[null,null,null,null,null,null,null,null,null,"","",null,null,null,"",""]
[null,null,null,null,null,null,null,null,null,"","",null,null,null,"",""]
[null,null,null,null,null,null,null,null,null,"","",null,null,null,"",""]
[null,null,null,null,null,null,null,null,null,"","",null,null,null,"",""]
[null,null,null,null,null,null,null,null,null,"","",null,null,null,"",""]
[null,null,null,null,null,null,null,null,null,"","",null,null,null,"",""]
[null,null,null,null,null,null,null,null,null,"","",null,null,null,"",""]
[null,null,null,null,null,null,null,null,null,"","",null,null,null,"",""]
[null,null,null,null,null,null,null,null,null,"","",null,null,null,"",""]
[null,null,null,null,null,null,null,null,null,"","",null,null,null,"",""]
[null,null,null,null,null,null,null,null,null,"","",null,null,null,"",""]
[null,null,null,null,null,null,null,null,null,"","",null,null,null,"",""]
[null,null,null,null,null,null,null,null,null,"","",null,null,null,"",""]
[null,null,null,null,null,null,null,null,null,"","",null,null,null,"",""]
[null,null,null,null,null,null,null,null,null,"","",null,null,null,"",""]
[null,null,null,null,null,null,null,null,null,"","",null,null,null,"",""]
[null,null,null,null,null,null,null,null,null,"","",null,null,null,"",""]
[null,null,null,null,null,null,null,null,null,"","",null,null,null,"",""]
[null,null,null,null,null,null,null,null,null,"","",null,null,null,"",""]
[null,null,null,null,null,null,null,null,null,"","",null,null,null,"",""]
[null,null,null,null,null,null,null,null,null,"","",null,null,null,"",""]
[null,null,null,null,null,null,null,null,null,"","",null,null,null,"",""]
[null,null,null,null,null,null,null,null,null,"","",null,null,null,"",""]
[null,null,null,null,null,null,null,null,null,"","",null,null,null,"",""]
[null,null,null,null,null,null,null,null,null,"","",null,null,null,{"$f":"IF(K261=\"\",\"\",VLOOKUP(K261,جلوس,4))","v":""},""]
[null,null,null,null,null,null,null,null,null,"","",null,null,null,"",{"$f":"IF(O262=O263,\"\",\"نهاية اللجنة\")","v":""}]
[null,null,null,null,null,null,null,null,null,{"$f":"IF(J262=\"\",\"\",IF(J262+1>$K$2,\"\",J262+1))","v":""},{"$f":"IF(K262=\"\",\"\",IF(K262+1>$K$3,\"\",K262+1))","v":""},null,null,null,"",""]
[null,null,null,null,null,null,null,null,null,"","",null,null,null,"",""]
[null,null,null,null,null,null,null,null,null,"","",null,null,null,"",""]
[null,null,null,null,null,null,null,null,null,"","",null,null,null,"",""]
[null,null,null,null,null,null,null,null,null,"","",null,null,null,"",""]
[null,null,null,null,null,null,null,null,null,"","",null,null,null,"",""]
[null,null,null,null,null,null,null,null,null,"","",null,null,null,"",""]
[null,null,null,null,null,null,null,null,null,"","",null,null,null,"",""]
[null,null,null,null,null,null,null,null,null,"","",null,null,null,"",""]
[null,null,null,null,null,null,null,null,null,"","",null,null,null,"",""]
[null,null,null,null,null,null,null,null,null,"","",null,null,null,"",""]
[null,null,null,null,null,null,null,null,null,"","",null,null,null,"",""]
[null,null,null,null,null,null,null,null,null,"","",null,null,null,"",""]
[null,null,null,null,null,null,null,null,null,"","",null,null,null,"",""]
[null,null,null,null,null,null,null,null,null,"","",null,null,null,"",""]
[null,null,null,null,null,null,null,null,null,"","",null,null,null,"",""]
[null,null,null,null,null,null,null,null,null,"","",null,null,null,"",""]
[null,null,null,null,null,null,null,null,null,"","",null,null,null,"",""]
[null,null,null,null,null,null,null,null,null,"","",null,null,null,"",""]
[null,null,null,null,null,null,null,null,null,"","",null,null,null,"",""]
[null,null,null,null,null,null,null,null,null,"","",null,null,null,"",""]
[null,null,null,null,null,null,null,null,null,"","",null,null,null,"",""]
[null,null,null,null,null,null,null,null,null,"","",null,null,null,"",""]
[null,null,null,null,null,null,null,null,null,"","",null,null,null,"",""]
[null,null,null,null,null,null,null,null,null,"","",null,null,null,"",""]
[null,null,null,null,null,null,null,null,null,"","",null,null,null,"",""]
[null,null,null,null,null,null,null,null,null,"","",null,null,null,"",""]
[null,null,null,null,null,null,null,null,null,"","",null,null,null,"",""]
[null,null,null,null,null,null,null,null,null,"","",null,null,null,"",""]
[null,null,null,null,null,null,null,null,null,"","",null,null,null,"",""]
[null,null,null,null,null,null,null,null,null,"","",null,null,null,"",""]
[null,null,null,null,null,null,null,null,null,"","",null,null,null,"",""]
[null,null,null,null,null,null,null,null,null,"","",null,null,null,"",""]
[null,null,null,null,null,null,null,null,null,"","",null,null,null,"",""]
[null,null,null,null,null,null,null,null,null,"","",null,null,null,"",""]

{"sheet":"جدول الصف الرابع والخامس","index":6,"n_rows":210,"n_cols":28,"rows_kept":210,"cut":false,"hidden":false,"merged":[[0,1,0,7],[1,3,1,5],[2,3,2,5],[3,3,3,5],[4,1,4,7],[5,9,5,10],[6,2,6,5],[6,18,6,19],[7,1,8,1],[7,2,8,2],[7,3,7,4],[7,5,8,5],[7,6,8,6],[7,7,8,7],[5,1,5,6],[9,1,10,1],[9,2,10,2],[12,1,13,1],[12,2,13,2],[14,1,15,1],[14,2,15,2],[37,1,37,6],[16,1,17,1],[16,2,17,2],[20,1,21,1],[20,2,21,2],[22,1,23,1],[22,2,23,2],[24,1,25,1],[24,2,25,2],[34,1,34,6],[35,1,35,6],[36,1,36,6],[47,1,47,2],[47,3,47,5],[38,2,38,6],[39,1,39,6],[40,1,40,6],[41,1,41,6],[46,1,46,2],[46,3,46,5]]}
[null,null,null,null,null,null,null,null,null,null,null,null,null,null,null,null,null,null,null,null,"اليوم"]
[null,null,null,"محافظة كفر الشيخ",null,null,null,null,null,null,null,null,null,null,null,null,null,null,null,null,"السبت"]
[null,null,null,"مديرية التربية والتعليم",null,null,null,null,null,null,null,null,null,null,null,null,null,null,null,null,"الأحد","لغة عربية وإملاء وخط",null,null,null,{"$f":"A2","v":"00:00:00"},null," جدول إمتحان أخر العام الدراسى"]
[null,null,null,"إدارة التعليم الإبتدائى"]
[null,"جدول إمتحانات النقل للصف الرابع والخامس الإبتدائى (الرسمى العام والرسمى لغات )"]
[null,{"$f":"اساسية!B11&\"\"&اساسية!B13","v":"الفصل الدراسى الثانى2014/ 2015 م"},null,null,null,null,null,null,null,"Time",null,"الوقت",null,null,null,null,null,null,null,null,"الاثنين","رياضيات",null,null,null,{"$f":"Z3+1","v":"1900-01-01"},null," جدول إمتحان نصف العام الدراسى"]
[null,null,null,null,null,null,null,null,null,0,null,7,null,null,null,null,null,null,"Transfer",null,"الثلاثاء","دراسات إجتماعية",null,null,null,{"$f":"Z6+1","v":"1900-01-02"}]
[null,"اليوم","التاريخ","وقت الامتحان",null,"زمن الإجابة","المادة","ملاحظات",null,1,"ساعة",7.3,null,null,null,null,null,null,0,0,"الأربعاء","علوم",null,null,null,{"$f":"Z7+1","v":"1900-01-03"}]
[null,null,null,"من","إلى",null,null,null,null,1.5,"ساعة و نصف",8,"من","إلى","تحويل من","تحويل إلى","الفرق",null,1,13,"الخميس","لغة إنجليزية",null,null,null,"1900-01-04",null,"الصف الأول الإعدادى"]
[null,"الخميس","2015-05-07",8,10.3,{"$f":"VLOOKUP(Q10,time,2,0)","v":"ساعتان و نصف"},"لغة عربية وإملاء وخط","20 ق الاخيره للاملاء",null,2,"ساعتان",8.3000000000000007,{"$f":"D10","v":8},{"$f":"E10","v":10.3},{"$f":"VLOOKUP(M10,Transfer,2,0)","v":8},{"$f":"VLOOKUP(N10,Transfer,2,0)","v":10.5},{"$f":"P10-O10","v":2.5},null,1.3,13.5,"الجمعة","حاسب الى",null,null,null,"1900-01-05",null,"الصف الثالث الإعدادى"]
[null,null,null,11,12.3,{"$f":"VLOOKUP(Q11,time,2,0)","v":"ساعة و نصف"},"تربية دينية","شفهيا للصف الثانى",null,2.5,"ساعتان و نصف",9,{"$f":"D11","v":11},12.3,{"$f":"VLOOKUP(M11,Transfer,2,0)","v":11},{"$f":"VLOOKUP(N11,Transfer,2,0)","v":12.5},1.5,null,2,14,null,"تربية فنية",null,null,null,"1900-01-06"]
[null,null,null,null,null,0,null,null,null,3,"ثلاث ساعات",9.3000000000000007,0,0,0,0,0,null,2.2999999999999998,14.5,null,"تربية دينية",null,null,null,"1900-01-07"]
[null,"السبت","2015-05-09",8,9.3000000000000007,"ساعة و نصف","رياضيات",null,null,3.5,"ثلاث ساعات و نصف",10,8,9.3000000000000007,8,9.5,1.5,null,3,15,null,"هندسة",null,null,null,"1900-01-08"]
[null,null,null,10,11.3,{"$f":"VLOOKUP(Q14,time,2,0)","v":"ساعة و نصف"},"علوم",null,null,4,"أربع ساعات",10.3,10,11.3,10,11.5,1.5,null,3.3,15.5,null,"جبر وإحصاء",null,null,null,"1900-01-09"]
[null,"الأحد","2015-05-10",8,9.3000000000000007,{"$f":"VLOOKUP(Q15,time,2,0)","v":"ساعة و نصف"},"لغة إنجليزية",null,null,4.5,"أربع ساعات و نصف",11,8,9.3000000000000007,8,9.5,1.5,null,4,16,null,null,null,null,null,"1900-01-10"]
[null,null,null,10,11.3,{"$f":"VLOOKUP(Q16,time,2,0)","v":"ساعة و نصف"},"دراسات إجتماعية",null,null,5,"خمس ساعات",11.3,10,11.3,10,11.5,1.5,null,4.3,16.5,null,null,null,null,null,"1900-01-11"]
[null,"الخميس","2015-05-10",8,10,{"$f":"VLOOKUP(Q17,time,2,0)","v":"ساعتان"},"رياضيات",null,null,5.5,"خمس ساعات و نصف",12,8,10,8,10,2,null,5,17,null,null,null,null,null,"1900-01-12"]
[null,null,null,10.3,11.3,{"$f":"VLOOKUP(Q18,time,2,0)","v":"ساعة"},"تربية دينية",null,null,6,"ست ساعات",12.3,10.3,11.3,10.5,11.5,1,null,5.3,17.5,null,null,null,null,null,"1900-01-13"]
[null,"الأربعاء","2015-05-06",8,9.3000000000000007,"ساعة و نصف","رياضيات",null,null,null,null,1,8,9.3000000000000007,8,9.5,1.5,null,6,18,null,null,null,null,null,"1900-01-14"]
[null,null,null,10,11,"ساعة","تربية دينية",null,null,null,null,1.3,10,11,10,11,1,null,6.3,18.5,null,null,null,null,null,"1900-01-15"]
[null,"الأحد","2015-01-11",8,10,"ساعتان","جبر وإحصاء",null,null,null,null,2,8,10,8,10,2,null,7,7,null,null,null,null,null,"1900-01-16"]
[null,null,null,8.3000000000000007,10,"ساعة و نصف",null,null,null,null,null,2.2999999999999998,8.3000000000000007,10,8.5,10,1.5,null,7.3,7.5,null,null,null,null,null,"1900-01-17"]
[null,"الأحد","2013-05-13",null,null,0,null,null,null,null,null,3,0,0,0,0,0,null,8,8,null,null,null,null,null,"1900-01-18"]
[null,null,null,null,null,0,null,null,null,null,null,3.3,0,0,0,0,0,null,8.3000000000000007,8.5,null,null,null,null,null,"1900-01-19"]
[null,"الإثنين","2013-05-14",null,null,0,null,null,null,null,null,4,0,0,0,0,0,null,9,9,null,null,null,null,null,"1900-01-20"]
[null,null,null,null,null,0,null,null,null,null,null,4.3,0,0,0,0,0,null,9.3000000000000007,9.5,null,null,null,null,null,"1900-01-21"]
[null,null,null,null,null,0,null,null,null,null,null,5,0,0,0,0,0,null,10,10,null,null,null,null,null,"1900-01-22"]
[null,"الأربعاء","2015-05-06",8,9.3000000000000007,{"$f":"VLOOKUP(Q28,time,2,0)","v":0},"رياضيات",null,null,null,null,5.3,null,null,null,null,null,null,10.3,10.5,null,null,null,null,null,{"$f":"Z27+1","v":"1900-01-23"}]
[null,null,null,10,11,0,"تربية دينية"]
[null,"الأربعاء","2015-05-06",8,9.3000000000000007,0,"رياضيات"]
[null,null,null,10,11,0,"تربية دينية"]
[null,"الأربعاء","2015-05-06",8,9.3000000000000007,0,"رياضيات"]
[null,null,null,10,11,0,"تربية دينية"]
[null,"تعليمات"]
[null,"1 - يتم الإمتحان على مسؤلية المدرسة وبإشراف التوجيه ."]
[null,"2 - يتم النقل أليا من الصف الاول للصف الثانى ومن الصف الثانى الى الصف الثالث"]
[null,"3 - يتم إمتحان الطلاب المتخلفين عن الفصل الدراسى الاول بعذر مقبول بمعرفة المدرسة وطبقا لهذا الجدول ."]
[null,"4 -التقويم يكون شفهيا فى جميع المواد للصف الاول الابتدائى فى الفصل الدراسى الثانى  "]
[null,null,"ويكون تحريريا للصف الثانى ويتم تفدير الاجابات فى صورة تقديرات فقط."]
[null,"5 - تضاف درجة الطالب فى الانشطة الاجباريه وكذا الانشطه الاختيارية الى المجموع الكلى."]
[null,"6- تقويم الانشطه التربوية يكون عمليا ويعقد قبل الامتحان بوقت كاف.",null,null,null,null,null,null,null,null,null,6,null,null,null,null,null,null,11,11,null,null,null,null,null,{"$f":"Z28+1","v":"1900-01-24"}]
[null,"7 - يتم ترتيب الاوائل وفقا للمجموع الكلى للمواد الاساسية فالاضغر سنا فالترتيب الهجائى."]
[]
[]
[]
[]
[null,"إحصاء وحاسب ألى",null,"رئيس لجنة النظام والمراقبة",null,null,"يعتمد .. مدير المدرسة"]
[null,"..............................",null,".......................................",null,null,"...............................",null,null,null,null,null,null,null,null,null,null,null,11.3,11.5,null,null,null,null,null,{"$f":"Z41+1","v":"1900-01-25"}]
[null,null,null,null,null,null,null,null,null,null,null,null,null,null,null,null,null,null,12,12,null,null,null,null,null,"1900-01-26"]
[null,null,null,null,null,null,null,null,null,null,null,null,null,null,null,null,null,null,12.3,12.5,null,null,null,null,null,"1900-01-27"]
[null,null,null,null,null,null,null,null,null,null,null,null,null,null,null,null,null,null,null,null,null,null,null,null,null,"1900-01-28"]
[null,null,null,null,null,null,null,null,null,null,null,null,null,null,null,null,null,null,null,null,null,null,null,null,null,"1900-01-29"]
[null,null,null,null,null,null,null,null,null,null,null,null,null,null,null,null,null,null,null,null,null,null,null,null,null,"1900-01-30"]
[null,null,null,null,null,null,null,null,null,null,null,null,null,null,null,null,null,null,null,null,null,null,null,null,null,"1900-01-31"]
[null,null,null,null,null,null,null,null,null,null,null,null,null,null,null,null,null,null,null,null,null,null,null,null,null,"1900-02-01"]
[null,null,null,null,null,null,null,null,null,null,null,null,null,null,null,null,null,null,null,null,null,null,null,null,null,"1900-02-02"]
[null,null,null,null,null,null,null,null,null,null,null,null,null,null,null,null,null,null,null,null,null,null,null,null,null,"1900-02-03"]
[null,null,null,null,null,null,null,null,null,null,null,null,null,null,null,null,null,null,null,null,null,null,null,null,null,"1900-02-04"]
[null,null,null,null,null,null,null,null,null,null,null,null,null,null,null,null,null,null,null,null,null,null,null,null,null,"1900-02-05"]
[null,null,null,null,null,null,null,null,null,null,null,null,null,null,null,null,null,null,null,null,null,null,null,null,null,"1900-02-06"]
[null,null,null,null,null,null,null,null,null,null,null,null,null,null,null,null,null,null,null,null,null,null,null,null,null,"1900-02-07"]
[null,null,null,null,null,null,null,null,null,null,null,null,null,null,null,null,null,null,null,null,null,null,null,null,null,"1900-02-08"]
[null,null,null,null,null,null,null,null,null,null,null,null,null,null,null,null,null,null,null,null,null,null,null,null,null,"1900-02-09"]
[null,null,null,null,null,null,null,null,null,null,null,null,null,null,null,null,null,null,null,null,null,null,null,null,null,"1900-02-10"]
[null,null,null,null,null,null,null,null,null,null,null,null,null,null,null,null,null,null,null,null,null,null,null,null,null,"1900-02-11"]
[null,null,null,null,null,null,null,null,null,null,null,null,null,null,null,null,null,null,null,null,null,null,null,null,null,"1900-02-12"]
[null,null,null,null,null,null,null,null,null,null,null,null,null,null,null,null,null,null,null,null,null,null,null,null,null,"1900-02-13"]
[null,null,null,null,null,null,null,null,null,null,null,null,null,null,null,null,null,null,null,null,null,null,null,null,null,"1900-02-14"]
[null,null,null,null,null,null,null,null,null,null,null,null,null,null,null,null,null,null,null,null,null,null,null,null,null,"1900-02-15"]
[null,null,null,null,null,null,null,null,null,null,null,null,null,null,null,null,null,null,null,null,null,null,null,null,null,"1900-02-16"]
[null,null,null,null,null,null,null,null,null,null,null,null,null,null,null,null,null,null,null,null,null,null,null,null,null,"1900-02-17"]
[null,null,null,null,null,null,null,null,null,null,null,null,null,null,null,null,null,null,null,null,null,null,null,null,null,{"$f":"A3","v":"00:00:00"}]
[null,null,null,null,null,null,null,null,null,null,null,null,null,null,null,null,null,null,null,null,null,null,null,null,null,{"$f":"Z72+1","v":"1900-01-01"}]
[null,null,null,null,null,null,null,null,null,null,null,null,null,null,null,null,null,null,null,null,null,null,null,null,null,{"$f":"Z73+1","v":"1900-01-02"}]
[null,null,null,null,null,null,null,null,null,null,null,null,null,null,null,null,null,null,null,null,null,null,null,null,null,"1900-01-03"]
[null,null,null,null,null,null,null,null,null,null,null,null,null,null,null,null,null,null,null,null,null,null,null,null,null,"1900-01-04"]
[null,null,null,null,null,null,null,null,null,null,null,null,null,null,null,null,null,null,null,null,null,null,null,null,null,"1900-01-05"]
[null,null,null,null,null,null,null,null,null,null,null,null,null,null,null,null,null,null,null,null,null,null,null,null,null,"1900-01-06"]
[null,null,null,null,null,null,null,null,null,null,null,null,null,null,null,null,null,null,null,null,null,null,null,null,null,"1900-01-07"]
[null,null,null,null,null,null,null,null,null,null,null,null,null,null,null,null,null,null,null,null,null,null,null,null,null,"1900-01-08"]
[null,null,null,null,null,null,null,null,null,null,null,null,null,null,null,null,null,null,null,null,null,null,null,null,null,"1900-01-09"]
[null,null,null,null,null,null,null,null,null,null,null,null,null,null,null,null,null,null,null,null,null,null,null,null,null,"1900-01-10"]
[null,null,null,null,null,null,null,null,null,null,null,null,null,null,null,null,null,null,null,null,null,null,null,null,null,"1900-01-11"]
[null,null,null,null,null,null,null,null,null,null,null,null,null,null,null,null,null,null,null,null,null,null,null,null,null,"1900-01-12"]
[null,null,null,null,null,null,null,null,null,null,null,null,null,null,null,null,null,null,null,null,null,null,null,null,null,"1900-01-13"]
[null,null,null,null,null,null,null,null,null,null,null,null,null,null,null,null,null,null,null,null,null,null,null,null,null,"1900-01-14"]
[null,null,null,null,null,null,null,null,null,null,null,null,null,null,null,null,null,null,null,null,null,null,null,null,null,"1900-01-15"]
[null,null,null,null,null,null,null,null,null,null,null,null,null,null,null,null,null,null,null,null,null,null,null,null,null,"1900-01-16"]
[null,null,null,null,null,null,null,null,null,null,null,null,null,null,null,null,null,null,null,null,null,null,null,null,null,"1900-01-17"]
[null,null,null,null,null,null,null,null,null,null,null,null,null,null,null,null,null,null,null,null,null,null,null,null,null,"1900-01-18"]
[null,null,null,null,null,null,null,null,null,null,null,null,null,null,null,null,null,null,null,null,null,null,null,null,null,"1900-01-19"]
[null,null,null,null,null,null,null,null,null,null,null,null,null,null,null,null,null,null,null,null,null,null,null,null,null,"1900-01-20"]
[null,null,null,null,null,null,null,null,null,null,null,null,null,null,null,null,null,null,null,null,null,null,null,null,null,"1900-01-21"]
[null,null,null,null,null,null,null,null,null,null,null,null,null,null,null,null,null,null,null,null,null,null,null,null,null,"1900-01-22"]
[null,null,null,null,null,null,null,null,null,null,null,null,null,null,null,null,null,null,null,null,null,null,null,null,null,"1900-01-23"]
[null,null,null,null,null,null,null,null,null,null,null,null,null,null,null,null,null,null,null,null,null,null,null,null,null,"1900-01-24"]
[null,null,null,null,null,null,null,null,null,null,null,null,null,null,null,null,null,null,null,null,null,null,null,null,null,"1900-01-25"]
[null,null,null,null,null,null,null,null,null,null,null,null,null,null,null,null,null,null,null,null,null,null,null,null,null,"1900-01-26"]
[null,null,null,null,null,null,null,null,null,null,null,null,null,null,null,null,null,null,null,null,null,null,null,null,null,"1900-01-27"]
[null,null,null,null,null,null,null,null,null,null,null,null,null,null,null,null,null,null,null,null,null,null,null,null,null,"1900-01-28"]
[null,null,null,null,null,null,null,null,null,null,null,null,null,null,null,null,null,null,null,null,null,null,null,null,null,"1900-01-29"]
[null,null,null,null,null,null,null,null,null,null,null,null,null,null,null,null,null,null,null,null,null,null,null,null,null,"1900-01-30"]
[null,null,null,null,null,null,null,null,null,null,null,null,null,null,null,null,null,null,null,null,null,null,null,null,null,"1900-01-31"]
[null,null,null,null,null,null,null,null,null,null,null,null,null,null,null,null,null,null,null,null,null,null,null,null,null,"1900-02-01"]
[null,null,null,null,null,null,null,null,null,null,null,null,null,null,null,null,null,null,null,null,null,null,null,null,null,"1900-02-02"]
[null,null,null,null,null,null,null,null,null,null,null,null,null,null,null,null,null,null,null,null,null,null,null,null,null,"1900-02-03"]
[null,null,null,null,null,null,null,null,null,null,null,null,null,null,null,null,null,null,null,null,null,null,null,null,null,"1900-02-04"]
[null,null,null,null,null,null,null,null,null,null,null,null,null,null,null,null,null,null,null,null,null,null,null,null,null,"1900-02-05"]
[null,null,null,null,null,null,null,null,null,null,null,null,null,null,null,null,null,null,null,null,null,null,null,null,null,"1900-02-06"]
[null,null,null,null,null,null,null,null,null,null,null,null,null,null,null,null,null,null,null,null,null,null,null,null,null,"1900-02-07"]
[null,null,null,null,null,null,null,null,null,null,null,null,null,null,null,null,null,null,null,null,null,null,null,null,null,"1900-02-08"]
[null,null,null,null,null,null,null,null,null,null,null,null,null,null,null,null,null,null,null,null,null,null,null,null,null,"1900-02-09"]
[null,null,null,null,null,null,null,null,null,null,null,null,null,null,null,null,null,null,null,null,null,null,null,null,null,"1900-02-10"]
[null,null,null,null,null,null,null,null,null,null,null,null,null,null,null,null,null,null,null,null,null,null,null,null,null,"1900-02-11"]
[null,null,null,null,null,null,null,null,null,null,null,null,null,null,null,null,null,null,null,null,null,null,null,null,null,"1900-02-12"]
[null,null,null,null,null,null,null,null,null,null,null,null,null,null,null,null,null,null,null,null,null,null,null,null,null,"1900-02-13"]
[null,null,null,null,null,null,null,null,null,null,null,null,null,null,null,null,null,null,null,null,null,null,null,null,null,"1900-02-14"]
[null,null,null,null,null,null,null,null,null,null,null,null,null,null,null,null,null,null,null,null,null,null,null,null,null,"1900-02-15"]
[null,null,null,null,null,null,null,null,null,null,null,null,null,null,null,null,null,null,null,null,null,null,null,null,null,"1900-02-16"]
[null,null,null,null,null,null,null,null,null,null,null,null,null,null,null,null,null,null,null,null,null,null,null,null,null,"1900-02-17"]
[null,null,null,null,null,null,null,null,null,null,null,null,null,null,null,null,null,null,null,null,null,null,null,null,null,"1900-02-18"]
[null,null,null,null,null,null,null,null,null,null,null,null,null,null,null,null,null,null,null,null,null,null,null,null,null,"1900-02-19"]
[null,null,null,null,null,null,null,null,null,null,null,null,null,null,null,null,null,null,null,null,null,null,null,null,null,"1900-02-20"]
[null,null,null,null,null,null,null,null,null,null,null,null,null,null,null,null,null,null,null,null,null,null,null,null,null,"1900-02-21"]
[null,null,null,null,null,null,null,null,null,null,null,null,null,null,null,null,null,null,null,null,null,null,null,null,null,"1900-02-22"]
[null,null,null,null,null,null,null,null,null,null,null,null,null,null,null,null,null,null,null,null,null,null,null,null,null,"1900-02-23"]
[null,null,null,null,null,null,null,null,null,null,null,null,null,null,null,null,null,null,null,null,null,null,null,null,null,"1900-02-24"]
[null,null,null,null,null,null,null,null,null,null,null,null,null,null,null,null,null,null,null,null,null,null,null,null,null,"1900-02-25"]
[null,null,null,null,null,null,null,null,null,null,null,null,null,null,null,null,null,null,null,null,null,null,null,null,null,"1900-02-26"]
[null,null,null,null,null,null,null,null,null,null,null,null,null,null,null,null,null,null,null,null,null,null,null,null,null,"1900-02-27"]
[null,null,null,null,null,null,null,null,null,null,null,null,null,null,null,null,null,null,null,null,null,null,null,null,null,"1900-02-28"]
[null,null,null,null,null,null,null,null,null,null,null,null,null,null,null,null,null,null,null,null,null,null,null,null,null,60]
[null,null,null,null,null,null,null,null,null,null,null,null,null,null,null,null,null,null,null,null,null,null,null,null,null,"1900-03-01"]
[null,null,null,null,null,null,null,null,null,null,null,null,null,null,null,null,null,null,null,null,null,null,null,null,null,"1900-03-02"]
[null,null,null,null,null,null,null,null,null,null,null,null,null,null,null,null,null,null,null,null,null,null,null,null,null,"1900-03-03"]
[null,null,null,null,null,null,null,null,null,null,null,null,null,null,null,null,null,null,null,null,null,null,null,null,null,"1900-03-04"]
[null,null,null,null,null,null,null,null,null,null,null,null,null,null,null,null,null,null,null,null,null,null,null,null,null,"1900-03-05"]
[null,null,null,null,null,null,null,null,null,null,null,null,null,null,null,null,null,null,null,null,null,null,null,null,null,{"$f":"Z137+1","v":"1900-03-06"}]
[null,null,null,null,null,null,null,null,null,null,null,null,null,null,null,null,null,null,null,null,null,null,null,null,null,"1900-03-07"]
[null,null,null,null,null,null,null,null,null,null,null,null,null,null,null,null,null,null,null,null,null,null,null,null,null,"1900-03-08"]
[null,null,null,null,null,null,null,null,null,null,null,null,null,null,null,null,null,null,null,null,null,null,null,null,null,"1900-03-09"]
[null,null,null,null,null,null,null,null,null,null,null,null,null,null,null,null,null,null,null,null,null,null,null,null,null,"1900-03-10"]
[null,null,null,null,null,null,null,null,null,null,null,null,null,null,null,null,null,null,null,null,null,null,null,null,null,"1900-03-11"]
[null,null,null,null,null,null,null,null,null,null,null,null,null,null,null,null,null,null,null,null,null,null,null,null,null,"1900-03-12"]
[null,null,null,null,null,null,null,null,null,null,null,null,null,null,null,null,null,null,null,null,null,null,null,null,null,"1900-03-13"]
[null,null,null,null,null,null,null,null,null,null,null,null,null,null,null,null,null,null,null,null,null,null,null,null,null,"1900-03-14"]
[null,null,null,null,null,null,null,null,null,null,null,null,null,null,null,null,null,null,null,null,null,null,null,null,null,"1900-03-15"]
[null,null,null,null,null,null,null,null,null,null,null,null,null,null,null,null,null,null,null,null,null,null,null,null,null,"1900-03-16"]
[null,null,null,null,null,null,null,null,null,null,null,null,null,null,null,null,null,null,null,null,null,null,null,null,null,"1900-03-17"]
[null,null,null,null,null,null,null,null,null,null,null,null,null,null,null,null,null,null,null,null,null,null,null,null,null,"1900-03-18"]
[null,null,null,null,null,null,null,null,null,null,null,null,null,null,null,null,null,null,null,null,null,null,null,null,null,"1900-03-19"]
[null,null,null,null,null,null,null,null,null,null,null,null,null,null,null,null,null,null,null,null,null,null,null,null,null,"1900-03-20"]
[null,null,null,null,null,null,null,null,null,null,null,null,null,null,null,null,null,null,null,null,null,null,null,null,null,"1900-03-21"]
[null,null,null,null,null,null,null,null,null,null,null,null,null,null,null,null,null,null,null,null,null,null,null,null,null,"1900-03-22"]
[null,null,null,null,null,null,null,null,null,null,null,null,null,null,null,null,null,null,null,null,null,null,null,null,null,"1900-03-23"]
[null,null,null,null,null,null,null,null,null,null,null,null,null,null,null,null,null,null,null,null,null,null,null,null,null,"1900-03-24"]
[null,null,null,null,null,null,null,null,null,null,null,null,null,null,null,null,null,null,null,null,null,null,null,null,null,"1900-03-25"]
[null,null,null,null,null,null,null,null,null,null,null,null,null,null,null,null,null,null,null,null,null,null,null,null,null,"1900-03-26"]
[null,null,null,null,null,null,null,null,null,null,null,null,null,null,null,null,null,null,null,null,null,null,null,null,null,"1900-03-27"]
[null,null,null,null,null,null,null,null,null,null,null,null,null,null,null,null,null,null,null,null,null,null,null,null,null,"1900-03-28"]
[null,null,null,null,null,null,null,null,null,null,null,null,null,null,null,null,null,null,null,null,null,null,null,null,null,{"$f":"Z160+1","v":"1900-03-29"}]
[null,null,null,null,null,null,null,null,null,null,null,null,null,null,null,null,null,null,null,null,null,null,null,null,null,{"$f":"Z161+1","v":"1900-03-30"}]
[null,null,null,null,null,null,null,null,null,null,null,null,null,null,null,null,null,null,null,null,null,null,null,null,null,"1900-03-31"]
[null,null,null,null,null,null,null,null,null,null,null,null,null,null,null,null,null,null,null,null,null,null,null,null,null,"1900-04-01"]
[null,null,null,null,null,null,null,null,null,null,null,null,null,null,null,null,null,null,null,null,null,null,null,null,null,"1900-04-02"]
[null,null,null,null,null,null,null,null,null,null,null,null,null,null,null,null,null,null,null,null,null,null,null,null,null,"1900-04-03"]
[null,null,null,null,null,null,null,null,null,null,null,null,null,null,null,null,null,null,null,null,null,null,null,null,null,"1900-04-04"]
[null,null,null,null,null,null,null,null,null,null,null,null,null,null,null,null,null,null,null,null,null,null,null,null,null,"1900-04-05"]
[null,null,null,null,null,null,null,null,null,null,null,null,null,null,null,null,null,null,null,null,null,null,null,null,null,"1900-04-06"]
[null,null,null,null,null,null,null,null,null,null,null,null,null,null,null,null,null,null,null,null,null,null,null,null,null,"1900-04-07"]
[null,null,null,null,null,null,null,null,null,null,null,null,null,null,null,null,null,null,null,null,null,null,null,null,null,"1900-04-08"]
[null,null,null,null,null,null,null,null,null,null,null,null,null,null,null,null,null,null,null,null,null,null,null,null,null,"1900-04-09"]
[null,null,null,null,null,null,null,null,null,null,null,null,null,null,null,null,null,null,null,null,null,null,null,null,null,"1900-04-10"]
[null,null,null,null,null,null,null,null,null,null,null,null,null,null,null,null,null,null,null,null,null,null,null,null,null,"1900-04-11"]
[null,null,null,null,null,null,null,null,null,null,null,null,null,null,null,null,null,null,null,null,null,null,null,null,null,"1900-04-12"]
[null,null,null,null,null,null,null,null,null,null,null,null,null,null,null,null,null,null,null,null,null,null,null,null,null,"1900-04-13"]
[null,null,null,null,null,null,null,null,null,null,null,null,null,null,null,null,null,null,null,null,null,null,null,null,null,"1900-04-14"]
[null,null,null,null,null,null,null,null,null,null,null,null,null,null,null,null,null,null,null,null,null,null,null,null,null,"1900-04-15"]
[null,null,null,null,null,null,null,null,null,null,null,null,null,null,null,null,null,null,null,null,null,null,null,null,null,"1900-04-16"]
[null,null,null,null,null,null,null,null,null,null,null,null,null,null,null,null,null,null,null,null,null,null,null,null,null,"1900-04-17"]
[null,null,null,null,null,null,null,null,null,null,null,null,null,null,null,null,null,null,null,null,null,null,null,null,null,"1900-04-18"]
[null,null,null,null,null,null,null,null,null,null,null,null,null,null,null,null,null,null,null,null,null,null,null,null,null,"1900-04-19"]
[null,null,null,null,null,null,null,null,null,null,null,null,null,null,null,null,null,null,null,null,null,null,null,null,null,"1900-04-20"]
[null,null,null,null,null,null,null,null,null,null,null,null,null,null,null,null,null,null,null,null,null,null,null,null,null,"1900-04-21"]
[null,null,null,null,null,null,null,null,null,null,null,null,null,null,null,null,null,null,null,null,null,null,null,null,null,"1900-04-22"]
[null,null,null,null,null,null,null,null,null,null,null,null,null,null,null,null,null,null,null,null,null,null,null,null,null,"1900-04-23"]
[null,null,null,null,null,null,null,null,null,null,null,null,null,null,null,null,null,null,null,null,null,null,null,null,null,"1900-04-24"]
[null,null,null,null,null,null,null,null,null,null,null,null,null,null,null,null,null,null,null,null,null,null,null,null,null,"1900-04-25"]
[null,null,null,null,null,null,null,null,null,null,null,null,null,null,null,null,null,null,null,null,null,null,null,null,null,"1900-04-26"]
[null,null,null,null,null,null,null,null,null,null,null,null,null,null,null,null,null,null,null,null,null,null,null,null,null,"1900-04-27"]
[null,null,null,null,null,null,null,null,null,null,null,null,null,null,null,null,null,null,null,null,null,null,null,null,null,{"$f":"Z190+1","v":"1900-04-28"}]
[null,null,null,null,null,null,null,null,null,null,null,null,null,null,null,null,null,null,null,null,null,null,null,null,null,{"$f":"Z191+1","v":"1900-04-29"}]
[null,null,null,null,null,null,null,null,null,null,null,null,null,null,null,null,null,null,null,null,null,null,null,null,null,"1900-04-30"]
[null,null,null,null,null,null,null,null,null,null,null,null,null,null,null,null,null,null,null,null,null,null,null,null,null,"1900-05-01"]
[null,null,null,null,null,null,null,null,null,null,null,null,null,null,null,null,null,null,null,null,null,null,null,null,null,"1900-05-02"]
[null,null,null,null,null,null,null,null,null,null,null,null,null,null,null,null,null,null,null,null,null,null,null,null,null,"1900-05-03"]
[null,null,null,null,null,null,null,null,null,null,null,null,null,null,null,null,null,null,null,null,null,null,null,null,null,"1900-05-04"]
[null,null,null,null,null,null,null,null,null,null,null,null,null,null,null,null,null,null,null,null,null,null,null,null,null,"1900-05-05"]
[null,null,null,null,null,null,null,null,null,null,null,null,null,null,null,null,null,null,null,null,null,null,null,null,null,"1900-05-06"]
[null,null,null,null,null,null,null,null,null,null,null,null,null,null,null,null,null,null,null,null,null,null,null,null,null,"1900-05-07"]
[null,null,null,null,null,null,null,null,null,null,null,null,null,null,null,null,null,null,null,null,null,null,null,null,null,"1900-05-08"]
[null,null,null,null,null,null,null,null,null,null,null,null,null,null,null,null,null,null,null,null,null,null,null,null,null,"1900-05-09"]
[null,null,null,null,null,null,null,null,null,null,null,null,null,null,null,null,null,null,null,null,null,null,null,null,null,"1900-05-10"]
[null,null,null,null,null,null,null,null,null,null,null,null,null,null,null,null,null,null,null,null,null,null,null,null,null,"1900-05-11"]
[null,null,null,null,null,null,null,null,null,null,null,null,null,null,null,null,null,null,null,null,null,null,null,null,null,"1900-05-12"]
[null,null,null,null,null,null,null,null,null,null,null,null,null,null,null,null,null,null,null,null,null,null,null,null,null,"1900-05-13"]
[null,null,null,null,null,null,null,null,null,null,null,null,null,null,null,null,null,null,null,null,null,null,null,null,null,"1900-05-14"]
[null,null,null,null,null,null,null,null,null,null,null,null,null,null,null,null,null,null,null,null,null,null,null,null,null,"1900-05-15"]
[null,null,null,null,null,null,null,null,null,null,null,null,null,null,null,null,null,null,null,null,null,null,null,null,null,"1900-05-16"]
[null,null,null,null,null,null,null,null,null,null,null,null,null,null,null,null,null,null,null,null,null,null,null,null,null,"1900-05-17"]

{"sheet":"جدول الصف الثانى والثالث","index":7,"n_rows":204,"n_cols":28,"rows_kept":204,"cut":false,"hidden":false,"merged":[[9,1,10,1],[9,2,10,2],[12,1,13,1],[0,1,0,7],[1,3,1,5],[2,3,2,5],[3,3,3,5],[4,1,4,7],[5,9,5,10],[6,2,6,5],[6,18,6,19],[7,1,8,1],[7,2,8,2],[7,3,7,4],[7,5,8,5],[7,6,8,6],[7,7,8,7],[5,1,5,2],[5,3,5,6],[12,2,13,2],[15,3,15,6],[31,1,31,6],[18,1,19,1],[18,2,19,2],[20,1,21,1],[20,2,21,2],[22,1,23,1],[22,2,23,2],[24,1,25,1],[24,2,25,2],[28,1,28,6],[29,1,29,6],[30,1,30,6],[16,1,17,1],[16,2,17,2],[41,1,41,2],[41,3,41,5],[32,2,32,6],[33,1,33,6],[34,1,34,6],[35,1,35,6],[40,1,40,2],[40,3,40,5]]}
[null,null,null,null,null,null,null,null,null,null,null,null,null,null,null,null,null,null,null,null,"اليوم"]
[null,null,null,"محافظة كفر الشيخ",null,null,null,null,null,null,null,null,null,null,null,null,null,null,null,null,"السبت"]
[null,null,null,"مديرية التربية والتعليم",null,null,null,null,null,null,null,null,null,null,null,null,null,null,null,null,"الأحد","لغة عربية وإملاء وخط",null,null,null,{"$f":"A2","v":"00:00:00"},null," جدول إمتحان أخر العام الدراسى"]
[null,null,null,"إدارة التعليم الإبتدائى"]
[null,"جدول إمتحانات النقل للصف الثانى والثالث الإبتدائى (الرسمى العام والرسمى لغات )"]
[null,"(الصف الثانى)",null,{"$f":"اساسية!B11&\"\"&اساسية!B13","v":"الفصل الدراسى الثانى2014/ 2015 م"},null,null,null,null,null,"Time",null,"الوقت",null,null,null,null,null,null,null,null,"الاثنين","رياضيات",null,null,null,{"$f":"Z3+1","v":"1900-01-01"},null," جدول إمتحان نصف العام الدراسى"]
[null,null,null,null,null,null,null,null,null,0,null,7,null,null,null,null,null,null,"Transfer",null,"الثلاثاء","دراسات إجتماعية",null,null,null,{"$f":"Z6+1","v":"1900-01-02"}]
[null,"اليوم","التاريخ","وقت الامتحان",null,"زمن الإجابة","المادة","ملاحظات",null,1,"ساعة",7.3,null,null,null,null,null,null,0,0,"الأربعاء","علوم",null,null,null,{"$f":"Z7+1","v":"1900-01-03"}]
[null,null,null,"من","إلى",null,null,null,null,1.5,"ساعة و نصف",8,"من","إلى","تحويل من","تحويل إلى","الفرق",null,1,13,"الخميس","لغة إنجليزية",null,null,null,"1900-01-04",null,"الصف الأول الإعدادى"]
[null,"الثلاثاء","2015-05-05",8,10,{"$f":"VLOOKUP(Q10,time,2,0)","v":"ساعتان"},"لغة عربية وإملاء وخط","20 ق الاخيره للاملاء",null,2,"ساعتان",8.3000000000000007,{"$f":"D10","v":8},{"$f":"E10","v":10},{"$f":"VLOOKUP(M10,Transfer,2,0)","v":8},{"$f":"VLOOKUP(N10,Transfer,2,0)","v":10},{"$f":"P10-O10","v":2},null,1.3,13.5,"الجمعة","حاسب الى",null,null,null,"1900-01-05",null,"الصف الثالث الإعدادى"]
[null,null,null,10.3,12,{"$f":"VLOOKUP(Q11,time,2,0)","v":"ساعة و نصف"},"لغة إنجليزية","شفهيا للصف الثانى",null,2.5,"ساعتان و نصف",9,{"$f":"D11","v":10.3},12,{"$f":"VLOOKUP(M11,Transfer,2,0)","v":10.5},{"$f":"VLOOKUP(N11,Transfer,2,0)","v":12},1.5,null,2,14,null,"تربية فنية",null,null,null,"1900-01-06"]
[null,null,null,null,null,0,null,null,null,3,"ثلاث ساعات",9.3000000000000007,0,0,0,0,0,null,2.2999999999999998,14.5,null,"تربية دينية",null,null,null,"1900-01-07"]
[null,"الأربعاء","2015-05-06",8,9.3000000000000007,"ساعة و نصف","رياضيات",null,null,3.5,"ثلاث ساعات و نصف",10,8,9.3000000000000007,8,9.5,1.5,null,3,15,null,"هندسة",null,null,null,"1900-01-08"]
[null,null,null,10,11,"ساعة","تربية دينية",null,null,4,"أربع ساعات",10.3,10,11,10,11,1,null,3.3,15.5,null,"جبر وإحصاء",null,null,null,"1900-01-09"]
[null,null,null,null,null,null,null,null,null,4.5,"أربع ساعات و نصف",11,0,0,0,0,0,null,4,16,null,null,null,null,null,"1900-01-10"]
[null,null,"(الصف الثالث)",{"$f":"اساسية!B11&\"\"&اساسية!B13","v":"الفصل الدراسى الثانى2014/ 2015 م"},null,null,null,null,null,5,"خمس ساعات",11.3,"الفصل الدراسى الثانى2014/ 2015 م",0,{"$error":"#N/A"},0,{"$error":"#N/A"},null,4.3,16.5,null,null,null,null,null,"1900-01-11"]
[null,"الثلاثاء","2015-05-05",8,10,"ساعتان","لغة عربية وإملاء وخط",null,null,5.5,"خمس ساعات و نصف",12,8,10,8,10,2,null,5,17,null,null,null,null,null,"1900-01-12"]
[null,null,null,10.3,12,"ساعة و نصف","لغة إنجليزية",null,null,6,"ست ساعات",12.3,10.3,12,10.5,12,1.5,null,5.3,17.5,null,null,null,null,null,"1900-01-13"]
[null,"الأربعاء","2015-05-06",8,9.3000000000000007,"ساعة و نصف","رياضيات",null,null,null,null,1,8,9.3000000000000007,8,9.5,1.5,null,6,18,null,null,null,null,null,"1900-01-14"]
[null,null,null,10,11,"ساعة","تربية دينية",null,null,null,null,1.3,10,11,10,11,1,null,6.3,18.5,null,null,null,null,null,"1900-01-15"]
[null,"الأحد","2015-01-11",8,10,"ساعتان","جبر وإحصاء",null,null,null,null,2,8,10,8,10,2,null,7,7,null,null,null,null,null,"1900-01-16"]
[null,null,null,8.3000000000000007,10,"ساعة و نصف",null,null,null,null,null,2.2999999999999998,8.3000000000000007,10,8.5,10,1.5,null,7.3,7.5,null,null,null,null,null,"1900-01-17"]
[null,"الأحد","2013-05-13",null,null,0,null,null,null,null,null,3,0,0,0,0,0,null,8,8,null,null,null,null,null,"1900-01-18"]
[null,null,null,null,null,0,null,null,null,null,null,3.3,0,0,0,0,0,null,8.3000000000000007,8.5,null,null,null,null,null,"1900-01-19"]
[null,"الإثنين","2013-05-14",null,null,0,null,null,null,null,null,4,0,0,0,0,0,null,9,9,null,null,null,null,null,"1900-01-20"]
[null,null,null,null,null,0,null,null,null,null,null,4.3,0,0,0,0,0,null,9.3000000000000007,9.5,null,null,null,null,null,"1900-01-21"]
[null,null,null,null,null,0,null,null,null,null,null,5,0,0,0,0,0,null,10,10,null,null,null,null,null,"1900-01-22"]
[null,"تعليمات",null,null,null,null,null,null,null,null,null,5.3,null,null,null,null,null,null,10.3,10.5,null,null,null,null,null,{"$f":"Z27+1","v":"1900-01-23"}]
[null,"1 - يتم الإمتحان على مسؤلية المدرسة وبإشراف التوجيه ."]
[null,"2 - يتم النقل أليا من الصف الاول للصف الثانى ومن الصف الثانى الى الصف الثالث"]
[null,"3 - يتم إمتحان الطلاب المتخلفين عن الفصل الدراسى الاول بعذر مقبول بمعرفة المدرسة وطبقا لهذا الجدول ."]
[null,"4 -التقويم يكون شفهيا فى جميع المواد للصف الاول الابتدائى فى الفصل الدراسى الثانى  "]
[null,null,"ويكون تحريريا للصف الثانى ويتم تفدير الاجابات فى صورة تقديرات فقط."]
[null,"5 - تضاف درجة الطالب فى الانشطة الاجباريه وكذا الانشطه الاختيارية الى المجموع الكلى."]
[null,"6- تقويم الانشطه التربوية يكون عمليا ويعقد قبل الامتحان بوقت كاف.",null,null,null,null,null,null,null,null,null,6,null,null,null,null,null,null,11,11,null,null,null,null,null,{"$f":"Z28+1","v":"1900-01-24"}]
[null,"7 - يتم ترتيب الاوائل وفقا للمجموع الكلى للمواد الاساسية فالاضغر سنا فالترتيب الهجائى."]
[]
[]
[]
[]
[null,"إحصاء وحاسب ألى",null,"رئيس لجنة النظام والمراقبة",null,null,"يعتمد .. مدير المدرسة"]
[null,"..............................",null,".......................................",null,null,"...............................",null,null,null,null,null,null,null,null,null,null,null,11.3,11.5,null,null,null,null,null,{"$f":"Z35+1","v":"1900-01-25"}]
[null,null,null,null,null,null,null,null,null,null,null,null,null,null,null,null,null,null,12,12,null,null,null,null,null,"1900-01-26"]
[null,null,null,null,null,null,null,null,null,null,null,null,null,null,null,null,null,null,12.3,12.5,null,null,null,null,null,"1900-01-27"]
[null,null,null,null,null,null,null,null,null,null,null,null,null,null,null,null,null,null,null,null,null,null,null,null,null,"1900-01-28"]
[null,null,null,null,null,null,null,null,null,null,null,null,null,null,null,null,null,null,null,null,null,null,null,null,null,"1900-01-29"]
[null,null,null,null,null,null,null,null,null,null,null,null,null,null,null,null,null,null,null,null,null,null,null,null,null,"1900-01-30"]
[null,null,null,null,null,null,null,null,null,null,null,null,null,null,null,null,null,null,null,null,null,null,null,null,null,"1900-01-31"]
[null,null,null,null,null,null,null,null,null,null,null,null,null,null,null,null,null,null,null,null,null,null,null,null,null,"1900-02-01"]
[null,null,null,null,null,null,null,null,null,null,null,null,null,null,null,null,null,null,null,null,null,null,null,null,null,"1900-02-02"]
[null,null,null,null,null,null,null,null,null,null,null,null,null,null,null,null,null,null,null,null,null,null,null,null,null,"1900-02-03"]
[null,null,null,null,null,null,null,null,null,null,null,null,null,null,null,null,null,null,null,null,null,null,null,null,null,"1900-02-04"]
[null,null,null,null,null,null,null,null,null,null,null,null,null,null,null,null,null,null,null,null,null,null,null,null,null,"1900-02-05"]
[null,null,null,null,null,null,null,null,null,null,null,null,null,null,null,null,null,null,null,null,null,null,null,null,null,"1900-02-06"]
[null,null,null,null,null,null,null,null,null,null,null,null,null,null,null,null,null,null,null,null,null,null,null,null,null,"1900-02-07"]
[null,null,null,null,null,null,null,null,null,null,null,null,null,null,null,null,null,null,null,null,null,null,null,null,null,"1900-02-08"]
[null,null,null,null,null,null,null,null,null,null,null,null,null,null,null,null,null,null,null,null,null,null,null,null,null,"1900-02-09"]
[null,null,null,null,null,null,null,null,null,null,null,null,null,null,null,null,null,null,null,null,null,null,null,null,null,"1900-02-10"]
[null,null,null,null,null,null,null,null,null,null,null,null,null,null,null,null,null,null,null,null,null,null,null,null,null,"1900-02-11"]
[null,null,null,null,null,null,null,null,null,null,null,null,null,null,null,null,null,null,null,null,null,null,null,null,null,"1900-02-12"]
[null,null,null,null,null,null,null,null,null,null,null,null,null,null,null,null,null,null,null,null,null,null,null,null,null,"1900-02-13"]
[null,null,null,null,null,null,null,null,null,null,null,null,null,null,null,null,null,null,null,null,null,null,null,null,null,"1900-02-14"]
[null,null,null,null,null,null,null,null,null,null,null,null,null,null,null,null,null,null,null,null,null,null,null,null,null,"1900-02-15"]
[null,null,null,null,null,null,null,null,null,null,null,null,null,null,null,null,null,null,null,null,null,null,null,null,null,"1900-02-16"]
[null,null,null,null,null,null,null,null,null,null,null,null,null,null,null,null,null,null,null,null,null,null,null,null,null,"1900-02-17"]
[null,null,null,null,null,null,null,null,null,null,null,null,null,null,null,null,null,null,null,null,null,null,null,null,null,{"$f":"A3","v":"00:00:00"}]
[null,null,null,null,null,null,null,null,null,null,null,null,null,null,null,null,null,null,null,null,null,null,null,null,null,{"$f":"Z66+1","v":"1900-01-01"}]
[null,null,null,null,null,null,null,null,null,null,null,null,null,null,null,null,null,null,null,null,null,null,null,null,null,{"$f":"Z67+1","v":"1900-01-02"}]
[null,null,null,null,null,null,null,null,null,null,null,null,null,null,null,null,null,null,null,null,null,null,null,null,null,"1900-01-03"]
[null,null,null,null,null,null,null,null,null,null,null,null,null,null,null,null,null,null,null,null,null,null,null,null,null,"1900-01-04"]
[null,null,null,null,null,null,null,null,null,null,null,null,null,null,null,null,null,null,null,null,null,null,null,null,null,"1900-01-05"]
[null,null,null,null,null,null,null,null,null,null,null,null,null,null,null,null,null,null,null,null,null,null,null,null,null,"1900-01-06"]
[null,null,null,null,null,null,null,null,null,null,null,null,null,null,null,null,null,null,null,null,null,null,null,null,null,"1900-01-07"]
[null,null,null,null,null,null,null,null,null,null,null,null,null,null,null,null,null,null,null,null,null,null,null,null,null,"1900-01-08"]
[null,null,null,null,null,null,null,null,null,null,null,null,null,null,null,null,null,null,null,null,null,null,null,null,null,"1900-01-09"]
[null,null,null,null,null,null,null,null,null,null,null,null,null,null,null,null,null,null,null,null,null,null,null,null,null,"1900-01-10"]
[null,null,null,null,null,null,null,null,null,null,null,null,null,null,null,null,null,null,null,null,null,null,null,null,null,"1900-01-11"]
[null,null,null,null,null,null,null,null,null,null,null,null,null,null,null,null,null,null,null,null,null,null,null,null,null,"1900-01-12"]
[null,null,null,null,null,null,null,null,null,null,null,null,null,null,null,null,null,null,null,null,null,null,null,null,null,"1900-01-13"]
[null,null,null,null,null,null,null,null,null,null,null,null,null,null,null,null,null,null,null,null,null,null,null,null,null,"1900-01-14"]
[null,null,null,null,null,null,null,null,null,null,null,null,null,null,null,null,null,null,null,null,null,null,null,null,null,"1900-01-15"]
[null,null,null,null,null,null,null,null,null,null,null,null,null,null,null,null,null,null,null,null,null,null,null,null,null,"1900-01-16"]
[null,null,null,null,null,null,null,null,null,null,null,null,null,null,null,null,null,null,null,null,null,null,null,null,null,"1900-01-17"]
[null,null,null,null,null,null,null,null,null,null,null,null,null,null,null,null,null,null,null,null,null,null,null,null,null,"1900-01-18"]
[null,null,null,null,null,null,null,null,null,null,null,null,null,null,null,null,null,null,null,null,null,null,null,null,null,"1900-01-19"]
[null,null,null,null,null,null,null,null,null,null,null,null,null,null,null,null,null,null,null,null,null,null,null,null,null,"1900-01-20"]
[null,null,null,null,null,null,null,null,null,null,null,null,null,null,null,null,null,null,null,null,null,null,null,null,null,"1900-01-21"]
[null,null,null,null,null,null,null,null,null,null,null,null,null,null,null,null,null,null,null,null,null,null,null,null,null,"1900-01-22"]
[null,null,null,null,null,null,null,null,null,null,null,null,null,null,null,null,null,null,null,null,null,null,null,null,null,"1900-01-23"]
[null,null,null,null,null,null,null,null,null,null,null,null,null,null,null,null,null,null,null,null,null,null,null,null,null,"1900-01-24"]
[null,null,null,null,null,null,null,null,null,null,null,null,null,null,null,null,null,null,null,null,null,null,null,null,null,"1900-01-25"]
[null,null,null,null,null,null,null,null,null,null,null,null,null,null,null,null,null,null,null,null,null,null,null,null,null,"1900-01-26"]
[null,null,null,null,null,null,null,null,null,null,null,null,null,null,null,null,null,null,null,null,null,null,null,null,null,"1900-01-27"]
[null,null,null,null,null,null,null,null,null,null,null,null,null,null,null,null,null,null,null,null,null,null,null,null,null,"1900-01-28"]
[null,null,null,null,null,null,null,null,null,null,null,null,null,null,null,null,null,null,null,null,null,null,null,null,null,"1900-01-29"]
[null,null,null,null,null,null,null,null,null,null,null,null,null,null,null,null,null,null,null,null,null,null,null,null,null,"1900-01-30"]
[null,null,null,null,null,null,null,null,null,null,null,null,null,null,null,null,null,null,null,null,null,null,null,null,null,"1900-01-31"]
[null,null,null,null,null,null,null,null,null,null,null,null,null,null,null,null,null,null,null,null,null,null,null,null,null,"1900-02-01"]
[null,null,null,null,null,null,null,null,null,null,null,null,null,null,null,null,null,null,null,null,null,null,null,null,null,"1900-02-02"]
[null,null,null,null,null,null,null,null,null,null,null,null,null,null,null,null,null,null,null,null,null,null,null,null,null,"1900-02-03"]
[null,null,null,null,null,null,null,null,null,null,null,null,null,null,null,null,null,null,null,null,null,null,null,null,null,"1900-02-04"]
[null,null,null,null,null,null,null,null,null,null,null,null,null,null,null,null,null,null,null,null,null,null,null,null,null,"1900-02-05"]
[null,null,null,null,null,null,null,null,null,null,null,null,null,null,null,null,null,null,null,null,null,null,null,null,null,"1900-02-06"]
[null,null,null,null,null,null,null,null,null,null,null,null,null,null,null,null,null,null,null,null,null,null,null,null,null,"1900-02-07"]
[null,null,null,null,null,null,null,null,null,null,null,null,null,null,null,null,null,null,null,null,null,null,null,null,null,"1900-02-08"]
[null,null,null,null,null,null,null,null,null,null,null,null,null,null,null,null,null,null,null,null,null,null,null,null,null,"1900-02-09"]
[null,null,null,null,null,null,null,null,null,null,null,null,null,null,null,null,null,null,null,null,null,null,null,null,null,"1900-02-10"]
[null,null,null,null,null,null,null,null,null,null,null,null,null,null,null,null,null,null,null,null,null,null,null,null,null,"1900-02-11"]
[null,null,null,null,null,null,null,null,null,null,null,null,null,null,null,null,null,null,null,null,null,null,null,null,null,"1900-02-12"]
[null,null,null,null,null,null,null,null,null,null,null,null,null,null,null,null,null,null,null,null,null,null,null,null,null,"1900-02-13"]
[null,null,null,null,null,null,null,null,null,null,null,null,null,null,null,null,null,null,null,null,null,null,null,null,null,"1900-02-14"]
[null,null,null,null,null,null,null,null,null,null,null,null,null,null,null,null,null,null,null,null,null,null,null,null,null,"1900-02-15"]
[null,null,null,null,null,null,null,null,null,null,null,null,null,null,null,null,null,null,null,null,null,null,null,null,null,"1900-02-16"]
[null,null,null,null,null,null,null,null,null,null,null,null,null,null,null,null,null,null,null,null,null,null,null,null,null,"1900-02-17"]
[null,null,null,null,null,null,null,null,null,null,null,null,null,null,null,null,null,null,null,null,null,null,null,null,null,"1900-02-18"]
[null,null,null,null,null,null,null,null,null,null,null,null,null,null,null,null,null,null,null,null,null,null,null,null,null,"1900-02-19"]
[null,null,null,null,null,null,null,null,null,null,null,null,null,null,null,null,null,null,null,null,null,null,null,null,null,"1900-02-20"]
[null,null,null,null,null,null,null,null,null,null,null,null,null,null,null,null,null,null,null,null,null,null,null,null,null,"1900-02-21"]
[null,null,null,null,null,null,null,null,null,null,null,null,null,null,null,null,null,null,null,null,null,null,null,null,null,"1900-02-22"]
[null,null,null,null,null,null,null,null,null,null,null,null,null,null,null,null,null,null,null,null,null,null,null,null,null,"1900-02-23"]
[null,null,null,null,null,null,null,null,null,null,null,null,null,null,null,null,null,null,null,null,null,null,null,null,null,"1900-02-24"]
[null,null,null,null,null,null,null,null,null,null,null,null,null,null,null,null,null,null,null,null,null,null,null,null,null,"1900-02-25"]
[null,null,null,null,null,null,null,null,null,null,null,null,null,null,null,null,null,null,null,null,null,null,null,null,null,"1900-02-26"]
[null,null,null,null,null,null,null,null,null,null,null,null,null,null,null,null,null,null,null,null,null,null,null,null,null,"1900-02-27"]
[null,null,null,null,null,null,null,null,null,null,null,null,null,null,null,null,null,null,null,null,null,null,null,null,null,"1900-02-28"]
[null,null,null,null,null,null,null,null,null,null,null,null,null,null,null,null,null,null,null,null,null,null,null,null,null,60]
[null,null,null,null,null,null,null,null,null,null,null,null,null,null,null,null,null,null,null,null,null,null,null,null,null,"1900-03-01"]
[null,null,null,null,null,null,null,null,null,null,null,null,null,null,null,null,null,null,null,null,null,null,null,null,null,"1900-03-02"]
[null,null,null,null,null,null,null,null,null,null,null,null,null,null,null,null,null,null,null,null,null,null,null,null,null,"1900-03-03"]
[null,null,null,null,null,null,null,null,null,null,null,null,null,null,null,null,null,null,null,null,null,null,null,null,null,"1900-03-04"]
[null,null,null,null,null,null,null,null,null,null,null,null,null,null,null,null,null,null,null,null,null,null,null,null,null,"1900-03-05"]
[null,null,null,null,null,null,null,null,null,null,null,null,null,null,null,null,null,null,null,null,null,null,null,null,null,{"$f":"Z131+1","v":"1900-03-06"}]
[null,null,null,null,null,null,null,null,null,null,null,null,null,null,null,null,null,null,null,null,null,null,null,null,null,"1900-03-07"]
[null,null,null,null,null,null,null,null,null,null,null,null,null,null,null,null,null,null,null,null,null,null,null,null,null,"1900-03-08"]
[null,null,null,null,null,null,null,null,null,null,null,null,null,null,null,null,null,null,null,null,null,null,null,null,null,"1900-03-09"]
[null,null,null,null,null,null,null,null,null,null,null,null,null,null,null,null,null,null,null,null,null,null,null,null,null,"1900-03-10"]
[null,null,null,null,null,null,null,null,null,null,null,null,null,null,null,null,null,null,null,null,null,null,null,null,null,"1900-03-11"]
[null,null,null,null,null,null,null,null,null,null,null,null,null,null,null,null,null,null,null,null,null,null,null,null,null,"1900-03-12"]
[null,null,null,null,null,null,null,null,null,null,null,null,null,null,null,null,null,null,null,null,null,null,null,null,null,"1900-03-13"]
[null,null,null,null,null,null,null,null,null,null,null,null,null,null,null,null,null,null,null,null,null,null,null,null,null,"1900-03-14"]
[null,null,null,null,null,null,null,null,null,null,null,null,null,null,null,null,null,null,null,null,null,null,null,null,null,"1900-03-15"]
[null,null,null,null,null,null,null,null,null,null,null,null,null,null,null,null,null,null,null,null,null,null,null,null,null,"1900-03-16"]
[null,null,null,null,null,null,null,null,null,null,null,null,null,null,null,null,null,null,null,null,null,null,null,null,null,"1900-03-17"]
[null,null,null,null,null,null,null,null,null,null,null,null,null,null,null,null,null,null,null,null,null,null,null,null,null,"1900-03-18"]
[null,null,null,null,null,null,null,null,null,null,null,null,null,null,null,null,null,null,null,null,null,null,null,null,null,"1900-03-19"]
[null,null,null,null,null,null,null,null,null,null,null,null,null,null,null,null,null,null,null,null,null,null,null,null,null,"1900-03-20"]
[null,null,null,null,null,null,null,null,null,null,null,null,null,null,null,null,null,null,null,null,null,null,null,null,null,"1900-03-21"]
[null,null,null,null,null,null,null,null,null,null,null,null,null,null,null,null,null,null,null,null,null,null,null,null,null,"1900-03-22"]
[null,null,null,null,null,null,null,null,null,null,null,null,null,null,null,null,null,null,null,null,null,null,null,null,null,"1900-03-23"]
[null,null,null,null,null,null,null,null,null,null,null,null,null,null,null,null,null,null,null,null,null,null,null,null,null,"1900-03-24"]
[null,null,null,null,null,null,null,null,null,null,null,null,null,null,null,null,null,null,null,null,null,null,null,null,null,"1900-03-25"]
[null,null,null,null,null,null,null,null,null,null,null,null,null,null,null,null,null,null,null,null,null,null,null,null,null,"1900-03-26"]
[null,null,null,null,null,null,null,null,null,null,null,null,null,null,null,null,null,null,null,null,null,null,null,null,null,"1900-03-27"]
[null,null,null,null,null,null,null,null,null,null,null,null,null,null,null,null,null,null,null,null,null,null,null,null,null,"1900-03-28"]
[null,null,null,null,null,null,null,null,null,null,null,null,null,null,null,null,null,null,null,null,null,null,null,null,null,{"$f":"Z154+1","v":"1900-03-29"}]
[null,null,null,null,null,null,null,null,null,null,null,null,null,null,null,null,null,null,null,null,null,null,null,null,null,{"$f":"Z155+1","v":"1900-03-30"}]
[null,null,null,null,null,null,null,null,null,null,null,null,null,null,null,null,null,null,null,null,null,null,null,null,null,"1900-03-31"]
[null,null,null,null,null,null,null,null,null,null,null,null,null,null,null,null,null,null,null,null,null,null,null,null,null,"1900-04-01"]
[null,null,null,null,null,null,null,null,null,null,null,null,null,null,null,null,null,null,null,null,null,null,null,null,null,"1900-04-02"]
[null,null,null,null,null,null,null,null,null,null,null,null,null,null,null,null,null,null,null,null,null,null,null,null,null,"1900-04-03"]
[null,null,null,null,null,null,null,null,null,null,null,null,null,null,null,null,null,null,null,null,null,null,null,null,null,"1900-04-04"]
[null,null,null,null,null,null,null,null,null,null,null,null,null,null,null,null,null,null,null,null,null,null,null,null,null,"1900-04-05"]
[null,null,null,null,null,null,null,null,null,null,null,null,null,null,null,null,null,null,null,null,null,null,null,null,null,"1900-04-06"]
[null,null,null,null,null,null,null,null,null,null,null,null,null,null,null,null,null,null,null,null,null,null,null,null,null,"1900-04-07"]
[null,null,null,null,null,null,null,null,null,null,null,null,null,null,null,null,null,null,null,null,null,null,null,null,null,"1900-04-08"]
[null,null,null,null,null,null,null,null,null,null,null,null,null,null,null,null,null,null,null,null,null,null,null,null,null,"1900-04-09"]
[null,null,null,null,null,null,null,null,null,null,null,null,null,null,null,null,null,null,null,null,null,null,null,null,null,"1900-04-10"]
[null,null,null,null,null,null,null,null,null,null,null,null,null,null,null,null,null,null,null,null,null,null,null,null,null,"1900-04-11"]
[null,null,null,null,null,null,null,null,null,null,null,null,null,null,null,null,null,null,null,null,null,null,null,null,null,"1900-04-12"]
[null,null,null,null,null,null,null,null,null,null,null,null,null,null,null,null,null,null,null,null,null,null,null,null,null,"1900-04-13"]
[null,null,null,null,null,null,null,null,null,null,null,null,null,null,null,null,null,null,null,null,null,null,null,null,null,"1900-04-14"]
[null,null,null,null,null,null,null,null,null,null,null,null,null,null,null,null,null,null,null,null,null,null,null,null,null,"1900-04-15"]
[null,null,null,null,null,null,null,null,null,null,null,null,null,null,null,null,null,null,null,null,null,null,null,null,null,"1900-04-16"]
[null,null,null,null,null,null,null,null,null,null,null,null,null,null,null,null,null,null,null,null,null,null,null,null,null,"1900-04-17"]
[null,null,null,null,null,null,null,null,null,null,null,null,null,null,null,null,null,null,null,null,null,null,null,null,null,"1900-04-18"]
[null,null,null,null,null,null,null,null,null,null,null,null,null,null,null,null,null,null,null,null,null,null,null,null,null,"1900-04-19"]
[null,null,null,null,null,null,null,null,null,null,null,null,null,null,null,null,null,null,null,null,null,null,null,null,null,"1900-04-20"]
[null,null,null,null,null,null,null,null,null,null,null,null,null,null,null,null,null,null,null,null,null,null,null,null,null,"1900-04-21"]
[null,null,null,null,null,null,null,null,null,null,null,null,null,null,null,null,null,null,null,null,null,null,null,null,null,"1900-04-22"]
[null,null,null,null,null,null,null,null,null,null,null,null,null,null,null,null,null,null,null,null,null,null,null,null,null,"1900-04-23"]
[null,null,null,null,null,null,null,null,null,null,null,null,null,null,null,null,null,null,null,null,null,null,null,null,null,"1900-04-24"]
[null,null,null,null,null,null,null,null,null,null,null,null,null,null,null,null,null,null,null,null,null,null,null,null,null,"1900-04-25"]
[null,null,null,null,null,null,null,null,null,null,null,null,null,null,null,null,null,null,null,null,null,null,null,null,null,"1900-04-26"]
[null,null,null,null,null,null,null,null,null,null,null,null,null,null,null,null,null,null,null,null,null,null,null,null,null,"1900-04-27"]
[null,null,null,null,null,null,null,null,null,null,null,null,null,null,null,null,null,null,null,null,null,null,null,null,null,{"$f":"Z184+1","v":"1900-04-28"}]
[null,null,null,null,null,null,null,null,null,null,null,null,null,null,null,null,null,null,null,null,null,null,null,null,null,{"$f":"Z185+1","v":"1900-04-29"}]
[null,null,null,null,null,null,null,null,null,null,null,null,null,null,null,null,null,null,null,null,null,null,null,null,null,"1900-04-30"]
[null,null,null,null,null,null,null,null,null,null,null,null,null,null,null,null,null,null,null,null,null,null,null,null,null,"1900-05-01"]
[null,null,null,null,null,null,null,null,null,null,null,null,null,null,null,null,null,null,null,null,null,null,null,null,null,"1900-05-02"]
[null,null,null,null,null,null,null,null,null,null,null,null,null,null,null,null,null,null,null,null,null,null,null,null,null,"1900-05-03"]
[null,null,null,null,null,null,null,null,null,null,null,null,null,null,null,null,null,null,null,null,null,null,null,null,null,"1900-05-04"]
[null,null,null,null,null,null,null,null,null,null,null,null,null,null,null,null,null,null,null,null,null,null,null,null,null,"1900-05-05"]
[null,null,null,null,null,null,null,null,null,null,null,null,null,null,null,null,null,null,null,null,null,null,null,null,null,"1900-05-06"]
[null,null,null,null,null,null,null,null,null,null,null,null,null,null,null,null,null,null,null,null,null,null,null,null,null,"1900-05-07"]
[null,null,null,null,null,null,null,null,null,null,null,null,null,null,null,null,null,null,null,null,null,null,null,null,null,"1900-05-08"]
[null,null,null,null,null,null,null,null,null,null,null,null,null,null,null,null,null,null,null,null,null,null,null,null,null,"1900-05-09"]
[null,null,null,null,null,null,null,null,null,null,null,null,null,null,null,null,null,null,null,null,null,null,null,null,null,"1900-05-10"]
[null,null,null,null,null,null,null,null,null,null,null,null,null,null,null,null,null,null,null,null,null,null,null,null,null,"1900-05-11"]
[null,null,null,null,null,null,null,null,null,null,null,null,null,null,null,null,null,null,null,null,null,null,null,null,null,"1900-05-12"]
[null,null,null,null,null,null,null,null,null,null,null,null,null,null,null,null,null,null,null,null,null,null,null,null,null,"1900-05-13"]
[null,null,null,null,null,null,null,null,null,null,null,null,null,null,null,null,null,null,null,null,null,null,null,null,null,"1900-05-14"]
[null,null,null,null,null,null,null,null,null,null,null,null,null,null,null,null,null,null,null,null,null,null,null,null,null,"1900-05-15"]
[null,null,null,null,null,null,null,null,null,null,null,null,null,null,null,null,null,null,null,null,null,null,null,null,null,"1900-05-16"]
[null,null,null,null,null,null,null,null,null,null,null,null,null,null,null,null,null,null,null,null,null,null,null,null,null,"1900-05-17"]

{"sheet":"مناداة","index":8,"n_rows":43,"n_cols":15,"rows_kept":43,"cut":false,"hidden":false,"merged":[[0,1,0,7],[1,1,1,2],[2,1,2,2],[3,1,3,2],[4,1,4,2],[1,5,1,6],[2,5,2,6],[3,5,3,6],[4,5,4,6],[6,2,6,3],[6,6,6,7],[42,1,42,3],[42,5,42,7],[41,1,41,3],[41,5,41,7]]}
[null,"كشوف المناداه الاول والثانى",null,null,null,null,null,null,null,null,null,12,{"$f":"MAX('بيانات أساسية2'!D5:D44)","v":10},{"$f":"MAX('بيانات أساسية2'!D5:D44)","v":10},{"$f":"VLOOKUP(D6,اللجان,4)","v":0}]
[null,{"$f":"اساسية!B6","v":"مديرية التربية والتعليم"},null,null,null,{"$f":"B2","v":"مديرية التربية والتعليم"},null,null,null,null,null,{"$f":"L1","v":12},{"$f":"MAX('بيانات أساسية 3'!D5:D44)","v":10},{"$f":"MAX('بيانات أساسية 3'!D5:D44)","v":10},{"$f":"VLOOKUP(D6,اللجان2,4)","v":0}]
[null,{"$f":"اساسية!B8","v":"مدرسة الشهيدين الاعدادية"},null,null,null,{"$f":"B3","v":"مدرسة الشهيدين الاعدادية"}]
[null,{"$f":"اساسية!B11","v":"الفصل الدراسى الثانى"},null,null,null,{"$f":"B4","v":"الفصل الدراسى الثانى"},null,null,null,null,null,{"$f":"O1","v":0},null," "]
[null,{"$f":"اساسية!B13","v":"2014/ 2015 م"},null,null,null,{"$f":"B5","v":"2014/ 2015 م"},null,null,null,null,null,{"$f":"O2","v":0}]
[null,null,"كشف مناداة لجنة رقم ",{"$f":"IF(L1>M1,\"\",L1)","v":""},null,null,{"$f":"C6","v":"كشف مناداة لجنة رقم "},{"$f":"IF(L2>M2,\"\",L2)","v":""}]
[null,null,{"$f":"'بيانات أساسية2'!D1","v":"الصف الثانى الابتدائى"},null,null,null,{"$f":"'بيانات أساسية 3'!D1","v":"الصف الثالث الابتدائى"},null,null,null,null,{"$f":"MAX(L4:L5)","v":0}]
[null,"م","اسم الطالب","رقم الجلوس",null,"م","اسم الطالب","رقم الجلوس"]
[null,{"$f":"IF(D6=\"\",\"\",1)","v":""},{"$f":"IF(B9=\"\",\"\",VLOOKUP(D9,data1,2))","v":""},{"$f":"IF(D6=\"\",\"\",VLOOKUP(D6,اللجان,2))","v":""},null,{"$f":"IF(H6=\"\",\"\",1)","v":""},{"$f":"IF(F9=\"\",\"\",VLOOKUP(H9,data2,2))","v":""},{"$f":"IF(H6=\"\",\"\",VLOOKUP(H6,اللجان2,2))","v":""}]
[null,{"$f":"IF(B9=\"\",\"\",IF(B9+1>$O$1,\"\",B9+1))","v":""},{"$f":"IF(B10=\"\",\"\",VLOOKUP(D10,data1,2))","v":""},{"$f":"IF(B9=\"\",\"\",IF(B10=\"\",\"\",D9+1))","v":""},null,{"$f":"IF(F9=\"\",\"\",IF(F9+1>$O$2,\"\",F9+1))","v":""},"",{"$f":"IF(F9=\"\",\"\",IF(F10=\"\",\"\",H9+1))","v":""}]
[null,{"$f":"IF(B10=\"\",\"\",IF(B10+1>$O$1,\"\",B10+1))","v":""},"",{"$f":"IF(B10=\"\",\"\",IF(B11=\"\",\"\",D10+1))","v":""},null,{"$f":"IF(F10=\"\",\"\",IF(F10+1>$O$2,\"\",F10+1))","v":""},"",{"$f":"IF(F10=\"\",\"\",IF(F11=\"\",\"\",H10+1))","v":""}]
[null,"","","",null,"","","",null,null,null," "]
[null,"","","",null,"","",""]
[null,"","","",null,"","",""]
[null,"","","",null,"","",""]
[null,"","","",null,"","",""]
[null,"","","",null,"","",""]
[null,"","","",null,"","",""]
[null,"","","",null,"","",""]
[null,"","","",null,"","",""]
[null,"","","",null,"","",""]
[null,"","","",null,"","",""]
[null,"","","",null,"","",""]
[null,"","","",null,"","",""]
[null,"","","",null,"","",""]
[null,"","","",null,"","",""]
[null,"","","",null,"","",""]
[null,"","","",null,"","",""]
[null,"","","",null,"","",""]
[null,"",{"$f":"IF(B30=\"\",\"\",VLOOKUP(D30,data1,2))","v":""},{"$f":"IF(B29=\"\",\"\",IF(B30=\"\",\"\",D29+1))","v":""},null,"","",{"$f":"IF(F29=\"\",\"\",IF(F30=\"\",\"\",H29+1))","v":""}]
[null,"",{"$f":"IF(B31=\"\",\"\",VLOOKUP(D31,data1,2))","v":""},{"$f":"IF(B30=\"\",\"\",IF(B31=\"\",\"\",D30+1))","v":""},null,"","",{"$f":"IF(F30=\"\",\"\",IF(F31=\"\",\"\",H30+1))","v":""}]
[null,"",{"$f":"IF(B32=\"\",\"\",VLOOKUP(D32,data1,2))","v":""},{"$f":"IF(B31=\"\",\"\",IF(B32=\"\",\"\",D31+1))","v":""},null,"","",{"$f":"IF(F31=\"\",\"\",IF(F32=\"\",\"\",H31+1))","v":""}]
[null,"","","",null,"","",""]
[null,"","","",null,"","",""]
[null,"","","",null,"","",""]
[null,"","","",null,"","",""]
[null,"","","",null,"","",""]
[null,"","","",null,"","",""]
[null,"",{"$f":"IF(B39=\"\",\"\",VLOOKUP(D39,data1,2))","v":""},{"$f":"IF(B38=\"\",\"\",IF(B39=\"\",\"\",D38+1))","v":""},null,"",{"$f":"IF(F39=\"\",\"\",VLOOKUP(H39,data1,2))","v":""},{"$f":"IF(F38=\"\",\"\",IF(F39=\"\",\"\",H38+1))","v":""}]
[null,"",{"$f":"IF(B40=\"\",\"\",VLOOKUP(D40,data1,2))","v":""},{"$f":"IF(B39=\"\",\"\",IF(B40=\"\",\"\",D39+1))","v":""},null,"",{"$f":"IF(F40=\"\",\"\",VLOOKUP(H40,data1,2))","v":""},{"$f":"IF(F39=\"\",\"\",IF(F40=\"\",\"\",H39+1))","v":""}]
[]
[null,"رئيس الكنترول                                    مدير المدرسة",null,null,null,{"$f":"B42","v":"رئيس الكنترول                                    مدير المدرسة"}]
[null,{"$f":"اساسية!B10 &\"                                       \"&اساسية!B9","v":"فاتن بسيونى                                       طه رسول"},null,null,null,{"$f":"B43","v":"فاتن بسيونى                                       طه رسول"}]

{"sheet":"مناداة 4","index":9,"n_rows":43,"n_cols":15,"rows_kept":43,"cut":false,"hidden":false,"merged":[[42,1,42,3],[42,5,42,7],[0,1,0,7],[4,1,4,2],[4,5,4,6],[6,2,6,3],[6,6,6,7],[41,1,41,3],[41,5,41,7],[1,1,1,2],[1,5,1,6],[2,1,2,2],[2,5,2,6],[3,1,3,2],[3,5,3,6]]}
[null,"كشوف المناداه الرابع والخامس",null,null,null,null,null,null,null,null,null,1,{"$f":"MAX('بيانات أساسية4'!D5:D44)","v":2},{"$f":"MAX('بيانات أساسية4'!D5:D44)","v":2},{"$f":"VLOOKUP(D6,اللجان3,4)","v":23}]
[null,{"$f":"اساسية!B6","v":"مديرية التربية والتعليم"},null,null,null,{"$f":"B2","v":"مديرية التربية والتعليم"},null,null,null,null,null,{"$f":"L1","v":1},{"$f":"MAX('بيانات أساسية 5'!D5:D44)","v":2},{"$f":"MAX('بيانات أساسية 5'!D5:D44)","v":2},{"$f":"VLOOKUP(D6,اللجان4,4)","v":28}]
[null,{"$f":"اساسية!B8","v":"مدرسة الشهيدين الاعدادية"},null,null,null,{"$f":"B3","v":"مدرسة الشهيدين الاعدادية"}]
[null,{"$f":"اساسية!B11","v":"الفصل الدراسى الثانى"},null,null,null,{"$f":"B4","v":"الفصل الدراسى الثانى"},null,null,null,null,null,{"$f":"O1","v":23},null," "]
[null,{"$f":"اساسية!B13","v":"2014/ 2015 م"},null,null,null,{"$f":"B5","v":"2014/ 2015 م"},null,null,null,null,null,{"$f":"O2","v":28}]
[null,null,"كشف مناداة لجنة رقم ",{"$f":"IF(L1>M1,\"\",L1)","v":1},null,null,{"$f":"C6","v":"كشف مناداة لجنة رقم "},{"$f":"IF(L2>M2,\"\",L2)","v":1}]
[null,null,{"$f":"'بيانات أساسية4'!D1","v":" الصف الرابع الابتدائى"},null,null,null,{"$f":"'بيانات أساسية 5'!D1","v":"الصف الخامس الابتدائى"},null,null,null,null,{"$f":"MAX(L4:L5)","v":28}]
[null,"م","اسم الطالب","رقم الجلوس",null,"م","اسم الطالب","رقم الجلوس"]
[null,{"$f":"IF(D6=\"\",\"\",1)","v":1},{"$f":"IF(B9=\"\",\"\",VLOOKUP(D9,data3,2))","v":"ابراهيم السيد محمود السيد"},{"$f":"IF(D6=\"\",\"\",VLOOKUP(D6,اللجان3,2))","v":11},null,{"$f":"IF(H6=\"\",\"\",1)","v":1},{"$f":"IF(F9=\"\",\"\",VLOOKUP(H9,data4,2))","v":"ابراهيم عبدالله محمد محمد"},{"$f":"IF(H6=\"\",\"\",VLOOKUP(H6,اللجان4,2))","v":306}]
[null,{"$f":"IF(B9=\"\",\"\",IF(B9+1>$O$1,\"\",B9+1))","v":2},"ابراهيم ايمن عبدالرحمن عبدالجواد",{"$f":"IF(B9=\"\",\"\",IF(B10=\"\",\"\",D9+1))","v":12},null,{"$f":"IF(F9=\"\",\"\",IF(F9+1>$O$2,\"\",F9+1))","v":2},"ابراهيم فتحي ابراهيم عطيه",{"$f":"IF(F9=\"\",\"\",IF(F10=\"\",\"\",H9+1))","v":307}]
[null,{"$f":"IF(B10=\"\",\"\",IF(B10+1>$O$1,\"\",B10+1))","v":3},"ابراهيم جمال عبدالغفار مصباح",{"$f":"IF(B10=\"\",\"\",IF(B11=\"\",\"\",D10+1))","v":13},null,{"$f":"IF(F10=\"\",\"\",IF(F10+1>$O$2,\"\",F10+1))","v":3},"ابراهيم محمد ابراهيم عبده",{"$f":"IF(F10=\"\",\"\",IF(F11=\"\",\"\",H10+1))","v":308}]
[null,4,"ابراهيم محمد محمد عبدالله",14,null,4,"ابراهيم محمد احمد فرج",309,null,null,null," "]
[null,5,"ابراهيم محمد محمود ابراهيم",15,null,5,"ابراهيم محمد محمد خليفه",310]
[null,6,"ابراهيم محمود عيد ابراهيم",16,null,6,"ابراهيم وائل محمد محمد",311]
[null,7,"احمد ابراهيم عبدالمنعم علي",17,null,7,"ابرهيم شريف ابراهيم محمد",312]
[null,8,"احمد اسامه ادريس مرسي",18,null,8,"احمد ابراهيم ابراهيم عباس",313]
[null,9,"احمد اشرف السيد احمد",19,null,9,"احمد احمد عبدالواحد محمد",314]
[null,10,"احمد السيد عبدالحميد سليمان",20,null,10,"احمد الدسوقي عبدربه ابراهيم",315]
[null,11,"احمد السيد عبدالهادي خطاب",21,null,11,"احمد السيد رضوان علي",316]
[null,12,"احمد انور محمد محمد",22,null,12,"احمد رفاعي شحاتة السيد",317]
[null,13,"احمد ايهاب عبدالله احمد",23,null,13,"احمد رفعت علي عبدالسلام",318]
[null,14,"احمد بسيوني احمد محمد",24,null,14,"احمد سامي عبدالهادي علي",319]
[null,15,"احمد حسن علي عبدالجواد",25,null,15,"احمد سعد محمد سعد",320]
[null,16,"احمد حسين عبدالستار عويس",26,null,16,"احمد سعد محمد عبدالخالق",321]
[null,17,"احمد حماده احمد محمد",27,null,17,"احمد شوقى محمد عبدالقادر",322]
[null,18,"احمد حماده احمد محمد حسن",28,null,18,"احمد صابر حسن ابراهيم يسن",323]
[null,19,"احمد خالد زكريا عوض",29,null,19,"احمد عبدالباسط محمد علي",324]
[null,20,"احمد رمضان محمود عبدالواحد",30,null,20,"احمد عبدالله صالح احمد",325]
[null,21,"احمد صبحي قنديل محمد",31,null,21,"احمد فتحي شعبان عبدالعزيز",{"$f":"IF(F28=\"\",\"\",IF(F29=\"\",\"\",H28+1))","v":326}]
[null,22,{"$f":"IF(B30=\"\",\"\",VLOOKUP(D30,data3,2))","v":"احمد صلاح على عبده"},{"$f":"IF(B29=\"\",\"\",IF(B30=\"\",\"\",D29+1))","v":32},null,22,{"$f":"IF(F30=\"\",\"\",VLOOKUP(H30,data4,2))","v":"احمد ماهر ابراهيم احمد ابراهيم"},{"$f":"IF(F29=\"\",\"\",IF(F30=\"\",\"\",H29+1))","v":327}]
[null,23,"احمد عبد الله حسين عبيد حجازى",33,null,23,"احمد ماهر السيد عبدالمنعم",328]
[null,"","","",null,24,"احمد ماهر رشدي عبدالحميد",329]
[null,"","","",null,25,"احمد محمد السيد محمد",330]
[null,"","","",null,26,"خالد سمير عبدالغني مصطفي اسماعيل",331]
[null,"","","",null,27,"رشاد عصام حسين عبدالله",332]
[null,"","","",null,28,"زياد ايمن صلاح سعد عبدالله",333]
[null,"","","",null,"","",""]
[null,"","","",null,"","",""]
[null,"",{"$f":"IF(B39=\"\",\"\",VLOOKUP(D39,data3,2))","v":""},{"$f":"IF(B38=\"\",\"\",IF(B39=\"\",\"\",D38+1))","v":""},null,"",{"$f":"IF(F39=\"\",\"\",VLOOKUP(H39,data3,2))","v":""},{"$f":"IF(F38=\"\",\"\",IF(F39=\"\",\"\",H38+1))","v":""}]
[null,"",{"$f":"IF(B40=\"\",\"\",VLOOKUP(D40,data3,2))","v":""},{"$f":"IF(B39=\"\",\"\",IF(B40=\"\",\"\",D39+1))","v":""},null,"",{"$f":"IF(F40=\"\",\"\",VLOOKUP(H40,data3,2))","v":""},{"$f":"IF(F39=\"\",\"\",IF(F40=\"\",\"\",H39+1))","v":""}]
[]
[null,"   رئيس الكنترول                                    مدير المدرسة",null,null,null,{"$f":"B42","v":"   رئيس الكنترول                                    مدير المدرسة"}]
[null,{"$f":"اساسية!B10 &\"                                     \"&اساسية!B9","v":"فاتن بسيونى                                     طه رسول"},null,null,null,{"$f":"B43","v":"فاتن بسيونى                                     طه رسول"}]

{"sheet":"ارقام الجلوس2","index":10,"n_rows":101,"n_cols":16,"rows_kept":101,"cut":false,"hidden":false,"merged":[[13,8,13,10],[7,1,7,5],[7,8,7,12],[8,1,8,5],[8,8,8,12],[9,2,9,4],[10,1,11,1],[10,2,11,2],[10,3,11,3],[10,4,11,5],[10,8,11,8],[10,9,11,9],[10,10,11,10],[10,11,11,12],[12,1,12,3],[12,8,12,10],[22,1,22,3],[22,8,22,10],[23,1,23,3],[23,8,23,10],[17,1,17,5],[17,8,17,12],[18,1,18,5],[18,8,18,12],[20,1,21,1],[20,2,21,2],[20,3,21,3],[20,4,21,5],[20,8,21,8],[20,9,21,9],[13,1,13,3],[32,1,32,3],[32,8,32,10],[33,1,33,3],[33,8,33,10],[27,1,27,5],[27,8,27,12],[28,1,28,5],[28,8,28,12],[30,1,31,1],[30,2,31,2],[30,3,31,3],[30,4,31,5],[30,8,31,8],[30,9,31,9],[37,8,37,12],[38,1,38,5],[38,8,38,12],[40,1,41,1],[40,2,41,2],[40,3,41,3],[40,4,41,5],[40,8,41,8],[40,9,41,9],[50,11,51,12],[42,1,42,3],[42,8,42,10],[43,1,43,3],[43,8,43,10],[52,1,52,3],[52,8,52,10],[53,1,53,3],[53,8,53,10],[36,4,36,5],[47,1,47,5],[47,8,47,12],[48,1,48,5],[48,8,48,12],[50,1,51,1],[50,2,51,2],[50,3,51,3],[50,4,51,5],[50,8,51,8],[50,9,51,9],[50,10,51,10],[36,11,36,12],[46,4,46,5],[46,11,46,12],[6,4,6,5],[6,11,6,12],[16,4,16,5],[16,11,16,12],[26,4,26,5],[26,11,26,12],[40,10,41,10],[40,11,41,12],[30,10,31,10],[30,11,31,12],[20,10,21,10],[20,11,21,12],[37,1,37,5]]}
[null,null,"عدد المتقدمين",0,{"$f":"INDEX(O1:O101,MATCH(D1,O1:O101,1))","v":""},null,null,null,1,null,null,null,null,null,1]
[null,null,null,null,11,null,null,null,null,null,null,null,{"$f":"INDEX(جلوس2,E2,0)","v":111},null,{"$f":"IF(O1>($D$1-9),\"\",O1+10)","v":""}]
[null,null,null,null,null,null,null,null,null,null,null,null,null,null,{"$f":"IF(O2>($D$1-9),\"\",O2+10)","v":""}]
[null,null,null,null,null,null,null,null,null,null,null,null,null,null,""]
[null,null,null,null,null,null,null,null,null,null,null,null,null,null,""]
[null,{"$f":"اساسية!B7","v":"إدارة الرياض التعليمية"},null,null,null,"امتحان",{"$f":"M2","v":111},{"$f":"G6+1","v":112},{"$f":"B6","v":"إدارة الرياض التعليمية"},null,null,null,"امتحان",null,""]
[null,{"$f":"اساسية!B8","v":"مدرسة الشهيدين الاعدادية"},null,null,{"$f":"اساسية!B11","v":"الفصل الدراسى الثانى"},null,null,null,{"$f":"B7","v":"مدرسة الشهيدين الاعدادية"},null,null,{"$f":"E7","v":"الفصل الدراسى الثانى"},null,null,""]
[null,{"$f":"\" رقم جلوس طالب / طالبة  \"&\" \"&'بيانات أساسية2'!D1","v":" رقم جلوس طالب / طالبة   الصف الثانى الابتدائى"},null,null,null,null,null,null,{"$f":"B8","v":" رقم جلوس طالب / طالبة   الصف الثانى الابتدائى"},null,null,null,null,null,""]
[null,{"$f":"\"العام الدراسي\"&\" \"&اساسية!B13","v":"العام الدراسي 2014/ 2015 م"},null,null,null,null,null,null,{"$f":"B9","v":"العام الدراسي 2014/ 2015 م"},null,null,null,null,null,"",{"$f":"E2","v":11}]
[null," إسم الطالب : ",{"$f":"(VLOOKUP(G6,data1,2,0))","v":"احمد على احمد محمد"},null,null,null,null,null," إسم الطالب : ",{"$f":"(VLOOKUP(H6,data1,2,0))","v":"احمد عمادالدين احمد محمد بيومى"},null,null,null,null,"",500]
[null,"رقم الجلوس :",{"$f":"(VLOOKUP(G6,data1,1,0))","v":111},"رقم اللجنة :",{"$f":"(VLOOKUP(G6,data1,5,0))","v":1},null,null,null,"رقم الجلوس :",{"$f":"(VLOOKUP(H6,data1,1,0))","v":112},"رقم اللجنة :",{"$f":"(VLOOKUP(H6,data1,5,0))","v":1},null,null,""]
[null,null,null,null,null,null,null,null,null,null,null,null,null,null,""]
[null,{"$f":"\"رئيس الكنترول :\"&\" \"&اساسية!B10","v":"رئيس الكنترول : فاتن بسيونى"},null,null,null,null,null,null,{"$f":"B13","v":"رئيس الكنترول : فاتن بسيونى"},null,null,null,null,null,""]
[null,{"$f":"\"مدير المدرسة :\"&\" \"&اساسية!B9","v":"مدير المدرسة : طه رسول"},null,null,null,null,null,null,{"$f":"B14","v":"مدير المدرسة : طه رسول"},null,null,null,null,null,""]
[null,null,null,null,null,null,null,null,null,null,null,null,null,null,""]
[null,{"$f":"B6","v":"إدارة الرياض التعليمية"},null,null,null,"امتحان",{"$f":"H6+1","v":113},{"$f":"G16+1","v":114},{"$f":"B6","v":"إدارة الرياض التعليمية"},null,null,null,"امتحان",null,""]
[null,{"$f":"B7","v":"مدرسة الشهيدين الاعدادية"},null,null,{"$f":"E7","v":"الفصل الدراسى الثانى"},null,null,null,{"$f":"B7","v":"مدرسة الشهيدين الاعدادية"},null,null,{"$f":"E7","v":"الفصل الدراسى الثانى"},null,null,""]
[null,{"$f":"B8","v":" رقم جلوس طالب / طالبة   الصف الثانى الابتدائى"},null,null,null,null,null,null,{"$f":"B8","v":" رقم جلوس طالب / طالبة   الصف الثانى الابتدائى"},null,null,null,null,null,""]
[null,{"$f":"B9","v":"العام الدراسي 2014/ 2015 م"},null,null,null,null,null,null,{"$f":"B9","v":"العام الدراسي 2014/ 2015 م"},null,null,null,null,null,""]
[null," إسم الطالب : ",{"$f":"(VLOOKUP(G16,data1,2,0))","v":"احمد ماهر صبحى طلبه"},null,null,null,null,null," إسم الطالب : ",{"$f":"(VLOOKUP(H16,data1,2,0))","v":"احمد مجدى محمد هنداوي"},null,null,null,null,""]
[null,"رقم الجلوس :",{"$f":"(VLOOKUP(G16,data1,1,0))","v":113},"رقم اللجنة :",{"$f":"(VLOOKUP(G16,data1,5,0))","v":1},null,null,null,"رقم الجلوس :",{"$f":"(VLOOKUP(H16,data1,1,0))","v":114},"رقم اللجنة :",{"$f":"(VLOOKUP(H16,data1,5,0))","v":1},null,null,""]
[null,null,null,null,null,null,null,null,null,null,null,null,null,null,""]
[null,{"$f":"B13","v":"رئيس الكنترول : فاتن بسيونى"},null,null,null,null,null,null,{"$f":"B13","v":"رئيس الكنترول : فاتن بسيونى"},null,null,null,null,null,""]
[null,{"$f":"B14","v":"مدير المدرسة : طه رسول"},null,null,null,null,null,null,{"$f":"B14","v":"مدير المدرسة : طه رسول"},null,null,null,null,null,""]
[null,null,null,null,null,null,null,null,null,null,null,null,null,null,""]
[null,{"$f":"B6","v":"إدارة الرياض التعليمية"},null,null,null,"امتحان",{"$f":"H16+1","v":115},{"$f":"G26+1","v":116},{"$f":"B6","v":"إدارة الرياض التعليمية"},null,null,null,"امتحان",null,""]
[null,{"$f":"B7","v":"مدرسة الشهيدين الاعدادية"},null,null,{"$f":"E7","v":"الفصل الدراسى الثانى"},null,null,null,{"$f":"B7","v":"مدرسة الشهيدين الاعدادية"},null,null,{"$f":"E7","v":"الفصل الدراسى الثانى"},null,null,""]
[null,{"$f":"B8","v":" رقم جلوس طالب / طالبة   الصف الثانى الابتدائى"},null,null,null,null,null,null,{"$f":"B8","v":" رقم جلوس طالب / طالبة   الصف الثانى الابتدائى"},null,null,null,null,null,""]
[null,{"$f":"B9","v":"العام الدراسي 2014/ 2015 م"},null,null,null,null,null,null,{"$f":"B9","v":"العام الدراسي 2014/ 2015 م"},null,null,null,null,null,""]
[null," إسم الطالب : ",{"$f":"(VLOOKUP(G26,data1,2,0))","v":"احمد محمد ابراهيم يوسف"},null,null,null,null,null," إسم الطالب : ",{"$f":"(VLOOKUP(H26,data1,2,0))","v":"احمد محمد السيد احمد"},null,null,null,null,""]
[null,"رقم الجلوس :",{"$f":"(VLOOKUP(G26,data1,1,0))","v":115},"رقم اللجنة :",{"$f":"(VLOOKUP(G26,data1,5,0))","v":1},null,null,null,"رقم الجلوس :",{"$f":"(VLOOKUP(H26,data1,1,0))","v":116},"رقم اللجنة :",{"$f":"(VLOOKUP(H26,data1,5,0))","v":1},null,null,""]
[null,null,null,null,null,null,null,null,null,null,null,null,null,null,""]
[null,{"$f":"B13","v":"رئيس الكنترول : فاتن بسيونى"},null,null,null,null,null,null,{"$f":"B13","v":"رئيس الكنترول : فاتن بسيونى"},null,null,null,null,null,""]
[null,{"$f":"B14","v":"مدير المدرسة : طه رسول"},null,null,null,null,null,null,{"$f":"B14","v":"مدير المدرسة : طه رسول"},null,null,null,null,null,""]
[null,null,null,null,null,null,null,null,null,null,null,null,null,null,""]
[null,{"$f":"B6","v":"إدارة الرياض التعليمية"},null,null,null,"امتحان",{"$f":"H26+1","v":117},{"$f":"G36+1","v":118},{"$f":"B6","v":"إدارة الرياض التعليمية"},null,null,null,"امتحان",null,""]
[null,{"$f":"B7","v":"مدرسة الشهيدين الاعدادية"},null,null,{"$f":"E7","v":"الفصل الدراسى الثانى"},null,null,null,{"$f":"B7","v":"مدرسة الشهيدين الاعدادية"},null,null,{"$f":"E7","v":"الفصل الدراسى الثانى"},null,null,""]
[null,{"$f":"B8","v":" رقم جلوس طالب / طالبة   الصف الثانى الابتدائى"},null,null,null,null,null,null,{"$f":"B8","v":" رقم جلوس طالب / طالبة   الصف الثانى الابتدائى"},null,null,null,null,null,""]
[null,{"$f":"B9","v":"العام الدراسي 2014/ 2015 م"},null,null,null,null,null,null,{"$f":"B9","v":"العام الدراسي 2014/ 2015 م"},null,null,null,null,null,""]
[null," إسم الطالب : ",{"$f":"(VLOOKUP(G36,data1,2,0))","v":"احمد مصطفى عاطف ابراهيم"},null,null,null,null,null," إسم الطالب : ",{"$f":"(VLOOKUP(H36,data1,2,0))","v":"احمد ناصر محمد خميس"},null,null,null,null,""]
[null,"رقم الجلوس :",{"$f":"(VLOOKUP(G36,data1,1,0))","v":117},"رقم اللجنة :",{"$f":"(VLOOKUP(G36,data1,5,0))","v":1},null,null,null,"رقم الجلوس :",{"$f":"(VLOOKUP(H36,data1,1,0))","v":118},"رقم اللجنة :",{"$f":"(VLOOKUP(H36,data1,5,0))","v":1},null,null,""]
[null,null,null,null,null,null,null,null,null,null,null,null,null,null,""]
[null,{"$f":"B13","v":"رئيس الكنترول : فاتن بسيونى"},null,null,null,null,null,null,{"$f":"B13","v":"رئيس الكنترول : فاتن بسيونى"},null,null,null,null,null,""]
[null,{"$f":"B14","v":"مدير المدرسة : طه رسول"},null,null,null,null,null,null,{"$f":"B14","v":"مدير المدرسة : طه رسول"},null,null,null,null,null,""]
[null,null,null,null,null,null,null,null,null,null,null,null,null,null,""]
[null,{"$f":"B6","v":"إدارة الرياض التعليمية"},null,null,null,"امتحان",{"$f":"H36+1","v":119},{"$f":"G46+1","v":120},{"$f":"B6","v":"إدارة الرياض التعليمية"},null,null,null,"امتحان",null,""]
[null,{"$f":"B7","v":"مدرسة الشهيدين الاعدادية"},null,null,{"$f":"E7","v":"الفصل الدراسى الثانى"},null,null,null,{"$f":"B7","v":"مدرسة الشهيدين الاعدادية"},null,null,{"$f":"E7","v":"الفصل الدراسى الثانى"},null,null,""]
[null,{"$f":"B8","v":" رقم جلوس طالب / طالبة   الصف الثانى الابتدائى"},null,null,null,null,null,null,{"$f":"B8","v":" رقم جلوس طالب / طالبة   الصف الثانى الابتدائى"},null,null,null,null,null,""]
[null,{"$f":"B9","v":"العام الدراسي 2014/ 2015 م"},null,null,null,null,null,null,{"$f":"B9","v":"العام الدراسي 2014/ 2015 م"},null,null,null,null,null,""]
[null," إسم الطالب : ",{"$f":"(VLOOKUP(G46,data1,2,0))","v":"احمد هانى محمد السيد"},null,null,null,null,null," إسم الطالب : ",{"$f":"(VLOOKUP(H46,data1,2,0))","v":"احمد هشام جمعه غازي"},null,null,null,null,""]
[null,"رقم الجلوس :",{"$f":"(VLOOKUP(G46,data1,1,0))","v":119},"رقم اللجنة :",{"$f":"(VLOOKUP(G46,data1,5,0))","v":1},null,null,null,"رقم الجلوس :",{"$f":"(VLOOKUP(H46,data1,1,0))","v":120},"رقم اللجنة :",{"$f":"(VLOOKUP(H46,data1,5,0))","v":1},null,null,""]
[null,null,null,null,null,null,null,null,null,null,null,null,null,null,""]
[null,{"$f":"B13","v":"رئيس الكنترول : فاتن بسيونى"},null,null,null,null,null,null,{"$f":"B13","v":"رئيس الكنترول : فاتن بسيونى"},null,null,null,null,null,""]
[null,{"$f":"B14","v":"مدير المدرسة : طه رسول"},null,null,null,null,null,null,{"$f":"B14","v":"مدير المدرسة : طه رسول"},null,null,null,null,null,""]
[null,null,null,null,null,null,null,null,null,null,null,null,null,null,""]
[null,null,null,null,null,null,null,null,null,null,null,null,null,null,""]
[null,null,null,null,null,null,null,null,null,null,null,null,null,null,""]
[null,null,null,null,null,null,null,null,null,null,null,null,null,null,""]
[null,null,null,null,null,null,null,null,null,null,null,null,null,null,""]
[null,null,null,null,null,null,null,null,null,null,null,null,null,null,""]
[null,null,null,null,null,null,null,null,null,null,null,null,null,null,""]
[null,null,null,null,null,null,null,null,null,null,null,null,null,null,""]
[null,null,null,null,null,null,null,null,null,null,null,null,null,null,""]
[null,null,null,null,null,null,null,null,null,null,null,null,null,null,""]
[null,null,null,null,null,null,null,null,null,null,null,null,null,null,""]
[null,null,null,null,null,null,null,null,null,null,null,null,null,null,""]
[null,null,null,null,null,null,null,null,null,null,null,null,null,null,{"$f":"IF(O66>($D$1-9),\"\",O66+10)","v":""}]
[null,null,null,null,null,null,null,null,null,null,null,null,null,null,""]
[null,null,null,null,null,null,null,null,null,null,null,null,null,null,""]
[null,null,null,null,null,null,null,null,null,null,null,null,null,null,""]
[null,null,null,null,null,null,null,null,null,null,null,null,null,null,""]
[null,null,null,null,null,null,null,null,null,null,null,null,null,null,""]
[null,null,null,null,null,null,null,null,null,null,null,null,null,null,""]
[null,null,null,null,null,null,null,null,null,null,null,null,null,null,""]
[null,null,null,null,null,null,null,null,null,null,null,null,null,null,""]
[null,null,null,null,null,null,null,null,null,null,null,null,null,null,""]
[null,null,null,null,null,null,null,null,null,null,null,null,null,null,""]
[null,null,null,null,null,null,null,null,null,null,null,null,null,null,""]
[null,null,null,null,null,null,null,null,null,null,null,null,null,null,""]
[null,null,null,null,null,null,null,null,null,null,null,null,null,null,""]
[null,null,null,null,null,null,null,null,null,null,null,null,null,null,""]
[null,null,null,null,null,null,null,null,null,null,null,null,null,null,""]
[null,null,null,null,null,null,null,null,null,null,null,null,null,null,""]
[null,null,null,null,null,null,null,null,null,null,null,null,null,null,""]
[null,null,null,null,null,null,null,null,null,null,null,null,null,null,""]
[null,null,null,null,null,null,null,null,null,null,null,null,null,null,""]
[null,null,null,null,null,null,null,null,null,null,null,null,null,null,""]
[null,null,null,null,null,null,null,null,null,null,null,null,null,null,""]
[null,null,null,null,null,null,null,null,null,null,null,null,null,null,""]
[null,null,null,null,null,null,null,null,null,null,null,null,null,null,""]
[null,null,null,null,null,null,null,null,null,null,null,null,null,null,""]
[null,null,null,null,null,null,null,null,null,null,null,null,null,null,""]
[null,null,null,null,null,null,null,null,null,null,null,null,null,null,""]
[null,null,null,null,null,null,null,null,null,null,null,null,null,null,""]
[null,null,null,null,null,null,null,null,null,null,null,null,null,null,""]
[null,null,null,null,null,null,null,null,null,null,null,null,null,null,""]
[null,null,null,null,null,null,null,null,null,null,null,null,null,null,""]
[null,null,null,null,null,null,null,null,null,null,null,null,null,null,""]
[null,null,null,null,null,null,null,null,null,null,null,null,null,null,""]
[null,null,null,null,null,null,null,null,null,null,null,null,null,null,""]
[null,null,null,null,null,null,null,null,null,null,null,null,null,null,""]

{"sheet":"ارقام الجلوس3","index":11,"n_rows":101,"n_cols":15,"rows_kept":101,"cut":false,"hidden":false,"merged":[[52,1,52,3],[52,8,52,10],[50,11,51,12],[53,1,53,3],[53,8,53,10],[50,1,51,1],[50,2,51,2],[50,3,51,3],[50,4,51,5],[50,10,51,10],[50,8,51,8],[50,9,51,9],[40,9,41,9],[40,10,41,10],[40,11,41,12],[48,1,48,5],[48,8,48,12],[46,11,46,12],[47,1,47,5],[47,8,47,12],[42,1,42,3],[42,8,42,10],[43,1,43,3],[43,8,43,10],[46,4,46,5],[40,1,41,1],[40,2,41,2],[40,3,41,3],[40,4,41,5],[40,8,41,8],[32,8,32,10],[33,1,33,3],[33,8,33,10],[36,4,36,5],[38,1,38,5],[38,8,38,12],[26,4,26,5],[36,11,36,12],[37,1,37,5],[37,8,37,12],[27,8,27,12],[28,1,28,5],[28,8,28,12],[30,1,31,1],[30,2,31,2],[30,3,31,3],[30,4,31,5],[30,8,31,8],[30,9,31,9],[30,10,31,10],[30,11,31,12],[32,1,32,3],[26,11,26,12],[27,1,27,5],[17,1,17,5],[17,8,17,12],[18,1,18,5],[18,8,18,12],[20,1,21,1],[20,2,21,2],[20,3,21,3],[20,4,21,5],[20,8,21,8],[20,9,21,9],[22,1,22,3],[22,8,22,10],[23,1,23,3],[23,8,23,10],[12,1,12,3],[12,8,12,10],[13,1,13,3],[13,8,13,10],[16,4,16,5],[10,8,11,8],[20,10,21,10],[20,11,21,12],[10,9,11,9],[10,10,11,10],[10,11,11,12],[16,11,16,12],[9,2,9,4],[10,1,11,1],[10,2,11,2],[10,3,11,3],[10,4,11,5],[6,4,6,5],[6,11,6,12],[7,1,7,5],[7,8,7,12],[8,1,8,5],[8,8,8,12]]}
[null,null,"عدد المتقدمين",0,{"$f":"INDEX(O1:O101,MATCH(D1,O1:O101,1))","v":""},null,null,null,1,null,null,null,null,null,1]
[null,null,null,null,241,null,null,null,null,null,null,null,{"$f":"INDEX(جلوس3,E2,0)","v":541},null,{"$f":"IF(O1>($D$1-9),\"\",O1+10)","v":""}]
[null,null,null,null,null,null,null,null,null,null,null,null,null,null,{"$f":"IF(O2>($D$1-9),\"\",O2+10)","v":""}]
[null,null,null,null,null,null,null,null,null,null,null,null,null,null,""]
[null,null,null,null,null,null,null,null,null,null,null,null,null,null,""]
[null,{"$f":"اساسية!B7","v":"إدارة الرياض التعليمية"},null,null,null,"امتحان",{"$f":"M2","v":541},{"$f":"G6+1","v":542},{"$f":"B6","v":"إدارة الرياض التعليمية"},null,null,null,"امتحان",null,""]
[null,{"$f":"اساسية!B8","v":"مدرسة الشهيدين الاعدادية"},null,null,{"$f":"اساسية!B11","v":"الفصل الدراسى الثانى"},null,null,null,{"$f":"B7","v":"مدرسة الشهيدين الاعدادية"},null,null,{"$f":"E7","v":"الفصل الدراسى الثانى"},null,null,""]
[null,{"$f":"\" رقم جلوس طالب / طالبة  \"&\" \"&'بيانات أساسية 3'!D1","v":" رقم جلوس طالب / طالبة   الصف الثالث الابتدائى"},null,null,null,null,null,null,{"$f":"B8","v":" رقم جلوس طالب / طالبة   الصف الثالث الابتدائى"},null,null,null,null,null,""]
[null,{"$f":"\"العام الدراسي\"&\" \"&اساسية!B13","v":"العام الدراسي 2014/ 2015 م"},null,null,null,null,null,null,{"$f":"B9","v":"العام الدراسي 2014/ 2015 م"},null,null,null,null,null,""]
[null," إسم الطالب : ",{"$f":"(VLOOKUP(G6,data2,2,0))","v":"ندي صابر حمدي عبدالهادي"},null,null,null,null,null," إسم الطالب : ",{"$f":"(VLOOKUP(H6,data2,2,0))","v":"ندي محمد الشحات توفيق"},null,null,null,null,""]
[null,"رقم الجلوس :",{"$f":"(VLOOKUP(G6,data2,1,0))","v":541},"رقم اللجنة :",{"$f":"(VLOOKUP(G6,data2,5,0))","v":10},null,null,null,"رقم الجلوس :",{"$f":"(VLOOKUP(H6,data2,1,0))","v":542},"رقم اللجنة :",{"$f":"(VLOOKUP(H6,data2,5,0))","v":10},null,null,""]
[null,null,null,null,null,null,null,null,null,null,null,null,null,null,""]
[null,{"$f":"\"رئيس الكنترول :\"&\" \"&اساسية!B10","v":"رئيس الكنترول : فاتن بسيونى"},null,null,null,null,null,null,{"$f":"B13","v":"رئيس الكنترول : فاتن بسيونى"},null,null,null,null,null,""]
[null,{"$f":"\"مدير المدرسة :\"&\" \"&اساسية!B9","v":"مدير المدرسة : طه رسول"},null,null,null,null,null,null,{"$f":"B14","v":"مدير المدرسة : طه رسول"},null,null,null,null,null,""]
[null,null,null,null,null,null,null,null,null,null,null,null,null,null,""]
[null,{"$f":"B6","v":"إدارة الرياض التعليمية"},null,null,null,"امتحان",{"$f":"H6+1","v":543},{"$f":"G16+1","v":544},{"$f":"B6","v":"إدارة الرياض التعليمية"},null,null,null,"امتحان",null,""]
[null,{"$f":"B7","v":"مدرسة الشهيدين الاعدادية"},null,null,{"$f":"E7","v":"الفصل الدراسى الثانى"},null,null,null,{"$f":"B7","v":"مدرسة الشهيدين الاعدادية"},null,null,{"$f":"E7","v":"الفصل الدراسى الثانى"},null,null,""]
[null,{"$f":"B8","v":" رقم جلوس طالب / طالبة   الصف الثالث الابتدائى"},null,null,null,null,null,null,{"$f":"B8","v":" رقم جلوس طالب / طالبة   الصف الثالث الابتدائى"},null,null,null,null,null,""]
[null,{"$f":"B9","v":"العام الدراسي 2014/ 2015 م"},null,null,null,null,null,null,{"$f":"B9","v":"العام الدراسي 2014/ 2015 م"},null,null,null,null,null,""]
[null," إسم الطالب : ",{"$f":"(VLOOKUP(G16,data2,2,0))","v":"نهي هاني ابراهيم هلال"},null,null,null,null,null," إسم الطالب : ",{"$f":"(VLOOKUP(H16,data2,2,0))","v":"نور ابراهيم فتح الله عبدالله"},null,null,null,null,""]
[null,"رقم الجلوس :",{"$f":"(VLOOKUP(G16,data1,1,0))","v":{"$error":"#VALUE!"}},"رقم اللجنة :",{"$f":"(VLOOKUP(G16,data1,5,0))","v":{"$error":"#VALUE!"}},null,null,null,"رقم الجلوس :",{"$f":"(VLOOKUP(H16,data2,1,0))","v":544},"رقم اللجنة :",{"$f":"(VLOOKUP(H16,data2,5,0))","v":10},null,null,""]
[null,null,null,null,null,null,null,null,null,null,null,null,null,null,""]
[null,{"$f":"B13","v":"رئيس الكنترول : فاتن بسيونى"},null,null,null,null,null,null,{"$f":"B13","v":"رئيس الكنترول : فاتن بسيونى"},null,null,null,null,null,""]
[null,{"$f":"B14","v":"مدير المدرسة : طه رسول"},null,null,null,null,null,null,{"$f":"B14","v":"مدير المدرسة : طه رسول"},null,null,null,null,null,""]
[null,null,null,null,null,null,null,null,null,null,null,null,null,null,""]
[null,{"$f":"B6","v":"إدارة الرياض التعليمية"},null,null,null,"امتحان",{"$f":"H16+1","v":545},{"$f":"G26+1","v":546},{"$f":"B6","v":"إدارة الرياض التعليمية"},null,null,null,"امتحان",null,""]
[null,{"$f":"B7","v":"مدرسة الشهيدين الاعدادية"},null,null,{"$f":"E7","v":"الفصل الدراسى الثانى"},null,null,null,{"$f":"B7","v":"مدرسة الشهيدين الاعدادية"},null,null,{"$f":"E7","v":"الفصل الدراسى الثانى"},null,null,""]
[null,{"$f":"B8","v":" رقم جلوس طالب / طالبة   الصف الثالث الابتدائى"},null,null,null,null,null,null,{"$f":"B8","v":" رقم جلوس طالب / طالبة   الصف الثالث الابتدائى"},null,null,null,null,null,""]
[null,{"$f":"B9","v":"العام الدراسي 2014/ 2015 م"},null,null,null,null,null,null,{"$f":"B9","v":"العام الدراسي 2014/ 2015 م"},null,null,null,null,null,""]
[null," إسم الطالب : ",{"$f":"(VLOOKUP(G26,data2,2,0))","v":"نور الهدي احمد لطفي عبدالله"},null,null,null,null,null," إسم الطالب : ",{"$f":"(VLOOKUP(H26,data2,2,0))","v":"نور خالد احمد ابوزيد"},null,null,null,null,""]
[null,"رقم الجلوس :",{"$f":"(VLOOKUP(G26,data2,1,0))","v":545},"رقم اللجنة :",{"$f":"(VLOOKUP(G26,data2,5,0))","v":10},null,null,null,"رقم الجلوس :",{"$f":"(VLOOKUP(H26,data2,1,0))","v":546},"رقم اللجنة :",{"$f":"(VLOOKUP(H26,data2,5,0))","v":10},null,null,""]
[null,null,null,null,null,null,null,null,null,null,null,null,null,null,""]
[null,{"$f":"B13","v":"رئيس الكنترول : فاتن بسيونى"},null,null,null,null,null,null,{"$f":"B13","v":"رئيس الكنترول : فاتن بسيونى"},null,null,null,null,null,""]
[null,{"$f":"B14","v":"مدير المدرسة : طه رسول"},null,null,null,null,null,null,{"$f":"B14","v":"مدير المدرسة : طه رسول"},null,null,null,null,null,""]
[null,null,null,null,null,null,null,null,null,null,null,null,null,null,""]
[null,{"$f":"B6","v":"إدارة الرياض التعليمية"},null,null,null,"امتحان",{"$f":"H26+1","v":547},{"$f":"G36+1","v":548},{"$f":"B6","v":"إدارة الرياض التعليمية"},null,null,null,"امتحان",null,""]
[null,{"$f":"B7","v":"مدرسة الشهيدين الاعدادية"},null,null,{"$f":"E7","v":"الفصل الدراسى الثانى"},null,null,null,{"$f":"B7","v":"مدرسة الشهيدين الاعدادية"},null,null,{"$f":"E7","v":"الفصل الدراسى الثانى"},null,null,""]
[null,{"$f":"B8","v":" رقم جلوس طالب / طالبة   الصف الثالث الابتدائى"},null,null,null,null,null,null,{"$f":"B8","v":" رقم جلوس طالب / طالبة   الصف الثالث الابتدائى"},null,null,null,null,null,""]
[null,{"$f":"B9","v":"العام الدراسي 2014/ 2015 م"},null,null,null,null,null,null,{"$f":"B9","v":"العام الدراسي 2014/ 2015 م"},null,null,null,null,null,""]
[null," إسم الطالب : ",{"$f":"(VLOOKUP(G36,data2,2,0))","v":"نور ماهر محمد هليل"},null,null,null,null,null," إسم الطالب : ",{"$f":"(VLOOKUP(H36,data2,2,0))","v":"نورهان السيد سمير عبد الوهاب محمد"},null,null,null,null,""]
[null,"رقم الجلوس :",{"$f":"(VLOOKUP(G36,data2,1,0))","v":547},"رقم اللجنة :",{"$f":"(VLOOKUP(G36,data2,5,0))","v":10},null,null,null,"رقم الجلوس :",{"$f":"(VLOOKUP(H36,data2,1,0))","v":548},"رقم اللجنة :",{"$f":"(VLOOKUP(H36,data2,5,0))","v":10},null,null,""]
[null,null,null,null,null,null,null,null,null,null,null,null,null,null,""]
[null,{"$f":"B13","v":"رئيس الكنترول : فاتن بسيونى"},null,null,null,null,null,null,{"$f":"B13","v":"رئيس الكنترول : فاتن بسيونى"},null,null,null,null,null,""]
[null,{"$f":"B14","v":"مدير المدرسة : طه رسول"},null,null,null,null,null,null,{"$f":"B14","v":"مدير المدرسة : طه رسول"},null,null,null,null,null,""]
[null,null,null,null,null,null,null,null,null,null,null,null,null,null,""]
[null,{"$f":"B6","v":"إدارة الرياض التعليمية"},null,null,null,"امتحان",{"$f":"H36+1","v":549},{"$f":"G46+1","v":550},{"$f":"B6","v":"إدارة الرياض التعليمية"},null,null,null,"امتحان",null,""]
[null,{"$f":"B7","v":"مدرسة الشهيدين الاعدادية"},null,null,{"$f":"E7","v":"الفصل الدراسى الثانى"},null,null,null,{"$f":"B7","v":"مدرسة الشهيدين الاعدادية"},null,null,{"$f":"E7","v":"الفصل الدراسى الثانى"},null,null,""]
[null,{"$f":"B8","v":" رقم جلوس طالب / طالبة   الصف الثالث الابتدائى"},null,null,null,null,null,null,{"$f":"B8","v":" رقم جلوس طالب / طالبة   الصف الثالث الابتدائى"},null,null,null,null,null,""]
[null,{"$f":"B9","v":"العام الدراسي 2014/ 2015 م"},null,null,null,null,null,null,{"$f":"B9","v":"العام الدراسي 2014/ 2015 م"},null,null,null,null,null,""]
[null," إسم الطالب : ",{"$f":"(VLOOKUP(G46,data2,2,0))","v":"نورهان ياسر حسن حسين"},null,null,null,null,null," إسم الطالب : ",{"$f":"(VLOOKUP(H46,data2,2,0))","v":"هاجر ايمن عبدالرحمن عبدالجواد"},null,null,null,null,""]
[null,"رقم الجلوس :",{"$f":"(VLOOKUP(G46,data2,1,0))","v":549},"رقم اللجنة :",{"$f":"(VLOOKUP(G46,data2,5,0))","v":10},null,null,null,"رقم الجلوس :",{"$f":"(VLOOKUP(H46,data2,1,0))","v":550},"رقم اللجنة :",{"$f":"(VLOOKUP(H46,data2,5,0))","v":10},null,null,""]
[null,null,null,null,null,null,null,null,null,null,null,null,null,null,""]
[null,{"$f":"B13","v":"رئيس الكنترول : فاتن بسيونى"},null,null,null,null,null,null,{"$f":"B13","v":"رئيس الكنترول : فاتن بسيونى"},null,null,null,null,null,""]
[null,{"$f":"B14","v":"مدير المدرسة : طه رسول"},null,null,null,null,null,null,{"$f":"B14","v":"مدير المدرسة : طه رسول"},null,null,null,null,null,""]
[null,null,null,null,null,null,null,null,null,null,null,null,null,null,""]
[null,null,null,null,null,null,null,null,null,null,null,null,null,null,""]
[null,null,null,null,null,null,null,null,null,null,null,null,null,null,""]
[null,null,null,null,null,null,null,null,null,null,null,null,null,null,""]
[null,null,null,null,null,null,null,null,null,null,null,null,null,null,""]
[null,null,null,null,null,null,null,null,null,null,null,null,null,null,""]
[null,null,null,null,null,null,null,null,null,null,null,null,null,null,""]
[null,null,null,null,null,null,null,null,null,null,null,null,null,null,""]
[null,null,null,null,null,null,null,null,null,null,null,null,null,null,""]
[null,null,null,null,null,null,null,null,null,null,null,null,null,null,""]
[null,null,null,null,null,null,null,null,null,null,null,null,null,null,""]
[null,null,null,null,null,null,null,null,null,null,null,null,null,null,""]
[null,null,null,null,null,null,null,null,null,null,null,null,null,null,{"$f":"IF(O66>($D$1-9),\"\",O66+10)","v":""}]
[null,null,null,null,null,null,null,null,null,null,null,null,null,null,""]
[null,null,null,null,null,null,null,null,null,null,null,null,null,null,""]
[null,null,null,null,null,null,null,null,null,null,null,null,null,null,""]
[null,null,null,null,null,null,null,null,null,null,null,null,null,null,""]
[null,null,null,null,null,null,null,null,null,null,null,null,null,null,""]
[null,null,null,null,null,null,null,null,null,null,null,null,null,null,""]
[null,null,null,null,null,null,null,null,null,null,null,null,null,null,""]
[null,null,null,null,null,null,null,null,null,null,null,null,null,null,""]
[null,null,null,null,null,null,null,null,null,null,null,null,null,null,""]
[null,null,null,null,null,null,null,null,null,null,null,null,null,null,""]
[null,null,null,null,null,null,null,null,null,null,null,null,null,null,""]
[null,null,null,null,null,null,null,null,null,null,null,null,null,null,""]
[null,null,null,null,null,null,null,null,null,null,null,null,null,null,""]
[null,null,null,null,null,null,null,null,null,null,null,null,null,null,""]
[null,null,null,null,null,null,null,null,null,null,null,null,null,null,""]
[null,null,null,null,null,null,null,null,null,null,null,null,null,null,""]
[null,null,null,null,null,null,null,null,null,null,null,null,null,null,""]
[null,null,null,null,null,null,null,null,null,null,null,null,null,null,""]
[null,null,null,null,null,null,null,null,null,null,null,null,null,null,""]
[null,null,null,null,null,null,null,null,null,null,null,null,null,null,""]
[null,null,null,null,null,null,null,null,null,null,null,null,null,null,""]
[null,null,null,null,null,null,null,null,null,null,null,null,null,null,""]
[null,null,null,null,null,null,null,null,null,null,null,null,null,null,""]
[null,null,null,null,null,null,null,null,null,null,null,null,null,null,""]
[null,null,null,null,null,null,null,null,null,null,null,null,null,null,""]
[null,null,null,null,null,null,null,null,null,null,null,null,null,null,""]
[null,null,null,null,null,null,null,null,null,null,null,null,null,null,""]
[null,null,null,null,null,null,null,null,null,null,null,null,null,null,""]
[null,null,null,null,null,null,null,null,null,null,null,null,null,null,""]
[null,null,null,null,null,null,null,null,null,null,null,null,null,null,""]
[null,null,null,null,null,null,null,null,null,null,null,null,null,null,""]
[null,null,null,null,null,null,null,null,null,null,null,null,null,null,""]
[null,null,null,null,null,null,null,null,null,null,null,null,null,null,""]
[null,null,null,null,null,null,null,null,null,null,null,null,null,null,""]

{"sheet":"ارقام الجلوس4","index":12,"n_rows":101,"n_cols":15,"rows_kept":101,"cut":false,"hidden":false,"merged":[[52,1,52,3],[52,8,52,10],[50,11,51,12],[53,1,53,3],[53,8,53,10],[50,1,51,1],[50,2,51,2],[50,3,51,3],[50,4,51,5],[50,10,51,10],[50,8,51,8],[50,9,51,9],[40,9,41,9],[40,10,41,10],[40,11,41,12],[48,1,48,5],[48,8,48,12],[46,11,46,12],[47,1,47,5],[47,8,47,12],[42,1,42,3],[42,8,42,10],[43,1,43,3],[43,8,43,10],[46,4,46,5],[40,1,41,1],[40,2,41,2],[40,3,41,3],[40,4,41,5],[40,8,41,8],[32,8,32,10],[33,1,33,3],[33,8,33,10],[36,4,36,5],[38,1,38,5],[38,8,38,12],[26,4,26,5],[36,11,36,12],[37,1,37,5],[37,8,37,12],[27,8,27,12],[28,1,28,5],[28,8,28,12],[30,1,31,1],[30,2,31,2],[30,3,31,3],[30,4,31,5],[30,8,31,8],[30,9,31,9],[30,10,31,10],[30,11,31,12],[32,1,32,3],[26,11,26,12],[27,1,27,5],[17,1,17,5],[17,8,17,12],[18,1,18,5],[18,8,18,12],[20,1,21,1],[20,2,21,2],[20,3,21,3],[20,4,21,5],[20,8,21,8],[20,9,21,9],[22,1,22,3],[22,8,22,10],[23,1,23,3],[23,8,23,10],[12,1,12,3],[12,8,12,10],[13,1,13,3],[13,8,13,10],[16,4,16,5],[10,8,11,8],[20,10,21,10],[20,11,21,12],[10,9,11,9],[10,10,11,10],[10,11,11,12],[16,11,16,12],[9,2,9,4],[10,1,11,1],[10,2,11,2],[10,3,11,3],[10,4,11,5],[6,4,6,5],[6,11,6,12],[7,1,7,5],[7,8,7,12],[8,1,8,5],[8,8,8,12]]}
[null,null,"عدد المتقدمين",0,{"$f":"INDEX(O1:O101,MATCH(D1,O1:O101,1))","v":""},null,null,null,1,null,null,null,null,null,1]
[null,null,null,null,21,null,null,null,null,null,null,null,{"$f":"INDEX(جلوس4,E2,0)","v":31},null,{"$f":"IF(O1>($D$1-9),\"\",O1+10)","v":""}]
[null,null,null,null,null,null,null,null,null,null,null,null,null,null,{"$f":"IF(O2>($D$1-9),\"\",O2+10)","v":""}]
[null,null,null,null,null,null,null,null,null,null,null,null,null,null,""]
[null,null,null,null,null,null,null,null,null,null,null,null,null,null,""]
[null,{"$f":"اساسية!B7","v":"إدارة الرياض التعليمية"},null,null,null,"امتحان",{"$f":"M2","v":31},{"$f":"G6+1","v":32},{"$f":"B6","v":"إدارة الرياض التعليمية"},null,null,null,"امتحان",null,""]
[null,{"$f":"اساسية!B8","v":"مدرسة الشهيدين الاعدادية"},null,null,{"$f":"اساسية!B11","v":"الفصل الدراسى الثانى"},null,null,null,{"$f":"B7","v":"مدرسة الشهيدين الاعدادية"},null,null,{"$f":"E7","v":"الفصل الدراسى الثانى"},null,null,""]
[null,{"$f":"\" رقم جلوس طالب / طالبة  \"&\" \"&'بيانات أساسية4'!D1","v":" رقم جلوس طالب / طالبة    الصف الرابع الابتدائى"},null,null,null,null,null,null,{"$f":"B8","v":" رقم جلوس طالب / طالبة    الصف الرابع الابتدائى"},null,null,null,null,null,""]
[null,{"$f":"\"العام الدراسي\"&\" \"&اساسية!B13","v":"العام الدراسي 2014/ 2015 م"},null,null,null,null,null,null,{"$f":"B9","v":"العام الدراسي 2014/ 2015 م"},null,null,null,null,null,""]
[null," إسم الطالب : ",{"$f":"(VLOOKUP(G6,data3,2,0))","v":"احمد صبحي قنديل محمد"},null,null,null,null,null," إسم الطالب : ",{"$f":"(VLOOKUP(H6,data3,2,0))","v":"احمد صلاح على عبده"},null,null,null,null,""]
[null,"رقم الجلوس :",{"$f":"(VLOOKUP(G6,data3,1,0))","v":31},"رقم اللجنة :",{"$f":"(VLOOKUP(G6,data3,5,0))","v":1},null,null,null,"رقم الجلوس :",{"$f":"(VLOOKUP(H6,data3,1,0))","v":32},"رقم اللجنة :",{"$f":"(VLOOKUP(H6,data3,5,0))","v":1},null,null,""]
[null,null,null,null,null,null,null,null,null,null,null,null,null,null,""]
[null,{"$f":"\"رئيس الكنترول :\"&\" \"&اساسية!B10","v":"رئيس الكنترول : فاتن بسيونى"},null,null,null,null,null,null,{"$f":"B13","v":"رئيس الكنترول : فاتن بسيونى"},null,null,null,null,null,""]
[null,{"$f":"\"مدير المدرسة :\"&\" \"&اساسية!B9","v":"مدير المدرسة : طه رسول"},null,null,null,null,null,null,{"$f":"B14","v":"مدير المدرسة : طه رسول"},null,null,null,null,null,""]
[null,null,null,null,null,null,null,null,null,null,null,null,null,null,""]
[null,{"$f":"B6","v":"إدارة الرياض التعليمية"},null,null,null,"امتحان",{"$f":"H6+1","v":33},{"$f":"G16+1","v":34},{"$f":"B6","v":"إدارة الرياض التعليمية"},null,null,null,"امتحان",null,""]
[null,{"$f":"B7","v":"مدرسة الشهيدين الاعدادية"},null,null,{"$f":"E7","v":"الفصل الدراسى الثانى"},null,null,null,{"$f":"B7","v":"مدرسة الشهيدين الاعدادية"},null,null,{"$f":"E7","v":"الفصل الدراسى الثانى"},null,null,""]
[null,{"$f":"B8","v":" رقم جلوس طالب / طالبة    الصف الرابع الابتدائى"},null,null,null,null,null,null,{"$f":"B8","v":" رقم جلوس طالب / طالبة    الصف الرابع الابتدائى"},null,null,null,null,null,""]
[null,{"$f":"B9","v":"العام الدراسي 2014/ 2015 م"},null,null,null,null,null,null,{"$f":"B9","v":"العام الدراسي 2014/ 2015 م"},null,null,null,null,null,""]
[null," إسم الطالب : ",{"$f":"(VLOOKUP(G16,data3,2,0))","v":"احمد عبد الله حسين عبيد حجازى"},null,null,null,null,null," إسم الطالب : ",{"$f":"(VLOOKUP(H16,data3,2,0))","v":"احمد عبدالصمد زكي ابراهيم"},null,null,null,null,""]
[null,"رقم الجلوس :",{"$f":"(VLOOKUP(G16,data3,1,0))","v":33},"رقم اللجنة :",{"$f":"(VLOOKUP(G16,data3,5,0))","v":1},null,null,null,"رقم الجلوس :",{"$f":"(VLOOKUP(H16,data3,1,0))","v":34},"رقم اللجنة :",{"$f":"(VLOOKUP(H16,data3,5,0))","v":2},null,null,""]
[null,null,null,null,null,null,null,null,null,null,null,null,null,null,""]
[null,{"$f":"B13","v":"رئيس الكنترول : فاتن بسيونى"},null,null,null,null,null,null,{"$f":"B13","v":"رئيس الكنترول : فاتن بسيونى"},null,null,null,null,null,""]
[null,{"$f":"B14","v":"مدير المدرسة : طه رسول"},null,null,null,null,null,null,{"$f":"B14","v":"مدير المدرسة : طه رسول"},null,null,null,null,null,""]
[null,null,null,null,null,null,null,null,null,null,null,null,null,null,""]
[null,{"$f":"B6","v":"إدارة الرياض التعليمية"},null,null,null,"امتحان",{"$f":"H16+1","v":35},{"$f":"G26+1","v":36},{"$f":"B6","v":"إدارة الرياض التعليمية"},null,null,null,"امتحان",null,""]
[null,{"$f":"B7","v":"مدرسة الشهيدين الاعدادية"},null,null,{"$f":"E7","v":"الفصل الدراسى الثانى"},null,null,null,{"$f":"B7","v":"مدرسة الشهيدين الاعدادية"},null,null,{"$f":"E7","v":"الفصل الدراسى الثانى"},null,null,""]
[null,{"$f":"B8","v":" رقم جلوس طالب / طالبة    الصف الرابع الابتدائى"},null,null,null,null,null,null,{"$f":"B8","v":" رقم جلوس طالب / طالبة    الصف الرابع الابتدائى"},null,null,null,null,null,""]
[null,{"$f":"B9","v":"العام الدراسي 2014/ 2015 م"},null,null,null,null,null,null,{"$f":"B9","v":"العام الدراسي 2014/ 2015 م"},null,null,null,null,null,""]
[null," إسم الطالب : ",{"$f":"(VLOOKUP(G26,data3,2,0))","v":"احمد عبدالعال عبدالمجيد ندا"},null,null,null,null,null," إسم الطالب : ",{"$f":"(VLOOKUP(H26,data3,2,0))","v":"احمد عبدالكريم السيد عبدالنبي"},null,null,null,null,""]
[null,"رقم الجلوس :",{"$f":"(VLOOKUP(G26,data3,1,0))","v":35},"رقم اللجنة :",{"$f":"(VLOOKUP(G26,data3,5,0))","v":2},null,null,null,"رقم الجلوس :",{"$f":"(VLOOKUP(H26,data3,1,0))","v":36},"رقم اللجنة :",{"$f":"(VLOOKUP(H26,data3,5,0))","v":2},null,null,""]
[null,null,null,null,null,null,null,null,null,null,null,null,null,null,""]
[null,{"$f":"B13","v":"رئيس الكنترول : فاتن بسيونى"},null,null,null,null,null,null,{"$f":"B13","v":"رئيس الكنترول : فاتن بسيونى"},null,null,null,null,null,""]
[null,{"$f":"B14","v":"مدير المدرسة : طه رسول"},null,null,null,null,null,null,{"$f":"B14","v":"مدير المدرسة : طه رسول"},null,null,null,null,null,""]
[null,null,null,null,null,null,null,null,null,null,null,null,null,null,""]
[null,{"$f":"B6","v":"إدارة الرياض التعليمية"},null,null,null,"امتحان",{"$f":"H26+1","v":37},{"$f":"G36+1","v":38},{"$f":"B6","v":"إدارة الرياض التعليمية"},null,null,null,"امتحان",null,""]
[null,{"$f":"B7","v":"مدرسة الشهيدين الاعدادية"},null,null,{"$f":"E7","v":"الفصل الدراسى الثانى"},null,null,null,{"$f":"B7","v":"مدرسة الشهيدين الاعدادية"},null,null,{"$f":"E7","v":"الفصل الدراسى الثانى"},null,null,""]
[null,{"$f":"B8","v":" رقم جلوس طالب / طالبة    الصف الرابع الابتدائى"},null,null,null,null,null,null,{"$f":"B8","v":" رقم جلوس طالب / طالبة    الصف الرابع الابتدائى"},null,null,null,null,null,""]
[null,{"$f":"B9","v":"العام الدراسي 2014/ 2015 م"},null,null,null,null,null,null,{"$f":"B9","v":"العام الدراسي 2014/ 2015 م"},null,null,null,null,null,""]
[null," إسم الطالب : ",{"$f":"(VLOOKUP(G36,data3,2,0))","v":"احمد عصام احمد عبد الله"},null,null,null,null,null," إسم الطالب : ",{"$f":"(VLOOKUP(H36,data3,2,0))","v":"احمد عماد عبدالفتاح ابراهيم"},null,null,null,null,""]
[null,"رقم الجلوس :",{"$f":"(VLOOKUP(G36,data3,1,0))","v":37},"رقم اللجنة :",{"$f":"(VLOOKUP(G36,data3,5,0))","v":2},null,null,null,"رقم الجلوس :",{"$f":"(VLOOKUP(H36,data3,1,0))","v":38},"رقم اللجنة :",{"$f":"(VLOOKUP(H36,data3,5,0))","v":2},null,null,""]
[null,null,null,null,null,null,null,null,null,null,null,null,null,null,""]
[null,{"$f":"B13","v":"رئيس الكنترول : فاتن بسيونى"},null,null,null,null,null,null,{"$f":"B13","v":"رئيس الكنترول : فاتن بسيونى"},null,null,null,null,null,""]
[null,{"$f":"B14","v":"مدير المدرسة : طه رسول"},null,null,null,null,null,null,{"$f":"B14","v":"مدير المدرسة : طه رسول"},null,null,null,null,null,""]
[null,null,null,null,null,null,null,null,null,null,null,null,null,null,""]
[null,{"$f":"B6","v":"إدارة الرياض التعليمية"},null,null,null,"امتحان",{"$f":"H36+1","v":39},{"$f":"G46+1","v":40},{"$f":"B6","v":"إدارة الرياض التعليمية"},null,null,null,"امتحان",null,""]
[null,{"$f":"B7","v":"مدرسة الشهيدين الاعدادية"},null,null,{"$f":"E7","v":"الفصل الدراسى الثانى"},null,null,null,{"$f":"B7","v":"مدرسة الشهيدين الاعدادية"},null,null,{"$f":"E7","v":"الفصل الدراسى الثانى"},null,null,""]
[null,{"$f":"B8","v":" رقم جلوس طالب / طالبة    الصف الرابع الابتدائى"},null,null,null,null,null,null,{"$f":"B8","v":" رقم جلوس طالب / طالبة    الصف الرابع الابتدائى"},null,null,null,null,null,""]
[null,{"$f":"B9","v":"العام الدراسي 2014/ 2015 م"},null,null,null,null,null,null,{"$f":"B9","v":"العام الدراسي 2014/ 2015 م"},null,null,null,null,null,""]
[null," إسم الطالب : ",{"$f":"(VLOOKUP(G46,data3,2,0))","v":"احمد فؤاد احمد محمد"},null,null,null,null,null," إسم الطالب : ",{"$f":"(VLOOKUP(H46,data3,2,0))","v":"احمد محمد ابراهيم حسين"},null,null,null,null,""]
[null,"رقم الجلوس :",{"$f":"(VLOOKUP(G46,data3,1,0))","v":39},"رقم اللجنة :",{"$f":"(VLOOKUP(G46,data3,5,0))","v":2},null,null,null,"رقم الجلوس :",{"$f":"(VLOOKUP(H46,data3,1,0))","v":40},"رقم اللجنة :",{"$f":"(VLOOKUP(H46,data3,5,0))","v":2},null,null,""]
[null,null,null,null,null,null,null,null,null,null,null,null,null,null,""]
[null,{"$f":"B13","v":"رئيس الكنترول : فاتن بسيونى"},null,null,null,null,null,null,{"$f":"B13","v":"رئيس الكنترول : فاتن بسيونى"},null,null,null,null,null,""]
[null,{"$f":"B14","v":"مدير المدرسة : طه رسول"},null,null,null,null,null,null,{"$f":"B14","v":"مدير المدرسة : طه رسول"},null,null,null,null,null,""]
[null,null,null,null,null,null,null,null,null,null,null,null,null,null,""]
[null,null,null,null,null,null,null,null,null,null,null,null,null,null,""]
[null,null,null,null,null,null,null,null,null,null,null,null,null,null,""]
[null,null,null,null,null,null,null,null,null,null,null,null,null,null,""]
[null,null,null,null,null,null,null,null,null,null,null,null,null,null,""]
[null,null,null,null,null,null,null,null,null,null,null,null,null,null,""]
[null,null,null,null,null,null,null,null,null,null,null,null,null,null,""]
[null,null,null,null,null,null,null,null,null,null,null,null,null,null,""]
[null,null,null,null,null,null,null,null,null,null,null,null,null,null,""]
[null,null,null,null,null,null,null,null,null,null,null,null,null,null,""]
[null,null,null,null,null,null,null,null,null,null,null,null,null,null,""]
[null,null,null,null,null,null,null,null,null,null,null,null,null,null,""]
[null,null,null,null,null,null,null,null,null,null,null,null,null,null,{"$f":"IF(O66>($D$1-9),\"\",O66+10)","v":""}]
[null,null,null,null,null,null,null,null,null,null,null,null,null,null,""]
[null,null,null,null,null,null,null,null,null,null,null,null,null,null,""]
[null,null,null,null,null,null,null,null,null,null,null,null,null,null,""]
[null,null,null,null,null,null,null,null,null,null,null,null,null,null,""]
[null,null,null,null,null,null,null,null,null,null,null,null,null,null,""]
[null,null,null,null,null,null,null,null,null,null,null,null,null,null,""]
[null,null,null,null,null,null,null,null,null,null,null,null,null,null,""]
[null,null,null,null,null,null,null,null,null,null,null,null,null,null,""]
[null,null,null,null,null,null,null,null,null,null,null,null,null,null,""]
[null,null,null,null,null,null,null,null,null,null,null,null,null,null,""]
[null,null,null,null,null,null,null,null,null,null,null,null,null,null,""]
[null,null,null,null,null,null,null,null,null,null,null,null,null,null,""]
[null,null,null,null,null,null,null,null,null,null,null,null,null,null,""]
[null,null,null,null,null,null,null,null,null,null,null,null,null,null,""]
[null,null,null,null,null,null,null,null,null,null,null,null,null,null,""]
[null,null,null,null,null,null,null,null,null,null,null,null,null,null,""]
[null,null,null,null,null,null,null,null,null,null,null,null,null,null,""]
[null,null,null,null,null,null,null,null,null,null,null,null,null,null,""]
[null,null,null,null,null,null,null,null,null,null,null,null,null,null,""]
[null,null,null,null,null,null,null,null,null,null,null,null,null,null,""]
[null,null,null,null,null,null,null,null,null,null,null,null,null,null,""]
[null,null,null,null,null,null,null,null,null,null,null,null,null,null,""]
[null,null,null,null,null,null,null,null,null,null,null,null,null,null,""]
[null,null,null,null,null,null,null,null,null,null,null,null,null,null,""]
[null,null,null,null,null,null,null,null,null,null,null,null,null,null,""]
[null,null,null,null,null,null,null,null,null,null,null,null,null,null,""]
[null,null,null,null,null,null,null,null,null,null,null,null,null,null,""]
[null,null,null,null,null,null,null,null,null,null,null,null,null,null,""]
[null,null,null,null,null,null,null,null,null,null,null,null,null,null,""]
[null,null,null,null,null,null,null,null,null,null,null,null,null,null,""]
[null,null,null,null,null,null,null,null,null,null,null,null,null,null,""]
[null,null,null,null,null,null,null,null,null,null,null,null,null,null,""]
[null,null,null,null,null,null,null,null,null,null,null,null,null,null,""]
[null,null,null,null,null,null,null,null,null,null,null,null,null,null,""]

{"sheet":"ارقام الجلوس5","index":13,"n_rows":101,"n_cols":15,"rows_kept":101,"cut":false,"hidden":false,"merged":[[52,1,52,3],[52,8,52,10],[50,11,51,12],[53,1,53,3],[53,8,53,10],[50,1,51,1],[50,2,51,2],[50,3,51,3],[50,4,51,5],[50,10,51,10],[50,8,51,8],[50,9,51,9],[40,9,41,9],[40,10,41,10],[40,11,41,12],[48,1,48,5],[48,8,48,12],[46,11,46,12],[47,1,47,5],[47,8,47,12],[42,1,42,3],[42,8,42,10],[43,1,43,3],[43,8,43,10],[46,4,46,5],[40,1,41,1],[40,2,41,2],[40,3,41,3],[40,4,41,5],[40,8,41,8],[32,8,32,10],[33,1,33,3],[33,8,33,10],[36,4,36,5],[38,1,38,5],[38,8,38,12],[26,4,26,5],[36,11,36,12],[37,1,37,5],[37,8,37,12],[27,8,27,12],[28,1,28,5],[28,8,28,12],[30,1,31,1],[30,2,31,2],[30,3,31,3],[30,4,31,5],[30,8,31,8],[30,9,31,9],[30,10,31,10],[30,11,31,12],[32,1,32,3],[26,11,26,12],[27,1,27,5],[17,1,17,5],[17,8,17,12],[18,1,18,5],[18,8,18,12],[20,1,21,1],[20,2,21,2],[20,3,21,3],[20,4,21,5],[20,8,21,8],[20,9,21,9],[22,1,22,3],[22,8,22,10],[23,1,23,3],[23,8,23,10],[12,1,12,3],[12,8,12,10],[13,1,13,3],[13,8,13,10],[16,4,16,5],[10,8,11,8],[20,10,21,10],[20,11,21,12],[10,9,11,9],[10,10,11,10],[10,11,11,12],[16,11,16,12],[9,2,9,4],[10,1,11,1],[10,2,11,2],[10,3,11,3],[10,4,11,5],[6,4,6,5],[6,11,6,12],[7,1,7,5],[7,8,7,12],[8,1,8,5],[8,8,8,12]]}
[null,null,"عدد المتقدمين",0,{"$f":"INDEX(O1:O101,MATCH(D1,O1:O101,1))","v":""},null,null,null,1,null,null,null,null,null,1]
[null,null,null,null,21,null,null,null,null,null,null,null,{"$f":"INDEX(جلوس5,E2,0)","v":326},null,{"$f":"IF(O1>($D$1-9),\"\",O1+10)","v":""}]
[null,null,null,null,null,null,null,null,null,null,null,null,null,null,{"$f":"IF(O2>($D$1-9),\"\",O2+10)","v":""}]
[null,null,null,null,null,null,null,null,null,null,null,null,null,null,""]
[null,null,null,null,null,null,null,null,null,null,null,null,null,null,""]
[null,{"$f":"اساسية!B7","v":"إدارة الرياض التعليمية"},null,null,null,"امتحان",{"$f":"M2","v":326},{"$f":"G6+1","v":327},{"$f":"B6","v":"إدارة الرياض التعليمية"},null,null,null,"امتحان",null,""]
[null,{"$f":"اساسية!B8","v":"مدرسة الشهيدين الاعدادية"},null,null,{"$f":"اساسية!B11","v":"الفصل الدراسى الثانى"},null,null,null,{"$f":"B7","v":"مدرسة الشهيدين الاعدادية"},null,null,{"$f":"E7","v":"الفصل الدراسى الثانى"},null,null,""]
[null,{"$f":"\" رقم جلوس طالب / طالبة  \"&\" \"&'بيانات أساسية 5'!D1","v":" رقم جلوس طالب / طالبة   الصف الخامس الابتدائى"},null,null,null,null,null,null,{"$f":"B8","v":" رقم جلوس طالب / طالبة   الصف الخامس الابتدائى"},null,null,null,null,null,""]
[null,{"$f":"\"العام الدراسي\"&\" \"&اساسية!B13","v":"العام الدراسي 2014/ 2015 م"},null,null,null,null,null,null,{"$f":"B9","v":"العام الدراسي 2014/ 2015 م"},null,null,null,null,null,""]
[null," إسم الطالب : ",{"$f":"(VLOOKUP(G6,data4,2,0))","v":"احمد فتحي شعبان عبدالعزيز"},null,null,null,null,null," إسم الطالب : ",{"$f":"(VLOOKUP(H6,data4,2,0))","v":"احمد ماهر ابراهيم احمد ابراهيم"},null,null,null,null,""]
[null,"رقم الجلوس :",{"$f":"(VLOOKUP(G6,data4,1,0))","v":326},"رقم اللجنة :",{"$f":"(VLOOKUP(G6,data4,5,0))","v":1},null,null,null,"رقم الجلوس :",{"$f":"(VLOOKUP(H6,data4,1,0))","v":327},"رقم اللجنة :",{"$f":"(VLOOKUP(H6,data4,5,0))","v":1},null,null,""]
[null,null,null,null,null,null,null,null,null,null,null,null,null,null,""]
[null,{"$f":"\"رئيس الكنترول :\"&\" \"&اساسية!B10","v":"رئيس الكنترول : فاتن بسيونى"},null,null,null,null,null,null,{"$f":"B13","v":"رئيس الكنترول : فاتن بسيونى"},null,null,null,null,null,""]
[null,{"$f":"\"مدير المدرسة :\"&\" \"&اساسية!B9","v":"مدير المدرسة : طه رسول"},null,null,null,null,null,null,{"$f":"B14","v":"مدير المدرسة : طه رسول"},null,null,null,null,null,""]
[null,null,null,null,null,null,null,null,null,null,null,null,null,null,""]
[null,{"$f":"B6","v":"إدارة الرياض التعليمية"},null,null,null,"امتحان",{"$f":"H6+1","v":328},{"$f":"G16+1","v":329},{"$f":"B6","v":"إدارة الرياض التعليمية"},null,null,null,"امتحان",null,""]
[null,{"$f":"B7","v":"مدرسة الشهيدين الاعدادية"},null,null,{"$f":"E7","v":"الفصل الدراسى الثانى"},null,null,null,{"$f":"B7","v":"مدرسة الشهيدين الاعدادية"},null,null,{"$f":"E7","v":"الفصل الدراسى الثانى"},null,null,""]
[null,{"$f":"B8","v":" رقم جلوس طالب / طالبة   الصف الخامس الابتدائى"},null,null,null,null,null,null,{"$f":"B8","v":" رقم جلوس طالب / طالبة   الصف الخامس الابتدائى"},null,null,null,null,null,""]
[null,{"$f":"B9","v":"العام الدراسي 2014/ 2015 م"},null,null,null,null,null,null,{"$f":"B9","v":"العام الدراسي 2014/ 2015 م"},null,null,null,null,null,""]
[null," إسم الطالب : ",{"$f":"(VLOOKUP(G16,data4,2,0))","v":"احمد ماهر السيد عبدالمنعم"},null,null,null,null,null," إسم الطالب : ",{"$f":"(VLOOKUP(H16,data4,2,0))","v":"احمد ماهر رشدي عبدالحميد"},null,null,null,null,""]
[null,"رقم الجلوس :",{"$f":"(VLOOKUP(G16,data4,1,0))","v":328},"رقم اللجنة :",{"$f":"(VLOOKUP(G16,data4,5,0))","v":1},null,null,null,"رقم الجلوس :",{"$f":"(VLOOKUP(H16,data4,1,0))","v":329},"رقم اللجنة :",{"$f":"(VLOOKUP(H16,data4,5,0))","v":1},null,null,""]
[null,null,null,null,null,null,null,null,null,null,null,null,null,null,""]
[null,{"$f":"B13","v":"رئيس الكنترول : فاتن بسيونى"},null,null,null,null,null,null,{"$f":"B13","v":"رئيس الكنترول : فاتن بسيونى"},null,null,null,null,null,""]
[null,{"$f":"B14","v":"مدير المدرسة : طه رسول"},null,null,null,null,null,null,{"$f":"B14","v":"مدير المدرسة : طه رسول"},null,null,null,null,null,""]
[null,null,null,null,null,null,null,null,null,null,null,null,null,null,""]
[null,{"$f":"B6","v":"إدارة الرياض التعليمية"},null,null,null,"امتحان",{"$f":"H16+1","v":330},{"$f":"G26+1","v":331},{"$f":"B6","v":"إدارة الرياض التعليمية"},null,null,null,"امتحان",null,""]
[null,{"$f":"B7","v":"مدرسة الشهيدين الاعدادية"},null,null,{"$f":"E7","v":"الفصل الدراسى الثانى"},null,null,null,{"$f":"B7","v":"مدرسة الشهيدين الاعدادية"},null,null,{"$f":"E7","v":"الفصل الدراسى الثانى"},null,null,""]
[null,{"$f":"B8","v":" رقم جلوس طالب / طالبة   الصف الخامس الابتدائى"},null,null,null,null,null,null,{"$f":"B8","v":" رقم جلوس طالب / طالبة   الصف الخامس الابتدائى"},null,null,null,null,null,""]
[null,{"$f":"B9","v":"العام الدراسي 2014/ 2015 م"},null,null,null,null,null,null,{"$f":"B9","v":"العام الدراسي 2014/ 2015 م"},null,null,null,null,null,""]
[null," إسم الطالب : ",{"$f":"(VLOOKUP(G26,data4,2,0))","v":"احمد محمد السيد محمد"},null,null,null,null,null," إسم الطالب : ",{"$f":"(VLOOKUP(H26,data4,2,0))","v":"خالد سمير عبدالغني مصطفي اسماعيل"},null,null,null,null,""]
[null,"رقم الجلوس :",{"$f":"(VLOOKUP(G26,data4,1,0))","v":330},"رقم اللجنة :",{"$f":"(VLOOKUP(G26,data4,5,0))","v":1},null,null,null,"رقم الجلوس :",{"$f":"(VLOOKUP(H26,data4,1,0))","v":331},"رقم اللجنة :",{"$f":"(VLOOKUP(H26,data4,5,0))","v":1},null,null,""]
[null,null,null,null,null,null,null,null,null,null,null,null,null,null,""]
[null,{"$f":"B13","v":"رئيس الكنترول : فاتن بسيونى"},null,null,null,null,null,null,{"$f":"B13","v":"رئيس الكنترول : فاتن بسيونى"},null,null,null,null,null,""]
[null,{"$f":"B14","v":"مدير المدرسة : طه رسول"},null,null,null,null,null,null,{"$f":"B14","v":"مدير المدرسة : طه رسول"},null,null,null,null,null,""]
[null,null,null,null,null,null,null,null,null,null,null,null,null,null,""]
[null,{"$f":"B6","v":"إدارة الرياض التعليمية"},null,null,null,"امتحان",{"$f":"H26+1","v":332},{"$f":"G36+1","v":333},{"$f":"B6","v":"إدارة الرياض التعليمية"},null,null,null,"امتحان",null,""]
[null,{"$f":"B7","v":"مدرسة الشهيدين الاعدادية"},null,null,{"$f":"E7","v":"الفصل الدراسى الثانى"},null,null,null,{"$f":"B7","v":"مدرسة الشهيدين الاعدادية"},null,null,{"$f":"E7","v":"الفصل الدراسى الثانى"},null,null,""]
[null,{"$f":"B8","v":" رقم جلوس طالب / طالبة   الصف الخامس الابتدائى"},null,null,null,null,null,null,{"$f":"B8","v":" رقم جلوس طالب / طالبة   الصف الخامس الابتدائى"},null,null,null,null,null,""]
[null,{"$f":"B9","v":"العام الدراسي 2014/ 2015 م"},null,null,null,null,null,null,{"$f":"B9","v":"العام الدراسي 2014/ 2015 م"},null,null,null,null,null,""]
[null," إسم الطالب : ",{"$f":"(VLOOKUP(G36,data4,2,0))","v":"رشاد عصام حسين عبدالله"},null,null,null,null,null," إسم الطالب : ",{"$f":"(VLOOKUP(H36,data4,2,0))","v":"زياد ايمن صلاح سعد عبدالله"},null,null,null,null,""]
[null,"رقم الجلوس :",{"$f":"(VLOOKUP(G36,data4,1,0))","v":332},"رقم اللجنة :",{"$f":"(VLOOKUP(G36,data4,5,0))","v":1},null,null,null,"رقم الجلوس :",{"$f":"(VLOOKUP(H36,data4,1,0))","v":333},"رقم اللجنة :",{"$f":"(VLOOKUP(H36,data4,5,0))","v":1},null,null,""]
[null,null,null,null,null,null,null,null,null,null,null,null,null,null,""]
[null,{"$f":"B13","v":"رئيس الكنترول : فاتن بسيونى"},null,null,null,null,null,null,{"$f":"B13","v":"رئيس الكنترول : فاتن بسيونى"},null,null,null,null,null,""]
[null,{"$f":"B14","v":"مدير المدرسة : طه رسول"},null,null,null,null,null,null,{"$f":"B14","v":"مدير المدرسة : طه رسول"},null,null,null,null,null,""]
[null,null,null,null,null,null,null,null,null,null,null,null,null,null,""]
[null,{"$f":"B6","v":"إدارة الرياض التعليمية"},null,null,null,"امتحان",{"$f":"H36+1","v":334},{"$f":"G46+1","v":335},{"$f":"B6","v":"إدارة الرياض التعليمية"},null,null,null,"امتحان",null,""]
[null,{"$f":"B7","v":"مدرسة الشهيدين الاعدادية"},null,null,{"$f":"E7","v":"الفصل الدراسى الثانى"},null,null,null,{"$f":"B7","v":"مدرسة الشهيدين الاعدادية"},null,null,{"$f":"E7","v":"الفصل الدراسى الثانى"},null,null,""]
[null,{"$f":"B8","v":" رقم جلوس طالب / طالبة   الصف الخامس الابتدائى"},null,null,null,null,null,null,{"$f":"B8","v":" رقم جلوس طالب / طالبة   الصف الخامس الابتدائى"},null,null,null,null,null,""]
[null,{"$f":"B9","v":"العام الدراسي 2014/ 2015 م"},null,null,null,null,null,null,{"$f":"B9","v":"العام الدراسي 2014/ 2015 م"},null,null,null,null,null,""]
[null," إسم الطالب : ",{"$f":"(VLOOKUP(G46,data4,2,0))","v":"زياد خيري منير اسماعيل"},null,null,null,null,null," إسم الطالب : ",{"$f":"(VLOOKUP(H46,data4,2,0))","v":"زياد رضا وهبه محمد وهبه"},null,null,null,null,""]
[null,"رقم الجلوس :",{"$f":"(VLOOKUP(G46,data4,1,0))","v":334},"رقم اللجنة :",{"$f":"(VLOOKUP(G46,data4,5,0))","v":2},null,null,null,"رقم الجلوس :",{"$f":"(VLOOKUP(H46,data4,1,0))","v":335},"رقم اللجنة :",{"$f":"(VLOOKUP(H46,data4,5,0))","v":2},null,null,""]
[null,null,null,null,null,null,null,null,null,null,null,null,null,null,""]
[null,{"$f":"B13","v":"رئيس الكنترول : فاتن بسيونى"},null,null,null,null,null,null,{"$f":"B13","v":"رئيس الكنترول : فاتن بسيونى"},null,null,null,null,null,""]
[null,{"$f":"B14","v":"مدير المدرسة : طه رسول"},null,null,null,null,null,null,{"$f":"B14","v":"مدير المدرسة : طه رسول"},null,null,null,null,null,""]
[null,null,null,null,null,null,null,null,null,null,null,null,null,null,""]
[null,null,null,null,null,null,null,null,null,null,null,null,null,null,""]
[null,null,null,null,null,null,null,null,null,null,null,null,null,null,""]
[null,null,null,null,null,null,null,null,null,null,null,null,null,null,""]
[null,null,null,null,null,null,null,null,null,null,null,null,null,null,""]
[null,null,null,null,null,null,null,null,null,null,null,null,null,null,""]
[null,null,null,null,null,null,null,null,null,null,null,null,null,null,""]
[null,null,null,null,null,null,null,null,null,null,null,null,null,null,""]
[null,null,null,null,null,null,null,null,null,null,null,null,null,null,""]
[null,null,null,null,null,null,null,null,null,null,null,null,null,null,""]
[null,null,null,null,null,null,null,null,null,null,null,null,null,null,""]
[null,null,null,null,null,null,null,null,null,null,null,null,null,null,""]
[null,null,null,null,null,null,null,null,null,null,null,null,null,null,{"$f":"IF(O66>($D$1-9),\"\",O66+10)","v":""}]
[null,null,null,null,null,null,null,null,null,null,null,null,null,null,""]
[null,null,null,null,null,null,null,null,null,null,null,null,null,null,""]
[null,null,null,null,null,null,null,null,null,null,null,null,null,null,""]
[null,null,null,null,null,null,null,null,null,null,null,null,null,null,""]
[null,null,null,null,null,null,null,null,null,null,null,null,null,null,""]
[null,null,null,null,null,null,null,null,null,null,null,null,null,null,""]
[null,null,null,null,null,null,null,null,null,null,null,null,null,null,""]
[null,null,null,null,null,null,null,null,null,null,null,null,null,null,""]
[null,null,null,null,null,null,null,null,null,null,null,null,null,null,""]
[null,null,null,null,null,null,null,null,null,null,null,null,null,null,""]
[null,null,null,null,null,null,null,null,null,null,null,null,null,null,""]
[null,null,null,null,null,null,null,null,null,null,null,null,null,null,""]
[null,null,null,null,null,null,null,null,null,null,null,null,null,null,""]
[null,null,null,null,null,null,null,null,null,null,null,null,null,null,""]
[null,null,null,null,null,null,null,null,null,null,null,null,null,null,""]
[null,null,null,null,null,null,null,null,null,null,null,null,null,null,""]
[null,null,null,null,null,null,null,null,null,null,null,null,null,null,""]
[null,null,null,null,null,null,null,null,null,null,null,null,null,null,""]
[null,null,null,null,null,null,null,null,null,null,null,null,null,null,""]
[null,null,null,null,null,null,null,null,null,null,null,null,null,null,""]
[null,null,null,null,null,null,null,null,null,null,null,null,null,null,""]
[null,null,null,null,null,null,null,null,null,null,null,null,null,null,""]
[null,null,null,null,null,null,null,null,null,null,null,null,null,null,""]
[null,null,null,null,null,null,null,null,null,null,null,null,null,null,""]
[null,null,null,null,null,null,null,null,null,null,null,null,null,null,""]
[null,null,null,null,null,null,null,null,null,null,null,null,null,null,""]
[null,null,null,null,null,null,null,null,null,null,null,null,null,null,""]
[null,null,null,null,null,null,null,null,null,null,null,null,null,null,""]
[null,null,null,null,null,null,null,null,null,null,null,null,null,null,""]
[null,null,null,null,null,null,null,null,null,null,null,null,null,null,""]
[null,null,null,null,null,null,null,null,null,null,null,null,null,null,""]
[null,null,null,null,null,null,null,null,null,null,null,null,null,null,""]
[null,null,null,null,null,null,null,null,null,null,null,null,null,null,""]
[null,null,null,null,null,null,null,null,null,null,null,null,null,null,""]